Workbook

Sheet Introduksjon
C2: INTRODUKSJON | L2: =Versjonslogg!D2 -> VegLCA v5.06B. 17.02.22
C3: VegLCA inneholder to verktøy som er tilpasset henholdsvis i mellom- og senfase i veg- og baneprosjektering. Verktøyet for mellomfasen er i sin helhet i fanen Mellomfaseverktøy. Øvrige faner benyttes til senfase-vurderinger. Verktøyene beregner utslipp av klimagasser (og andre miljøpåvirkninger) fra utbygging og drift og vedlikehold av veg- og baneinfrastruktur over en angitt beregningsperiode (standard satt til 60 år). Miljøpåvirkningene beregnes fra angitte mengder av de ulike materialene, komponentene og prosessene som inngår i veg- og baneinfrastrukturen, ved hjelp av utslippsfaktorer per mengdeenhet. Verktøyet følger strukturen i Vegvesenets Prosesskode 1 og 2 (2018). Mer utfyllende beskrivelse av verktøyet og veiledning for gjennomføring av analysene er å finne i brukerveiledningen.
C5: MELLOMFASEVERKTØY | F5: Mellomfaseverktøyet er utviklet for bruk i en planleggingsfase der man ikke har mengdedata tilgjengelig på et detaljert nivå. Tidlige anslagsvurderinger er godt grunnlag for analyser på dette stadiet. Det anbefales å lese tips til utfylling av data i mellomfaseverktøyet. Mellomfaseverktøyet er i sin helhet i en egen fane, og det er ikke nødvendig å benytte noen av de andre fanene for å benytte dette. Det er forøvrig mulig å endre beregnings- og utslippsfaktorer, fremgangsmåte for dette er nærmere beskrevet i brukerveiledningen.
C7: SENFASEVERKTØY | D7: Inputfaner | G7: Resultatfaner | J7: Faktorer for beregninger
C8: KOMME I GANG MED ANALYSEN | F8: PROSJEKTBESKRIVELSE | I8: TOTALE MENGDER | L8: UTSLIPPSFAKTORER
C9: Dersom regnearket ikke er nullstilt etter forrige analyse, gjøres dette ved å klikke på knappen "Nullstill inndata" i prosjektbeskrivelsesfanen. Spesifikke opplysninger om byggeprosjektet som skal analyseres skal fylles ut i prosjektbeskrivelsesfanen. Analysen starter ved at man setter inn mengdedata for prosjektet i én eller flere av fanene Dagsone, Tunneler og Bruer Beregnet miljøpåvirkning tilknyttet de mengdedata som legges inn, vises fortløpende i fanen Resultater. Dersom det ikke er ønskelig/behov for å bruke prosjektspesifikke beregningsforutsetninger eller utslippsfaktorer, benyttes standard forutsetninger og faktorer som er forhåndsdefinert i verktøyet. Dermed er det tilstrekkelig å kun legge inn data i de blå fanene for å få ut resultater. Dersom man ønsker å bruke prosjektspesifikke beregningsfaktorer (for eksempel for transportdistanser eller drivstofforbruk i anleggsmaskiner), gjøres dette ved å legge inn egne verdier i fanen Beregningsfaktorer. Fullstendige analyseresultater vises i Resultater, mens et sammendrag av de viktigste resultatene vises i Sammendrag resultater. Fra denne fanen er det også mulig å skrive rapport til PDF-format. Fanen Sammendrag resultater omfatter kun utslipp av klimagasser, mens fanen Resultater har også mulighet til å vise resultater for andre miljøpåvirkninger. | F9: Her angir man grunnopplysninger om vegprosjektet som analyseres, samt definerer antall vegelementer av hver type (dagsone/tunnel/bru), og lengde for hver delstrekning. Beregningsforutsetninger Elektrisitetsmiks: Verktøyet opererer med tre scenarier for elektrisitetsmikser som bruker kan velge mellom. Scenario 1 benyttes som standard. Scenario 1: Norsk miks i byggefase og Europeisk snitt i driftsfase Scenario 2: Norsk miks i byggefase og Norsk snitt i driftsfase Scenario 3: Europeisk miks i byggefase og Europeisk snitt i driftsfase Minstekrav betong: Dersom det ikke foreligger noen minstekrav til lavkarbonbetong B i prosjektet skal dette angis her Når en skal benytte prosjektspesifikke EPD'er for materialer/komponenter skal data fra disse fylles inn i fanen Utslippsfaktorer. | I9: Denne fanen oppsummerer totalsummen av mengder som er angitt for vegprosjektet, for alle typer materialer og komponenter som er medregnet i verktøyet. Dette er listet opp under overskriften "Budsjett". Dersom man besitter faktiske mengdedata for vegprosjektet kan totale mengder skrives inn under overskriften "Regnskap", og man får beregnet reduksjon/økning i miljøpåvirkning i forhold til budsjettet. | L9: Verdier som brukes for å beregne ulike utslipp fra mengdene av materialer er gitt i denne fanen. Kolonnen til venstre, merket "Brukt i beregninger", viser settet av utslippsfaktorer som brukes i beregningene. Fanen viser opprinnelig kun utslipp av klimagasser, men ved å trykke på Vis utslippsfaktorer for flere miljøkategorier utvides fanen til å inkludere flere miljøpåvirkninger. Dersom det skal brukes prosjektspesifikke utslippsfaktorer, fylles disse inn i kolonnen "Prosjektspesifikke faktorer". Det er tilstrekkelig å fylle inn utslippsfaktorer for de prosessene man ønsker at skal være ulike de eksisterende utslippsfaktorene, standardfaktorene vil brukes der prosjektspesifikk verdi ikke er angitt. Dersom det angis prosjektspesifikke utslippsfaktorer, vil disse overstyre standardfaktorene i beregningene. Moduler i livsløpet (A1-A3, A4, B4-B5) Utslippsdata skal kun omfatte data fra råvarehenting til produktet er ferdigprodusert ved fabrikkport, A1-A3 iht. EN 15804. Utslipp fra transport av produktet til byggeplass (A4) beregnes basert på transportavstander gitt i fanen Beregningsfaktorer. Modul B4-B5 omfatter drift og vedlikehold av infrastrukturen, som beregnes ut fra angitt analyseperiode og levetider gitt i fanen Beregningsfaktorer.
I18: RESULTATER
I19: I denne fanen er beregnede klimagassutslipp fordelt på alle materialer og komponenter som er inkludert i verktøyet gitt, fordelt på dagsone, tunnel og bru for materialproduksjon, utbygging, og drift og vedlikehold. Fanen viser opprinnelig kun utslipp av klimagasser, men ved å trykke på Vis resultater for flere miljøkategorier utvides resultatvisningen til å inkludere flere miljøpåvirkninger. Resultater for utslipp av CO2 som følge av arealbruksendringer angis for seg. To ulike metoder for beregningene er benyttet, hvorav den ene baseres på masseflytting i prosesskoden og den andre baseres på totalt areal på vegen. Denne fanen inneholder svært mange verdier, og egner seg best for å vurdere enkeltmaterialenes bidrag til total miljøpåvirkning. En mer oversiktlig resultatpresentasjon er gitt i fanen Resultatsammendrag.
F29: ANLEGG
F30: I denne fanen kan man endre på forutsetnigner for maskinparken for anleggsarbeid og massetransport. Andel biodiesel er definert i henhold til omsetningskrav for hhv anleggsdiesel og diesel for veitransport. Andeler av anleggsarbeid og massetransport per drivstofftype kan varieres. Fanen viser direkte utslipp i byggefasen både med standard forutsetninger og ved valg av drivstofftype. Valg her påvirker beregninger i både Mellomfaseverktøy og Senfaseverktøy.
L33: BEREGNINGSFAKTORER
C34: Rund Sum poster | L34: Her finner man verdier som brukes for å beregne forbruk av materialer og energi gjennom livsløpet til veginfrastrukturen. Verdiene i de gråmerkede cellene er generelle faktorer som benyttes med mindre det angis prosjektspesifikke faktorer av bruker. Prosjektspesifikke faktorer skal angis i de hvite cellene (NB! må ha samme enhet som de generelle faktorene). Transportavstander som er spesielt prosjekt-avhengige er markert med kommentar Dersom det angis prosjektspesifikke beregningsfaktorer, vil disse overstyre de generelle faktorene i beregningene.
C35: For Hovedprosess 01 beregnes det utslipp knyttet til kostnader som fylles inn. Beregningene baseres på utslippsintensiteter per NOK for bransje-sektorer. For øvrige Rund Sum poster i inputfanene beregnes ikke utslipp
I37: RESULTATSAMMENDRAG
I38: I denne fanen gjengis de viktigste resultatene fra analysen presentert i tabeller og grafisk. Fanen viser kun utslipp av klimagasser. Dersom det er benyttet egne faktorer i analysen skal disse beskrives her. Resultatsammendraget kan kopieres over i en annen excelfil, og ved å trykke på "Skriv ut rapport", har man muligheten til å lagre en PDF-rapport av resultatsammendraget.
F39: DAGSONE - TUNNELER - BRUER
C40: JERNBANEMODUL | F40: Her skal mengedata for alle relevante inputfaktorer legges inn, i henhold til oppsettet i Vegvesenets Prosesskode 1 og 2. Det er lagt til rette for å legge inn en stor mengde data, og det vil variere fra prosjekt til prosjekt hvilke data man har tilgjengelig og dermed kan legge inn. Inputfanene er strukturert etter Vegvesenets Prosesskode 1 og 2. Ikke alle prosesskodene er inkludert i regnearket, da ikke aller er relevante i forhold til miljøanalysene. Det er én fane for hvert vegelement; Dagsone, tunneler og bruer. Alle fanene er bygd opp etter prosesskodestruktur. Det er mulig å legge inn data for flere tunneler og bruer, avhengig av hvor mange tunnel- og brustrekninger som er spesifisert i fanen Prosjektbeskrivelse.
C41: Jernbaneoverbygning- og teknikk er inkludert i både mellomfaseverktøy og senfaseverktøy. Se faner for prosesser som er tilpasset input fra bane. For jernbaneunderbygning skal eksisterende prosesser benyttes (tilsvarende som for veg). Både beregningsfaktorer og utslippsfaktorer for jernbaneoverbygning- og teknikk kan justeres, se aktuell fane. Beregninger for jernbanemodul (overbygning og jernbaneteknikk) omfatter ikke strømforbruk til fremføring av tog i driftsfasen.
L47: DOKUMENTASJON
L48: I denne fanen finner man dokumentasjon av beregningsfaktorer som er benyttet i beregningene. Her er dokumentasjon gitt i mer detalj enn det som er oppgitt i fanen Beregningsfaktorer.
C51: Se fane Versjonslogg for beskrivelse av gjeldende versjon og oppdatering av VegLCA.

Sheet Mellomfaseverktøy
BE1: <
B2: PROSJEKTBESKRIVELSE | F2: INPUT | Z2: 12
Y3: Materialtransport (transport av materialer inn til prosjektet) | Z3: =VLOOKUP(Y3,Utslippsfaktorer!$C$9:$E$392,3,FALSE) -> 0.1642799 | AA3: kg CO2 e/tkm
B5: ="Klimabudsjett for "&C16&"" -> Klimabudsjett for | F5: Materialforbruk | J5: Anleggsarbeid | K5: Mengde | U5: Konvertert mengde | W5: Utslippsfaktor, A1-A3 | Y5: Transport, A4 | Z5: Resultat, A1-A4 | AB5: Faktorer for konvertering | AL5: Sprengning | AM5: Mengde | AT5: Utslippsfaktor | AU5: Enhet utslippsfaktor
B6: =Introduksjon!L2 -> VegLCA v5.06B. 17.02.22 | F6: Materialer | G6: Mengde | H6: Enhet | J6: Prosess | K6: Mengde | L6: Enhet | O6: Beregninger | P6: Kategori | Q6: Enhet valg | R6: Utslippsfaktor | S6: Enhet utslippsfaktor | T6: Konvertering | V6: Enhet | X6: Enhet | Y6: Tonnkm/enhet | Z6: tonn CO2-eq | AB6: Mengde | AC6: Enhet | AD6: Beskrivelse | AE6: Tetthet | AI6: Avh. Av ÅDT, cm | AL6: =J7 -> Sprengning dagen (kun sprengning) | AM6: 0 | AN6: pfm3 | AO6: =Beregningsfaktorer!M20 -> 0.7 | AP6: =Beregningsfaktorer!P20 -> kg/fm3 | AQ6: =AM6*AO6 -> 0 | AR6: kg sprengstoff | AT6: Sprengning (detonasjon, A5) | AU6: =VLOOKUP(AT6,Utslippsfaktorer!$C$9:$D$392,2,FALSE) -> kg | AV6: =VLOOKUP(AT6,Utslippsfaktorer!$C$9:$E$392,3,FALSE) -> 0.1114 | AW6: ="kg CO2-eq/"&AU6 -> kg CO2-eq/kg
F7: Asfalt, Agb | H7: Velg enhet | J7: Sprengning dagen (kun sprengning) | L7: pfm3 | O7: =F7 -> Asfalt, Agb | P7: =VLOOKUP(R7,Utslippsfaktorer!$C$9:$AL$391,Utslippsfaktorer!$AL$5,FALSE) -> Asfalt | Q7: =H7 -> Velg enhet | R7: Asfaltgrusbetong (Agb) | S7: =VLOOKUP(R7,Utslippsfaktorer!$C$9:$D$392,2,FALSE) -> kg | T7: =IF(Q7=Nedtrekksmenyer!$D$4,0,IF(Q7=S7,1,IF(Q7=Nedtrekksmenyer!$D$5,1000,IF(Q7=Nedtrekksmenyer!$D$6,AB7*AE7*1000)))) -> 0 | U7: =G7*T7 -> 0 | V7: =S7 -> kg | W7: =VLOOKUP(R7,Utslippsfaktorer!$C$9:$I$392,3,FALSE) -> 0.0747 | X7: ="kg CO2-eq/"&S7 -> kg CO2-eq/kg | Y7: =VLOOKUP(R7,Beregningsfaktorer!$L$70:$Q$308,Beregningsfaktorer!$Q$70,FALSE) -> 0.1 | Z7: =(U7*W7/1000)+(U7*Y7*$Z$3)/1000 -> 0 | AB7: =($AJ$7+$AJ$8)/100 -> 0.06 | AC7: m tykkelse | AD7: Tykkelse av bindelag + slitelag | AE7: =Beregningsfaktorer!C242 -> 2.5 | AF7: =Beregningsfaktorer!F242 -> tonn/m3 | AI7: Tykkelse slitelag | AJ7: =IF(C18<1000,3,0)+IF(AND(C18>=1000,C18<3000),3.5,0)+IF(C18>=3000,4,0) -> 3 | AL7: Sprengning i tunnel (kun sprengning) | AM7: 0 | AN7: pfm3 | AO7: =Beregningsfaktorer!M23 -> 1.8 | AP7: =Beregningsfaktorer!P23 -> kg/fm3 | AQ7: =AM7*AO7 -> 0 | AR7: kg sprengstoff
B8: Informasjon om analysen | F8: Asfalt, Ab | H8: Velg enhet | J8: Sprengning i tunnel (kun sprengning) | L8: pfm3 | O8: =F8 -> Asfalt, Ab | P8: =VLOOKUP(R8,Utslippsfaktorer!$C$9:$AL$391,Utslippsfaktorer!$AL$5,FALSE) -> Asfalt | Q8: =H8 -> Velg enhet | R8: Asfaltbetong (Ab) | S8: =VLOOKUP(R8,Utslippsfaktorer!$C$9:$D$392,2,FALSE) -> kg | T8: =IF(Q8=Nedtrekksmenyer!$D$4,0,IF(Q8=S8,1,IF(Q8=Nedtrekksmenyer!$D$5,1000,IF(Q8=Nedtrekksmenyer!$D$6,AB8*AE8*1000)))) -> 0 | U8: =G8*T8 -> 0 | V8: kg | W8: =VLOOKUP(R8,Utslippsfaktorer!$C$9:$I$392,3,FALSE) -> 0.0505 | X8: ="kg CO2-eq/"&S8 -> kg CO2-eq/kg | Y8: =VLOOKUP(R8,Beregningsfaktorer!$L$70:$Q$308,Beregningsfaktorer!$Q$70,FALSE) -> 0.1 | Z8: =(U8*W8/1000)+(U8*Y8*$Z$3)/1000 -> 0 | AB8: =($AJ$7+$AJ$8)/100 -> 0.06 | AC8: m tykkelse | AD8: Tykkelse av bindelag + slitelag | AE8: =Beregningsfaktorer!C242 -> 2.5 | AF8: =Beregningsfaktorer!F243 -> tonn/m3 | AI8: Tykkelse bindlag | AJ8: =IF(C18<5000,3,0)+IF(C18>=5000,4,0) -> 3 | AQ8: =AQ6+AQ7 -> 0 | AR8: kg
B9: Navn på den som har utført analysen | F9: Asfalt, Ab m/PMB | H9: Velg enhet | J9: Massehåndtering og -graving (alle masser) | L9: pfm3 | O9: Asfalt, Ab m/PMB | P9: =VLOOKUP(R9,Utslippsfaktorer!$C$9:$AL$391,Utslippsfaktorer!$AL$5,FALSE) -> Asfalt | Q9: Velg enhet | R9: Asfaltbetong (Ab PMB) | S9: =VLOOKUP(R9,Utslippsfaktorer!$C$9:$D$392,2,FALSE) -> kg | T9: =IF(Q9=Nedtrekksmenyer!$D$4,0,IF(Q9=S9,1,IF(Q9=Nedtrekksmenyer!$D$5,1000,IF(Q9=Nedtrekksmenyer!$D$6,AB9*AE9*1000)))) -> 0 | U9: =G9*T9 -> 0 | V9: kg | W9: =VLOOKUP(R9,Utslippsfaktorer!$C$9:$I$392,3,FALSE) -> 0.05035 | X9: kg CO2-eq/kg | Y9: =VLOOKUP(R9,Beregningsfaktorer!$L$70:$Q$308,Beregningsfaktorer!$Q$70,FALSE) -> 0.1 | Z9: 0 | AB9: =($AJ$7+$AJ$8)/100 -> 0.06 | AC9: m tykkelse | AD9: Tykkelse av bindelag + slitelag | AE9: =$AE$8 -> 2.5 | AF9: =$AF$8 -> tonn/m3 | AG9: Antar Ab asfalt
B10: Dato for analyse | F10: Asfalt, Ska | H10: Velg enhet | J10: Masser ut av anlegg (kun transport) | L10: pfm3 | O10: Asfalt, Ska | P10: =VLOOKUP(R10,Utslippsfaktorer!$C$9:$AL$391,Utslippsfaktorer!$AL$5,FALSE) -> Asfalt | Q10: Velg enhet | R10: Skjelettasfalt (Ska) | S10: =VLOOKUP(R10,Utslippsfaktorer!$C$9:$D$392,2,FALSE) -> kg | T10: =IF(Q10=Nedtrekksmenyer!$D$4,0,IF(Q10=S10,1,IF(Q10=Nedtrekksmenyer!$D$5,1000,IF(Q10=Nedtrekksmenyer!$D$6,AB10*AE10*1000)))) -> 0 | U10: 0 | V10: kg | W10: =VLOOKUP(R10,Utslippsfaktorer!$C$9:$I$392,3,FALSE) -> 0.06095 | X10: kg CO2-eq/kg | Y10: =VLOOKUP(R10,Beregningsfaktorer!$L$70:$Q$308,Beregningsfaktorer!$Q$70,FALSE) -> 0.1 | Z10: 0 | AB10: =($AJ$7+$AJ$8)/100 -> 0.06 | AC10: m tykkelse | AD10: Tykkelse av bindelag + slitelag | AE10: =$AE$8 -> 2.5 | AF10: =$AF$8 -> tonn/m3 | AG10: Antar Ab asfalt | AI10: Frekvens reasfaltering | AJ10: =IF(C18<5000,13,0)+IF(AND(C18>=5000,C18<10000),10,0)+IF(AND(C18>=10000,C18<20000),7,0)+IF(C18>=20000,6,0) -> 13 | AL10: Dieselforbruk anleggsarbeid | AM10: Mengde
B11: Analyseperiode (år) | E11: =IF(C11="", "Må angis", "") -> Må angis | F11: Asfalt, Ska m/PMB | H11: Velg enhet | J11: Masser inn til anlegg (kun transport) | L11: lm3 | O11: Asfalt, Ska m/PMB | P11: =VLOOKUP(R11,Utslippsfaktorer!$C$9:$AL$391,Utslippsfaktorer!$AL$5,FALSE) -> Asfalt | Q11: Velg enhet | R11: Skjelettasfalt (Ska PMB) | S11: =VLOOKUP(R11,Utslippsfaktorer!$C$9:$D$392,2,FALSE) -> kg | T11: =IF(Q11=Nedtrekksmenyer!$D$4,0,IF(Q11=S11,1,IF(Q11=Nedtrekksmenyer!$D$5,1000,IF(Q11=Nedtrekksmenyer!$D$6,AB11*AE11*1000)))) -> 0 | U11: 0 | V11: kg | W11: =VLOOKUP(R11,Utslippsfaktorer!$C$9:$I$392,3,FALSE) -> 0.0596 | X11: kg CO2-eq/kg | Y11: =VLOOKUP(R11,Beregningsfaktorer!$L$70:$Q$308,Beregningsfaktorer!$Q$70,FALSE) -> 0.1 | Z11: 0 | AB11: =($AJ$7+$AJ$8)/100 -> 0.06 | AC11: m tykkelse | AD11: Tykkelse av bindelag + slitelag | AE11: =$AE$8 -> 2.5 | AF11: =$AF$8 -> tonn/m3 | AG11: Antar Ab asfalt | AL11: Drilling, sprengning i dagen | AM11: =AM6 -> 0 | AN11: =AN6 -> pfm3 | AO11: =Beregningsfaktorer!M49 -> 0.41 | AP11: =Beregningsfaktorer!P49 -> liter diesel/lm3 | AQ11: =AM11*AO11 -> 0 | AR11: liter Diesel
F12: Bærelag (Ag) | H12: m3 | O12: =F12 -> Bærelag (Ag) | P12: =VLOOKUP(R12,Utslippsfaktorer!$C$9:$AL$391,Utslippsfaktorer!$AL$5,FALSE) -> Asfalt | Q12: =H12 -> m3 | R12: Asfaltert grus (Ag) | S12: =VLOOKUP(R12,Utslippsfaktorer!$C$9:$D$392,2,FALSE) -> kg | T12: =IF(Q12=Nedtrekksmenyer!$D$4,0,IF(Q12=S12,1,AE12*1000)) -> 2400 | U12: 0 | V12: kg | W12: =VLOOKUP(R12,Utslippsfaktorer!$C$9:$I$392,3,FALSE) -> 0.0341 | X12: kg CO2-eq/kg | Y12: =VLOOKUP(R12,Beregningsfaktorer!$L$70:$Q$308,Beregningsfaktorer!$Q$70,FALSE) -> 0.1 | Z12: 0 | AE12: =Beregningsfaktorer!C243 -> 2.4 | AF12: =$AF$8 -> tonn/m3 | AL12: Asfalt | AM12: =SUM(U7:U11)/1000 -> 0 | AN12: tonn | AO12: =Beregningsfaktorer!M56 -> 0.8 | AP12: =Beregningsfaktorer!P56 -> liter diesel/tonn | AQ12: =AM12*AO12 -> 0 | AR12: liter Diesel | AU12: =Nedtrekksmenyer!$F$4 -> RS - NOK
B13: =Prosjektbeskrivelse!C25 -> Scenario for utslippsfaktor for elektrisitetsproduksjon | C13: Velg scenario for el-miks | E13: =IF(C13="Velg scenarie for el-miks", "Må angis", "") ->  | F13: Forsterkningslag (pukk) | H13: am3 | J13: Arealbeslag | O13: Forsterkningslag (pukk) | P13: =VLOOKUP(R13,Utslippsfaktorer!$C$9:$AL$391,Utslippsfaktorer!$AL$5,FALSE) -> Grus/pukk | Q13: am3 | R13: Grus/pukk | S13: =VLOOKUP(R13,Utslippsfaktorer!$C$9:$D$392,2,FALSE) -> kg | T13: =IF(Q13=Nedtrekksmenyer!$D$4,0,IF(Q13=S13,1,AE13*1000)) -> 1500 | U13: 0 | V13: kg | W13: =VLOOKUP(R13,Utslippsfaktorer!$C$9:$I$392,3,FALSE) -> 0.00315 | X13: kg CO2-eq/kg | Y13: =VLOOKUP(R13,Beregningsfaktorer!$L$70:$Q$308,Beregningsfaktorer!$Q$70,FALSE) -> 0.1 | Z13: 0 | AE13: =Beregningsfaktorer!C241 -> 1.5 | AF13: =Beregningsfaktorer!F241 -> tonn/lm3 | AL13: Bærelag (Ag) | AM13: =U12/1000/Beregningsfaktorer!C242 -> 0 | AN13: m3 | AO13: =Beregningsfaktorer!M42 -> 2 | AP13: =Beregningsfaktorer!P42 -> liter diesel/lm3 | AQ13: 0 | AR13: liter Diesel
F14: Normalbetong, B30, Bransjereferanse | H14: m3 | J14: Arealtype | K14: Mengde | L14: Enhet | O14: =F14 -> Normalbetong, B30, Bransjereferanse | P14: =VLOOKUP(R14,Utslippsfaktorer!$C$9:$AL$391,Utslippsfaktorer!$AL$5,FALSE) -> Plasstøpt betong | Q14: m3 | R14: Normalbetong, B30, Bransjereferanse | S14: =VLOOKUP(R14,Utslippsfaktorer!$C$9:$D$392,2,FALSE) -> m3 | T14: =IF(Q14=Nedtrekksmenyer!$D$4,0,IF(Q14=S14,1)) -> 1 | U14: 0 | V14: m3 | W14: =VLOOKUP(R14,Utslippsfaktorer!$C$9:$I$392,3,FALSE) -> 280 | X14: kg CO2-eq/m3 | Y14: =VLOOKUP(R14,Beregningsfaktorer!$L$70:$Q$308,Beregningsfaktorer!$Q$70,FALSE) -> 240 | Z14: 0 | AL14: Forsterkningslag (pukk) | AM14: =U13/1000/Beregningsfaktorer!C241 -> 0 | AN14: m3 | AO14: =Beregningsfaktorer!M42 -> 2 | AP14: =Beregningsfaktorer!P42 -> liter diesel/lm3 | AQ14: 0 | AR14: liter Diesel
B15: Prosjektinformasjon og forutsetninger for beregninger | F15: Normalbetong, B35, Bransjereferanse | H15: m3 | J15: Dyrket mark/matjord | L15: m3 | O15: Normalbetong, B35, Bransjereferanse | P15: =VLOOKUP(R15,Utslippsfaktorer!$C$9:$AL$391,Utslippsfaktorer!$AL$5,FALSE) -> Plasstøpt betong | Q15: m3 | R15: Normalbetong, B35, Bransjereferanse | S15: =VLOOKUP(R15,Utslippsfaktorer!$C$9:$D$392,2,FALSE) -> m3 | T15: =IF(Q15=Nedtrekksmenyer!$D$4,0,IF(Q15=S15,1)) -> 1 | U15: 0 | V15: m3 | W15: =VLOOKUP(R15,Utslippsfaktorer!$C$9:$I$392,3,FALSE) -> 330 | X15: kg CO2-eq/m3 | Y15: =VLOOKUP(R15,Beregningsfaktorer!$L$70:$Q$308,Beregningsfaktorer!$Q$70,FALSE) -> 240 | Z15: 0 | AL15: Fyllingsmateriale, skumglassgranulat | AM15: =G29 -> 0 | AN15: m3 | AO15: =Beregningsfaktorer!M35+Beregningsfaktorer!M38 -> 1.288 | AP15: =Beregningsfaktorer!P35 -> liter diesel/lm3 | AQ15: 0 | AR15: liter Diesel | AS15: antar M37 da M39 er feil enhet
B16: Utbyggingsprosjekt | F16: Normalbetong, B45, Bransjereferanse | H16: m3 | J16: Myr | L16: m3 | O16: Normalbetong, B45, Bransjereferanse | P16: =VLOOKUP(R16,Utslippsfaktorer!$C$9:$AL$391,Utslippsfaktorer!$AL$5,FALSE) -> Plasstøpt betong | Q16: m3 | R16: Normalbetong, B45, Bransjereferanse | S16: =VLOOKUP(R16,Utslippsfaktorer!$C$9:$D$392,2,FALSE) -> m3 | T16: =IF(Q16=Nedtrekksmenyer!$D$4,0,IF(Q16=S16,1)) -> 1 | U16: 0 | V16: m3 | W16: =VLOOKUP(R16,Utslippsfaktorer!$C$9:$I$392,3,FALSE) -> 360 | X16: kg CO2-eq/m3 | Y16: =VLOOKUP(R16,Beregningsfaktorer!$L$70:$Q$308,Beregningsfaktorer!$Q$70,FALSE) -> 240 | Z16: 0 | AL16: Fyllingsmateriale, lettklinker/ekspandert leire | AM16: 0 | AN16: m3 | AO16: =Beregningsfaktorer!M35+Beregningsfaktorer!M38 -> 1.288 | AP16: =Beregningsfaktorer!P35 -> liter diesel/lm3 | AQ16: 0 | AR16: liter Diesel
B17: Sted / region /prosjekttype | C17: Velg region | F17: Normalbetong, B30, Lavkarbon B | H17: m3 | J17: Skog - høy bonitet | L17: m2 | O17: Normalbetong, B30, Lavkarbon B | P17: =VLOOKUP(R17,Utslippsfaktorer!$C$9:$AL$391,Utslippsfaktorer!$AL$5,FALSE) -> Plasstøpt betong | Q17: m3 | R17: Normalbetong, B30, Lavkarbon B | S17: =VLOOKUP(R17,Utslippsfaktorer!$C$9:$D$392,2,FALSE) -> m3 | T17: =IF(Q17=Nedtrekksmenyer!$D$4,0,IF(Q17=S17,1)) -> 1 | U17: 0 | V17: m3 | W17: =VLOOKUP(R17,Utslippsfaktorer!$C$9:$I$392,3,FALSE) -> 230 | X17: kg CO2-eq/m3 | Y17: =VLOOKUP(R17,Beregningsfaktorer!$L$70:$Q$308,Beregningsfaktorer!$Q$70,FALSE) -> 240 | Z17: 0 | AL17: Fyllingsmateriale, grus/pukk | AM17: 0 | AN17: am3 | AO17: =Beregningsfaktorer!M35+Beregningsfaktorer!M38 -> 1.288 | AP17: =Beregningsfaktorer!P35 -> liter diesel/lm3 | AQ17: 0 | AR17: liter Diesel
B18: =IF(C17=Nedtrekksmenyer!C9,"","ÅDT") -> ÅDT | E18: =IF(C17=Nedtrekksmenyer!C9,"",(IF(C18="", "Må angis", ""))) -> Må angis | F18: Normalbetong, B35, Lavkarbon B | H18: m3 | J18: Skog - middels bonitet | L18: m2 | O18: Normalbetong, B35, Lavkarbon B | P18: =VLOOKUP(R18,Utslippsfaktorer!$C$9:$AL$391,Utslippsfaktorer!$AL$5,FALSE) -> Plasstøpt betong | Q18: m3 | R18: Normalbetong, B35, Lavkarbon B | S18: =VLOOKUP(R18,Utslippsfaktorer!$C$9:$D$392,2,FALSE) -> m3 | T18: =IF(Q18=Nedtrekksmenyer!$D$4,0,IF(Q18=S18,1)) -> 1 | U18: 0 | V18: m3 | W18: =VLOOKUP(R18,Utslippsfaktorer!$C$9:$I$392,3,FALSE) -> 280 | X18: kg CO2-eq/m3 | Y18: =VLOOKUP(R18,Beregningsfaktorer!$L$70:$Q$308,Beregningsfaktorer!$Q$70,FALSE) -> 240 | Z18: 0 | AL18: Stål, peler | AM18: =G45*1000/Beregningsfaktorer!C160 -> 0 | AN18: meter | AO18: =Beregningsfaktorer!M53 -> 0.5845 | AP18: =Beregningsfaktorer!P53 -> liter diesel/m | AQ18: 0 | AR18: liter Diesel
B19: =IF(C17=Nedtrekksmenyer!C9,"Antall spor","Antall felt") -> Antall felt | E19: =IF(C19="", "Må angis", "") -> Må angis | F19: Normalbetong, B45, Lavkarbon B | H19: m3 | J19: Skog - lav bonitet | L19: m2 | O19: Normalbetong, B45, Lavkarbon B | P19: =VLOOKUP(R19,Utslippsfaktorer!$C$9:$AL$391,Utslippsfaktorer!$AL$5,FALSE) -> Plasstøpt betong | Q19: m3 | R19: Normalbetong, B45, Lavkarbon B | S19: =VLOOKUP(R19,Utslippsfaktorer!$C$9:$D$392,2,FALSE) -> m3 | T19: =IF(Q19=Nedtrekksmenyer!$D$4,0,IF(Q19=S19,1)) -> 1 | U19: 0 | V19: m3 | W19: =VLOOKUP(R19,Utslippsfaktorer!$C$9:$I$392,3,FALSE) -> 290 | X19: kg CO2-eq/m3 | Y19: =VLOOKUP(R19,Beregningsfaktorer!$L$70:$Q$308,Beregningsfaktorer!$Q$70,FALSE) -> 240 | Z19: 0 | AL19: Stål, spunt | AM19: =G47 -> 0 | AN19: =H47 -> tonn | AO19: ikke tall for denne | AR19: liter Diesel
B20: Lengde dagsone (m) | E20: Må angis | F20: Normalbetong, B30, Lavkarbon A | H20: m3 | O20: Normalbetong, B30, Lavkarbon A | P20: =VLOOKUP(R20,Utslippsfaktorer!$C$9:$AL$391,Utslippsfaktorer!$AL$5,FALSE) -> Plasstøpt betong | Q20: m3 | R20: Normalbetong, B30, Lavkarbon A | S20: =VLOOKUP(R20,Utslippsfaktorer!$C$9:$D$392,2,FALSE) -> m3 | T20: =IF(Q20=Nedtrekksmenyer!$D$4,0,IF(Q20=S20,1)) -> 1 | U20: 0 | V20: m3 | W20: =VLOOKUP(R20,Utslippsfaktorer!$C$9:$I$392,3,FALSE) -> 200 | X20: kg CO2-eq/m3 | Y20: =VLOOKUP(R20,Beregningsfaktorer!$L$70:$Q$308,Beregningsfaktorer!$Q$70,FALSE) -> 240 | Z20: 0 | AL20: Massehåndtering og utgraving | AM20: =K9*Beregningsfaktorer!AL29 -> 0 | AN20: lm3 | AO20: =Beregningsfaktorer!M33+Beregningsfaktorer!M34+Beregningsfaktorer!M35+Beregningsfaktorer!M33 -> 0.798 | AP20: =Beregningsfaktorer!P33 -> liter diesel/lm3 | AQ20: =AM20*AO20 -> 0 | AR20: liter Diesel | AS20: gravemakin + tipp + gravemaskin
B21: Lengde bru (m) | E21: Må angis | F21: Normalbetong, B35, Lavkarbon A | H21: m3 | J21: Tips til utfylling av mengdedata | O21: Normalbetong, B35, Lavkarbon A | P21: =VLOOKUP(R21,Utslippsfaktorer!$C$9:$AL$391,Utslippsfaktorer!$AL$5,FALSE) -> Plasstøpt betong | Q21: m3 | R21: Normalbetong, B35, Lavkarbon A | S21: =VLOOKUP(R21,Utslippsfaktorer!$C$9:$D$392,2,FALSE) -> m3 | T21: =IF(Q21=Nedtrekksmenyer!$D$4,0,IF(Q21=S21,1)) -> 1 | U21: 0 | V21: m3 | W21: =VLOOKUP(R21,Utslippsfaktorer!$C$9:$I$392,3,FALSE) -> 210 | X21: kg CO2-eq/m3 | Y21: =VLOOKUP(R21,Beregningsfaktorer!$L$70:$Q$308,Beregningsfaktorer!$Q$70,FALSE) -> 240 | Z21: 0 | AL21: Sum | AM21: Anleggsdiesel: iht omsetningskrav, B0 | AQ21: =SUM(AQ11:AQ20)*Anlegg!AB10 -> 0 | AR21: liter Diesel | AT21: =Utslippsfaktorer!C131 -> Anleggsdiesel: Innblanding biodiesel basert på omsetningskrav, B0 | AU21: l | AV21: =VLOOKUP(AT21,Utslippsfaktorer!$C$9:$E$392,3,FALSE) -> 3.24 | AW21: ="kg CO2-eq/"&AU21 -> kg CO2-eq/l
B22: Lengde med belysning på dagsone og bru (m) | E22: Må angis | F22: Normalbetong, B45, Lavkarbon A | H22: m3 | J22: Velg enhet: For materialer med alternative enheter på inputdata, MÅ dette velges | O22: Normalbetong, B45, Lavkarbon A | P22: =VLOOKUP(R22,Utslippsfaktorer!$C$9:$AL$391,Utslippsfaktorer!$AL$5,FALSE) -> Plasstøpt betong | Q22: m3 | R22: Normalbetong, B45, Lavkarbon A | S22: =VLOOKUP(R22,Utslippsfaktorer!$C$9:$D$392,2,FALSE) -> m3 | T22: =IF(Q22=Nedtrekksmenyer!$D$4,0,IF(Q22=S22,1)) -> 1 | U22: 0 | V22: m3 | W22: =VLOOKUP(R22,Utslippsfaktorer!$C$9:$I$392,3,FALSE) -> 220 | X22: kg CO2-eq/m3 | Y22: =VLOOKUP(R22,Beregningsfaktorer!$L$70:$Q$308,Beregningsfaktorer!$Q$70,FALSE) -> 240 | Z22: 0 | AM22: Diesel for veitransport: iht omsetnignskrav, B16 | AQ22: =SUM(AQ11:AQ20)*Anlegg!AB11 -> 0 | AR22: liter Diesel | AT22: =Utslippsfaktorer!C133 -> Diesel for veitransport: Innblanding biodiesel basert på omsetningskrav, B20 | AU22: =VLOOKUP(AT22,Utslippsfaktorer!$C$9:$D$392,2,FALSE) -> l | AV22: =VLOOKUP(AT22,Utslippsfaktorer!$C$9:$E$392,3,FALSE) -> 2.93334 | AW22: ="kg CO2-eq/"&AU22 -> kg CO2-eq/l
B23: Lengde tunnel oversjøisk (m) | E23: Må angis | F23: Betongelement, prefabrikert, lavkarbon C | H23: tonn | O23: Betongelement, prefabrikert, lavkarbon C | P23: =VLOOKUP(R23,Utslippsfaktorer!$C$9:$AL$391,Utslippsfaktorer!$AL$5,FALSE) -> Betongelementer | Q23: tonn | R23: Betong, elementer B45 Bransjereferanse | S23: =VLOOKUP(R23,Utslippsfaktorer!$C$9:$D$392,2,FALSE) -> tonn | T23: =IF(Q23=Nedtrekksmenyer!$D$4,0,IF(Q23=S23,1)) -> 1 | U23: 0 | V23: tonn | W23: =VLOOKUP(R23,Utslippsfaktorer!$C$9:$I$392,3,FALSE) -> 176.5159236 | X23: kg CO2-eq/tonn | Y23: =VLOOKUP(R23,Beregningsfaktorer!$L$70:$Q$308,Beregningsfaktorer!$Q$70,FALSE) -> 200 | Z23: 0 | AM23: kWh el | AQ23: =SUM(AQ11:AQ20)*Anlegg!AB12*Anlegg!C53 -> 0 | AR23: kWh el
B24: Lengde tunnel undersjøisk (m) | E24: Må angis | F24: Betongelement, prefabrikert, lavkarbon B | H24: tonn | J24: Asfalt: kan angis i enten m2 eller tonn Mengder i tonn anbefales, da dette gir mer nøyaktige beregninger | O24: Betongelement, prefabrikert, lavkarbon B | P24: =VLOOKUP(R24,Utslippsfaktorer!$C$9:$AL$391,Utslippsfaktorer!$AL$5,FALSE) -> Betongelementer | Q24: tonn | R24: Betong, elementer B45 Lavkarbon B | S24: =VLOOKUP(R24,Utslippsfaktorer!$C$9:$D$392,2,FALSE) -> tonn | T24: =IF(Q24=Nedtrekksmenyer!$D$4,0,IF(Q24=S24,1)) -> 1 | U24: 0 | V24: tonn | W24: =VLOOKUP(R24,Utslippsfaktorer!$C$9:$I$392,3,FALSE) -> 149.2070064 | X24: kg CO2-eq/tonn | Y24: =VLOOKUP(R24,Beregningsfaktorer!$L$70:$Q$308,Beregningsfaktorer!$Q$70,FALSE) -> 200 | Z24: 0 | AL24: må legge til kalksememntpel og spunt | AP24: Diesel før justering | AQ24: =SUM(AQ11:AQ20) -> 0
F25: Betongelement, prefabrikert, lavkarbon A | H25: tonn | O25: Betongelement, prefabrikert, lavkarbon A | P25: =VLOOKUP(R25,Utslippsfaktorer!$C$9:$AL$391,Utslippsfaktorer!$AL$5,FALSE) -> Betongelementer | Q25: tonn | R25: Betong, elementer B45 Lavkarbon A | S25: =VLOOKUP(R25,Utslippsfaktorer!$C$9:$D$392,2,FALSE) -> tonn | T25: =IF(Q25=Nedtrekksmenyer!$D$4,0,IF(Q25=S25,1)) -> 1 | U25: 0 | V25: tonn | W25: =VLOOKUP(R25,Utslippsfaktorer!$C$9:$I$392,3,FALSE) -> 121.8980892 | X25: kg CO2-eq/tonn | Y25: =VLOOKUP(R25,Beregningsfaktorer!$L$70:$Q$308,Beregningsfaktorer!$Q$70,FALSE) -> 200 | Z25: 0
B26: Transportavstand: masser ut av anlegg (km) | E26: =IF(C26="", "20 km", "") -> 20 km | F26: Sprøytebetong, B35, Bransjereferanse | H26: m3 | J26: Levetid for slitelaget beregnes fra angitt ÅDT | O26: =F26 -> Sprøytebetong, B35, Bransjereferanse | P26: =VLOOKUP(R26,Utslippsfaktorer!$C$9:$AL$391,Utslippsfaktorer!$AL$5,FALSE) -> Sprøytebetong | Q26: m3 | R26: Sprøytebetong, B35, Bransjereferanse | S26: =VLOOKUP(R26,Utslippsfaktorer!$C$9:$D$392,2,FALSE) -> m3 | T26: =IF(Q26=Nedtrekksmenyer!$D$4,0,IF(Q26=S26,1)) -> 1 | U26: 0 | V26: m3 | W26: =VLOOKUP(R26,Utslippsfaktorer!$C$9:$I$392,3,FALSE) -> 330 | X26: kg CO2-eq/m3 | Y26: =VLOOKUP(R26,Beregningsfaktorer!$L$70:$Q$308,Beregningsfaktorer!$Q$70,FALSE) -> 240 | Z26: 0 | AL26: El, utbygging | AM26: Mengde
B27: Transportavstand: masser inn til anlegg (km) | E27: =IF(C27="", "20 km", "") -> 20 km | F27: Injeksjonssement | H27: tonn | J27: Det anbefales å velge type asfalt ut fra anbefalinger for ÅDT-klasser | O27: Injeksjonssement | P27: =VLOOKUP(R27,Utslippsfaktorer!$C$9:$AL$391,Utslippsfaktorer!$AL$5,FALSE) -> Sement | Q27: tonn | R27: Sement, CEM I | S27: =VLOOKUP(R27,Utslippsfaktorer!$C$9:$D$392,2,FALSE) -> kg | T27: =IF(Q27=Nedtrekksmenyer!$D$4,0,IF(Q27=S27,1,1000)) -> 1000 | U27: 0 | V27: kg | W27: =VLOOKUP(R27,Utslippsfaktorer!$C$9:$I$392,3,FALSE) -> 0.81 | X27: kg CO2-eq/kg | Y27: =VLOOKUP(R27,Beregningsfaktorer!$L$70:$Q$308,Beregningsfaktorer!$Q$70,FALSE) -> 0.5 | Z27: 0 | AL27: Elforbruk, drilling tunnel | AM27: =AM7 -> 0 | AN27: =AN7 -> pfm3 | AO27: =Beregningsfaktorer!$M30 -> 6.6 | AP27: =Beregningsfaktorer!$P30 -> kWh/fm3 | AQ27: =AM27*AO27 -> 0 | AR27: kWh | AT27: Elektrisitet - Anlegg | AU27: =VLOOKUP(AT27,Utslippsfaktorer!$C$9:$D$392,2,FALSE) -> kWh | AV27: =IF(OR(C13=Nedtrekksmenyer!C33,C13=Nedtrekksmenyer!C34,C13=Nedtrekksmenyer!C35),Utslippsfaktorer!V147,Utslippsfaktorer!AE147) -> 0.04670786105 | AW27: ="kg CO2-eq/"&AU27 -> kg CO2-eq/kWh
C28: =IF(AND(C26>0,C27>0),"","20 km er default, kan endres i celler over") -> 20 km er default, kan endres i celler over | F28: Fyllingsmateriale, EPS 200 | H28: m3 | J28: Betong: her er det mange kvaliteter å velge mellom Det anbefales å fylle inn for ulike typer så langt det lar seg gjøre Har man ikke denne type informasjon skal B35, bransjereferanse benyttes. Dette gjelder også for betongelementer | O28: Fyllingsmateriale, EPS 200 | P28: =VLOOKUP(R28,Utslippsfaktorer!$C$9:$AL$391,Utslippsfaktorer!$AL$5,FALSE) -> Ekspandert polystyren (EPS) | Q28: m3 | R28: Ekspandert polystyren (EPS 200) | S28: =VLOOKUP(R28,Utslippsfaktorer!$C$9:$D$392,2,FALSE) -> m3 | T28: =IF(Q28=Nedtrekksmenyer!$D$4,0,IF(Q28=S28,1)) -> 1 | U28: 0 | V28: m3 | W28: =VLOOKUP(R28,Utslippsfaktorer!$C$9:$I$392,3,FALSE) -> 85 | X28: kg CO2-eq/m3 | Y28: =VLOOKUP(R28,Beregningsfaktorer!$L$70:$Q$308,Beregningsfaktorer!$Q$70,FALSE) -> 48 | Z28: 0 | AT28: Elektrisitet - Drift og vedlikehold | AU28: =VLOOKUP(AT28,Utslippsfaktorer!$C$9:$D$392,2,FALSE) -> kWh | AV28: =IF(C13=Nedtrekksmenyer!C35,Utslippsfaktorer!V148,Utslippsfaktorer!AE148) -> 0.11532875 | AW28: ="kg CO2-eq/"&AU28 -> kg CO2-eq/kWh
B29: Beskrivelsestekst | F29: Fyllingsmateriale, skumglassgranulat | H29: m3 | O29: Fyllingsmateriale, skumglassgranulat | P29: =VLOOKUP(R29,Utslippsfaktorer!$C$9:$AL$391,Utslippsfaktorer!$AL$5,FALSE) -> Skumglassgranulat | Q29: m3 | R29: Skumglassgranulat | S29: =VLOOKUP(R29,Utslippsfaktorer!$C$9:$D$392,2,FALSE) -> m3 | T29: =IF(Q29=Nedtrekksmenyer!$D$4,0,IF(Q29=S29,1)) -> 1 | U29: 0 | V29: m3 | W29: =VLOOKUP(R29,Utslippsfaktorer!$C$9:$I$392,3,FALSE) -> 22.73 | X29: kg CO2-eq/m3 | Y29: =VLOOKUP(R29,Beregningsfaktorer!$L$70:$Q$308,Beregningsfaktorer!$Q$70,FALSE) -> 162.5 | Z29: 0
B30: (Kort beskrivelse av vurderte alternativer, trasévalg, etc. som er relevant.) | F30: Fyllingsmateriale, lettklinker/ekspandert leire | H30: m3 | O30: Fyllingsmateriale, lettklinker/ekspandert leire | P30: =VLOOKUP(R30,Utslippsfaktorer!$C$9:$AL$391,Utslippsfaktorer!$AL$5,FALSE) -> Lettklinker/Ekspandert leire | Q30: m3 | R30: Lettklinker/Ekspandert leire | S30: =VLOOKUP(R30,Utslippsfaktorer!$C$9:$D$392,2,FALSE) -> m3 | T30: =IF(Q30=Nedtrekksmenyer!$D$4,0,IF(Q30=S30,1)) -> 1 | U30: 0 | V30: m3 | W30: =VLOOKUP(R30,Utslippsfaktorer!$C$9:$I$392,3,FALSE) -> 61.499 | X30: kg CO2-eq/m3 | Y30: =VLOOKUP(R30,Beregningsfaktorer!$L$70:$Q$308,Beregningsfaktorer!$Q$70,FALSE) -> 162.5 | Z30: 0
F31: Fyllingsmateriale, grus/pukk | H31: am3 | O31: Fyllingsmateriale, grus/pukk | P31: =VLOOKUP(R31,Utslippsfaktorer!$C$9:$AL$391,Utslippsfaktorer!$AL$5,FALSE) -> Grus/pukk | Q31: am3 | R31: Grus/pukk | S31: =VLOOKUP(R31,Utslippsfaktorer!$C$9:$D$392,2,FALSE) -> kg | T31: =IF(Q31=Nedtrekksmenyer!$D$4,0,IF(Q31=S31,1,Beregningsfaktorer!C241*1000)) -> 1500 | U31: 0 | V31: kg | W31: =VLOOKUP(R31,Utslippsfaktorer!$C$9:$I$392,3,FALSE) -> 0.00315 | X31: kg CO2-eq/kg | Y31: =VLOOKUP(R31,Beregningsfaktorer!$L$70:$Q$308,Beregningsfaktorer!$Q$70,FALSE) -> 0.1 | Z31: 0 | AL31: Massetransport | AM31: Mengde
F32: Isolasjon, XPS 400 | H32: m3 | O32: Isolasjon, XPS 400 | P32: =VLOOKUP(R32,Utslippsfaktorer!$C$9:$AL$391,Utslippsfaktorer!$AL$5,FALSE) -> Ekstrudert polystyren (XPS) | Q32: m3 | R32: Ekstrudert polystyren (XPS 400) | S32: =VLOOKUP(R32,Utslippsfaktorer!$C$9:$D$392,2,FALSE) -> m3 | T32: =IF(Q32=Nedtrekksmenyer!$D$4,0,IF(Q32=S32,1)) -> 1 | U32: =G32*T32 -> 0 | V32: m3 | W32: =VLOOKUP(R32,Utslippsfaktorer!$C$9:$I$392,3,FALSE) -> 111.8417936 | X32: kg CO2-eq/m3 | Y32: =VLOOKUP(R32,Beregningsfaktorer!$L$70:$Q$308,Beregningsfaktorer!$Q$70,FALSE) -> 56 | Z32: 0 | AL32: =J10 -> Masser ut av anlegg (kun transport) | AM32: 0 | AN32: pfm3 | AO32: =Beregningsfaktorer!AL29*Beregningsfaktorer!C240*IF(Mellomfaseverktøy!C26="",20,C26) -> 59.76 | AP32: tonnkm/pfm3 | AQ32: =AM32*AO32 -> 0 | AR32: tkm | AU32: Massetransport ganges med 2 for å få tur retur. Set til 1 hvis nei
F33: Kalksementstabilisering (50% kalk, 50% sement) | H33: tonn | J33: Rekkverk: Her skal løpemeter rekkverk angis, dvs total lengde enkelt rekkverk | O33: Kalksementstabilisering (50% kalk, 50% sement) | P33: =VLOOKUP(R33,Utslippsfaktorer!$C$9:$AL$391,Utslippsfaktorer!$AL$5,FALSE) -> Kalksementstabilisering | Q33: tonn | R33: =Utslippsfaktorer!C164 -> Kalksement (50% K/50% S), CEM I | S33: =VLOOKUP(R33,Utslippsfaktorer!$C$9:$D$392,2,FALSE) -> kg | T33: =IF(Q33=Nedtrekksmenyer!$D$4,0,IF(Q33=S33,1,1000)) -> 1000 | U33: 0 | V33: kg | W33: =VLOOKUP(R33,Utslippsfaktorer!$C$9:$I$392,3,FALSE) -> 0.9694786 | X33: kg CO2-eq/kg | Y33: =VLOOKUP(R33,Beregningsfaktorer!$L$70:$Q$308,Beregningsfaktorer!$Q$70,FALSE) -> 0.5 | Z33: 0 | AL33: Masser inn til anlegg (kun transport) | AM33: 0 | AN33: lm3 | AO33: =Beregningsfaktorer!C240*IF(Mellomfaseverktøy!C27="",20,C27) -> 33.2 | AP33: tonnkm/lm3 | AQ33: =AM33*AO33 -> 0 | AR33: tkm | AU33: 2
F34: Limtre | H34: m3 | J34: Rør og kummer: Siden rør og kummer leveres med ulike dimensjoner og tykkelser må vekt (tonn) av rør og kummer beregnes manuelt. Se fanen Beregningsfaktorer fra rad 50 for vekt av ulike rørtyper | O34: Limtre | P34: =VLOOKUP(R34,Utslippsfaktorer!$C$9:$AL$391,Utslippsfaktorer!$AL$5,FALSE) -> Trevirke | Q34: m3 | R34: Limtre | S34: =VLOOKUP(R34,Utslippsfaktorer!$C$9:$D$392,2,FALSE) -> m3 | T34: =IF(Q34=Nedtrekksmenyer!$D$4,0,IF(Q34=S34,1)) -> 1 | U34: 0 | V34: m3 | W34: =VLOOKUP(R34,Utslippsfaktorer!$C$9:$I$392,3,FALSE) -> 78.825 | X34: kg CO2-eq/m3 | Y34: =VLOOKUP(R34,Beregningsfaktorer!$L$70:$Q$308,Beregningsfaktorer!$Q$70,FALSE) -> 250 | Z34: 0 | AL34: Sum | AQ34: =SUM(AQ32:AQ33) -> 0 | AR34: tkm | AT34: Massetransport (diesel for veitransport) | AU34: =VLOOKUP(AT34,Utslippsfaktorer!$C$9:$D$392,2,FALSE) -> tkm | AV34: =VLOOKUP(AT34,Utslippsfaktorer!$C$9:$E$392,3,FALSE) -> 0.05280012 | AW34: ="kg CO2-eq/"&AU34 -> kg CO2-eq/tkm | AX34: veitransport diesel
F35: PE-skumplater | H35: m3 | O35: PE-skumplater | P35: PE-skumplater | Q35: m3 | R35: PE-skum | S35: =VLOOKUP(R35,Utslippsfaktorer!$C$9:$D$392,2,FALSE) -> kg | T35: =IF(Q35=Nedtrekksmenyer!$D$4,0,IF(Q35=S35,1,Beregningsfaktorer!C249)) -> 35 | U35: 0 | V35: kg | W35: =VLOOKUP(R35,Utslippsfaktorer!$C$9:$I$392,3,FALSE) -> 2.4632633 | X35: kg CO2-eq/kg | Y35: =VLOOKUP(R35,Beregningsfaktorer!$L$70:$Q$308,Beregningsfaktorer!$Q$70,FALSE) -> 1.6 | Z35: 0 | AQ35: =(AQ39*Beregningsfaktorer!$M$58*Beregningsfaktorer!$C$14*Beregningsfaktorer!$C$242*Beregningsfaktorer!$Z$39+AQ39*Beregningsfaktorer!$C$14*Beregningsfaktorer!$M$56*Beregningsfaktorer!$C$242*Beregningsfaktorer!$Z$38)*($C$11/(IF($C$18<=1500,15,0)+IF(AND($C$18>1500,$C$18<=3000),14,0)+IF(AND($C$18>3000,$C$18<=5000),11,0)+IF($C$18>5000,8,0))) -> 0
B36: Dette beregnes ut fra prosjektinformasjonen | F36: Rekkverk, standard vegrekkverk | H36: lm rekkverk | O36: Rekkverk, standard vegrekkverk | P36: Rekkverk | Q36: lm rekkverk | R36: Stål, varmforsinket | S36: =VLOOKUP(R36,Utslippsfaktorer!$C$9:$D$392,2,FALSE) -> kg | T36: =IF(Q36=Nedtrekksmenyer!$D$4,0,IF(Q36=S36,1,Beregningsfaktorer!C26)) -> 20 | U36: =G36*T36 -> 0 | V36: kg | W36: =VLOOKUP(R36,Utslippsfaktorer!$C$9:$I$392,3,FALSE) -> 2.005485396 | X36: kg CO2-eq/kg | Y36: =VLOOKUP(R36,Beregningsfaktorer!$L$70:$Q$308,Beregningsfaktorer!$Q$70,FALSE) -> 1.6 | Z36: =(U36*W36/1000)+(U36*Y36*$Z$3)/1000 -> 0 | AB36: Standard vegrekkverk | AU36: Utslipp dersom all massetransport er med veitransportdiesel
B37: ÅDT: Reasfaltering: frekvens og mengde asfalt ÅDT: Tunnelklasse: ventilasjon og belysning i drift | F37: Rekkverk på bru (kjøresterkt rekkverk i stål) | H37: lm rekkverk | J37: Støttemur: kan angis i enten mengde i m3 eller areal Mengde i m3 anbefales, da dette gir mer nøyaktige beregninger | O37: Rekkverk på bru (kjøresterkt rekkverk i stål) | P37: Rekkverk | Q37: lm rekkverk | R37: Stål, varmforsinket | S37: =VLOOKUP(R37,Utslippsfaktorer!$C$9:$D$392,2,FALSE) -> kg | T37: =IF(Q37=Nedtrekksmenyer!$D$4,0,IF(Q37=S37,1,Beregningsfaktorer!C30)) -> 60 | U37: 0 | V37: kg | W37: =VLOOKUP(R37,Utslippsfaktorer!$C$9:$I$392,3,FALSE) -> 2.005485396 | X37: kg CO2-eq/kg | Y37: =VLOOKUP(R37,Beregningsfaktorer!$L$70:$Q$308,Beregningsfaktorer!$Q$70,FALSE) -> 1.6 | Z37: 0 | AB37: Kjøresterkt rekkverk i stål | AL37: D/V materialer | AM37: Mengde | AV37: =AQ34*AV34*$AU$33 -> 0 | AW37: kg CO2
F38: Rør og kummer, betong | H38: tonn | O38: Rør og kummer, betong | P38: Rør og kummer | Q38: tonn | R38: =Utslippsfaktorer!C58 -> Betong, elementer B45 Bransjereferanse | S38: =VLOOKUP(R38,Utslippsfaktorer!$C$9:$D$392,2,FALSE) -> tonn | T38: =IF(Q38=Nedtrekksmenyer!$D$4,0,IF(Q38=S38,1,1000)) -> 1 | U38: 0 | V38: tonn | W38: =VLOOKUP(R38,Utslippsfaktorer!$C$9:$I$392,3,FALSE) -> 176.5159236 | X38: kg CO2-eq/tonn | Y38: =VLOOKUP(R38,Beregningsfaktorer!$L$70:$Q$308,Beregningsfaktorer!$Q$70,FALSE) -> 200 | Z38: 0 | AI38: Asfalt | AL38: Asfalt | AM38: kg slitelag utbygging | AN38: kg D/V | AO38: DV tonn CO2-eq (A1-A4) | AQ38: m2 | AR38: DV Dieselforbruk, ekskl transport (l)
B39: Antall felt: Omfang av aktiviteter i sommer- og vinterdrift | F39: Rør og kummer, plast | H39: tonn | J39: Spennarmering: kan angis i enten tonn eller mMN | O39: Rør og kummer, plast | P39: Rør og kummer | Q39: tonn | R39: Plast, PP | S39: =VLOOKUP(R39,Utslippsfaktorer!$C$9:$D$392,2,FALSE) -> kg | T39: =IF(Q39=Nedtrekksmenyer!$D$4,0,IF(Q39=S39,1,1000)) -> 1000 | U39: 0 | V39: kg | W39: =VLOOKUP(R39,Utslippsfaktorer!$C$9:$I$392,3,FALSE) -> 2.5502336 | X39: kg CO2-eq/kg | Y39: =VLOOKUP(R39,Beregningsfaktorer!$L$70:$Q$308,Beregningsfaktorer!$Q$70,FALSE) -> 1.6 | Z39: 0 | AI39: Andre materialer | AK39: Asfaltgrusbetong og asfaltbetong | AL39: Asfalt, Agb | AM39: =U7*($AJ$7/($AJ$7+$AJ$8)) -> 0 | AN39: =AM39*($C$11/(IF($C$18<=1500,15,0)+IF(AND($C$18>1500,$C$18<=3000),14,0)+IF(AND($C$18>3000,$C$18<=5000),11,0)+IF($C$18>5000,8,0))*Beregningsfaktorer!Z$38) -> 0 | AO39: =(AN39*W7/1000)+(AN39*Y7*$Z$3)/1000 -> 0 | AQ39: =AM39/1000/(AE7*$AJ$7/100) -> 0 | AR39: =(AQ39*Beregningsfaktorer!$M$58*Beregningsfaktorer!$C$14*Beregningsfaktorer!$C$242*Beregningsfaktorer!$Z$39+AQ39*Beregningsfaktorer!$C$14*Beregningsfaktorer!$M$56*Beregningsfaktorer!$C$242*Beregningsfaktorer!$Z$38)*($C$11/(IF($C$18<=1500,15,0)+IF(AND($C$18>1500,$C$18<=3000),14,0)+IF(AND($C$18>3000,$C$18<=5000),11,0)+IF($C$18>5000,8,0))) -> 0 | AU39: Forbruk av diesel/biodiesel og el til massetransport
B40: Lengde på veg i dagen: Omfang av aktiviteter i sommer- og vinterdrift (ekskl belysning) | F40: Støttemur av betong | H40: Velg enhet | J40: Sommerdrift: (kantslått, kumtømming, grøfterensk og feiing) beregnes basert på veilengde | O40: Støttemur av betong | P40: Støttemur | Q40: Velg enhet | R40: Betong, elementer B45 Bransjereferanse | S40: =VLOOKUP(R40,Utslippsfaktorer!$C$9:$D$392,2,FALSE) -> tonn | T40: =IF(Q40=Nedtrekksmenyer!$D$4,0,IF(Q40=S40,1,IF(Q40=Nedtrekksmenyer!D10,Mellomfaseverktøy!AB40*Beregningsfaktorer!C258,Beregningsfaktorer!C258))) -> 0 | U40: 0 | V40: tonn | W40: =VLOOKUP(R40,Utslippsfaktorer!$C$9:$I$392,3,FALSE) -> 176.5159236 | X40: kg CO2-eq/tonn | Y40: =VLOOKUP(R40,Beregningsfaktorer!$L$70:$Q$308,Beregningsfaktorer!$Q$70,FALSE) -> 200 | Z40: 0 | AB40: 0.4 | AC40: m standard tykkelse | AK40: Asfaltgrusbetong og asfaltbetong | AL40: Asfalt, Ab | AM40: =U8*($AJ$7/($AJ$7+$AJ$8)) -> 0 | AN40: =AM40*$C$11/(IF($C$18<=3000,15,0)+IF($C$18<=5000,12,0)+IF(AND($C$18>5000,$C$18<10000.9),9,0)+IF(AND($C$18>10000,$C$18<20000),6,0)+IF($C$18>=20000,5,0)*Beregningsfaktorer!Z$38) -> 0 | AO40: =(AN40*W8/1000)+(AN40*Y8*$Z$3)/1000 -> 0 | AQ40: =AM40/1000/(AE8*$AJ$7/100) -> 0 | AR40: =(AQ40*Beregningsfaktorer!$M$58*Beregningsfaktorer!$C$14*Beregningsfaktorer!$C$242*Beregningsfaktorer!$Z$39+AQ40*Beregningsfaktorer!$C$14*Beregningsfaktorer!$M$56*Beregningsfaktorer!$C$242*Beregningsfaktorer!$Z$38)*($C$11/(IF($C$18<=3000,15,0)+IF($C$18<=5000,12,0)+IF(AND($C$18>=5000,$C$18<10000.9),9,0)+IF(AND($C$18>10001,$C$18<20000),6,0)+IF($C$18>=20000,5,0))) -> 0 | AU40: Anleggsdiesel: iht omsetningskrav, B0 | AV40: =AV37/AV22*Anlegg!AB20 -> 0 | AW40: l
B41: Lengde på bru: Omfang av aktiviteter i sommer- og vinterdrift (ekskl belysning) | F41: Støttemur av naturstein | H41: Velg enhet | O41: Støttemur av naturstein | P41: Støttemur | Q41: Velg enhet | R41: Naturstein | S41: =VLOOKUP(R41,Utslippsfaktorer!$C$9:$D$392,2,FALSE) -> kg | T41: =IF(Q41=Nedtrekksmenyer!$D$4,0,IF(Q41=S41,1,IF(Q41=Nedtrekksmenyer!D10,Mellomfaseverktøy!AB41*Beregningsfaktorer!C254,Beregningsfaktorer!C254))) -> 0 | U41: 0 | V41: kg | W41: =VLOOKUP(R41,Utslippsfaktorer!$C$9:$I$392,3,FALSE) -> 0.1284333333 | X41: kg CO2-eq/kg | Y41: =VLOOKUP(R41,Beregningsfaktorer!$L$70:$Q$308,Beregningsfaktorer!$Q$70,FALSE) -> 0.5 | Z41: 0 | AB41: 0.4 | AC41: m standard tykkelse | AK41: Skjelettasfalt (Ska) | AL41: Asfalt, Ska | AM41: =U9*($AJ$7/($AJ$7+$AJ$8)) -> 0 | AN41: =AM41*$C$11/(IF($C18<=5000,13,0)+IF(AND($C18>5000,$C18<10000.9),10,0)+IF(AND($C18>10001,$C18<20000),7,0)+IF($C18>=20000,6,0)*Beregningsfaktorer!Z$38) -> 0 | AO41: =(AN41*W9/1000)+(AN41*Y9*$Z$3)/1000 -> 0 | AQ41: =AM41/1000/(AE9*$AJ$7/100) -> 0 | AR41: =(AQ41*Beregningsfaktorer!$M$58*Beregningsfaktorer!$C$14*Beregningsfaktorer!$C$242*Beregningsfaktorer!$Z$39+AQ41*Beregningsfaktorer!$C$14*Beregningsfaktorer!$M$56*Beregningsfaktorer!$C$242*Beregningsfaktorer!$Z$38)*($C$11/(IF($C$18<=5000,13,0)+IF(AND($C$18>5000,$C$18<10000.9),10,0)+IF(AND($C$18>10001,$C$18<20000),7,0)+IF($C$18>=20000,6,0))) -> 0 | AU41: Diesel for veitransport: iht omsetnignskrav, B16 | AV41: =AV37/AV22*Anlegg!AB21 -> 0 | AW41: l
B42: Lengde tunneler: Ventilasjon og belysning i drift | F42: Stål, armering og bolter kamstål | H42: tonn | J42: Vinterdrift: (brøyting, salt og skiltvask) beregnes basert på veilengde | O42: Stål, armering og bolter kamstål | P42: =VLOOKUP(R42,Utslippsfaktorer!$C$9:$AL$391,Utslippsfaktorer!$AL$5,FALSE) -> Stål, armering og bolter kamstål | Q42: tonn | R42: Stål, kamstål armering | S42: =VLOOKUP(R42,Utslippsfaktorer!$C$9:$D$392,2,FALSE) -> kg | T42: =IF(Q42=Nedtrekksmenyer!$D$4,0,IF(Q42=S42,1,1000)) -> 1000 | U42: 0 | V42: kg | W42: =VLOOKUP(R42,Utslippsfaktorer!$C$9:$I$392,3,FALSE) -> 0.5663 | X42: kg CO2-eq/kg | Y42: =VLOOKUP(R42,Beregningsfaktorer!$L$70:$Q$308,Beregningsfaktorer!$Q$70,FALSE) -> 1.6 | Z42: 0 | AK42: Lavtemperatur-asfalt | AL42: Asfalt, lavtemperatur | AM42: =U10*($AJ$7/($AJ$7+$AJ$8)) -> 0 | AN42: =AM42*($C$11/(IF($C$18<=1500,15,0)+IF(AND($C$18>1500,$C$18<=3000),14,0)+IF(AND($C$18>3000,$C$18<=5000),11,0)+IF($C$18>5000,8,0))*Beregningsfaktorer!Z$38) -> 0 | AO42: =(AN42*W10/1000)+(AN42*Y10*$Z$3)/1000 -> 0 | AQ42: =AM42/1000/(AE10*$AJ$7/100) -> 0 | AR42: =(AQ42*Beregningsfaktorer!$M$58*Beregningsfaktorer!$C$14*Beregningsfaktorer!$C$242*Beregningsfaktorer!$Z$39+AQ42*Beregningsfaktorer!$C$14*Beregningsfaktorer!$M$56*Beregningsfaktorer!$C$242*Beregningsfaktorer!$Z$38)*($C$11/(IF($C$18<=1500,15,0)+IF(AND($C$18>1500,$C$18<=3000),14,0)+IF(AND($C$18>3000,$C$18<=5000),11,0)+IF($C$18>5000,8,0))) -> 0 | AU42: Elektrisitet | AV42: =AV37/AV22*Anlegg!AB22*Anlegg!C53 -> 0 | AW42: kWh
F43: Stål, spennarmering | H43: Velg enhet | J43: Bane: Her skal løpemeter overbygning og jernbaneteknikk angis, basert på lm enkeltspor eller lm dobbletspor. Har prosjektet en miks av enkeltspor og dobbeltspor kan lm enkeltspor regnes om til lm dobbeltspor. | O43: Stål, spennarmering | P43: =VLOOKUP(R43,Utslippsfaktorer!$C$9:$AL$391,Utslippsfaktorer!$AL$5,FALSE) -> Stål, spennarmering | Q43: Velg enhet | R43: Stål, spennarmering | S43: =VLOOKUP(R43,Utslippsfaktorer!$C$9:$D$392,2,FALSE) -> kg | T43: =IF(Q43=Nedtrekksmenyer!$D$4,0,IF(Q43=S43,1,IF(Q43=Nedtrekksmenyer!D14,Mellomfaseverktøy!AB43,IF(Mellomfaseverktøy!Q43=Nedtrekksmenyer!D13,1000,0)))) -> 0 | U43: 0 | V43: kg | W43: =VLOOKUP(R43,Utslippsfaktorer!$C$9:$I$392,3,FALSE) -> 2.513772727 | X43: kg CO2-eq/kg | Y43: =VLOOKUP(R43,Beregningsfaktorer!$L$70:$Q$308,Beregningsfaktorer!$Q$70,FALSE) -> 1.6 | Z43: 0 | AB43: =1/(1640)*7.85*1000 -> 4.786585366 | AC43: kg/mMN | AK43: Kaldprodusert asfalt | AL43: Asfalt, kaldprodusert | AM43: =U11*($AJ$7/($AJ$7+$AJ$8)) -> 0 | AN43: =AM43*($C$11/(IF($C$18<=1500,15,0)+IF(AND($C$18>1500,$C$18<=3000),14,0)+IF(AND($C$18>3000,$C$18<=5000),11,0)+IF($C$18>5000,8,0))*Beregningsfaktorer!Z$38) -> 0 | AO43: =(AN43*W11/1000)+(AN43*Y11*$Z$3)/1000 -> 0 | AQ43: =AM43/1000/(AE11*$AJ$7/100) -> 0 | AR43: =(AQ43*Beregningsfaktorer!$M$58*Beregningsfaktorer!$C$14*Beregningsfaktorer!$C$242*Beregningsfaktorer!$Z$39+AQ43*Beregningsfaktorer!$C$14*Beregningsfaktorer!$M$56*Beregningsfaktorer!$C$242*Beregningsfaktorer!$Z$38)*($C$11/(IF($C$18<=1500,15,0)+IF(AND($C$18>1500,$C$18<=3000),14,0)+IF(AND($C$18>3000,$C$18<=5000),11,0)+IF($C$18>5000,8,0))) -> 0
B44: Sammensetning av maskinpark kan justeres i fane "Anlegg" | F44: Stål, konstruksjonsstål og annet stål | H44: tonn | O44: Stål, konstruksjonsstål og annet stål | P44: =VLOOKUP(R44,Utslippsfaktorer!$C$9:$AL$391,Utslippsfaktorer!$AL$5,FALSE) -> Stål, konstruksjonsstål | Q44: tonn | R44: Stål, konstruksjon m/resirk | S44: =VLOOKUP(R44,Utslippsfaktorer!$C$9:$D$392,2,FALSE) -> kg | T44: =IF(Q44=Nedtrekksmenyer!$D$4,0,IF(Q44=S44,1,1000)) -> 1000 | U44: 0 | V44: kg | W44: =VLOOKUP(R44,Utslippsfaktorer!$C$9:$I$392,3,FALSE) -> 1.242545455 | X44: kg CO2-eq/kg | Y44: =VLOOKUP(R44,Beregningsfaktorer!$L$70:$Q$308,Beregningsfaktorer!$Q$70,FALSE) -> 1.6 | Z44: 0 | AL44: Sum | AN44: =SUM(AN39:AN43) -> 0 | AO44: =SUM(AO39:AO43) -> 0 | AR44: =SUM(AR39:AR43) -> 0
B45: Valg av andel maskiner til anleggsarbeid og massetransport drevet av hhv diesel, biodiesel og el | F45: Stål, peler | H45: tonn | O45: Stål, peler | P45: =VLOOKUP(R45,Utslippsfaktorer!$C$9:$AL$391,Utslippsfaktorer!$AL$5,FALSE) -> Stål, peler | Q45: tonn | R45: Stål, peler | S45: =VLOOKUP(R45,Utslippsfaktorer!$C$9:$D$392,2,FALSE) -> kg | T45: =IF(Q45=Nedtrekksmenyer!$D$4,0,IF(Q45=S45,1,1000)) -> 1000 | U45: 0 | V45: kg | W45: =VLOOKUP(R45,Utslippsfaktorer!$C$9:$I$392,3,FALSE) -> 2.513772727 | X45: kg CO2-eq/kg | Y45: =VLOOKUP(R45,Beregningsfaktorer!$L$70:$Q$308,Beregningsfaktorer!$Q$70,FALSE) -> 1.6 | Z45: 0
F46: Stål, rustfritt/høykvalitet | H46: tonn | O46: Stål, rustfritt/høykvalitet | P46: =VLOOKUP(R46,Utslippsfaktorer!$C$9:$AL$391,Utslippsfaktorer!$AL$5,FALSE) -> Stål, rustfritt/høykvalitet | Q46: tonn | R46: Stål, rustfritt/høykvalitet | S46: =VLOOKUP(R46,Utslippsfaktorer!$C$9:$D$392,2,FALSE) -> kg | T46: =IF(Q46=Nedtrekksmenyer!$D$4,0,IF(Q46=S46,1,1000)) -> 1000 | U46: 0 | V46: kg | W46: =VLOOKUP(R46,Utslippsfaktorer!$C$9:$I$392,3,FALSE) -> 3.49 | X46: ="kg CO2-eq/"&S46 -> kg CO2-eq/kg | Y46: =VLOOKUP(R46,Beregningsfaktorer!$L$70:$Q$308,Beregningsfaktorer!$Q$70,FALSE) -> 1.6 | Z46: =(U46*W46/1000)+(U46*Y46*$Z$3)/1000 -> 0 | AK46: Stål, varmforsinket | AL46: Rekkverk stålwire | AM46: =U36 -> 0 | AN46: =AM46*$C$11/Beregningsfaktorer!Z$18 -> 0 | AO46: =(AN46*W36/1000)+(AN46*Y36*$Z$3)/1000 -> 0 | AU46: Slitasje lastebil | AV46: =AQ34 -> 0 | AW46: tkm
B47: Tips til innfylling av data | F47: Stål, spunt | H47: tonn | J47: Utslippsdata | O47: Stål, spunt | P47: =VLOOKUP(R47,Utslippsfaktorer!$C$9:$AL$391,Utslippsfaktorer!$AL$5,FALSE) -> Stål, spunt | Q47: tonn | R47: Stål, spunt | S47: =VLOOKUP(R47,Utslippsfaktorer!$C$9:$D$392,2,FALSE) -> kg | T47: =IF(Q47=Nedtrekksmenyer!$D$4,0,IF(Q47=S47,1,1000)) -> 1000 | U47: 0 | V47: kg | W47: =VLOOKUP(R47,Utslippsfaktorer!$C$9:$I$392,3,FALSE) -> 0.5663 | X47: kg CO2-eq/kg | Y47: =VLOOKUP(R47,Beregningsfaktorer!$L$70:$Q$308,Beregningsfaktorer!$Q$70,FALSE) -> 1.6 | Z47: 0 | AK47: Stål, varmforsinket | AL47: Rekkverk på bru (kjøresterkt rekkverk i stål) | AM47: =U37 -> 0 | AN47: =AM46*$C$11/Beregningsfaktorer!Z$19 -> 0 | AO47: =(AN47*W37/1000)+(AN47*Y37*$Z$3)/1000 -> 0 | AV47: =0.022702852/3 -> 0.007567617333
B48: Transportavstander for masser: 20 km er default, men den kan endres | F48: Tettemembran, plast | H48: m2 | J48: Dersom man har utslippsdata for bestemte materialer tilgjengelig, kan man fylle inn disse i fanen Utslippsfaktorer. Dersom det angis prosjektspesifikke utslippsfaktorer, vil disse overstyre standardfaktorene i beregningene. Det henvises til brukerveiledning for utfyllende beskrivelse. Se fanen Anlegg for å kunne justere til elektriske maskiner. | O48: Tettemembran, plast | P48: =VLOOKUP(R48,Utslippsfaktorer!$C$9:$AL$391,Utslippsfaktorer!$AL$5,FALSE) -> Plastmembran/Geosynteter | Q48: m2 | R48: Plastmembran | S48: =VLOOKUP(R48,Utslippsfaktorer!$C$9:$D$392,2,FALSE) -> m2 | T48: =IF(Q48=Nedtrekksmenyer!$D$4,0,IF(Q48=S48,1)) -> 1 | U48: 0 | V48: =S48 -> m2 | W48: =VLOOKUP(R48,Utslippsfaktorer!$C$9:$I$392,3,FALSE) -> 3.945 | X48: kg CO2-eq/m2 | Y48: =VLOOKUP(R48,Beregningsfaktorer!$L$70:$Q$308,Beregningsfaktorer!$Q$70,FALSE) -> 1.12 | Z48: 0 | AL48: Vifte tunnel | AR48: ikke inkludert i utbygging | AV48: =AV46*AV47 -> 0 | AW48: kg CO2 ekv
B49: Analyseperiode: default er 60 år, men den kan endres | F49: Trevirke | H49: m3 | O49: Trevirke | P49: =VLOOKUP(R49,Utslippsfaktorer!$C$9:$AL$391,Utslippsfaktorer!$AL$5,FALSE) -> Trevirke | Q49: m3 | R49: Konstruksjonstrevirke | S49: =VLOOKUP(R49,Utslippsfaktorer!$C$9:$D$392,2,FALSE) -> m3 | T49: =IF(Q49=Nedtrekksmenyer!$D$4,0,IF(Q49=S49,1)) -> 1 | U49: =G49*T49 -> 0 | V49: =S49 -> m3 | W49: =VLOOKUP(R49,Utslippsfaktorer!$C$9:$I$392,3,FALSE) -> 76.6 | X49: kg CO2-eq/m3 | Y49: =VLOOKUP(R49,Beregningsfaktorer!$L$70:$Q$308,Beregningsfaktorer!$Q$70,FALSE) -> 250 | Z49: =(U49*W49/1000)+(U49*Y49*$Z$3)/1000 -> 0 | AF49: Levetid JBT | AG49: 40 | AH49: år | AL49: Armatur tunnel | AR49: ikke inkludert i utbygging
B50: Omfatter prosjektet tunnel, må total lengde tunnel angis | F50: Bane: Overbygning og jernbaneteknikk - dagsone | H50: Velg enhet | O50: Bane: Overbygning og jernbaneteknikk | P50: Bane: Overbygning og jernbaneteknikk | Q50: =IF(H50=Nedtrekksmenyer!$B$158,Nedtrekksmenyer!$B$159,Mellomfaseverktøy!H50) -> lm enkeltspor | R50: =F50&", "&Q50 -> Bane: Overbygning og jernbaneteknikk - dagsone, lm enkeltspor | S50: =VLOOKUP(R50,Utslippsfaktorer!$C$9:$D$392,2,FALSE) -> lm enkeltspor | T50: =IF(Q50=Nedtrekksmenyer!$D$4,0,IF(Q50=S50,1)) -> 1 | U50: =G50*T50 -> 0 | V50: =S50 -> lm enkeltspor | W50: =VLOOKUP(R50,Utslippsfaktorer!$C$9:$I$392,3,FALSE) -> 798.8533627 | X50: kg CO2-eq/lm enkeltspor | Z50: =(U50*W50/1000)+(U50*Y50*$Z$3)/1000 -> 0 | AL50: Armatur dagsone | AR50: ikke inkludert i utbygging | AV50: 315533.5171
B51: Utslippsfaktorer brukt i analysen: Norske gjennomsnittsdata er standard | F51: Bane: Overbygning og jernbaneteknikk - tunnel | H51: Velg enhet | O51: Bane: Overbygning og jernbaneteknikk | P51: Bane: Overbygning og jernbaneteknikk | Q51: =IF(H51=Nedtrekksmenyer!$B$158,Nedtrekksmenyer!$B$159,Mellomfaseverktøy!H51) -> lm enkeltspor | R51: =F51&", "&Q51 -> Bane: Overbygning og jernbaneteknikk - tunnel, lm enkeltspor | S51: =VLOOKUP(R51,Utslippsfaktorer!$C$9:$D$392,2,FALSE) -> lm enkeltspor | T51: =IF(Q51=Nedtrekksmenyer!$D$4,0,IF(Q51=S51,1)) -> 1 | U51: 0 | V51: lm enkeltspor | W51: =VLOOKUP(R51,Utslippsfaktorer!$C$9:$I$392,3,FALSE) -> 801.2661859 | X51: kg CO2-eq/lm enkeltspor | Z51: =(U51*W51/1000)+(U51*Y51*$Z$3)/1000 -> 0 | AL51: Armatur bru | AO51: =(G82*C11/AG49) -> 0 | AP51: JBT | AR51: ikke inkludert i utbygging | AV51: =AV48/AV50 -> 0
B52: Scenario for el-miks: Scenario 1 er standard | F52: Bane: Overbygning og jernbaneteknikk - bru | H52: Velg enhet | O52: Bane: Overbygning og jernbaneteknikk | P52: Bane: Overbygning og jernbaneteknikk | Q52: =IF(H52=Nedtrekksmenyer!$B$158,Nedtrekksmenyer!$B$159,Mellomfaseverktøy!H52) -> lm enkeltspor | R52: Bane: Overbygning og jernbaneteknikk - bru, lm enkeltspor | S52: =VLOOKUP(R52,Utslippsfaktorer!$C$9:$D$392,2,FALSE) -> lm enkeltspor | T52: =IF(Q52=Nedtrekksmenyer!$D$4,0,IF(Q52=S52,1)) -> 1 | U52: 0 | V52: lm enkeltspor | W52: =VLOOKUP(R52,Utslippsfaktorer!$C$9:$I$392,3,FALSE) -> 798.8533627 | X52: kg CO2-eq/lm enkeltspor | Z52: 0 | AL52: Sum | AN52: =SUM(AN47:AN51) -> 0 | AO52: =SUM(AO46:AO51) -> 0
O53: Sprengstoff | P53: =VLOOKUP(R53,Utslippsfaktorer!$C$9:$AL$391,Utslippsfaktorer!$AL$5,FALSE) -> Sprengstoff | Q53: kg | R53: Sprengstoff | S53: =VLOOKUP(R53,Utslippsfaktorer!$C$9:$D$392,2,FALSE) -> kg | T53: =IF(Q53=Nedtrekksmenyer!$D$4,0,IF(Q53=S53,1)) -> 1 | U53: =AQ8*T53 -> 0 | V53: =AR8 -> kg | W53: =VLOOKUP(R53,Utslippsfaktorer!$C$9:$I$392,3,FALSE) -> 1.26 | X53: ="kg CO2-eq/"&S53 -> kg CO2-eq/kg | Y53: =VLOOKUP(R53,Beregningsfaktorer!$L$70:$Q$308,Beregningsfaktorer!$Q$70,FALSE) -> 0.5 | Z53: =(U53*W53/1000)+(U53*Y53*$Z$3)/1000 -> 0
B54: RESULTATER - SAMMENDRAG | Z54: =SUM(Z7:Z53) -> 0
P55: Der er valgt egen kategori på grønne celler. | Z55: =Z54=G83 -> TRUE
Z56: =Z54=U94 -> 
B57: Livsløpsfase | D57: tonn CO2-eq | F57: Materialproduksjon, aggregert liste (A1-A4) | G57: tonn CO2-eq | O57: Annet | AL57: D/V el | AM57: Mengde
B58: Materialproduksjon (A1-A4) | D58: =G83 -> 0 | F58: Asfalt | G58: =SUMIF($P$7:$Z$53,F58,$Z$7:$Z$53) -> 0 | O58: =F58 -> Asfalt | P58: =G58/($G$83+$D$80) ->  | Q58: =IF(P58>$G$85,O58&", "&ROUND(P58*100,0)&" %",$O$57) ->  | R58: =P58 ->  | S58: =IF(Q58=$O$57,"",Q58) ->  | T58: =IF(Q58=$O$57,"",R58) ->  | AM58: kWh/år | AN58: kWh/totalt | AR58: ikke inkl lys
B59: Utbygging (A5) | D59: =D80 -> 0 | F59: Betongelementer | G59: 0 | O59: =F59 -> Betongelementer | P59: =G59/($G$83+$D$80) ->  | R59: =P59 ->  | S59: =IF(Q59=$O$57,"",Q59) ->  | T59: =IF(Q59=$O$57,"",R59) ->  | AK59: Tunnel | AL59: Belysning oversjøisk | AM59: =Beregningsfaktorer!AV104 -> 0 | AN59: =AM59*$C$11 -> 0
B60: ="Drift og vedlikehold "&C11&" år (B4-B5)" -> Drift og vedlikehold år (B4-B5) | D60: =D89 -> 0 | F60: Ekspandert polystyren (EPS) | G60: 0 | O60: =F60 -> Ekspandert polystyren (EPS) | AK60: Tunnel | AL60: Ventilasjon oversjøisk | AM60: =Beregningsfaktorer!AV108 -> 0 | AN60: 0
B61: Totalt for hele levetiden | D61: =SUM(D58:D60) -> 0 | F61: Ekstrudert polystyren (XPS) | G61: 0 | O61: Ekstrudert polystyren (XPS) | AK61: Tunnel | AL61: Belysning undersjøisk | AM61: =Beregningsfaktorer!AV112 -> 0 | AN61: 0
B62: Inkludert direkte utslipp på byggeplass, ikke inkludert arealbruksendringer | F62: Grus/pukk | G62: 0 | O62: Grus/pukk | AK62: Tunnel | AL62: Ventilasjon undersjøisk | AM62: =Beregningsfaktorer!AV116 -> 0 | AN62: 0
F63: Kalksementstabilisering | G63: 0 | O63: Kalksementstabilisering | AK63: Tunnel | AL63: Pumping (undersjøisk) | AM63: =Beregningsfaktorer!AV121 -> 0 | AN63: 0
F64: Lettklinker/Ekspandert leire | G64: 0 | O64: Lettklinker/Ekspandert leire | AK64: Dagsone | AL64: LYS / lm dagsone | AM64: =Beregningsfaktorer!Z11*Mellomfaseverktøy!AQ64*C22 -> 0 | AN64: 0 | AQ64: 0.044 | AR64: armatur per lm veg | AT64: (NIRAS)
F65: PE-skumplater | G65: 0 | O65: PE-skumplater
F66: Plasstøpt betong | G66: 0 | O66: Plasstøpt betong
F67: Plastmembran/Geosynteter | G67: 0 | O67: Plastmembran/Geosynteter
F68: Rekkverk | G68: 0 | O68: Rekkverk | AL68: SUM | AN68: =SUM(AN59:AN67) -> 0
F69: Rør og kummer | G69: 0 | O69: Rør og kummer | P69: =G69/($G$83+$D$80) -> 
F70: Sement | G70: 0 | O70: Sement | AL70: Sommerdrift
F71: Skumglassgranulat | G71: 0 | O71: Skumglassgranulat | AM71: Mengde
F72: Sprengstoff | G72: 0 | O72: Sprengstoff og sprengning | P72: =(G72+D79)/($G$83+$D$80) ->  | AM72: DV Dieselforbruk, ekskl transport (l) | AU72: ikke med
F73: Sprøytebetong | G73: 0 | O73: Sprøytebetong | P73: =G73/($G$83+$D$80) ->  | S73: =IF(Q73=$O$57,"",Q73) ->  | T73: =IF(Q73=$O$57,"",R73) ->  | AL73: Kantslått | AM73: =Beregningsfaktorer!AI41*$C$20/1000*$C$11 -> 0 | AU73: etablering av grøft
F74: Støttemur | G74: 0 | O74: Støttemur | AL74: Kumtømming | AM74: =Beregningsfaktorer!AI42*$C$20/1000*$C$11/3 -> 0 | AR74: =0.19/(40/60) -> 0.285
B75: Utbygging (A5) | D75: tonn CO2-eq | F75: Stål, armering og bolter kamstål | G75: 0 | O75: Stål, armering og bolter kamstål | AL75: Grøfterensk | AM75: =Beregningsfaktorer!AI43*$C$20/1000*$C$11/3 -> 0
B76: Anleggsmaskiner: diesel | D76: =(AQ21*AV21+AQ22*AV22)/1000 -> 0 | F76: Stål, spennarmering | G76: =Z43 -> 0 | O76: Stål, spennarmering | AL76: Feiing | AM76: =Beregningsfaktorer!AI44*(C20+C21+C23+C24)/1000*$C$11 -> 0
B77: Massetransport: diesel, slitasje | D77: =(AV40*AV21+AV41*AV22+AV48)/1000 -> 0 | F77: Stål, konstruksjonsstål | G77: =SUMIF($P$7:$Z$53,F77,$Z$7:$Z$53) -> 0 | O77: Stål, konstruksjonsstål | AL77: SUM | AM77: =SUM(AM73:AM76) -> 0
B78: Elektrisitet | D78: =(AQ27*AV27+AQ23*AV27+AV42*AV27)/1000 -> 0 | F78: Stål, peler | G78: 0 | O78: Stål, peler
B79: Sprengning | D79: =AQ8*AV6/1000 -> 0 | F79: Stål, rustfritt/høykvalitet | G79: 0 | O79: Stål, rustfritt/høykvalitet | AL79: Vinterdrift
B80: Sum | D80: =SUM(D76:D79) -> 0 | F80: Stål, spunt | G80: 0 | O80: =F80 -> Stål, spunt | AM80: Mengde
F81: Trevirke | G81: 0 | O81: Trevirke | AM81: DV Dieselforbruk, ekskl transport (l)
B82: ="Drift og vedlikehold "&C11&" år (B4-B5)" -> Drift og vedlikehold år (B4-B5) | D82: tonn CO2-eq | F82: Bane: Overbygning og jernbaneteknikk | G82: =SUMIF($P$7:$Z$53,F82,$Z$7:$Z$53) -> 0 | O82: Bane: Overbygning og jernbaneteknikk | P82: =G82/($G$83+$D$80) ->  | AL82: Brøyting | AM82: =IF(C17=Nedtrekksmenyer!C9,0,Beregningsfaktorer!AI47*(Mellomfaseverktøy!$C$20+$C$21)/1000*$C$11) -> 0
B83: Anleggsmaskiner: diesel | D83: =(AR44+AM77+AM86)*AV21/1000 -> 0 | F83: Sum | G83: =SUM(G58:G82) -> 0 | O83: =B76 -> Anleggsmaskiner: diesel | P83: =D76/($G$83+$D$80) ->  | AL83: Salting | AM83: =IF(C17=Nedtrekksmenyer!C9,0,AQ88/1000*1.26) -> 0 | AN83: 1,26 l/tonn salt (NIRAS)
B84: Elektrisitet | D84: =AN68*AV28/1000 -> 0 | O84: =B77 -> Massetransport: diesel, slitasje | P84: =D77/($G$83+$D$80) -> 
B85: Asfalt | D85: =AO44 -> 0 | F85: Grense for å samle i kategori "Annet" | G85: 0.05 | O85: =B78 -> Elektrisitet | P85: =D78/($G$83+$D$80) ->  | AL85: Skiltvask | AM85: =Beregningsfaktorer!AI49*(Mellomfaseverktøy!$C$20+$C$21)/1000*$C$11 -> 0
B86: Strøsalt | D86: =AQ88*AV88/1000 -> 0 | P86: =SUM(P58:P85) ->  | Q86: =(O57&", "&ROUND(R86*100,0)&" %") -> Annet, 0 % | R86: =SUMIF(Q58:R85,O57,R58:R85) -> 0 | S86: Annet, 0 % | T86: 0 | AL86: Sum diesel | AM86: =SUM(AM82:AM85) -> 0
B87: Bane: Overbygning og jernbaneteknikk | D87: =AO51 -> 0 | F87: Direkte utslipp på byggeplass | G87: =AQ21*Utslippsfaktorer!E132/1000+AQ22*Utslippsfaktorer!E134/1000+AV40*Utslippsfaktorer!E132/1000+AV41*Utslippsfaktorer!E134/1000+D79 -> 0 | H87: Forbrenning av diesel/biodiesel i anleggsmaskin og massetransport + sprengning | S87: Sum | T87: =SUM(T58:T86) -> 
B88: Andre materialer | D88: =AO52-D87 -> 0 | F88: Utslipp arealbeslag/arealbruksendring | G88: =(K15*AV90+K16*AV91+K17*AV94+K17*AV97+K18*AV93+K18*AV97+K19*AV92+K19*AV97+AO92)/1000 -> 0 | T88: =P86=T87 ->  | AL88: Strøsalt | AM88: =IF(C17=Nedtrekksmenyer!C9,0,Beregningsfaktorer!AI48) -> 9.05 | AN88: tonn pr år/km | AO88: kg | AQ88: =AM88*1000*(C20+C21)/1000*C11 -> 0 | AR88: kg salt driftsfase | AT88: Salt, for vinterdrift | AU88: kg | AV88: =VLOOKUP(AT88,Utslippsfaktorer!$C$9:$E$392,3,FALSE) -> 0.16666827 | AW88: ="kg CO2-eq/"&AU88 -> kg CO2-eq/kg
B89: Sum | D89: =SUM(D83:D88) -> 0
AL90: Arealbruksendring | AT90: Avtaging av matjord | AU90: =VLOOKUP(AT90,Utslippsfaktorer!$C$9:$D$392,2,FALSE) -> m3 | AV90: =VLOOKUP(AT90,Utslippsfaktorer!$C$9:$E$392,3,FALSE) -> 55.1 | AW90: ="kg CO2-eq/"&AU90 -> kg CO2-eq/m3
B91: RESULTATER - MER DETALJERT | AM91: Anleggsdiesel (l) | AN91: Massetransport (l) | AO91: Utslipp (kg CO2-eq) | AT91: Avtaging av vegetasjonsdekke, myr | AU91: =VLOOKUP(AT91,Utslippsfaktorer!$C$9:$D$392,2,FALSE) -> m3 | AV91: =VLOOKUP(AT91,Utslippsfaktorer!$C$9:$E$392,3,FALSE) -> 202 | AW91: ="kg CO2-eq/"&AU91 -> kg CO2-eq/m3
AL92: Felling/rydding av skog | AM92: =SUM(K17:K19)*Beregningsfaktorer!M47*Beregningsfaktorer!M46 -> 0 | AN92: =SUM(K17:K19)*Beregningsfaktorer!M47*Beregningsfaktorer!C$244*C26 -> 0 | AO92: =(AM92*Utslippsfaktorer!E$131)+(AN92*Utslippsfaktorer!E$142*Utslippsfaktorer!$AO$142) -> 0 | AT92: Vegetasjonsrydding, lav bonitet | AU92: =VLOOKUP(AT92,Utslippsfaktorer!$C$9:$D$392,2,FALSE) -> m2 | AV92: =VLOOKUP(AT92,Utslippsfaktorer!$C$9:$E$392,3,FALSE) -> 11.99763548 | AW92: ="kg CO2-eq/"&AU92 -> kg CO2-eq/m2
AT93: Vegetasjonsrydding, middels bonitet | AU93: =VLOOKUP(AT93,Utslippsfaktorer!$C$9:$D$392,2,FALSE) -> m2 | AV93: =VLOOKUP(AT93,Utslippsfaktorer!$C$9:$E$392,3,FALSE) -> 20.29687113 | AW93: kg CO2-eq/m2
B94: Materialproduksjon (A1-A4) | D94: tonn CO2-eq | F94: Utbygging (A5) | G94: tonn CO2-eq | J94: =B82 -> Drift og vedlikehold år (B4-B5) | K94: tonn CO2-eq | O94: Annet | T94: Sum | U94: =SUM(U95:U140) ->  | Y94: 0 | AT94: Vegetasjonsrydding, høy bonitet | AU94: =VLOOKUP(AT94,Utslippsfaktorer!$C$9:$D$392,2,FALSE) -> m2 | AV94: =VLOOKUP(AT94,Utslippsfaktorer!$C$9:$E$392,3,FALSE) -> 31.88598616 | AW94: kg CO2-eq/m2
B95: =F7 -> Asfalt, Agb | D95: =VLOOKUP(B95,$O$7:$Z$53,$Z$2,FALSE) -> 0 | F95: =B76 -> Anleggsmaskiner: diesel | G95: =D76 -> 0 | J95: Anleggsmaskiner: diesel | K95: =D83 -> 0 | O95: =B95 -> Asfalt, Agb | P95: =D95/$D$140 ->  | Q95: =IF(P95>$D$142,O95,$O$94) ->  | R95: =P95 ->  | S95: MATERIALPRODUKSJON | T95: =IFERROR(IF(Q95=$O$94,"",Q95),"") ->  | U95: =IF(Q95=$O$94,"",D95) ->  | Y95: 0.01 | AT95: Felling av trær til tømmer | AU95: =VLOOKUP(AT95,Utslippsfaktorer!$C$9:$D$392,2,FALSE) -> m3 | AV95: =VLOOKUP(AT95,Utslippsfaktorer!$C$9:$E$392,3,FALSE) -> 85 | AW95: kg CO2-eq/m3
B96: Asfalt, Ab | D96: 0 | F96: =B77 -> Massetransport: diesel, slitasje | G96: =D77 -> 0 | J96: Elektrisitet | K96: =D84 -> 0 | O96: Asfalt, Ab | R96: =P96 ->  | T96: =IFERROR(IF(Q96=$O$94,"",Q96),"") ->  | Y96: 0.02 | AT96: Felling av trær til ved | AU96: =VLOOKUP(AT96,Utslippsfaktorer!$C$9:$D$392,2,FALSE) -> m3 | AV96: =VLOOKUP(AT96,Utslippsfaktorer!$C$9:$E$392,3,FALSE) -> 1700 | AW96: kg CO2-eq/m3
B97: Asfalt, Ab m/PMB | D97: 0 | F97: =B78 -> Elektrisitet | G97: =D78 -> 0 | J97: Asfalt | K97: =D85 -> 0 | O97: Asfalt, Ab m/PMB | Y97: 0.03 | AT97: Avtaging av vegetasjonsdekke, skogbunn | AU97: =VLOOKUP(AT97,Utslippsfaktorer!$C$9:$D$392,2,FALSE) -> m2 | AV97: =VLOOKUP(AT97,Utslippsfaktorer!$C$9:$E$392,3,FALSE) -> 48 | AW97: kg CO2-eq/m2
B98: Asfalt, Ska | D98: 0 | F98: =B79 -> Sprengning | G98: =D79 -> 0 | J98: Strøsalt | K98: =D86 -> 0 | O98: Asfalt, Ska | Y98: 0.04 | AT98: Avtaging av vegetasjonsdekke, innmarksbeite | AU98: =VLOOKUP(AT98,Utslippsfaktorer!$C$9:$D$392,2,FALSE) -> m3 | AV98: =VLOOKUP(AT98,Utslippsfaktorer!$C$9:$E$392,3,FALSE) -> 55.1 | AW98: kg CO2-eq/m3
B99: Asfalt, Ska m/PMB | D99: 0 | F99: Sum | G99: =SUM(G95:G98) -> 0 | J99: Bane: Overbygning og jernbaneteknikk | K99: 0 | O99: Asfalt, Ska m/PMB | Y99: 0.05
B100: Bærelag (Ag) | D100: 0 | J100: Andre materialer | K100: 0 | O100: Bærelag (Ag) | Y100: 0.06
B101: Forsterkningslag (pukk) | D101: 0 | J101: Sum | K101: =SUM(K95:K100) -> 0 | O101: Forsterkningslag (pukk) | Y101: 0.07
B102: Normalbetong, B30, Bransjereferanse | D102: =VLOOKUP(B102,$O$7:$Z$53,$Z$2,FALSE) -> 0 | O102: Normalbetong, B30, Bransjereferanse | Y102: 0.08
B103: Normalbetong, B35, Bransjereferanse | D103: 0 | O103: Normalbetong, B35, Bransjereferanse | Y103: 0.09
B104: Normalbetong, B45, Bransjereferanse | D104: =VLOOKUP(B104,$O$7:$Z$53,$Z$2,FALSE) -> 0 | O104: Normalbetong, B45, Bransjereferanse | Y104: 0.1 | AT104: Skog - lav bonitet | AU104: m2 | AV104: =AV92 -> 11.99763548 | AW104: kg CO2/m2
B105: Normalbetong, B30, Lavkarbon B | D105: 0 | O105: Normalbetong, B30, Lavkarbon B | Y105: 0.11 | AT105: Skog - middels bonitet | AU105: m2 | AV105: =AV93 -> 20.29687113 | AW105: kg CO2/m2
B106: Normalbetong, B35, Lavkarbon B | D106: 0 | O106: Normalbetong, B35, Lavkarbon B | Y106: 0.12 | AT106: Skog - høy bonitet | AU106: m2 | AV106: =AV94 -> 31.88598616 | AW106: kg CO2/m2
B107: Normalbetong, B45, Lavkarbon B | D107: 0 | O107: Normalbetong, B45, Lavkarbon B | P107: =D107/$D$140 ->  | Y107: 0.13
B108: Normalbetong, B30, Lavkarbon A | D108: 0 | O108: Normalbetong, B30, Lavkarbon A | Y108: 0.14
B109: Normalbetong, B35, Lavkarbon A | D109: 0 | O109: Normalbetong, B35, Lavkarbon A | Y109: 0.15
B110: Normalbetong, B45, Lavkarbon A | D110: 0 | O110: Normalbetong, B45, Lavkarbon A | Y110: 0.16
B111: Betongelement, prefabrikert, lavkarbon C | D111: 0 | O111: Betongelement, prefabrikert, lavkarbon C | Y111: 0.17
B112: Betongelement, prefabrikert, lavkarbon B | D112: 0 | O112: Betongelement, prefabrikert, lavkarbon B | Y112: 0.18 | AT112: http://talitor-ledlights.no/onewebmedia/Veg-%20og%20gatebelysning.pdf
B113: Betongelement, prefabrikert, lavkarbon A | D113: 0 | O113: Betongelement, prefabrikert, lavkarbon A | Y113: 0.19 | AT113: Håndbok 264 - Teknisk planlegging av veg- og gatebelysning
B114: Sprøytebetong, B35, Bransjereferanse | D114: 0 | O114: Sprøytebetong, B35, Bransjereferanse | Y114: 0.2
B115: Injeksjonssement | D115: 0 | O115: Injeksjonssement
B116: Fyllingsmateriale, EPS 200 | D116: 0 | O116: Fyllingsmateriale, EPS 200
B117: Fyllingsmateriale, skumglassgranulat | D117: 0 | O117: Fyllingsmateriale, skumglassgranulat
B118: Fyllingsmateriale, lettklinker/ekspandert leire | D118: 0 | O118: Fyllingsmateriale, lettklinker/ekspandert leire
B119: Fyllingsmateriale, grus/pukk | D119: 0 | O119: Fyllingsmateriale, grus/pukk
B120: Isolasjon, XPS 400 | D120: 0 | O120: Isolasjon, XPS 400
B121: Kalksementstabilisering (50% kalk, 50% sement) | D121: 0 | O121: Kalksementstabilisering (50% kalk, 50% sement)
B122: Limtre | D122: 0 | O122: Limtre
B123: PE-skumplater | D123: 0 | O123: PE-skumplater
B124: Rekkverk, standard vegrekkverk | D124: 0 | O124: Rekkverk, standard vegrekkverk
B125: Rekkverk på bru (kjøresterkt rekkverk i stål) | D125: 0 | O125: Rekkverk på bru (kjøresterkt rekkverk i stål)
B126: Rør og kummer, betong | D126: 0 | O126: Rør og kummer, betong
B127: Rør og kummer, plast | D127: 0 | O127: Rør og kummer, plast
B128: Støttemur av betong | D128: 0 | O128: Støttemur av betong
B129: Støttemur av naturstein | D129: 0 | O129: Støttemur av naturstein
B130: Sprengstoff | D130: 0 | O130: Sprengstoff
B131: =F42 -> Stål, armering og bolter kamstål | D131: 0 | O131: Stål, armering og bolter kamstål
B132: Stål, spennarmering | D132: 0 | O132: Stål, spennarmering
B133: Stål, konstruksjonsstål og annet stål | D133: 0 | O133: Stål, konstruksjonsstål og annet stål
B134: Stål, peler | D134: 0 | O134: Stål, peler
B135: Stål, rustfritt/høykvalitet | D135: 0 | O135: =B135 -> Stål, rustfritt/høykvalitet | R135: =P135 ->  | U135: =IF(Q135=$O$94,"",D135) -> 
B136: Stål, spunt | D136: 0 | O136: Stål, spunt
B137: Tettemembran, plast | D137: 0 | O137: Tettemembran, plast
B138: Trevirke | D138: 0 | O138: Trevirke
B139: =O50 -> Bane: Overbygning og jernbaneteknikk | D139: 0 | O139: Bane: Overbygning og jernbaneteknikk
B140: Sum | D140: =SUM(D95:D139) -> 0 | Q140: =O94 -> Annet | R140: =SUMIF(Q95:R139,Q140,R95:R139) -> 0 | T140: =IF(R140=0,"",Q140) ->  | U140: =D140-SUM(U95:U138) -> 
R141: =U140/D140 ->  | S141: UTBYGGING | T141: =IF(G95=0,"",F95) ->  | U141: =IF(G95=0,"",G95) -> 
B142: Grense for å samle i kategori "Annet" | D142: 0.03 | T142: =IF(G96=0,"",F96) ->  | U142: =IF(G96=0,"",G96) -> 
T143: =IF(G97=0,"",F97) ->  | U143: =IF(G97=0,"",G97) -> 
T144: =IF(G98=0,"",F98) ->  | U144: =IF(G98=0,"",G98) -> 
P145: tekst med % | Q145: =IF(P95>$D$142,O95&", "&ROUND(P95*100,0)&" %",$O$94) ->  | S145: ="D & V, "&C11&" år" -> D & V, år | T145: =IF(K95=0,"",J95) ->  | U145: =IF(K95=0,"",K95) -> 
T150: =IF(K100=0,"`",J100&" ") -> `

Sheet Prosjektbeskrivelse
C2: PROSJEKTBESKRIVELSE
C4: Informasjon om analysen | F4: =IF(D12=Nedtrekksmenyer!B9,"Baneelement","Vegelement") -> Vegelement | G4: Stedskode | H4: Fra profil | I4: Til profil | J4: Lengde (m) | AH4: =Nedtrekksmenyer!B39 -> Dagsone
C5: Navn på den som har utført analysen | F5: Velg element | J5: =I5-H5 -> 0 | K5: =IF(OR(F5="Veg i dagen", F5="Tunnel", F5="Bru"), IF(J5<=0,"Lengde kan ikke være null eller negativ",""), "") ->  | AH5: =Nedtrekksmenyer!B40 -> Tunnel oversjøisk
C6: Dato for analyse | F6: Velg element | J6: 0 | Y6: VEGELEMENTOVERSIKT | AH6: =Nedtrekksmenyer!B41 -> Tunnel undersjøisk
C7: Analyseperiode (år) | E7: =IF(D7="", "Må angis", "") -> Må angis | F7: Velg element | J7: 0 | AH7: =Nedtrekksmenyer!B42 -> Bru
F8: Velg element | J8: 0 | AA8: Dagsone | AD8: Tunnel | AG8: Bru | AK8: Tunnel
C9: Prosjektinformasjon | F9: Velg element | J9: 0 | AA9: Indeks | AB9: Lengde | AC9: Stedskode | AD9: Indeks | AE9: Lengde | AF9: Stedskode | AG9: Indeks | AH9: Lengde | AI9: Stedskode | AK9: Oversjøisk | AL9: Undersjøisk
C10: Utbyggingsprosjekt | F10: Velg element | J10: =I10-H10 -> 0 | Y10: 1 | Z10: =F5 -> Velg element | AA10: =IF(AB10>0,COUNTIF($AB$10:AB10,">"&0),0) -> 0 | AB10: =IF(F5=$AH$4,J5,0) -> 0 | AC10: =IF(F5=$AH$4,G5,0) -> 0 | AD10: =IF(AE10>0,COUNTIF($AE$10:AE10,">"&0),0) -> 0 | AE10: =IF(F5=$AH$5,J5,0)+IF(F5=$AH$6,J5,0) -> 0 | AF10: =IF(OR(F5=$AH$5,F5=$AH$6),G5,0) -> 0 | AG10: =IF(AH10>0,COUNTIF($AH$10:AH10,">"&0),0) -> 0 | AH10: =IF(F5=$AH$7,J5,0) -> 0 | AI10: =IF(F5=$AH$7,G5,0) -> 0 | AK10: =IF(Z10=$AH$5,1,0) -> 0 | AL10: =IF(Z10=$AH$6,1,0) -> 0
C11: Sted / region | D11: Velg region | F11: Velg element | J11: =I11-H11 -> 0 | Y11: 2 | Z11: =F6 -> Velg element | AA11: =IF(AB11>0,COUNTIF($AB$10:AB11,">"&0),0) -> 0 | AB11: =IF(F6=$AH$4,J6,0) -> 0 | AC11: =IF(F6=$AH$4,G6,0) -> 0 | AD11: =IF(AE11>0,COUNTIF($AE$10:AE11,">"&0),0) -> 0 | AE11: =IF(F6=$AH$5,J6,0)+IF(F6=$AH$6,J6,0) -> 0 | AF11: =IF(OR(F6=$AH$5,F6=$AH$6),G6,0) -> 0 | AG11: =IF(AH11>0,COUNTIF($AH$10:AH11,">"&0),0) -> 0 | AH11: =IF(F6=$AH$7,J6,0) -> 0 | AI11: =IF(F6=$AH$7,G6,0) -> 0 | AK11: =IF(Z11=$AH$5,1,0) -> 0 | AL11: =IF(Z11=$AH$6,1,0) -> 0
C12: Vegtype - Prosjekttype | D12: Velg vegtype - prosjekttype | E12: =IF(D12="Velg vegtype - prosjekttype", "Må angis", "") -> Må angis | F12: Velg element | J12: 0 | Y12: 3 | Z12: Velg element | AA12: =IF(AB12>0,COUNTIF($AB$10:AB12,">"&0),0) -> 0 | AB12: 0 | AC12: 0 | AD12: =IF(AE12>0,COUNTIF($AE$10:AE12,">"&0),0) -> 0 | AE12: 0 | AF12: 0 | AG12: =IF(AH12>0,COUNTIF($AH$10:AH12,">"&0),0) -> 0 | AH12: 0 | AI12: 0 | AK12: 0 | AL12: 0
C13: =IF(D12=Nedtrekksmenyer!B9," ","ÅDT") -> ÅDT | E13: =IF(D12=Nedtrekksmenyer!B9,"",IF(D13="", "Må angis", "")) -> Må angis | F13: Velg element | J13: 0 | Y13: 4 | Z13: Velg element | AA13: =IF(AB13>0,COUNTIF($AB$10:AB13,">"&0),0) -> 0 | AB13: 0 | AC13: 0 | AD13: =IF(AE13>0,COUNTIF($AE$10:AE13,">"&0),0) -> 0 | AE13: 0 | AF13: 0 | AG13: =IF(AH13>0,COUNTIF($AH$10:AH13,">"&0),0) -> 0 | AH13: 0 | AI13: 0 | AK13: 0 | AL13: 0
C14: Fartsgrense (km/t) | F14: Velg element | J14: 0 | Y14: 5 | Z14: Velg element | AA14: =IF(AB14>0,COUNTIF($AB$10:AB14,">"&0),0) -> 0 | AB14: 0 | AC14: 0 | AD14: =IF(AE14>0,COUNTIF($AE$10:AE14,">"&0),0) -> 0 | AE14: 0 | AF14: 0 | AG14: =IF(AH14>0,COUNTIF($AH$10:AH14,">"&0),0) -> 0 | AH14: 0 | AI14: 0 | AK14: 0 | AL14: 0
C15: =IF(D12=Nedtrekksmenyer!B9,"Antall spor","Antall felt") -> Antall felt | E15: =IF(D15="", "Må angis", "") -> Må angis | F15: Velg element | J15: 0 | Y15: 6 | Z15: Velg element | AA15: =IF(AB15>0,COUNTIF($AB$10:AB15,">"&0),0) -> 0 | AB15: 0 | AC15: 0 | AD15: =IF(AE15>0,COUNTIF($AE$10:AE15,">"&0),0) -> 0 | AE15: 0 | AF15: 0 | AG15: =IF(AH15>0,COUNTIF($AH$10:AH15,">"&0),0) -> 0 | AH15: 0 | AI15: 0 | AK15: 0 | AL15: 0
C16: =IF(D12=Nedtrekksmenyer!B9,"Banebredde (m)","Vegbredde (m)") -> Vegbredde (m) | E16: =IF(D16="", "Må angis", "") -> Må angis | F16: Velg element | J16: 0 | Y16: 7 | Z16: Velg element | AA16: =IF(AB16>0,COUNTIF($AB$10:AB16,">"&0),0) -> 0 | AB16: 0 | AC16: 0 | AD16: =IF(AE16>0,COUNTIF($AE$10:AE16,">"&0),0) -> 0 | AE16: 0 | AF16: 0 | AG16: =IF(AH16>0,COUNTIF($AH$10:AH16,">"&0),0) -> 0 | AH16: 0 | AI16: 0 | AK16: 0 | AL16: 0
C17: Buffer, influensområde (m) | F17: Velg element | J17: 0 | Y17: 8 | Z17: Velg element | AA17: =IF(AB17>0,COUNTIF($AB$10:AB17,">"&0),0) -> 0 | AB17: 0 | AC17: 0 | AD17: =IF(AE17>0,COUNTIF($AE$10:AE17,">"&0),0) -> 0 | AE17: 0 | AF17: 0 | AG17: =IF(AH17>0,COUNTIF($AH$10:AH17,">"&0),0) -> 0 | AH17: 0 | AI17: 0 | AK17: 0 | AL17: 0
F18: Velg element | J18: 0 | Y18: 9 | Z18: Velg element | AA18: =IF(AB18>0,COUNTIF($AB$10:AB18,">"&0),0) -> 0 | AB18: 0 | AC18: 0 | AD18: =IF(AE18>0,COUNTIF($AE$10:AE18,">"&0),0) -> 0 | AE18: 0 | AF18: 0 | AG18: =IF(AH18>0,COUNTIF($AH$10:AH18,">"&0),0) -> 0 | AH18: 0 | AI18: 0 | AK18: 0 | AL18: 0
C19: Beregningsforutsetninger | F19: Velg element | J19: 0 | Y19: 10 | Z19: Velg element | AA19: =IF(AB19>0,COUNTIF($AB$10:AB19,">"&0),0) -> 0 | AB19: 0 | AC19: 0 | AD19: =IF(AE19>0,COUNTIF($AE$10:AE19,">"&0),0) -> 0 | AE19: 0 | AF19: 0 | AG19: =IF(AH19>0,COUNTIF($AH$10:AH19,">"&0),0) -> 0 | AH19: 0 | AI19: 0 | AK19: 0 | AL19: 0
C20: Overordnede forutsetninger som påvirker beregningene. Gjelder hvorvidt prosjektet omfattes av krav til klimagassutslipp tilsvarende minst lavkarbonklasse B for plasstøpt betong, og hvilken utslippsfaktor som legges til grunn for beregning av utslipp fra elektrisitetsproduksjon | F20: Velg element | J20: 0 | Y20: 11 | Z20: Velg element | AA20: =IF(AB20>0,COUNTIF($AB$10:AB20,">"&0),0) -> 0 | AB20: 0 | AC20: 0 | AD20: =IF(AE20>0,COUNTIF($AE$10:AE20,">"&0),0) -> 0 | AE20: 0 | AF20: 0 | AG20: =IF(AH20>0,COUNTIF($AH$10:AH20,">"&0),0) -> 0 | AH20: 0 | AI20: 0 | AK20: 0 | AL20: 0
F21: Velg element | J21: 0 | Y21: 12 | Z21: Velg element | AA21: =IF(AB21>0,COUNTIF($AB$10:AB21,">"&0),0) -> 0 | AB21: 0 | AC21: 0 | AD21: =IF(AE21>0,COUNTIF($AE$10:AE21,">"&0),0) -> 0 | AE21: 0 | AF21: 0 | AG21: =IF(AH21>0,COUNTIF($AH$10:AH21,">"&0),0) -> 0 | AH21: 0 | AI21: 0 | AK21: 0 | AL21: 0
F22: Velg element | J22: 0 | Y22: 13 | Z22: Velg element | AA22: =IF(AB22>0,COUNTIF($AB$10:AB22,">"&0),0) -> 0 | AB22: 0 | AC22: 0 | AD22: =IF(AE22>0,COUNTIF($AE$10:AE22,">"&0),0) -> 0 | AE22: 0 | AF22: 0 | AG22: =IF(AH22>0,COUNTIF($AH$10:AH22,">"&0),0) -> 0 | AH22: 0 | AI22: 0 | AK22: 0 | AL22: 0
E23: =IF(D15=Nedtrekksmenyer!E17, "Må angis", "") ->  | F23: Velg element | J23: 0 | Y23: 14 | Z23: Velg element | AA23: =IF(AB23>0,COUNTIF($AB$10:AB23,">"&0),0) -> 0 | AB23: 0 | AC23: 0 | AD23: =IF(AE23>0,COUNTIF($AE$10:AE23,">"&0),0) -> 0 | AE23: 0 | AF23: 0 | AG23: =IF(AH23>0,COUNTIF($AH$10:AH23,">"&0),0) -> 0 | AH23: 0 | AI23: 0 | AK23: 0 | AL23: 0
C24: Gjelder minstekrav til lavkarbon B for plasstøpt betong? | D24: Velg ja/nei | F24: Velg element | J24: 0 | Y24: 15 | Z24: Velg element | AA24: =IF(AB24>0,COUNTIF($AB$10:AB24,">"&0),0) -> 0 | AB24: 0 | AC24: 0 | AD24: =IF(AE24>0,COUNTIF($AE$10:AE24,">"&0),0) -> 0 | AE24: 0 | AF24: 0 | AG24: =IF(AH24>0,COUNTIF($AH$10:AH24,">"&0),0) -> 0 | AH24: 0 | AI24: 0 | AK24: 0 | AL24: 0
C25: Scenario for utslippsfaktor for elektrisitetsproduksjon | D25: Velg scenario for el-miks | F25: Velg element | J25: =SUM(J5:J24) -> 0 | Y25: 16 | Z25: Velg element | AA25: =IF(AB25>0,COUNTIF($AB$10:AB25,">"&0),0) -> 0 | AB25: 0 | AC25: 0 | AD25: =IF(AE25>0,COUNTIF($AE$10:AE25,">"&0),0) -> 0 | AE25: 0 | AF25: 0 | AG25: =IF(AH25>0,COUNTIF($AH$10:AH25,">"&0),0) -> 0 | AH25: 0 | AI25: 0 | AK25: 0 | AL25: 0
Y26: 17 | Z26: Velg element | AA26: =IF(AB26>0,COUNTIF($AB$10:AB26,">"&0),0) -> 0 | AB26: 0 | AC26: 0 | AD26: =IF(AE26>0,COUNTIF($AE$10:AE26,">"&0),0) -> 0 | AE26: 0 | AF26: 0 | AG26: =IF(AH26>0,COUNTIF($AH$10:AH26,">"&0),0) -> 0 | AH26: 0 | AI26: 0 | AK26: 0 | AL26: 0
C27: Beskrivelsestekst | F27: Fordeling dagsone - tunnel - bru | Y27: 18 | Z27: Velg element | AA27: =IF(AB27>0,COUNTIF($AB$10:AB27,">"&0),0) -> 0 | AB27: 0 | AC27: 0 | AD27: =IF(AE27>0,COUNTIF($AE$10:AE27,">"&0),0) -> 0 | AE27: 0 | AF27: 0 | AG27: =IF(AH27>0,COUNTIF($AH$10:AH27,">"&0),0) -> 0 | AH27: 0 | AI27: 0 | AK27: 0 | AL27: 0
C28: (Kort beskrivelse av vurderte alternativer, trasévalg, etc. som er relevant.) | F28: Dagsone (m) | G28: =Prosjektbeskrivelse!AB30 -> 0 | H28: =IFERROR(G28/$G$32,"-") -> - | Y28: 19 | Z28: Velg element | AA28: =IF(AB28>0,COUNTIF($AB$10:AB28,">"&0),0) -> 0 | AB28: 0 | AC28: 0 | AD28: =IF(AE28>0,COUNTIF($AE$10:AE28,">"&0),0) -> 0 | AE28: 0 | AF28: 0 | AG28: =IF(AH28>0,COUNTIF($AH$10:AH28,">"&0),0) -> 0 | AH28: 0 | AI28: 0 | AK28: 0 | AL28: 0
F29: Tunnel (m) | G29: =Prosjektbeskrivelse!AE30 -> 0 | H29: =IFERROR(G29/$G$32,"-") -> - | Y29: 20 | Z29: Velg element | AA29: =IF(AB29>0,COUNTIF($AB$10:AB29,">"&0),0) -> 0 | AB29: 0 | AC29: 0 | AD29: =IF(AE29>0,COUNTIF($AE$10:AE29,">"&0),0) -> 0 | AE29: 0 | AF29: 0 | AG29: =IF(AH29>0,COUNTIF($AH$10:AH29,">"&0),0) -> 0 | AH29: 0 | AI29: 0 | AK29: =IF(Z29=$AH$5,1,0) -> 0 | AL29: =IF(Z29=$AH$6,1,0) -> 0
F30: Bru (m) | G30: =Prosjektbeskrivelse!AH30 -> 0 | H30: =IFERROR(G30/$G$32,"-") -> - | Z30: SUM, lengde per element | AB30: =SUM(AB10:AB29) -> 0 | AC30: =SUM(AC10:AC29) -> 0 | AD30: 0 | AE30: 0 | AF30: 0 | AG30: 0 | AH30: 0 | AI30: 0 | AK30: 0 | AL30: 0
Z31: Antall elementer | AB31: =COUNTIF(AB10:AB29,">"&0) -> 0 | AC31: =COUNTIF(AC10:AC29,">"&0) -> 0 | AD31: 0 | AE31: =COUNTIF(AE10:AE29,">"&0) -> 0 | AF31: 0 | AG31: 0 | AH31: 0 | AI31: 0 | AK31: 0 | AL31: 0
F32: =IF(D12=Nedtrekksmenyer!B9,"Banens totale lengde (m)","Vegstrekningens totale lengde (m)") -> Vegstrekningens totale lengde (m) | H32: =IF(SUM(J5:J24)<>G32, "Sum ulik total strekningslengde", "" ) -> 
K529: =(IF(Prosjektbeskrivelse!D11="Øst",79691,0)+IF(Prosjektbeskrivelse!D11="Sør",90169,0)+IF(Prosjektbeskrivelse!D11="Vest",79620,0)+IF(Prosjektbeskrivelse!D11="Midt",37186,0)+IF(Prosjektbeskrivelse!D11="Nord",12800,0)+IF(Prosjektbeskrivelse!D11="Velg region",4.18,0))*Prosjektbeskrivelse!D7 -> 0

Sheet Dagsone
B2: DAGSONE | I2: Mengde energi: Dieselforbruk, massetransport og el | P2: Mengde materialer og materialproduksjon | X2: Miljøpåvirkning utbygging | AX2: ="Miljøpåvirkning drift og vedlikehold "&Prosjektbeskrivelse!D7&" år" -> Miljøpåvirkning drift og vedlikehold år
B3: =IF(Prosjektbeskrivelse!D10=0,"",Prosjektbeskrivelse!D10) ->  | D3: Samlet lengde (Dagsone) | E3: =Prosjektbeskrivelse!G28 -> 0 | F3: m
I4: Anleggsdiesel, ekskl transport (l) | L4: Massetransport (tkm) | N4: Elektrisitet, kWh | P4: Materialer/prosesser | V4: Materialgruppe | X4: Anleggsdiesel | AC4: Massetransport | AH4: Elektrisitet, kWh | AM4: Materialer inkl materialtransport til byggeplass (A1-A4) | AR4: Sum | AX4: Diesel | BC4: Elektrisitet, kWh | BH4: Materialer inkl transport til byggeplass (A1-A4) | BM4: Sum
B5: =Mellomfaseverktøy!B6 -> VegLCA v5.06B. 17.02.22 | E5: Mengde | F5: Enhet | I5: Utbygging | J5: ="D&V "&Prosjektbeskrivelse!D7&" år" -> D&V år | K5: Kommentar | L5: tkm (utbygging) | M5: Kommentar | N5: Utbygging | O5: ="D&V "&Prosjektbeskrivelse!D7&" år" -> D&V år | P5: Material | Q5: Enhet utslippsfaktor | R5: Mengde, utbygging (må stemme med enhet i utslippsfaktor) | S5: Material-transport (tkm) | T5: ="Mengde, D&V "&Prosjektbeskrivelse!D7&" år" -> Mengde, D&V år | U5: ="Material-transport (tkm) D&V "&Prosjektbeskrivelse!D7&" år" -> Material-transport (tkm) D&V år | X5: K - kg CO2-eq | Y5: F - kg SO2-eq | Z5: E - kg PO43- -eq | AA5: FS - kg C2H4 -eq | AB5: E: (TRP+TRPE) MJ | AC5: K - kg CO2-eq | AD5: F - kg SO2-eq | AE5: E - kg PO43- -eq | AF5: FS - kg C2H4 -eq | AG5: E: (TRP+TRPE) MJ | AH5: K - kg CO2-eq | AI5: F - kg SO2-eq | AJ5: E - kg PO43- -eq | AK5: FS - kg C2H4 -eq | AL5: E: (TRP+TRPE) MJ | AM5: K - kg CO2-eq | AN5: F - kg SO2-eq | AO5: E - kg PO43- -eq | AP5: FS - kg C2H4 -eq | AQ5: E: (TRP+TRPE) MJ | AR5: K - kg CO2-eq | AS5: F - kg SO2-eq | AT5: E - kg PO43- -eq | AU5: FS - kg C2H4 -eq | AV5: E: (TRP+TRPE) MJ | AX5: K - kg CO2-eq | AY5: F - kg SO2-eq | AZ5: E - kg PO43- -eq | BA5: FS - kg C2H4 -eq | BB5: E: (TRP+TRPE) MJ | BC5: K - kg CO2-eq | BD5: F - kg SO2-eq | BE5: E - kg PO43- -eq | BF5: FS - kg C2H4 -eq | BG5: E: (TRP+TRPE) MJ | BH5: K - kg CO2-eq | BI5: F - kg SO2-eq | BJ5: E - kg PO43- -eq | BK5: FS - kg C2H4 -eq | BL5: E: (TRP+TRPE) MJ | BM5: K - kg CO2-eq | BN5: F - kg SO2-eq | BO5: E - kg PO43- -eq | BP5: FS - kg C2H4 -eq | BQ5: E: (TRP+TRPE) MJ
B7: 01: FORBEREDENDE TILTAK OG GENERELLE KOSTNADER
B9: 11: ARBEIDSSTIKNING, TEKNISK KONTROLL
B10: 11.1 | D10: Fastmerker | F10: NOK | P10: =D10 -> Fastmerker | R10: =E10 -> 0 | V10: =IF(P10="","",VLOOKUP(P10,Utslippsfaktorer!$C$9:$AL$391,Utslippsfaktorer!$AL$5,FALSE)) -> RS - Teknisk kontroll | AH10: =$N10*Utslippsfaktorer!E$147 -> 0 | AI10: =$N10*Utslippsfaktorer!F$147 -> 0 | AJ10: =$N10*Utslippsfaktorer!G$147 -> 0 | AK10: =$N10*Utslippsfaktorer!H$147 -> 0 | AL10: =$N10*Utslippsfaktorer!I$147 -> 0 | AM10: =((IF($P10="",0,VLOOKUP($P10,Utslippsfaktorer!$C$9:$I$425,Utslippsfaktorer!E$5,FALSE)))*$R10)+($S10*Utslippsfaktorer!E$141) -> 0 | AN10: =((IF($P10="",0,VLOOKUP($P10,Utslippsfaktorer!$C$9:$I$425,Utslippsfaktorer!F$5,FALSE)))*$R10)+($S10*Utslippsfaktorer!F$141) -> 0 | AO10: =((IF($P10="",0,VLOOKUP($P10,Utslippsfaktorer!$C$9:$I$425,Utslippsfaktorer!G$5,FALSE)))*$R10)+($S10*Utslippsfaktorer!G$141) -> 0 | AP10: =((IF($P10="",0,VLOOKUP($P10,Utslippsfaktorer!$C$9:$I$425,Utslippsfaktorer!H$5,FALSE)))*$R10)+($S10*Utslippsfaktorer!H$141) -> 0 | AQ10: =((IF($P10="",0,VLOOKUP($P10,Utslippsfaktorer!$C$9:$I$425,Utslippsfaktorer!I$5,FALSE)))*$R10)+($S10*Utslippsfaktorer!I$141) -> 0 | AR10: =X10+AC10+AH10+AM10 -> 0 | AS10: =Y10+AD10+AI10+AN10 -> 0 | AT10: =Z10+AE10+AJ10+AO10 -> 0 | AU10: =AA10+AF10+AK10+AP10 -> 0 | AV10: =AB10+AG10+AL10+AQ10 -> 0 | AX10: =$J10*Utslippsfaktorer!E$131 -> 0 | AY10: =$J10*Utslippsfaktorer!F$131 -> 0 | AZ10: =$J10*Utslippsfaktorer!G$131 -> 0 | BA10: =$J10*Utslippsfaktorer!H$131 -> 0 | BB10: =$J10*Utslippsfaktorer!I$131 -> 0 | BC10: =$O10*Utslippsfaktorer!E$148 -> 0 | BD10: =$O10*Utslippsfaktorer!F$148 -> 0 | BE10: =$O10*Utslippsfaktorer!G$148 -> 0 | BF10: =$O10*Utslippsfaktorer!H$148 -> 0 | BG10: =$O10*Utslippsfaktorer!I$148 -> 0 | BH10: =((IF($P10="",0,VLOOKUP($P10,Utslippsfaktorer!$C$9:$I$425,Utslippsfaktorer!E$5,FALSE)))*$T10)+($U10*Utslippsfaktorer!E$141) -> 0 | BI10: =((IF($P10="",0,VLOOKUP($P10,Utslippsfaktorer!$C$9:$I$425,Utslippsfaktorer!F$5,FALSE)))*$T10)+($U10*Utslippsfaktorer!F$141) -> 0 | BJ10: =((IF($P10="",0,VLOOKUP($P10,Utslippsfaktorer!$C$9:$I$425,Utslippsfaktorer!G$5,FALSE)))*$T10)+($U10*Utslippsfaktorer!G$141) -> 0 | BK10: =((IF($P10="",0,VLOOKUP($P10,Utslippsfaktorer!$C$9:$I$425,Utslippsfaktorer!H$5,FALSE)))*$T10)+($U10*Utslippsfaktorer!H$141) -> 0 | BL10: =((IF($P10="",0,VLOOKUP($P10,Utslippsfaktorer!$C$9:$I$425,Utslippsfaktorer!I$5,FALSE)))*$T10)+($U10*Utslippsfaktorer!I$141) -> 0 | BM10: =AX10+BC10+BH10 -> 0 | BN10: =AY10+BD10+BI10 -> 0 | BO10: =AZ10+BE10+BJ10 -> 0 | BP10: =BA10+BF10+BK10 -> 0 | BQ10: =BB10+BG10+BL10 -> 0
B11: 11.2 | D11: Stikking og maskinstyring | F11: NOK | P11: =D11 -> Stikking og maskinstyring | R11: =E11 -> 0 | V11: =IF(P11="","",VLOOKUP(P11,Utslippsfaktorer!$C$9:$AL$391,Utslippsfaktorer!$AL$5,FALSE)) -> RS - Teknisk kontroll | AH11: =$N11*Utslippsfaktorer!E$147 -> 0 | AI11: =$N11*Utslippsfaktorer!F$147 -> 0 | AJ11: =$N11*Utslippsfaktorer!G$147 -> 0 | AK11: =$N11*Utslippsfaktorer!H$147 -> 0 | AL11: =$N11*Utslippsfaktorer!I$147 -> 0 | AM11: =((IF($P11="",0,VLOOKUP($P11,Utslippsfaktorer!$C$9:$I$425,Utslippsfaktorer!E$5,FALSE)))*$R11)+($S11*Utslippsfaktorer!E$141) -> 0 | AN11: =((IF($P11="",0,VLOOKUP($P11,Utslippsfaktorer!$C$9:$I$425,Utslippsfaktorer!F$5,FALSE)))*$R11)+($S11*Utslippsfaktorer!F$141) -> 0 | AO11: =((IF($P11="",0,VLOOKUP($P11,Utslippsfaktorer!$C$9:$I$425,Utslippsfaktorer!G$5,FALSE)))*$R11)+($S11*Utslippsfaktorer!G$141) -> 0 | AP11: =((IF($P11="",0,VLOOKUP($P11,Utslippsfaktorer!$C$9:$I$425,Utslippsfaktorer!H$5,FALSE)))*$R11)+($S11*Utslippsfaktorer!H$141) -> 0 | AQ11: =((IF($P11="",0,VLOOKUP($P11,Utslippsfaktorer!$C$9:$I$425,Utslippsfaktorer!I$5,FALSE)))*$R11)+($S11*Utslippsfaktorer!I$141) -> 0 | AR11: =X11+AC11+AH11+AM11 -> 0 | AS11: =Y11+AD11+AI11+AN11 -> 0 | AT11: =Z11+AE11+AJ11+AO11 -> 0 | AU11: =AA11+AF11+AK11+AP11 -> 0 | AV11: =AB11+AG11+AL11+AQ11 -> 0 | AX11: =$J11*Utslippsfaktorer!E$131 -> 0 | AY11: =$J11*Utslippsfaktorer!F$131 -> 0 | AZ11: =$J11*Utslippsfaktorer!G$131 -> 0 | BA11: =$J11*Utslippsfaktorer!H$131 -> 0 | BB11: =$J11*Utslippsfaktorer!I$131 -> 0 | BC11: =$O11*Utslippsfaktorer!E$148 -> 0 | BD11: =$O11*Utslippsfaktorer!F$148 -> 0 | BE11: =$O11*Utslippsfaktorer!G$148 -> 0 | BF11: =$O11*Utslippsfaktorer!H$148 -> 0 | BG11: =$O11*Utslippsfaktorer!I$148 -> 0 | BH11: =((IF($P11="",0,VLOOKUP($P11,Utslippsfaktorer!$C$9:$I$425,Utslippsfaktorer!E$5,FALSE)))*$T11)+($U11*Utslippsfaktorer!E$141) -> 0 | BI11: =((IF($P11="",0,VLOOKUP($P11,Utslippsfaktorer!$C$9:$I$425,Utslippsfaktorer!F$5,FALSE)))*$T11)+($U11*Utslippsfaktorer!F$141) -> 0 | BJ11: =((IF($P11="",0,VLOOKUP($P11,Utslippsfaktorer!$C$9:$I$425,Utslippsfaktorer!G$5,FALSE)))*$T11)+($U11*Utslippsfaktorer!G$141) -> 0 | BK11: =((IF($P11="",0,VLOOKUP($P11,Utslippsfaktorer!$C$9:$I$425,Utslippsfaktorer!H$5,FALSE)))*$T11)+($U11*Utslippsfaktorer!H$141) -> 0 | BL11: =((IF($P11="",0,VLOOKUP($P11,Utslippsfaktorer!$C$9:$I$425,Utslippsfaktorer!I$5,FALSE)))*$T11)+($U11*Utslippsfaktorer!I$141) -> 0 | BM11: =AX11+BC11+BH11 -> 0 | BN11: =AY11+BD11+BI11 -> 0 | BO11: =AZ11+BE11+BJ11 -> 0 | BP11: =BA11+BF11+BK11 -> 0 | BQ11: =BB11+BG11+BL11 -> 0
B12: 11.3 | D12: Innmåling | F12: NOK | P12: =D12 -> Innmåling | R12: =E12 -> 0 | V12: =IF(P12="","",VLOOKUP(P12,Utslippsfaktorer!$C$9:$AL$391,Utslippsfaktorer!$AL$5,FALSE)) -> RS - Teknisk kontroll | AH12: =$N12*Utslippsfaktorer!E$147 -> 0 | AI12: =$N12*Utslippsfaktorer!F$147 -> 0 | AJ12: =$N12*Utslippsfaktorer!G$147 -> 0 | AK12: =$N12*Utslippsfaktorer!H$147 -> 0 | AL12: =$N12*Utslippsfaktorer!I$147 -> 0 | AM12: =((IF($P12="",0,VLOOKUP($P12,Utslippsfaktorer!$C$9:$I$425,Utslippsfaktorer!E$5,FALSE)))*$R12)+($S12*Utslippsfaktorer!E$141) -> 0 | AN12: =((IF($P12="",0,VLOOKUP($P12,Utslippsfaktorer!$C$9:$I$425,Utslippsfaktorer!F$5,FALSE)))*$R12)+($S12*Utslippsfaktorer!F$141) -> 0 | AO12: =((IF($P12="",0,VLOOKUP($P12,Utslippsfaktorer!$C$9:$I$425,Utslippsfaktorer!G$5,FALSE)))*$R12)+($S12*Utslippsfaktorer!G$141) -> 0 | AP12: =((IF($P12="",0,VLOOKUP($P12,Utslippsfaktorer!$C$9:$I$425,Utslippsfaktorer!H$5,FALSE)))*$R12)+($S12*Utslippsfaktorer!H$141) -> 0 | AQ12: =((IF($P12="",0,VLOOKUP($P12,Utslippsfaktorer!$C$9:$I$425,Utslippsfaktorer!I$5,FALSE)))*$R12)+($S12*Utslippsfaktorer!I$141) -> 0 | AR12: 0 | AS12: 0 | AT12: 0 | AU12: 0 | AV12: 0 | AX12: =$J12*Utslippsfaktorer!E$131 -> 0 | AY12: =$J12*Utslippsfaktorer!F$131 -> 0 | AZ12: =$J12*Utslippsfaktorer!G$131 -> 0 | BA12: =$J12*Utslippsfaktorer!H$131 -> 0 | BB12: =$J12*Utslippsfaktorer!I$131 -> 0 | BC12: =$O12*Utslippsfaktorer!E$148 -> 0 | BD12: =$O12*Utslippsfaktorer!F$148 -> 0 | BE12: =$O12*Utslippsfaktorer!G$148 -> 0 | BF12: =$O12*Utslippsfaktorer!H$148 -> 0 | BG12: =$O12*Utslippsfaktorer!I$148 -> 0 | BH12: =((IF($P12="",0,VLOOKUP($P12,Utslippsfaktorer!$C$9:$I$425,Utslippsfaktorer!E$5,FALSE)))*$T12)+($U12*Utslippsfaktorer!E$141) -> 0 | BI12: =((IF($P12="",0,VLOOKUP($P12,Utslippsfaktorer!$C$9:$I$425,Utslippsfaktorer!F$5,FALSE)))*$T12)+($U12*Utslippsfaktorer!F$141) -> 0 | BJ12: =((IF($P12="",0,VLOOKUP($P12,Utslippsfaktorer!$C$9:$I$425,Utslippsfaktorer!G$5,FALSE)))*$T12)+($U12*Utslippsfaktorer!G$141) -> 0 | BK12: =((IF($P12="",0,VLOOKUP($P12,Utslippsfaktorer!$C$9:$I$425,Utslippsfaktorer!H$5,FALSE)))*$T12)+($U12*Utslippsfaktorer!H$141) -> 0 | BL12: =((IF($P12="",0,VLOOKUP($P12,Utslippsfaktorer!$C$9:$I$425,Utslippsfaktorer!I$5,FALSE)))*$T12)+($U12*Utslippsfaktorer!I$141) -> 0 | BM12: 0 | BN12: 0 | BO12: 0 | BP12: 0 | BQ12: 0
B13: 11.4 | D13: Teknisk kontroll | F13: NOK | P13: =D13 -> Teknisk kontroll | R13: =E13 -> 0 | V13: =IF(P13="","",VLOOKUP(P13,Utslippsfaktorer!$C$9:$AL$391,Utslippsfaktorer!$AL$5,FALSE)) -> RS - Teknisk kontroll | AH13: =$N13*Utslippsfaktorer!E$147 -> 0 | AI13: =$N13*Utslippsfaktorer!F$147 -> 0 | AJ13: =$N13*Utslippsfaktorer!G$147 -> 0 | AK13: =$N13*Utslippsfaktorer!H$147 -> 0 | AL13: =$N13*Utslippsfaktorer!I$147 -> 0 | AM13: =((IF($P13="",0,VLOOKUP($P13,Utslippsfaktorer!$C$9:$I$425,Utslippsfaktorer!E$5,FALSE)))*$R13)+($S13*Utslippsfaktorer!E$141) -> 0 | AN13: =((IF($P13="",0,VLOOKUP($P13,Utslippsfaktorer!$C$9:$I$425,Utslippsfaktorer!F$5,FALSE)))*$R13)+($S13*Utslippsfaktorer!F$141) -> 0 | AO13: =((IF($P13="",0,VLOOKUP($P13,Utslippsfaktorer!$C$9:$I$425,Utslippsfaktorer!G$5,FALSE)))*$R13)+($S13*Utslippsfaktorer!G$141) -> 0 | AP13: =((IF($P13="",0,VLOOKUP($P13,Utslippsfaktorer!$C$9:$I$425,Utslippsfaktorer!H$5,FALSE)))*$R13)+($S13*Utslippsfaktorer!H$141) -> 0 | AQ13: =((IF($P13="",0,VLOOKUP($P13,Utslippsfaktorer!$C$9:$I$425,Utslippsfaktorer!I$5,FALSE)))*$R13)+($S13*Utslippsfaktorer!I$141) -> 0 | AR13: 0 | AS13: 0 | AT13: 0 | AU13: 0 | AV13: 0 | AX13: =$J13*Utslippsfaktorer!E$131 -> 0 | AY13: =$J13*Utslippsfaktorer!F$131 -> 0 | AZ13: =$J13*Utslippsfaktorer!G$131 -> 0 | BA13: =$J13*Utslippsfaktorer!H$131 -> 0 | BB13: =$J13*Utslippsfaktorer!I$131 -> 0 | BC13: =$O13*Utslippsfaktorer!E$148 -> 0 | BD13: =$O13*Utslippsfaktorer!F$148 -> 0 | BE13: =$O13*Utslippsfaktorer!G$148 -> 0 | BF13: =$O13*Utslippsfaktorer!H$148 -> 0 | BG13: =$O13*Utslippsfaktorer!I$148 -> 0 | BH13: =((IF($P13="",0,VLOOKUP($P13,Utslippsfaktorer!$C$9:$I$425,Utslippsfaktorer!E$5,FALSE)))*$T13)+($U13*Utslippsfaktorer!E$141) -> 0 | BI13: =((IF($P13="",0,VLOOKUP($P13,Utslippsfaktorer!$C$9:$I$425,Utslippsfaktorer!F$5,FALSE)))*$T13)+($U13*Utslippsfaktorer!F$141) -> 0 | BJ13: =((IF($P13="",0,VLOOKUP($P13,Utslippsfaktorer!$C$9:$I$425,Utslippsfaktorer!G$5,FALSE)))*$T13)+($U13*Utslippsfaktorer!G$141) -> 0 | BK13: =((IF($P13="",0,VLOOKUP($P13,Utslippsfaktorer!$C$9:$I$425,Utslippsfaktorer!H$5,FALSE)))*$T13)+($U13*Utslippsfaktorer!H$141) -> 0 | BL13: =((IF($P13="",0,VLOOKUP($P13,Utslippsfaktorer!$C$9:$I$425,Utslippsfaktorer!I$5,FALSE)))*$T13)+($U13*Utslippsfaktorer!I$141) -> 0 | BM13: 0 | BN13: 0 | BO13: 0 | BP13: 0 | BQ13: 0
B14: 11.5 | D14: Sluttdokumentasjon | F14: NOK | P14: =D14 -> Sluttdokumentasjon | R14: =E14 -> 0 | V14: =IF(P14="","",VLOOKUP(P14,Utslippsfaktorer!$C$9:$AL$391,Utslippsfaktorer!$AL$5,FALSE)) -> RS - Teknisk kontroll | AH14: =$N14*Utslippsfaktorer!E$147 -> 0 | AI14: =$N14*Utslippsfaktorer!F$147 -> 0 | AJ14: =$N14*Utslippsfaktorer!G$147 -> 0 | AK14: =$N14*Utslippsfaktorer!H$147 -> 0 | AL14: =$N14*Utslippsfaktorer!I$147 -> 0 | AM14: =((IF($P14="",0,VLOOKUP($P14,Utslippsfaktorer!$C$9:$I$425,Utslippsfaktorer!E$5,FALSE)))*$R14)+($S14*Utslippsfaktorer!E$141) -> 0 | AN14: =((IF($P14="",0,VLOOKUP($P14,Utslippsfaktorer!$C$9:$I$425,Utslippsfaktorer!F$5,FALSE)))*$R14)+($S14*Utslippsfaktorer!F$141) -> 0 | AO14: =((IF($P14="",0,VLOOKUP($P14,Utslippsfaktorer!$C$9:$I$425,Utslippsfaktorer!G$5,FALSE)))*$R14)+($S14*Utslippsfaktorer!G$141) -> 0 | AP14: =((IF($P14="",0,VLOOKUP($P14,Utslippsfaktorer!$C$9:$I$425,Utslippsfaktorer!H$5,FALSE)))*$R14)+($S14*Utslippsfaktorer!H$141) -> 0 | AQ14: =((IF($P14="",0,VLOOKUP($P14,Utslippsfaktorer!$C$9:$I$425,Utslippsfaktorer!I$5,FALSE)))*$R14)+($S14*Utslippsfaktorer!I$141) -> 0 | AR14: 0 | AS14: 0 | AT14: 0 | AU14: 0 | AV14: 0 | AX14: =$J14*Utslippsfaktorer!E$131 -> 0 | AY14: =$J14*Utslippsfaktorer!F$131 -> 0 | AZ14: =$J14*Utslippsfaktorer!G$131 -> 0 | BA14: =$J14*Utslippsfaktorer!H$131 -> 0 | BB14: =$J14*Utslippsfaktorer!I$131 -> 0 | BC14: =$O14*Utslippsfaktorer!E$148 -> 0 | BD14: =$O14*Utslippsfaktorer!F$148 -> 0 | BE14: =$O14*Utslippsfaktorer!G$148 -> 0 | BF14: =$O14*Utslippsfaktorer!H$148 -> 0 | BG14: =$O14*Utslippsfaktorer!I$148 -> 0 | BH14: =((IF($P14="",0,VLOOKUP($P14,Utslippsfaktorer!$C$9:$I$425,Utslippsfaktorer!E$5,FALSE)))*$T14)+($U14*Utslippsfaktorer!E$141) -> 0 | BI14: =((IF($P14="",0,VLOOKUP($P14,Utslippsfaktorer!$C$9:$I$425,Utslippsfaktorer!F$5,FALSE)))*$T14)+($U14*Utslippsfaktorer!F$141) -> 0 | BJ14: =((IF($P14="",0,VLOOKUP($P14,Utslippsfaktorer!$C$9:$I$425,Utslippsfaktorer!G$5,FALSE)))*$T14)+($U14*Utslippsfaktorer!G$141) -> 0 | BK14: =((IF($P14="",0,VLOOKUP($P14,Utslippsfaktorer!$C$9:$I$425,Utslippsfaktorer!H$5,FALSE)))*$T14)+($U14*Utslippsfaktorer!H$141) -> 0 | BL14: =((IF($P14="",0,VLOOKUP($P14,Utslippsfaktorer!$C$9:$I$425,Utslippsfaktorer!I$5,FALSE)))*$T14)+($U14*Utslippsfaktorer!I$141) -> 0 | BM14: 0 | BN14: 0 | BO14: 0 | BP14: 0 | BQ14: 0
B16: 12: RIGG, BYGNINGER OG GENERELLE DRIFTSOMKOSTNINGER
B17: 12.1 | D17: Rigg og midlertididige bygnigner | F17: NOK | P17: =D17 -> Rigg og midlertididige bygnigner | R17: =E17 -> 0 | V17: =IF(P17="","",VLOOKUP(P17,Utslippsfaktorer!$C$9:$AL$391,Utslippsfaktorer!$AL$5,FALSE)) -> RS - Rigg og drift | AH17: =$N17*Utslippsfaktorer!E$147 -> 0 | AI17: =$N17*Utslippsfaktorer!F$147 -> 0 | AJ17: =$N17*Utslippsfaktorer!G$147 -> 0 | AK17: =$N17*Utslippsfaktorer!H$147 -> 0 | AL17: =$N17*Utslippsfaktorer!I$147 -> 0 | AM17: =((IF($P17="",0,VLOOKUP($P17,Utslippsfaktorer!$C$9:$I$425,Utslippsfaktorer!E$5,FALSE)))*$R17)+($S17*Utslippsfaktorer!E$141) -> 0 | AN17: =((IF($P17="",0,VLOOKUP($P17,Utslippsfaktorer!$C$9:$I$425,Utslippsfaktorer!F$5,FALSE)))*$R17)+($S17*Utslippsfaktorer!F$141) -> 0 | AO17: =((IF($P17="",0,VLOOKUP($P17,Utslippsfaktorer!$C$9:$I$425,Utslippsfaktorer!G$5,FALSE)))*$R17)+($S17*Utslippsfaktorer!G$141) -> 0 | AP17: =((IF($P17="",0,VLOOKUP($P17,Utslippsfaktorer!$C$9:$I$425,Utslippsfaktorer!H$5,FALSE)))*$R17)+($S17*Utslippsfaktorer!H$141) -> 0 | AQ17: =((IF($P17="",0,VLOOKUP($P17,Utslippsfaktorer!$C$9:$I$425,Utslippsfaktorer!I$5,FALSE)))*$R17)+($S17*Utslippsfaktorer!I$141) -> 0 | AR17: 0 | AS17: 0 | AT17: 0 | AU17: 0 | AV17: 0 | BC17: =$O17*Utslippsfaktorer!E$148 -> 0 | BD17: =$O17*Utslippsfaktorer!F$148 -> 0 | BE17: =$O17*Utslippsfaktorer!G$148 -> 0 | BF17: =$O17*Utslippsfaktorer!H$148 -> 0 | BG17: =$O17*Utslippsfaktorer!I$148 -> 0 | BM17: 0 | BN17: 0 | BO17: 0 | BP17: 0 | BQ17: 0
B18: 12.11 | D18: Tilrigging | F18: NOK | P18: Tilrigging | R18: 0 | V18: =IF(P18="","",VLOOKUP(P18,Utslippsfaktorer!$C$9:$AL$391,Utslippsfaktorer!$AL$5,FALSE)) -> RS - Rigg og drift | AH18: =$N18*Utslippsfaktorer!E$147 -> 0 | AI18: =$N18*Utslippsfaktorer!F$147 -> 0 | AJ18: =$N18*Utslippsfaktorer!G$147 -> 0 | AK18: =$N18*Utslippsfaktorer!H$147 -> 0 | AL18: =$N18*Utslippsfaktorer!I$147 -> 0 | AM18: =((IF($P18="",0,VLOOKUP($P18,Utslippsfaktorer!$C$9:$I$425,Utslippsfaktorer!E$5,FALSE)))*$R18)+($S18*Utslippsfaktorer!E$141) -> 0 | AN18: =((IF($P18="",0,VLOOKUP($P18,Utslippsfaktorer!$C$9:$I$425,Utslippsfaktorer!F$5,FALSE)))*$R18)+($S18*Utslippsfaktorer!F$141) -> 0 | AO18: =((IF($P18="",0,VLOOKUP($P18,Utslippsfaktorer!$C$9:$I$425,Utslippsfaktorer!G$5,FALSE)))*$R18)+($S18*Utslippsfaktorer!G$141) -> 0 | AP18: =((IF($P18="",0,VLOOKUP($P18,Utslippsfaktorer!$C$9:$I$425,Utslippsfaktorer!H$5,FALSE)))*$R18)+($S18*Utslippsfaktorer!H$141) -> 0 | AQ18: =((IF($P18="",0,VLOOKUP($P18,Utslippsfaktorer!$C$9:$I$425,Utslippsfaktorer!I$5,FALSE)))*$R18)+($S18*Utslippsfaktorer!I$141) -> 0 | AR18: 0 | AS18: 0 | AT18: 0 | AU18: 0 | AV18: 0 | AX18: =$J18*Utslippsfaktorer!E$131 -> 0 | AY18: =$J18*Utslippsfaktorer!F$131 -> 0 | AZ18: =$J18*Utslippsfaktorer!G$131 -> 0 | BA18: =$J18*Utslippsfaktorer!H$131 -> 0 | BB18: =$J18*Utslippsfaktorer!I$131 -> 0 | BC18: =$O18*Utslippsfaktorer!E$148 -> 0 | BD18: =$O18*Utslippsfaktorer!F$148 -> 0 | BE18: =$O18*Utslippsfaktorer!G$148 -> 0 | BF18: =$O18*Utslippsfaktorer!H$148 -> 0 | BG18: =$O18*Utslippsfaktorer!I$148 -> 0 | BH18: =((IF($P18="",0,VLOOKUP($P18,Utslippsfaktorer!$C$9:$I$425,Utslippsfaktorer!E$5,FALSE)))*$T18)+($U18*Utslippsfaktorer!E$141) -> 0 | BI18: =((IF($P18="",0,VLOOKUP($P18,Utslippsfaktorer!$C$9:$I$425,Utslippsfaktorer!F$5,FALSE)))*$T18)+($U18*Utslippsfaktorer!F$141) -> 0 | BJ18: =((IF($P18="",0,VLOOKUP($P18,Utslippsfaktorer!$C$9:$I$425,Utslippsfaktorer!G$5,FALSE)))*$T18)+($U18*Utslippsfaktorer!G$141) -> 0 | BK18: =((IF($P18="",0,VLOOKUP($P18,Utslippsfaktorer!$C$9:$I$425,Utslippsfaktorer!H$5,FALSE)))*$T18)+($U18*Utslippsfaktorer!H$141) -> 0 | BL18: =((IF($P18="",0,VLOOKUP($P18,Utslippsfaktorer!$C$9:$I$425,Utslippsfaktorer!I$5,FALSE)))*$T18)+($U18*Utslippsfaktorer!I$141) -> 0 | BM18: 0 | BN18: 0 | BO18: 0 | BP18: 0 | BQ18: 0
B19: 12.12 | D19: Drift av rigg og midlertidige bygninger | F19: NOK | P19: Drift av rigg og midlertidige bygninger | R19: 0 | V19: =IF(P19="","",VLOOKUP(P19,Utslippsfaktorer!$C$9:$AL$391,Utslippsfaktorer!$AL$5,FALSE)) -> RS - Rigg og drift | AH19: =$N19*Utslippsfaktorer!E$147 -> 0 | AI19: =$N19*Utslippsfaktorer!F$147 -> 0 | AJ19: =$N19*Utslippsfaktorer!G$147 -> 0 | AK19: =$N19*Utslippsfaktorer!H$147 -> 0 | AL19: =$N19*Utslippsfaktorer!I$147 -> 0 | AM19: =((IF($P19="",0,VLOOKUP($P19,Utslippsfaktorer!$C$9:$I$425,Utslippsfaktorer!E$5,FALSE)))*$R19)+($S19*Utslippsfaktorer!E$141) -> 0 | AN19: =((IF($P19="",0,VLOOKUP($P19,Utslippsfaktorer!$C$9:$I$425,Utslippsfaktorer!F$5,FALSE)))*$R19)+($S19*Utslippsfaktorer!F$141) -> 0 | AO19: =((IF($P19="",0,VLOOKUP($P19,Utslippsfaktorer!$C$9:$I$425,Utslippsfaktorer!G$5,FALSE)))*$R19)+($S19*Utslippsfaktorer!G$141) -> 0 | AP19: =((IF($P19="",0,VLOOKUP($P19,Utslippsfaktorer!$C$9:$I$425,Utslippsfaktorer!H$5,FALSE)))*$R19)+($S19*Utslippsfaktorer!H$141) -> 0 | AQ19: =((IF($P19="",0,VLOOKUP($P19,Utslippsfaktorer!$C$9:$I$425,Utslippsfaktorer!I$5,FALSE)))*$R19)+($S19*Utslippsfaktorer!I$141) -> 0 | AR19: 0 | AS19: 0 | AT19: 0 | AU19: 0 | AV19: 0 | AX19: =$J19*Utslippsfaktorer!E$131 -> 0 | AY19: =$J19*Utslippsfaktorer!F$131 -> 0 | AZ19: =$J19*Utslippsfaktorer!G$131 -> 0 | BA19: =$J19*Utslippsfaktorer!H$131 -> 0 | BB19: =$J19*Utslippsfaktorer!I$131 -> 0 | BC19: =$O19*Utslippsfaktorer!E$148 -> 0 | BD19: =$O19*Utslippsfaktorer!F$148 -> 0 | BE19: =$O19*Utslippsfaktorer!G$148 -> 0 | BF19: =$O19*Utslippsfaktorer!H$148 -> 0 | BG19: =$O19*Utslippsfaktorer!I$148 -> 0 | BH19: =((IF($P19="",0,VLOOKUP($P19,Utslippsfaktorer!$C$9:$I$425,Utslippsfaktorer!E$5,FALSE)))*$T19)+($U19*Utslippsfaktorer!E$141) -> 0 | BI19: =((IF($P19="",0,VLOOKUP($P19,Utslippsfaktorer!$C$9:$I$425,Utslippsfaktorer!F$5,FALSE)))*$T19)+($U19*Utslippsfaktorer!F$141) -> 0 | BJ19: =((IF($P19="",0,VLOOKUP($P19,Utslippsfaktorer!$C$9:$I$425,Utslippsfaktorer!G$5,FALSE)))*$T19)+($U19*Utslippsfaktorer!G$141) -> 0 | BK19: =((IF($P19="",0,VLOOKUP($P19,Utslippsfaktorer!$C$9:$I$425,Utslippsfaktorer!H$5,FALSE)))*$T19)+($U19*Utslippsfaktorer!H$141) -> 0 | BL19: =((IF($P19="",0,VLOOKUP($P19,Utslippsfaktorer!$C$9:$I$425,Utslippsfaktorer!I$5,FALSE)))*$T19)+($U19*Utslippsfaktorer!I$141) -> 0 | BM19: 0 | BN19: 0 | BO19: 0 | BP19: 0 | BQ19: 0
B20: 12.13 | D20: Nedrigging | F20: NOK | P20: Nedrigging | R20: 0 | V20: =IF(P20="","",VLOOKUP(P20,Utslippsfaktorer!$C$9:$AL$391,Utslippsfaktorer!$AL$5,FALSE)) -> RS - Rigg og drift | AH20: =$N20*Utslippsfaktorer!E$147 -> 0 | AI20: =$N20*Utslippsfaktorer!F$147 -> 0 | AJ20: =$N20*Utslippsfaktorer!G$147 -> 0 | AK20: =$N20*Utslippsfaktorer!H$147 -> 0 | AL20: =$N20*Utslippsfaktorer!I$147 -> 0 | AM20: =((IF($P20="",0,VLOOKUP($P20,Utslippsfaktorer!$C$9:$I$425,Utslippsfaktorer!E$5,FALSE)))*$R20)+($S20*Utslippsfaktorer!E$141) -> 0 | AN20: =((IF($P20="",0,VLOOKUP($P20,Utslippsfaktorer!$C$9:$I$425,Utslippsfaktorer!F$5,FALSE)))*$R20)+($S20*Utslippsfaktorer!F$141) -> 0 | AO20: =((IF($P20="",0,VLOOKUP($P20,Utslippsfaktorer!$C$9:$I$425,Utslippsfaktorer!G$5,FALSE)))*$R20)+($S20*Utslippsfaktorer!G$141) -> 0 | AP20: =((IF($P20="",0,VLOOKUP($P20,Utslippsfaktorer!$C$9:$I$425,Utslippsfaktorer!H$5,FALSE)))*$R20)+($S20*Utslippsfaktorer!H$141) -> 0 | AQ20: =((IF($P20="",0,VLOOKUP($P20,Utslippsfaktorer!$C$9:$I$425,Utslippsfaktorer!I$5,FALSE)))*$R20)+($S20*Utslippsfaktorer!I$141) -> 0 | AR20: 0 | AS20: 0 | AT20: 0 | AU20: 0 | AV20: 0 | AX20: =$J20*Utslippsfaktorer!E$131 -> 0 | AY20: =$J20*Utslippsfaktorer!F$131 -> 0 | AZ20: =$J20*Utslippsfaktorer!G$131 -> 0 | BA20: =$J20*Utslippsfaktorer!H$131 -> 0 | BB20: =$J20*Utslippsfaktorer!I$131 -> 0 | BC20: =$O20*Utslippsfaktorer!E$148 -> 0 | BD20: =$O20*Utslippsfaktorer!F$148 -> 0 | BE20: =$O20*Utslippsfaktorer!G$148 -> 0 | BF20: =$O20*Utslippsfaktorer!H$148 -> 0 | BG20: =$O20*Utslippsfaktorer!I$148 -> 0 | BH20: =((IF($P20="",0,VLOOKUP($P20,Utslippsfaktorer!$C$9:$I$425,Utslippsfaktorer!E$5,FALSE)))*$T20)+($U20*Utslippsfaktorer!E$141) -> 0 | BI20: =((IF($P20="",0,VLOOKUP($P20,Utslippsfaktorer!$C$9:$I$425,Utslippsfaktorer!F$5,FALSE)))*$T20)+($U20*Utslippsfaktorer!F$141) -> 0 | BJ20: =((IF($P20="",0,VLOOKUP($P20,Utslippsfaktorer!$C$9:$I$425,Utslippsfaktorer!G$5,FALSE)))*$T20)+($U20*Utslippsfaktorer!G$141) -> 0 | BK20: =((IF($P20="",0,VLOOKUP($P20,Utslippsfaktorer!$C$9:$I$425,Utslippsfaktorer!H$5,FALSE)))*$T20)+($U20*Utslippsfaktorer!H$141) -> 0 | BL20: =((IF($P20="",0,VLOOKUP($P20,Utslippsfaktorer!$C$9:$I$425,Utslippsfaktorer!I$5,FALSE)))*$T20)+($U20*Utslippsfaktorer!I$141) -> 0 | BM20: 0 | BN20: 0 | BO20: 0 | BP20: 0 | BQ20: 0
B21: 12.2 | D21: Rigg for byggherren | F21: NOK | P21: Rigg for byggherren | R21: 0 | V21: =IF(P21="","",VLOOKUP(P21,Utslippsfaktorer!$C$9:$AL$391,Utslippsfaktorer!$AL$5,FALSE)) -> RS - Rigg og drift | AH21: =$N21*Utslippsfaktorer!E$147 -> 0 | AI21: =$N21*Utslippsfaktorer!F$147 -> 0 | AJ21: =$N21*Utslippsfaktorer!G$147 -> 0 | AK21: =$N21*Utslippsfaktorer!H$147 -> 0 | AL21: =$N21*Utslippsfaktorer!I$147 -> 0 | AM21: =((IF($P21="",0,VLOOKUP($P21,Utslippsfaktorer!$C$9:$I$425,Utslippsfaktorer!E$5,FALSE)))*$R21)+($S21*Utslippsfaktorer!E$141) -> 0 | AN21: =((IF($P21="",0,VLOOKUP($P21,Utslippsfaktorer!$C$9:$I$425,Utslippsfaktorer!F$5,FALSE)))*$R21)+($S21*Utslippsfaktorer!F$141) -> 0 | AO21: =((IF($P21="",0,VLOOKUP($P21,Utslippsfaktorer!$C$9:$I$425,Utslippsfaktorer!G$5,FALSE)))*$R21)+($S21*Utslippsfaktorer!G$141) -> 0 | AP21: =((IF($P21="",0,VLOOKUP($P21,Utslippsfaktorer!$C$9:$I$425,Utslippsfaktorer!H$5,FALSE)))*$R21)+($S21*Utslippsfaktorer!H$141) -> 0 | AQ21: =((IF($P21="",0,VLOOKUP($P21,Utslippsfaktorer!$C$9:$I$425,Utslippsfaktorer!I$5,FALSE)))*$R21)+($S21*Utslippsfaktorer!I$141) -> 0 | AR21: 0 | AS21: 0 | AT21: 0 | AU21: 0 | AV21: 0 | AX21: =$J21*Utslippsfaktorer!E$131 -> 0 | AY21: =$J21*Utslippsfaktorer!F$131 -> 0 | AZ21: =$J21*Utslippsfaktorer!G$131 -> 0 | BA21: =$J21*Utslippsfaktorer!H$131 -> 0 | BB21: =$J21*Utslippsfaktorer!I$131 -> 0 | BC21: =$O21*Utslippsfaktorer!E$148 -> 0 | BD21: =$O21*Utslippsfaktorer!F$148 -> 0 | BE21: =$O21*Utslippsfaktorer!G$148 -> 0 | BF21: =$O21*Utslippsfaktorer!H$148 -> 0 | BG21: =$O21*Utslippsfaktorer!I$148 -> 0 | BH21: =((IF($P21="",0,VLOOKUP($P21,Utslippsfaktorer!$C$9:$I$425,Utslippsfaktorer!E$5,FALSE)))*$T21)+($U21*Utslippsfaktorer!E$141) -> 0 | BI21: =((IF($P21="",0,VLOOKUP($P21,Utslippsfaktorer!$C$9:$I$425,Utslippsfaktorer!F$5,FALSE)))*$T21)+($U21*Utslippsfaktorer!F$141) -> 0 | BJ21: =((IF($P21="",0,VLOOKUP($P21,Utslippsfaktorer!$C$9:$I$425,Utslippsfaktorer!G$5,FALSE)))*$T21)+($U21*Utslippsfaktorer!G$141) -> 0 | BK21: =((IF($P21="",0,VLOOKUP($P21,Utslippsfaktorer!$C$9:$I$425,Utslippsfaktorer!H$5,FALSE)))*$T21)+($U21*Utslippsfaktorer!H$141) -> 0 | BL21: =((IF($P21="",0,VLOOKUP($P21,Utslippsfaktorer!$C$9:$I$425,Utslippsfaktorer!I$5,FALSE)))*$T21)+($U21*Utslippsfaktorer!I$141) -> 0 | BM21: 0 | BN21: 0 | BO21: 0 | BP21: 0 | BQ21: 0
B22: 12.21 | D22: Tilrigging av rigg for byggherren | F22: NOK | P22: Tilrigging av rigg for byggherren | R22: 0 | V22: =IF(P22="","",VLOOKUP(P22,Utslippsfaktorer!$C$9:$AL$391,Utslippsfaktorer!$AL$5,FALSE)) -> RS - Rigg og drift | AH22: =$N22*Utslippsfaktorer!E$147 -> 0 | AI22: =$N22*Utslippsfaktorer!F$147 -> 0 | AJ22: =$N22*Utslippsfaktorer!G$147 -> 0 | AK22: =$N22*Utslippsfaktorer!H$147 -> 0 | AL22: =$N22*Utslippsfaktorer!I$147 -> 0 | AM22: =((IF($P22="",0,VLOOKUP($P22,Utslippsfaktorer!$C$9:$I$425,Utslippsfaktorer!E$5,FALSE)))*$R22)+($S22*Utslippsfaktorer!E$141) -> 0 | AN22: =((IF($P22="",0,VLOOKUP($P22,Utslippsfaktorer!$C$9:$I$425,Utslippsfaktorer!F$5,FALSE)))*$R22)+($S22*Utslippsfaktorer!F$141) -> 0 | AO22: =((IF($P22="",0,VLOOKUP($P22,Utslippsfaktorer!$C$9:$I$425,Utslippsfaktorer!G$5,FALSE)))*$R22)+($S22*Utslippsfaktorer!G$141) -> 0 | AP22: =((IF($P22="",0,VLOOKUP($P22,Utslippsfaktorer!$C$9:$I$425,Utslippsfaktorer!H$5,FALSE)))*$R22)+($S22*Utslippsfaktorer!H$141) -> 0 | AQ22: =((IF($P22="",0,VLOOKUP($P22,Utslippsfaktorer!$C$9:$I$425,Utslippsfaktorer!I$5,FALSE)))*$R22)+($S22*Utslippsfaktorer!I$141) -> 0 | AR22: 0 | AS22: 0 | AT22: 0 | AU22: 0 | AV22: 0 | AX22: =$J22*Utslippsfaktorer!E$131 -> 0 | AY22: =$J22*Utslippsfaktorer!F$131 -> 0 | AZ22: =$J22*Utslippsfaktorer!G$131 -> 0 | BA22: =$J22*Utslippsfaktorer!H$131 -> 0 | BB22: =$J22*Utslippsfaktorer!I$131 -> 0 | BC22: =$O22*Utslippsfaktorer!E$148 -> 0 | BD22: =$O22*Utslippsfaktorer!F$148 -> 0 | BE22: =$O22*Utslippsfaktorer!G$148 -> 0 | BF22: =$O22*Utslippsfaktorer!H$148 -> 0 | BG22: =$O22*Utslippsfaktorer!I$148 -> 0 | BH22: =((IF($P22="",0,VLOOKUP($P22,Utslippsfaktorer!$C$9:$I$425,Utslippsfaktorer!E$5,FALSE)))*$T22)+($U22*Utslippsfaktorer!E$141) -> 0 | BI22: =((IF($P22="",0,VLOOKUP($P22,Utslippsfaktorer!$C$9:$I$425,Utslippsfaktorer!F$5,FALSE)))*$T22)+($U22*Utslippsfaktorer!F$141) -> 0 | BJ22: =((IF($P22="",0,VLOOKUP($P22,Utslippsfaktorer!$C$9:$I$425,Utslippsfaktorer!G$5,FALSE)))*$T22)+($U22*Utslippsfaktorer!G$141) -> 0 | BK22: =((IF($P22="",0,VLOOKUP($P22,Utslippsfaktorer!$C$9:$I$425,Utslippsfaktorer!H$5,FALSE)))*$T22)+($U22*Utslippsfaktorer!H$141) -> 0 | BL22: =((IF($P22="",0,VLOOKUP($P22,Utslippsfaktorer!$C$9:$I$425,Utslippsfaktorer!I$5,FALSE)))*$T22)+($U22*Utslippsfaktorer!I$141) -> 0 | BM22: 0 | BN22: 0 | BO22: 0 | BP22: 0 | BQ22: 0
B23: 12.22 | D23: Drift av rigg for byggherren | F23: NOK | P23: Drift av rigg for byggherren | R23: 0 | V23: =IF(P23="","",VLOOKUP(P23,Utslippsfaktorer!$C$9:$AL$391,Utslippsfaktorer!$AL$5,FALSE)) -> RS - Rigg og drift | AH23: =$N23*Utslippsfaktorer!E$147 -> 0 | AI23: =$N23*Utslippsfaktorer!F$147 -> 0 | AJ23: =$N23*Utslippsfaktorer!G$147 -> 0 | AK23: =$N23*Utslippsfaktorer!H$147 -> 0 | AL23: =$N23*Utslippsfaktorer!I$147 -> 0 | AM23: =((IF($P23="",0,VLOOKUP($P23,Utslippsfaktorer!$C$9:$I$425,Utslippsfaktorer!E$5,FALSE)))*$R23)+($S23*Utslippsfaktorer!E$141) -> 0 | AN23: =((IF($P23="",0,VLOOKUP($P23,Utslippsfaktorer!$C$9:$I$425,Utslippsfaktorer!F$5,FALSE)))*$R23)+($S23*Utslippsfaktorer!F$141) -> 0 | AO23: =((IF($P23="",0,VLOOKUP($P23,Utslippsfaktorer!$C$9:$I$425,Utslippsfaktorer!G$5,FALSE)))*$R23)+($S23*Utslippsfaktorer!G$141) -> 0 | AP23: =((IF($P23="",0,VLOOKUP($P23,Utslippsfaktorer!$C$9:$I$425,Utslippsfaktorer!H$5,FALSE)))*$R23)+($S23*Utslippsfaktorer!H$141) -> 0 | AQ23: =((IF($P23="",0,VLOOKUP($P23,Utslippsfaktorer!$C$9:$I$425,Utslippsfaktorer!I$5,FALSE)))*$R23)+($S23*Utslippsfaktorer!I$141) -> 0 | AR23: 0 | AS23: 0 | AT23: 0 | AU23: 0 | AV23: 0 | AX23: =$J23*Utslippsfaktorer!E$131 -> 0 | AY23: =$J23*Utslippsfaktorer!F$131 -> 0 | AZ23: =$J23*Utslippsfaktorer!G$131 -> 0 | BA23: =$J23*Utslippsfaktorer!H$131 -> 0 | BB23: =$J23*Utslippsfaktorer!I$131 -> 0 | BC23: =$O23*Utslippsfaktorer!E$148 -> 0 | BD23: =$O23*Utslippsfaktorer!F$148 -> 0 | BE23: =$O23*Utslippsfaktorer!G$148 -> 0 | BF23: =$O23*Utslippsfaktorer!H$148 -> 0 | BG23: =$O23*Utslippsfaktorer!I$148 -> 0 | BH23: =((IF($P23="",0,VLOOKUP($P23,Utslippsfaktorer!$C$9:$I$425,Utslippsfaktorer!E$5,FALSE)))*$T23)+($U23*Utslippsfaktorer!E$141) -> 0 | BI23: =((IF($P23="",0,VLOOKUP($P23,Utslippsfaktorer!$C$9:$I$425,Utslippsfaktorer!F$5,FALSE)))*$T23)+($U23*Utslippsfaktorer!F$141) -> 0 | BJ23: =((IF($P23="",0,VLOOKUP($P23,Utslippsfaktorer!$C$9:$I$425,Utslippsfaktorer!G$5,FALSE)))*$T23)+($U23*Utslippsfaktorer!G$141) -> 0 | BK23: =((IF($P23="",0,VLOOKUP($P23,Utslippsfaktorer!$C$9:$I$425,Utslippsfaktorer!H$5,FALSE)))*$T23)+($U23*Utslippsfaktorer!H$141) -> 0 | BL23: =((IF($P23="",0,VLOOKUP($P23,Utslippsfaktorer!$C$9:$I$425,Utslippsfaktorer!I$5,FALSE)))*$T23)+($U23*Utslippsfaktorer!I$141) -> 0 | BM23: 0 | BN23: 0 | BO23: 0 | BP23: 0 | BQ23: 0
B24: 12.23 | D24: Nedrigging av rigg for byggherren | F24: NOK | P24: Nedrigging av rigg for byggherren | R24: 0 | V24: =IF(P24="","",VLOOKUP(P24,Utslippsfaktorer!$C$9:$AL$391,Utslippsfaktorer!$AL$5,FALSE)) -> RS - Rigg og drift | AH24: =$N24*Utslippsfaktorer!E$147 -> 0 | AI24: =$N24*Utslippsfaktorer!F$147 -> 0 | AJ24: =$N24*Utslippsfaktorer!G$147 -> 0 | AK24: =$N24*Utslippsfaktorer!H$147 -> 0 | AL24: =$N24*Utslippsfaktorer!I$147 -> 0 | AM24: =((IF($P24="",0,VLOOKUP($P24,Utslippsfaktorer!$C$9:$I$425,Utslippsfaktorer!E$5,FALSE)))*$R24)+($S24*Utslippsfaktorer!E$141) -> 0 | AN24: =((IF($P24="",0,VLOOKUP($P24,Utslippsfaktorer!$C$9:$I$425,Utslippsfaktorer!F$5,FALSE)))*$R24)+($S24*Utslippsfaktorer!F$141) -> 0 | AO24: =((IF($P24="",0,VLOOKUP($P24,Utslippsfaktorer!$C$9:$I$425,Utslippsfaktorer!G$5,FALSE)))*$R24)+($S24*Utslippsfaktorer!G$141) -> 0 | AP24: =((IF($P24="",0,VLOOKUP($P24,Utslippsfaktorer!$C$9:$I$425,Utslippsfaktorer!H$5,FALSE)))*$R24)+($S24*Utslippsfaktorer!H$141) -> 0 | AQ24: =((IF($P24="",0,VLOOKUP($P24,Utslippsfaktorer!$C$9:$I$425,Utslippsfaktorer!I$5,FALSE)))*$R24)+($S24*Utslippsfaktorer!I$141) -> 0 | AR24: 0 | AS24: 0 | AT24: 0 | AU24: 0 | AV24: 0 | AX24: =$J24*Utslippsfaktorer!E$131 -> 0 | AY24: =$J24*Utslippsfaktorer!F$131 -> 0 | AZ24: =$J24*Utslippsfaktorer!G$131 -> 0 | BA24: =$J24*Utslippsfaktorer!H$131 -> 0 | BB24: =$J24*Utslippsfaktorer!I$131 -> 0 | BC24: =$O24*Utslippsfaktorer!E$148 -> 0 | BD24: =$O24*Utslippsfaktorer!F$148 -> 0 | BE24: =$O24*Utslippsfaktorer!G$148 -> 0 | BF24: =$O24*Utslippsfaktorer!H$148 -> 0 | BG24: =$O24*Utslippsfaktorer!I$148 -> 0 | BH24: =((IF($P24="",0,VLOOKUP($P24,Utslippsfaktorer!$C$9:$I$425,Utslippsfaktorer!E$5,FALSE)))*$T24)+($U24*Utslippsfaktorer!E$141) -> 0 | BI24: =((IF($P24="",0,VLOOKUP($P24,Utslippsfaktorer!$C$9:$I$425,Utslippsfaktorer!F$5,FALSE)))*$T24)+($U24*Utslippsfaktorer!F$141) -> 0 | BJ24: =((IF($P24="",0,VLOOKUP($P24,Utslippsfaktorer!$C$9:$I$425,Utslippsfaktorer!G$5,FALSE)))*$T24)+($U24*Utslippsfaktorer!G$141) -> 0 | BK24: =((IF($P24="",0,VLOOKUP($P24,Utslippsfaktorer!$C$9:$I$425,Utslippsfaktorer!H$5,FALSE)))*$T24)+($U24*Utslippsfaktorer!H$141) -> 0 | BL24: =((IF($P24="",0,VLOOKUP($P24,Utslippsfaktorer!$C$9:$I$425,Utslippsfaktorer!I$5,FALSE)))*$T24)+($U24*Utslippsfaktorer!I$141) -> 0 | BM24: 0 | BN24: 0 | BO24: 0 | BP24: 0 | BQ24: 0
B25: 12.4 | D25: Vinterkostnader anlegg | F25: NOK | P25: Vinterkostnader anlegg | R25: 0 | V25: =IF(P25="","",VLOOKUP(P25,Utslippsfaktorer!$C$9:$AL$391,Utslippsfaktorer!$AL$5,FALSE)) -> RS - Rigg og drift | AH25: =$N25*Utslippsfaktorer!E$147 -> 0 | AI25: =$N25*Utslippsfaktorer!F$147 -> 0 | AJ25: =$N25*Utslippsfaktorer!G$147 -> 0 | AK25: =$N25*Utslippsfaktorer!H$147 -> 0 | AL25: =$N25*Utslippsfaktorer!I$147 -> 0 | AM25: =((IF($P25="",0,VLOOKUP($P25,Utslippsfaktorer!$C$9:$I$425,Utslippsfaktorer!E$5,FALSE)))*$R25)+($S25*Utslippsfaktorer!E$141) -> 0 | AN25: =((IF($P25="",0,VLOOKUP($P25,Utslippsfaktorer!$C$9:$I$425,Utslippsfaktorer!F$5,FALSE)))*$R25)+($S25*Utslippsfaktorer!F$141) -> 0 | AO25: =((IF($P25="",0,VLOOKUP($P25,Utslippsfaktorer!$C$9:$I$425,Utslippsfaktorer!G$5,FALSE)))*$R25)+($S25*Utslippsfaktorer!G$141) -> 0 | AP25: =((IF($P25="",0,VLOOKUP($P25,Utslippsfaktorer!$C$9:$I$425,Utslippsfaktorer!H$5,FALSE)))*$R25)+($S25*Utslippsfaktorer!H$141) -> 0 | AQ25: =((IF($P25="",0,VLOOKUP($P25,Utslippsfaktorer!$C$9:$I$425,Utslippsfaktorer!I$5,FALSE)))*$R25)+($S25*Utslippsfaktorer!I$141) -> 0 | AR25: 0 | AS25: 0 | AT25: 0 | AU25: 0 | AV25: 0 | BC25: =$O25*Utslippsfaktorer!E$148 -> 0 | BD25: =$O25*Utslippsfaktorer!F$148 -> 0 | BE25: =$O25*Utslippsfaktorer!G$148 -> 0 | BF25: =$O25*Utslippsfaktorer!H$148 -> 0 | BG25: =$O25*Utslippsfaktorer!I$148 -> 0 | BH25: =((IF($P25="",0,VLOOKUP($P25,Utslippsfaktorer!$C$9:$I$425,Utslippsfaktorer!E$5,FALSE)))*$T25)+($U25*Utslippsfaktorer!E$141) -> 0 | BI25: =((IF($P25="",0,VLOOKUP($P25,Utslippsfaktorer!$C$9:$I$425,Utslippsfaktorer!F$5,FALSE)))*$T25)+($U25*Utslippsfaktorer!F$141) -> 0 | BJ25: =((IF($P25="",0,VLOOKUP($P25,Utslippsfaktorer!$C$9:$I$425,Utslippsfaktorer!G$5,FALSE)))*$T25)+($U25*Utslippsfaktorer!G$141) -> 0 | BK25: =((IF($P25="",0,VLOOKUP($P25,Utslippsfaktorer!$C$9:$I$425,Utslippsfaktorer!H$5,FALSE)))*$T25)+($U25*Utslippsfaktorer!H$141) -> 0 | BL25: =((IF($P25="",0,VLOOKUP($P25,Utslippsfaktorer!$C$9:$I$425,Utslippsfaktorer!I$5,FALSE)))*$T25)+($U25*Utslippsfaktorer!I$141) -> 0 | BM25: 0 | BN25: 0 | BO25: 0 | BP25: 0 | BQ25: 0
B26: 12.5 | D26: Miljøtiltak i byggefasen | F26: NOK | P26: Miljøtiltak i byggefasen | R26: 0 | V26: =IF(P26="","",VLOOKUP(P26,Utslippsfaktorer!$C$9:$AL$391,Utslippsfaktorer!$AL$5,FALSE)) -> RS - Rigg og drift | AH26: =$N26*Utslippsfaktorer!E$147 -> 0 | AI26: =$N26*Utslippsfaktorer!F$147 -> 0 | AJ26: =$N26*Utslippsfaktorer!G$147 -> 0 | AK26: =$N26*Utslippsfaktorer!H$147 -> 0 | AL26: =$N26*Utslippsfaktorer!I$147 -> 0 | AM26: =((IF($P26="",0,VLOOKUP($P26,Utslippsfaktorer!$C$9:$I$425,Utslippsfaktorer!E$5,FALSE)))*$R26)+($S26*Utslippsfaktorer!E$141) -> 0 | AN26: =((IF($P26="",0,VLOOKUP($P26,Utslippsfaktorer!$C$9:$I$425,Utslippsfaktorer!F$5,FALSE)))*$R26)+($S26*Utslippsfaktorer!F$141) -> 0 | AO26: =((IF($P26="",0,VLOOKUP($P26,Utslippsfaktorer!$C$9:$I$425,Utslippsfaktorer!G$5,FALSE)))*$R26)+($S26*Utslippsfaktorer!G$141) -> 0 | AP26: =((IF($P26="",0,VLOOKUP($P26,Utslippsfaktorer!$C$9:$I$425,Utslippsfaktorer!H$5,FALSE)))*$R26)+($S26*Utslippsfaktorer!H$141) -> 0 | AQ26: =((IF($P26="",0,VLOOKUP($P26,Utslippsfaktorer!$C$9:$I$425,Utslippsfaktorer!I$5,FALSE)))*$R26)+($S26*Utslippsfaktorer!I$141) -> 0 | AR26: 0 | AS26: 0 | AT26: 0 | AU26: 0 | AV26: 0 | BC26: =$O26*Utslippsfaktorer!E$148 -> 0 | BD26: =$O26*Utslippsfaktorer!F$148 -> 0 | BE26: =$O26*Utslippsfaktorer!G$148 -> 0 | BF26: =$O26*Utslippsfaktorer!H$148 -> 0 | BG26: =$O26*Utslippsfaktorer!I$148 -> 0 | BH26: =((IF($P26="",0,VLOOKUP($P26,Utslippsfaktorer!$C$9:$I$425,Utslippsfaktorer!E$5,FALSE)))*$T26)+($U26*Utslippsfaktorer!E$141) -> 0 | BI26: =((IF($P26="",0,VLOOKUP($P26,Utslippsfaktorer!$C$9:$I$425,Utslippsfaktorer!F$5,FALSE)))*$T26)+($U26*Utslippsfaktorer!F$141) -> 0 | BJ26: =((IF($P26="",0,VLOOKUP($P26,Utslippsfaktorer!$C$9:$I$425,Utslippsfaktorer!G$5,FALSE)))*$T26)+($U26*Utslippsfaktorer!G$141) -> 0 | BK26: =((IF($P26="",0,VLOOKUP($P26,Utslippsfaktorer!$C$9:$I$425,Utslippsfaktorer!H$5,FALSE)))*$T26)+($U26*Utslippsfaktorer!H$141) -> 0 | BL26: =((IF($P26="",0,VLOOKUP($P26,Utslippsfaktorer!$C$9:$I$425,Utslippsfaktorer!I$5,FALSE)))*$T26)+($U26*Utslippsfaktorer!I$141) -> 0 | BM26: 0 | BN26: 0 | BO26: 0 | BP26: 0 | BQ26: 0
B27: 12.51 | D27: Vannutslipp | F27: NOK | P27: Vannutslipp | R27: 0 | V27: =IF(P27="","",VLOOKUP(P27,Utslippsfaktorer!$C$9:$AL$391,Utslippsfaktorer!$AL$5,FALSE)) -> RS - Rigg og drift | AH27: =$N27*Utslippsfaktorer!E$147 -> 0 | AI27: =$N27*Utslippsfaktorer!F$147 -> 0 | AJ27: =$N27*Utslippsfaktorer!G$147 -> 0 | AK27: =$N27*Utslippsfaktorer!H$147 -> 0 | AL27: =$N27*Utslippsfaktorer!I$147 -> 0 | AM27: =((IF($P27="",0,VLOOKUP($P27,Utslippsfaktorer!$C$9:$I$425,Utslippsfaktorer!E$5,FALSE)))*$R27)+($S27*Utslippsfaktorer!E$141) -> 0 | AN27: =((IF($P27="",0,VLOOKUP($P27,Utslippsfaktorer!$C$9:$I$425,Utslippsfaktorer!F$5,FALSE)))*$R27)+($S27*Utslippsfaktorer!F$141) -> 0 | AO27: =((IF($P27="",0,VLOOKUP($P27,Utslippsfaktorer!$C$9:$I$425,Utslippsfaktorer!G$5,FALSE)))*$R27)+($S27*Utslippsfaktorer!G$141) -> 0 | AP27: =((IF($P27="",0,VLOOKUP($P27,Utslippsfaktorer!$C$9:$I$425,Utslippsfaktorer!H$5,FALSE)))*$R27)+($S27*Utslippsfaktorer!H$141) -> 0 | AQ27: =((IF($P27="",0,VLOOKUP($P27,Utslippsfaktorer!$C$9:$I$425,Utslippsfaktorer!I$5,FALSE)))*$R27)+($S27*Utslippsfaktorer!I$141) -> 0 | AR27: 0 | AS27: 0 | AT27: 0 | AU27: 0 | AV27: 0 | BC27: =$O27*Utslippsfaktorer!E$148 -> 0 | BD27: =$O27*Utslippsfaktorer!F$148 -> 0 | BE27: =$O27*Utslippsfaktorer!G$148 -> 0 | BF27: =$O27*Utslippsfaktorer!H$148 -> 0 | BG27: =$O27*Utslippsfaktorer!I$148 -> 0 | BH27: =((IF($P27="",0,VLOOKUP($P27,Utslippsfaktorer!$C$9:$I$425,Utslippsfaktorer!E$5,FALSE)))*$T27)+($U27*Utslippsfaktorer!E$141) -> 0 | BI27: =((IF($P27="",0,VLOOKUP($P27,Utslippsfaktorer!$C$9:$I$425,Utslippsfaktorer!F$5,FALSE)))*$T27)+($U27*Utslippsfaktorer!F$141) -> 0 | BJ27: =((IF($P27="",0,VLOOKUP($P27,Utslippsfaktorer!$C$9:$I$425,Utslippsfaktorer!G$5,FALSE)))*$T27)+($U27*Utslippsfaktorer!G$141) -> 0 | BK27: =((IF($P27="",0,VLOOKUP($P27,Utslippsfaktorer!$C$9:$I$425,Utslippsfaktorer!H$5,FALSE)))*$T27)+($U27*Utslippsfaktorer!H$141) -> 0 | BL27: =((IF($P27="",0,VLOOKUP($P27,Utslippsfaktorer!$C$9:$I$425,Utslippsfaktorer!I$5,FALSE)))*$T27)+($U27*Utslippsfaktorer!I$141) -> 0 | BM27: 0 | BN27: 0 | BO27: 0 | BP27: 0 | BQ27: 0
B28: 12.511 | D28: Renseanlegg | F28: NOK | P28: Renseanlegg | R28: 0 | V28: =IF(P28="","",VLOOKUP(P28,Utslippsfaktorer!$C$9:$AL$391,Utslippsfaktorer!$AL$5,FALSE)) -> RS - Rigg og drift | AH28: =$N28*Utslippsfaktorer!E$147 -> 0 | AI28: =$N28*Utslippsfaktorer!F$147 -> 0 | AJ28: =$N28*Utslippsfaktorer!G$147 -> 0 | AK28: =$N28*Utslippsfaktorer!H$147 -> 0 | AL28: =$N28*Utslippsfaktorer!I$147 -> 0 | AM28: =((IF($P28="",0,VLOOKUP($P28,Utslippsfaktorer!$C$9:$I$425,Utslippsfaktorer!E$5,FALSE)))*$R28)+($S28*Utslippsfaktorer!E$141) -> 0 | AN28: =((IF($P28="",0,VLOOKUP($P28,Utslippsfaktorer!$C$9:$I$425,Utslippsfaktorer!F$5,FALSE)))*$R28)+($S28*Utslippsfaktorer!F$141) -> 0 | AO28: =((IF($P28="",0,VLOOKUP($P28,Utslippsfaktorer!$C$9:$I$425,Utslippsfaktorer!G$5,FALSE)))*$R28)+($S28*Utslippsfaktorer!G$141) -> 0 | AP28: =((IF($P28="",0,VLOOKUP($P28,Utslippsfaktorer!$C$9:$I$425,Utslippsfaktorer!H$5,FALSE)))*$R28)+($S28*Utslippsfaktorer!H$141) -> 0 | AQ28: =((IF($P28="",0,VLOOKUP($P28,Utslippsfaktorer!$C$9:$I$425,Utslippsfaktorer!I$5,FALSE)))*$R28)+($S28*Utslippsfaktorer!I$141) -> 0 | AR28: 0 | AS28: 0 | AT28: 0 | AU28: 0 | AV28: 0 | BC28: =$O28*Utslippsfaktorer!E$148 -> 0 | BD28: =$O28*Utslippsfaktorer!F$148 -> 0 | BE28: =$O28*Utslippsfaktorer!G$148 -> 0 | BF28: =$O28*Utslippsfaktorer!H$148 -> 0 | BG28: =$O28*Utslippsfaktorer!I$148 -> 0 | BH28: =((IF($P28="",0,VLOOKUP($P28,Utslippsfaktorer!$C$9:$I$425,Utslippsfaktorer!E$5,FALSE)))*$T28)+($U28*Utslippsfaktorer!E$141) -> 0 | BI28: =((IF($P28="",0,VLOOKUP($P28,Utslippsfaktorer!$C$9:$I$425,Utslippsfaktorer!F$5,FALSE)))*$T28)+($U28*Utslippsfaktorer!F$141) -> 0 | BJ28: =((IF($P28="",0,VLOOKUP($P28,Utslippsfaktorer!$C$9:$I$425,Utslippsfaktorer!G$5,FALSE)))*$T28)+($U28*Utslippsfaktorer!G$141) -> 0 | BK28: =((IF($P28="",0,VLOOKUP($P28,Utslippsfaktorer!$C$9:$I$425,Utslippsfaktorer!H$5,FALSE)))*$T28)+($U28*Utslippsfaktorer!H$141) -> 0 | BL28: =((IF($P28="",0,VLOOKUP($P28,Utslippsfaktorer!$C$9:$I$425,Utslippsfaktorer!I$5,FALSE)))*$T28)+($U28*Utslippsfaktorer!I$141) -> 0 | BM28: 0 | BN28: 0 | BO28: 0 | BP28: 0 | BQ28: 0
B29: 12.512 | D29: Håndtering av vann fra verksted, vaskerigg og anleggsdrift | F29: NOK | P29: Håndtering av vann fra verksted, vaskerigg og anleggsdrift | R29: 0 | V29: =IF(P29="","",VLOOKUP(P29,Utslippsfaktorer!$C$9:$AL$391,Utslippsfaktorer!$AL$5,FALSE)) -> RS - Rigg og drift | AH29: =$N29*Utslippsfaktorer!E$147 -> 0 | AI29: =$N29*Utslippsfaktorer!F$147 -> 0 | AJ29: =$N29*Utslippsfaktorer!G$147 -> 0 | AK29: =$N29*Utslippsfaktorer!H$147 -> 0 | AL29: =$N29*Utslippsfaktorer!I$147 -> 0 | AM29: =((IF($P29="",0,VLOOKUP($P29,Utslippsfaktorer!$C$9:$I$425,Utslippsfaktorer!E$5,FALSE)))*$R29)+($S29*Utslippsfaktorer!E$141) -> 0 | AN29: =((IF($P29="",0,VLOOKUP($P29,Utslippsfaktorer!$C$9:$I$425,Utslippsfaktorer!F$5,FALSE)))*$R29)+($S29*Utslippsfaktorer!F$141) -> 0 | AO29: =((IF($P29="",0,VLOOKUP($P29,Utslippsfaktorer!$C$9:$I$425,Utslippsfaktorer!G$5,FALSE)))*$R29)+($S29*Utslippsfaktorer!G$141) -> 0 | AP29: =((IF($P29="",0,VLOOKUP($P29,Utslippsfaktorer!$C$9:$I$425,Utslippsfaktorer!H$5,FALSE)))*$R29)+($S29*Utslippsfaktorer!H$141) -> 0 | AQ29: =((IF($P29="",0,VLOOKUP($P29,Utslippsfaktorer!$C$9:$I$425,Utslippsfaktorer!I$5,FALSE)))*$R29)+($S29*Utslippsfaktorer!I$141) -> 0 | AR29: 0 | AS29: 0 | AT29: 0 | AU29: 0 | AV29: 0 | BC29: =$O29*Utslippsfaktorer!E$148 -> 0 | BD29: =$O29*Utslippsfaktorer!F$148 -> 0 | BE29: =$O29*Utslippsfaktorer!G$148 -> 0 | BF29: =$O29*Utslippsfaktorer!H$148 -> 0 | BG29: =$O29*Utslippsfaktorer!I$148 -> 0 | BH29: =((IF($P29="",0,VLOOKUP($P29,Utslippsfaktorer!$C$9:$I$425,Utslippsfaktorer!E$5,FALSE)))*$T29)+($U29*Utslippsfaktorer!E$141) -> 0 | BI29: =((IF($P29="",0,VLOOKUP($P29,Utslippsfaktorer!$C$9:$I$425,Utslippsfaktorer!F$5,FALSE)))*$T29)+($U29*Utslippsfaktorer!F$141) -> 0 | BJ29: =((IF($P29="",0,VLOOKUP($P29,Utslippsfaktorer!$C$9:$I$425,Utslippsfaktorer!G$5,FALSE)))*$T29)+($U29*Utslippsfaktorer!G$141) -> 0 | BK29: =((IF($P29="",0,VLOOKUP($P29,Utslippsfaktorer!$C$9:$I$425,Utslippsfaktorer!H$5,FALSE)))*$T29)+($U29*Utslippsfaktorer!H$141) -> 0 | BL29: =((IF($P29="",0,VLOOKUP($P29,Utslippsfaktorer!$C$9:$I$425,Utslippsfaktorer!I$5,FALSE)))*$T29)+($U29*Utslippsfaktorer!I$141) -> 0 | BM29: 0 | BN29: 0 | BO29: 0 | BP29: 0 | BQ29: 0
B30: 12.513 | D30: Siltgardin/siltskjørt | F30: NOK | P30: Siltgardin/siltskjørt | R30: 0 | V30: =IF(P30="","",VLOOKUP(P30,Utslippsfaktorer!$C$9:$AL$391,Utslippsfaktorer!$AL$5,FALSE)) -> RS - Rigg og drift | AH30: =$N30*Utslippsfaktorer!E$147 -> 0 | AI30: =$N30*Utslippsfaktorer!F$147 -> 0 | AJ30: =$N30*Utslippsfaktorer!G$147 -> 0 | AK30: =$N30*Utslippsfaktorer!H$147 -> 0 | AL30: =$N30*Utslippsfaktorer!I$147 -> 0 | AM30: =((IF($P30="",0,VLOOKUP($P30,Utslippsfaktorer!$C$9:$I$425,Utslippsfaktorer!E$5,FALSE)))*$R30)+($S30*Utslippsfaktorer!E$141) -> 0 | AN30: =((IF($P30="",0,VLOOKUP($P30,Utslippsfaktorer!$C$9:$I$425,Utslippsfaktorer!F$5,FALSE)))*$R30)+($S30*Utslippsfaktorer!F$141) -> 0 | AO30: =((IF($P30="",0,VLOOKUP($P30,Utslippsfaktorer!$C$9:$I$425,Utslippsfaktorer!G$5,FALSE)))*$R30)+($S30*Utslippsfaktorer!G$141) -> 0 | AP30: =((IF($P30="",0,VLOOKUP($P30,Utslippsfaktorer!$C$9:$I$425,Utslippsfaktorer!H$5,FALSE)))*$R30)+($S30*Utslippsfaktorer!H$141) -> 0 | AQ30: =((IF($P30="",0,VLOOKUP($P30,Utslippsfaktorer!$C$9:$I$425,Utslippsfaktorer!I$5,FALSE)))*$R30)+($S30*Utslippsfaktorer!I$141) -> 0 | AR30: 0 | AS30: 0 | AT30: 0 | AU30: 0 | AV30: 0 | BC30: =$O30*Utslippsfaktorer!E$148 -> 0 | BD30: =$O30*Utslippsfaktorer!F$148 -> 0 | BE30: =$O30*Utslippsfaktorer!G$148 -> 0 | BF30: =$O30*Utslippsfaktorer!H$148 -> 0 | BG30: =$O30*Utslippsfaktorer!I$148 -> 0 | BH30: =((IF($P30="",0,VLOOKUP($P30,Utslippsfaktorer!$C$9:$I$425,Utslippsfaktorer!E$5,FALSE)))*$T30)+($U30*Utslippsfaktorer!E$141) -> 0 | BI30: =((IF($P30="",0,VLOOKUP($P30,Utslippsfaktorer!$C$9:$I$425,Utslippsfaktorer!F$5,FALSE)))*$T30)+($U30*Utslippsfaktorer!F$141) -> 0 | BJ30: =((IF($P30="",0,VLOOKUP($P30,Utslippsfaktorer!$C$9:$I$425,Utslippsfaktorer!G$5,FALSE)))*$T30)+($U30*Utslippsfaktorer!G$141) -> 0 | BK30: =((IF($P30="",0,VLOOKUP($P30,Utslippsfaktorer!$C$9:$I$425,Utslippsfaktorer!H$5,FALSE)))*$T30)+($U30*Utslippsfaktorer!H$141) -> 0 | BL30: =((IF($P30="",0,VLOOKUP($P30,Utslippsfaktorer!$C$9:$I$425,Utslippsfaktorer!I$5,FALSE)))*$T30)+($U30*Utslippsfaktorer!I$141) -> 0 | BM30: 0 | BN30: 0 | BO30: 0 | BP30: 0 | BQ30: 0
B31: 12.52 | D31: Støy og rystelser | F31: NOK | P31: Støy og rystelser | R31: 0 | V31: =IF(P31="","",VLOOKUP(P31,Utslippsfaktorer!$C$9:$AL$391,Utslippsfaktorer!$AL$5,FALSE)) -> RS - Rigg og drift | AH31: =$N31*Utslippsfaktorer!E$147 -> 0 | AI31: =$N31*Utslippsfaktorer!F$147 -> 0 | AJ31: =$N31*Utslippsfaktorer!G$147 -> 0 | AK31: =$N31*Utslippsfaktorer!H$147 -> 0 | AL31: =$N31*Utslippsfaktorer!I$147 -> 0 | AM31: =((IF($P31="",0,VLOOKUP($P31,Utslippsfaktorer!$C$9:$I$425,Utslippsfaktorer!E$5,FALSE)))*$R31)+($S31*Utslippsfaktorer!E$141) -> 0 | AN31: =((IF($P31="",0,VLOOKUP($P31,Utslippsfaktorer!$C$9:$I$425,Utslippsfaktorer!F$5,FALSE)))*$R31)+($S31*Utslippsfaktorer!F$141) -> 0 | AO31: =((IF($P31="",0,VLOOKUP($P31,Utslippsfaktorer!$C$9:$I$425,Utslippsfaktorer!G$5,FALSE)))*$R31)+($S31*Utslippsfaktorer!G$141) -> 0 | AP31: =((IF($P31="",0,VLOOKUP($P31,Utslippsfaktorer!$C$9:$I$425,Utslippsfaktorer!H$5,FALSE)))*$R31)+($S31*Utslippsfaktorer!H$141) -> 0 | AQ31: =((IF($P31="",0,VLOOKUP($P31,Utslippsfaktorer!$C$9:$I$425,Utslippsfaktorer!I$5,FALSE)))*$R31)+($S31*Utslippsfaktorer!I$141) -> 0 | AR31: 0 | AS31: 0 | AT31: 0 | AU31: 0 | AV31: 0 | BC31: =$O31*Utslippsfaktorer!E$148 -> 0 | BD31: =$O31*Utslippsfaktorer!F$148 -> 0 | BE31: =$O31*Utslippsfaktorer!G$148 -> 0 | BF31: =$O31*Utslippsfaktorer!H$148 -> 0 | BG31: =$O31*Utslippsfaktorer!I$148 -> 0 | BH31: =((IF($P31="",0,VLOOKUP($P31,Utslippsfaktorer!$C$9:$I$425,Utslippsfaktorer!E$5,FALSE)))*$T31)+($U31*Utslippsfaktorer!E$141) -> 0 | BI31: =((IF($P31="",0,VLOOKUP($P31,Utslippsfaktorer!$C$9:$I$425,Utslippsfaktorer!F$5,FALSE)))*$T31)+($U31*Utslippsfaktorer!F$141) -> 0 | BJ31: =((IF($P31="",0,VLOOKUP($P31,Utslippsfaktorer!$C$9:$I$425,Utslippsfaktorer!G$5,FALSE)))*$T31)+($U31*Utslippsfaktorer!G$141) -> 0 | BK31: =((IF($P31="",0,VLOOKUP($P31,Utslippsfaktorer!$C$9:$I$425,Utslippsfaktorer!H$5,FALSE)))*$T31)+($U31*Utslippsfaktorer!H$141) -> 0 | BL31: =((IF($P31="",0,VLOOKUP($P31,Utslippsfaktorer!$C$9:$I$425,Utslippsfaktorer!I$5,FALSE)))*$T31)+($U31*Utslippsfaktorer!I$141) -> 0 | BM31: 0 | BN31: 0 | BO31: 0 | BP31: 0 | BQ31: 0
B32: 12.53 | D32: Sikring av eksisterende vegetasjon, bekker, elver, vann, fornminner, dyr, mv. | F32: NOK | P32: Sikring av eksisterende vegetasjon, bekker, elver, vann, fornminner, dyr, mv. | R32: 0 | V32: =IF(P32="","",VLOOKUP(P32,Utslippsfaktorer!$C$9:$AL$391,Utslippsfaktorer!$AL$5,FALSE)) -> RS - Rigg og drift | AH32: =$N32*Utslippsfaktorer!E$147 -> 0 | AI32: =$N32*Utslippsfaktorer!F$147 -> 0 | AJ32: =$N32*Utslippsfaktorer!G$147 -> 0 | AK32: =$N32*Utslippsfaktorer!H$147 -> 0 | AL32: =$N32*Utslippsfaktorer!I$147 -> 0 | AM32: =((IF($P32="",0,VLOOKUP($P32,Utslippsfaktorer!$C$9:$I$425,Utslippsfaktorer!E$5,FALSE)))*$R32)+($S32*Utslippsfaktorer!E$141) -> 0 | AN32: =((IF($P32="",0,VLOOKUP($P32,Utslippsfaktorer!$C$9:$I$425,Utslippsfaktorer!F$5,FALSE)))*$R32)+($S32*Utslippsfaktorer!F$141) -> 0 | AO32: =((IF($P32="",0,VLOOKUP($P32,Utslippsfaktorer!$C$9:$I$425,Utslippsfaktorer!G$5,FALSE)))*$R32)+($S32*Utslippsfaktorer!G$141) -> 0 | AP32: =((IF($P32="",0,VLOOKUP($P32,Utslippsfaktorer!$C$9:$I$425,Utslippsfaktorer!H$5,FALSE)))*$R32)+($S32*Utslippsfaktorer!H$141) -> 0 | AQ32: =((IF($P32="",0,VLOOKUP($P32,Utslippsfaktorer!$C$9:$I$425,Utslippsfaktorer!I$5,FALSE)))*$R32)+($S32*Utslippsfaktorer!I$141) -> 0 | AR32: 0 | AS32: 0 | AT32: 0 | AU32: 0 | AV32: 0 | BC32: =$O32*Utslippsfaktorer!E$148 -> 0 | BD32: =$O32*Utslippsfaktorer!F$148 -> 0 | BE32: =$O32*Utslippsfaktorer!G$148 -> 0 | BF32: =$O32*Utslippsfaktorer!H$148 -> 0 | BG32: =$O32*Utslippsfaktorer!I$148 -> 0 | BH32: =((IF($P32="",0,VLOOKUP($P32,Utslippsfaktorer!$C$9:$I$425,Utslippsfaktorer!E$5,FALSE)))*$T32)+($U32*Utslippsfaktorer!E$141) -> 0 | BI32: =((IF($P32="",0,VLOOKUP($P32,Utslippsfaktorer!$C$9:$I$425,Utslippsfaktorer!F$5,FALSE)))*$T32)+($U32*Utslippsfaktorer!F$141) -> 0 | BJ32: =((IF($P32="",0,VLOOKUP($P32,Utslippsfaktorer!$C$9:$I$425,Utslippsfaktorer!G$5,FALSE)))*$T32)+($U32*Utslippsfaktorer!G$141) -> 0 | BK32: =((IF($P32="",0,VLOOKUP($P32,Utslippsfaktorer!$C$9:$I$425,Utslippsfaktorer!H$5,FALSE)))*$T32)+($U32*Utslippsfaktorer!H$141) -> 0 | BL32: =((IF($P32="",0,VLOOKUP($P32,Utslippsfaktorer!$C$9:$I$425,Utslippsfaktorer!I$5,FALSE)))*$T32)+($U32*Utslippsfaktorer!I$141) -> 0 | BM32: 0 | BN32: 0 | BO32: 0 | BP32: 0 | BQ32: 0
B34: 13: ANLEGGSVEGER
B35: 13.1 | D35: Provisoriske anleggsveger | F35: NOK | P35: =D35 -> Provisoriske anleggsveger | R35: =E35 -> 0 | V35: =IF(P35="","",VLOOKUP(P35,Utslippsfaktorer!$C$9:$AL$391,Utslippsfaktorer!$AL$5,FALSE)) -> RS - Provisoriske anleggsveger, bruer og kaier | AH35: =$N35*Utslippsfaktorer!E$147 -> 0 | AI35: =$N35*Utslippsfaktorer!F$147 -> 0 | AJ35: =$N35*Utslippsfaktorer!G$147 -> 0 | AK35: =$N35*Utslippsfaktorer!H$147 -> 0 | AL35: =$N35*Utslippsfaktorer!I$147 -> 0 | AM35: =((IF($P35="",0,VLOOKUP($P35,Utslippsfaktorer!$C$9:$I$425,Utslippsfaktorer!E$5,FALSE)))*$R35)+($S35*Utslippsfaktorer!E$141) -> 0 | AN35: =((IF($P35="",0,VLOOKUP($P35,Utslippsfaktorer!$C$9:$I$425,Utslippsfaktorer!F$5,FALSE)))*$R35)+($S35*Utslippsfaktorer!F$141) -> 0 | AO35: =((IF($P35="",0,VLOOKUP($P35,Utslippsfaktorer!$C$9:$I$425,Utslippsfaktorer!G$5,FALSE)))*$R35)+($S35*Utslippsfaktorer!G$141) -> 0 | AP35: =((IF($P35="",0,VLOOKUP($P35,Utslippsfaktorer!$C$9:$I$425,Utslippsfaktorer!H$5,FALSE)))*$R35)+($S35*Utslippsfaktorer!H$141) -> 0 | AQ35: =((IF($P35="",0,VLOOKUP($P35,Utslippsfaktorer!$C$9:$I$425,Utslippsfaktorer!I$5,FALSE)))*$R35)+($S35*Utslippsfaktorer!I$141) -> 0 | AR35: 0 | AS35: 0 | AT35: 0 | AU35: 0 | AV35: 0 | AX35: =$J35*Utslippsfaktorer!E$131 -> 0 | AY35: =$J35*Utslippsfaktorer!F$131 -> 0 | AZ35: =$J35*Utslippsfaktorer!G$131 -> 0 | BA35: =$J35*Utslippsfaktorer!H$131 -> 0 | BB35: =$J35*Utslippsfaktorer!I$131 -> 0 | BC35: =$O35*Utslippsfaktorer!E$148 -> 0 | BD35: =$O35*Utslippsfaktorer!F$148 -> 0 | BE35: =$O35*Utslippsfaktorer!G$148 -> 0 | BF35: =$O35*Utslippsfaktorer!H$148 -> 0 | BG35: =$O35*Utslippsfaktorer!I$148 -> 0 | BH35: =((IF($P35="",0,VLOOKUP($P35,Utslippsfaktorer!$C$9:$I$425,Utslippsfaktorer!E$5,FALSE)))*$T35)+($U35*Utslippsfaktorer!E$141) -> 0 | BI35: =((IF($P35="",0,VLOOKUP($P35,Utslippsfaktorer!$C$9:$I$425,Utslippsfaktorer!F$5,FALSE)))*$T35)+($U35*Utslippsfaktorer!F$141) -> 0 | BJ35: =((IF($P35="",0,VLOOKUP($P35,Utslippsfaktorer!$C$9:$I$425,Utslippsfaktorer!G$5,FALSE)))*$T35)+($U35*Utslippsfaktorer!G$141) -> 0 | BK35: =((IF($P35="",0,VLOOKUP($P35,Utslippsfaktorer!$C$9:$I$425,Utslippsfaktorer!H$5,FALSE)))*$T35)+($U35*Utslippsfaktorer!H$141) -> 0 | BL35: =((IF($P35="",0,VLOOKUP($P35,Utslippsfaktorer!$C$9:$I$425,Utslippsfaktorer!I$5,FALSE)))*$T35)+($U35*Utslippsfaktorer!I$141) -> 0 | BM35: 0 | BN35: 0 | BO35: 0 | BP35: 0 | BQ35: 0
B36: 13.2 | D36: Provisoriske bruer | F36: NOK | P36: Provisoriske bruer | R36: 0 | V36: =IF(P36="","",VLOOKUP(P36,Utslippsfaktorer!$C$9:$AL$391,Utslippsfaktorer!$AL$5,FALSE)) -> RS - Provisoriske anleggsveger, bruer og kaier | AH36: =$N36*Utslippsfaktorer!E$147 -> 0 | AI36: =$N36*Utslippsfaktorer!F$147 -> 0 | AJ36: =$N36*Utslippsfaktorer!G$147 -> 0 | AK36: =$N36*Utslippsfaktorer!H$147 -> 0 | AL36: =$N36*Utslippsfaktorer!I$147 -> 0 | AM36: =((IF($P36="",0,VLOOKUP($P36,Utslippsfaktorer!$C$9:$I$425,Utslippsfaktorer!E$5,FALSE)))*$R36)+($S36*Utslippsfaktorer!E$141) -> 0 | AN36: =((IF($P36="",0,VLOOKUP($P36,Utslippsfaktorer!$C$9:$I$425,Utslippsfaktorer!F$5,FALSE)))*$R36)+($S36*Utslippsfaktorer!F$141) -> 0 | AO36: =((IF($P36="",0,VLOOKUP($P36,Utslippsfaktorer!$C$9:$I$425,Utslippsfaktorer!G$5,FALSE)))*$R36)+($S36*Utslippsfaktorer!G$141) -> 0 | AP36: =((IF($P36="",0,VLOOKUP($P36,Utslippsfaktorer!$C$9:$I$425,Utslippsfaktorer!H$5,FALSE)))*$R36)+($S36*Utslippsfaktorer!H$141) -> 0 | AQ36: =((IF($P36="",0,VLOOKUP($P36,Utslippsfaktorer!$C$9:$I$425,Utslippsfaktorer!I$5,FALSE)))*$R36)+($S36*Utslippsfaktorer!I$141) -> 0 | AR36: 0 | AS36: 0 | AT36: 0 | AU36: 0 | AV36: 0 | AX36: =$J36*Utslippsfaktorer!E$131 -> 0 | AY36: =$J36*Utslippsfaktorer!F$131 -> 0 | AZ36: =$J36*Utslippsfaktorer!G$131 -> 0 | BA36: =$J36*Utslippsfaktorer!H$131 -> 0 | BB36: =$J36*Utslippsfaktorer!I$131 -> 0 | BC36: =$O36*Utslippsfaktorer!E$148 -> 0 | BD36: =$O36*Utslippsfaktorer!F$148 -> 0 | BE36: =$O36*Utslippsfaktorer!G$148 -> 0 | BF36: =$O36*Utslippsfaktorer!H$148 -> 0 | BG36: =$O36*Utslippsfaktorer!I$148 -> 0 | BH36: =((IF($P36="",0,VLOOKUP($P36,Utslippsfaktorer!$C$9:$I$425,Utslippsfaktorer!E$5,FALSE)))*$T36)+($U36*Utslippsfaktorer!E$141) -> 0 | BI36: =((IF($P36="",0,VLOOKUP($P36,Utslippsfaktorer!$C$9:$I$425,Utslippsfaktorer!F$5,FALSE)))*$T36)+($U36*Utslippsfaktorer!F$141) -> 0 | BJ36: =((IF($P36="",0,VLOOKUP($P36,Utslippsfaktorer!$C$9:$I$425,Utslippsfaktorer!G$5,FALSE)))*$T36)+($U36*Utslippsfaktorer!G$141) -> 0 | BK36: =((IF($P36="",0,VLOOKUP($P36,Utslippsfaktorer!$C$9:$I$425,Utslippsfaktorer!H$5,FALSE)))*$T36)+($U36*Utslippsfaktorer!H$141) -> 0 | BL36: =((IF($P36="",0,VLOOKUP($P36,Utslippsfaktorer!$C$9:$I$425,Utslippsfaktorer!I$5,FALSE)))*$T36)+($U36*Utslippsfaktorer!I$141) -> 0 | BM36: 0 | BN36: 0 | BO36: 0 | BP36: 0 | BQ36: 0
B37: 13.3 | D37: Provisoriske kaier | F37: NOK | P37: Provisoriske kaier | R37: 0 | V37: =IF(P37="","",VLOOKUP(P37,Utslippsfaktorer!$C$9:$AL$391,Utslippsfaktorer!$AL$5,FALSE)) -> RS - Provisoriske anleggsveger, bruer og kaier | AH37: =$N37*Utslippsfaktorer!E$147 -> 0 | AI37: =$N37*Utslippsfaktorer!F$147 -> 0 | AJ37: =$N37*Utslippsfaktorer!G$147 -> 0 | AK37: =$N37*Utslippsfaktorer!H$147 -> 0 | AL37: =$N37*Utslippsfaktorer!I$147 -> 0 | AM37: =((IF($P37="",0,VLOOKUP($P37,Utslippsfaktorer!$C$9:$I$425,Utslippsfaktorer!E$5,FALSE)))*$R37)+($S37*Utslippsfaktorer!E$141) -> 0 | AN37: =((IF($P37="",0,VLOOKUP($P37,Utslippsfaktorer!$C$9:$I$425,Utslippsfaktorer!F$5,FALSE)))*$R37)+($S37*Utslippsfaktorer!F$141) -> 0 | AO37: =((IF($P37="",0,VLOOKUP($P37,Utslippsfaktorer!$C$9:$I$425,Utslippsfaktorer!G$5,FALSE)))*$R37)+($S37*Utslippsfaktorer!G$141) -> 0 | AP37: =((IF($P37="",0,VLOOKUP($P37,Utslippsfaktorer!$C$9:$I$425,Utslippsfaktorer!H$5,FALSE)))*$R37)+($S37*Utslippsfaktorer!H$141) -> 0 | AQ37: =((IF($P37="",0,VLOOKUP($P37,Utslippsfaktorer!$C$9:$I$425,Utslippsfaktorer!I$5,FALSE)))*$R37)+($S37*Utslippsfaktorer!I$141) -> 0 | AR37: 0 | AS37: 0 | AT37: 0 | AU37: 0 | AV37: 0 | AX37: =$J37*Utslippsfaktorer!E$131 -> 0 | AY37: =$J37*Utslippsfaktorer!F$131 -> 0 | AZ37: =$J37*Utslippsfaktorer!G$131 -> 0 | BA37: =$J37*Utslippsfaktorer!H$131 -> 0 | BB37: =$J37*Utslippsfaktorer!I$131 -> 0 | BC37: =$O37*Utslippsfaktorer!E$148 -> 0 | BD37: =$O37*Utslippsfaktorer!F$148 -> 0 | BE37: =$O37*Utslippsfaktorer!G$148 -> 0 | BF37: =$O37*Utslippsfaktorer!H$148 -> 0 | BG37: =$O37*Utslippsfaktorer!I$148 -> 0 | BH37: =((IF($P37="",0,VLOOKUP($P37,Utslippsfaktorer!$C$9:$I$425,Utslippsfaktorer!E$5,FALSE)))*$T37)+($U37*Utslippsfaktorer!E$141) -> 0 | BI37: =((IF($P37="",0,VLOOKUP($P37,Utslippsfaktorer!$C$9:$I$425,Utslippsfaktorer!F$5,FALSE)))*$T37)+($U37*Utslippsfaktorer!F$141) -> 0 | BJ37: =((IF($P37="",0,VLOOKUP($P37,Utslippsfaktorer!$C$9:$I$425,Utslippsfaktorer!G$5,FALSE)))*$T37)+($U37*Utslippsfaktorer!G$141) -> 0 | BK37: =((IF($P37="",0,VLOOKUP($P37,Utslippsfaktorer!$C$9:$I$425,Utslippsfaktorer!H$5,FALSE)))*$T37)+($U37*Utslippsfaktorer!H$141) -> 0 | BL37: =((IF($P37="",0,VLOOKUP($P37,Utslippsfaktorer!$C$9:$I$425,Utslippsfaktorer!I$5,FALSE)))*$T37)+($U37*Utslippsfaktorer!I$141) -> 0 | BM37: 0 | BN37: 0 | BO37: 0 | BP37: 0 | BQ37: 0
B38: 13.4 | D38: Eksisterende veger | F38: NOK | P38: Eksisterende veger | R38: 0 | V38: =IF(P38="","",VLOOKUP(P38,Utslippsfaktorer!$C$9:$AL$391,Utslippsfaktorer!$AL$5,FALSE)) -> RS - Eksisterende veger, bruer og kaier | AH38: =$N38*Utslippsfaktorer!E$147 -> 0 | AI38: =$N38*Utslippsfaktorer!F$147 -> 0 | AJ38: =$N38*Utslippsfaktorer!G$147 -> 0 | AK38: =$N38*Utslippsfaktorer!H$147 -> 0 | AL38: =$N38*Utslippsfaktorer!I$147 -> 0 | AM38: =((IF($P38="",0,VLOOKUP($P38,Utslippsfaktorer!$C$9:$I$425,Utslippsfaktorer!E$5,FALSE)))*$R38)+($S38*Utslippsfaktorer!E$141) -> 0 | AN38: =((IF($P38="",0,VLOOKUP($P38,Utslippsfaktorer!$C$9:$I$425,Utslippsfaktorer!F$5,FALSE)))*$R38)+($S38*Utslippsfaktorer!F$141) -> 0 | AO38: =((IF($P38="",0,VLOOKUP($P38,Utslippsfaktorer!$C$9:$I$425,Utslippsfaktorer!G$5,FALSE)))*$R38)+($S38*Utslippsfaktorer!G$141) -> 0 | AP38: =((IF($P38="",0,VLOOKUP($P38,Utslippsfaktorer!$C$9:$I$425,Utslippsfaktorer!H$5,FALSE)))*$R38)+($S38*Utslippsfaktorer!H$141) -> 0 | AQ38: =((IF($P38="",0,VLOOKUP($P38,Utslippsfaktorer!$C$9:$I$425,Utslippsfaktorer!I$5,FALSE)))*$R38)+($S38*Utslippsfaktorer!I$141) -> 0 | AR38: 0 | AS38: 0 | AT38: 0 | AU38: 0 | AV38: 0 | AX38: =$J38*Utslippsfaktorer!E$131 -> 0 | AY38: =$J38*Utslippsfaktorer!F$131 -> 0 | AZ38: =$J38*Utslippsfaktorer!G$131 -> 0 | BA38: =$J38*Utslippsfaktorer!H$131 -> 0 | BB38: =$J38*Utslippsfaktorer!I$131 -> 0 | BC38: =$O38*Utslippsfaktorer!E$148 -> 0 | BD38: =$O38*Utslippsfaktorer!F$148 -> 0 | BE38: =$O38*Utslippsfaktorer!G$148 -> 0 | BF38: =$O38*Utslippsfaktorer!H$148 -> 0 | BG38: =$O38*Utslippsfaktorer!I$148 -> 0 | BH38: =((IF($P38="",0,VLOOKUP($P38,Utslippsfaktorer!$C$9:$I$425,Utslippsfaktorer!E$5,FALSE)))*$T38)+($U38*Utslippsfaktorer!E$141) -> 0 | BI38: =((IF($P38="",0,VLOOKUP($P38,Utslippsfaktorer!$C$9:$I$425,Utslippsfaktorer!F$5,FALSE)))*$T38)+($U38*Utslippsfaktorer!F$141) -> 0 | BJ38: =((IF($P38="",0,VLOOKUP($P38,Utslippsfaktorer!$C$9:$I$425,Utslippsfaktorer!G$5,FALSE)))*$T38)+($U38*Utslippsfaktorer!G$141) -> 0 | BK38: =((IF($P38="",0,VLOOKUP($P38,Utslippsfaktorer!$C$9:$I$425,Utslippsfaktorer!H$5,FALSE)))*$T38)+($U38*Utslippsfaktorer!H$141) -> 0 | BL38: =((IF($P38="",0,VLOOKUP($P38,Utslippsfaktorer!$C$9:$I$425,Utslippsfaktorer!I$5,FALSE)))*$T38)+($U38*Utslippsfaktorer!I$141) -> 0 | BM38: 0 | BN38: 0 | BO38: 0 | BP38: 0 | BQ38: 0
B39: 13.5 | D39: Eksisterende bruer | F39: NOK | P39: Eksisterende bruer | R39: 0 | V39: =IF(P39="","",VLOOKUP(P39,Utslippsfaktorer!$C$9:$AL$391,Utslippsfaktorer!$AL$5,FALSE)) -> RS - Eksisterende veger, bruer og kaier | AH39: =$N39*Utslippsfaktorer!E$147 -> 0 | AI39: =$N39*Utslippsfaktorer!F$147 -> 0 | AJ39: =$N39*Utslippsfaktorer!G$147 -> 0 | AK39: =$N39*Utslippsfaktorer!H$147 -> 0 | AL39: =$N39*Utslippsfaktorer!I$147 -> 0 | AM39: =((IF($P39="",0,VLOOKUP($P39,Utslippsfaktorer!$C$9:$I$425,Utslippsfaktorer!E$5,FALSE)))*$R39)+($S39*Utslippsfaktorer!E$141) -> 0 | AN39: =((IF($P39="",0,VLOOKUP($P39,Utslippsfaktorer!$C$9:$I$425,Utslippsfaktorer!F$5,FALSE)))*$R39)+($S39*Utslippsfaktorer!F$141) -> 0 | AO39: =((IF($P39="",0,VLOOKUP($P39,Utslippsfaktorer!$C$9:$I$425,Utslippsfaktorer!G$5,FALSE)))*$R39)+($S39*Utslippsfaktorer!G$141) -> 0 | AP39: =((IF($P39="",0,VLOOKUP($P39,Utslippsfaktorer!$C$9:$I$425,Utslippsfaktorer!H$5,FALSE)))*$R39)+($S39*Utslippsfaktorer!H$141) -> 0 | AQ39: =((IF($P39="",0,VLOOKUP($P39,Utslippsfaktorer!$C$9:$I$425,Utslippsfaktorer!I$5,FALSE)))*$R39)+($S39*Utslippsfaktorer!I$141) -> 0 | AR39: 0 | AS39: 0 | AT39: 0 | AU39: 0 | AV39: 0 | AX39: =$J39*Utslippsfaktorer!E$131 -> 0 | AY39: =$J39*Utslippsfaktorer!F$131 -> 0 | AZ39: =$J39*Utslippsfaktorer!G$131 -> 0 | BA39: =$J39*Utslippsfaktorer!H$131 -> 0 | BB39: =$J39*Utslippsfaktorer!I$131 -> 0 | BC39: =$O39*Utslippsfaktorer!E$148 -> 0 | BD39: =$O39*Utslippsfaktorer!F$148 -> 0 | BE39: =$O39*Utslippsfaktorer!G$148 -> 0 | BF39: =$O39*Utslippsfaktorer!H$148 -> 0 | BG39: =$O39*Utslippsfaktorer!I$148 -> 0 | BH39: =((IF($P39="",0,VLOOKUP($P39,Utslippsfaktorer!$C$9:$I$425,Utslippsfaktorer!E$5,FALSE)))*$T39)+($U39*Utslippsfaktorer!E$141) -> 0 | BI39: =((IF($P39="",0,VLOOKUP($P39,Utslippsfaktorer!$C$9:$I$425,Utslippsfaktorer!F$5,FALSE)))*$T39)+($U39*Utslippsfaktorer!F$141) -> 0 | BJ39: =((IF($P39="",0,VLOOKUP($P39,Utslippsfaktorer!$C$9:$I$425,Utslippsfaktorer!G$5,FALSE)))*$T39)+($U39*Utslippsfaktorer!G$141) -> 0 | BK39: =((IF($P39="",0,VLOOKUP($P39,Utslippsfaktorer!$C$9:$I$425,Utslippsfaktorer!H$5,FALSE)))*$T39)+($U39*Utslippsfaktorer!H$141) -> 0 | BL39: =((IF($P39="",0,VLOOKUP($P39,Utslippsfaktorer!$C$9:$I$425,Utslippsfaktorer!I$5,FALSE)))*$T39)+($U39*Utslippsfaktorer!I$141) -> 0 | BM39: 0 | BN39: 0 | BO39: 0 | BP39: 0 | BQ39: 0
B40: 13.6 | D40: Eksisterende kaier | F40: NOK | P40: Eksisterende kaier | R40: 0 | V40: =IF(P40="","",VLOOKUP(P40,Utslippsfaktorer!$C$9:$AL$391,Utslippsfaktorer!$AL$5,FALSE)) -> RS - Eksisterende veger, bruer og kaier | AH40: =$N40*Utslippsfaktorer!E$147 -> 0 | AI40: =$N40*Utslippsfaktorer!F$147 -> 0 | AJ40: =$N40*Utslippsfaktorer!G$147 -> 0 | AK40: =$N40*Utslippsfaktorer!H$147 -> 0 | AL40: =$N40*Utslippsfaktorer!I$147 -> 0 | AM40: =((IF($P40="",0,VLOOKUP($P40,Utslippsfaktorer!$C$9:$I$425,Utslippsfaktorer!E$5,FALSE)))*$R40)+($S40*Utslippsfaktorer!E$141) -> 0 | AN40: =((IF($P40="",0,VLOOKUP($P40,Utslippsfaktorer!$C$9:$I$425,Utslippsfaktorer!F$5,FALSE)))*$R40)+($S40*Utslippsfaktorer!F$141) -> 0 | AO40: =((IF($P40="",0,VLOOKUP($P40,Utslippsfaktorer!$C$9:$I$425,Utslippsfaktorer!G$5,FALSE)))*$R40)+($S40*Utslippsfaktorer!G$141) -> 0 | AP40: =((IF($P40="",0,VLOOKUP($P40,Utslippsfaktorer!$C$9:$I$425,Utslippsfaktorer!H$5,FALSE)))*$R40)+($S40*Utslippsfaktorer!H$141) -> 0 | AQ40: =((IF($P40="",0,VLOOKUP($P40,Utslippsfaktorer!$C$9:$I$425,Utslippsfaktorer!I$5,FALSE)))*$R40)+($S40*Utslippsfaktorer!I$141) -> 0 | AR40: 0 | AS40: 0 | AT40: 0 | AU40: 0 | AV40: 0 | AX40: =$J40*Utslippsfaktorer!E$131 -> 0 | AY40: =$J40*Utslippsfaktorer!F$131 -> 0 | AZ40: =$J40*Utslippsfaktorer!G$131 -> 0 | BA40: =$J40*Utslippsfaktorer!H$131 -> 0 | BB40: =$J40*Utslippsfaktorer!I$131 -> 0 | BC40: =$O40*Utslippsfaktorer!E$148 -> 0 | BD40: =$O40*Utslippsfaktorer!F$148 -> 0 | BE40: =$O40*Utslippsfaktorer!G$148 -> 0 | BF40: =$O40*Utslippsfaktorer!H$148 -> 0 | BG40: =$O40*Utslippsfaktorer!I$148 -> 0 | BH40: =((IF($P40="",0,VLOOKUP($P40,Utslippsfaktorer!$C$9:$I$425,Utslippsfaktorer!E$5,FALSE)))*$T40)+($U40*Utslippsfaktorer!E$141) -> 0 | BI40: =((IF($P40="",0,VLOOKUP($P40,Utslippsfaktorer!$C$9:$I$425,Utslippsfaktorer!F$5,FALSE)))*$T40)+($U40*Utslippsfaktorer!F$141) -> 0 | BJ40: =((IF($P40="",0,VLOOKUP($P40,Utslippsfaktorer!$C$9:$I$425,Utslippsfaktorer!G$5,FALSE)))*$T40)+($U40*Utslippsfaktorer!G$141) -> 0 | BK40: =((IF($P40="",0,VLOOKUP($P40,Utslippsfaktorer!$C$9:$I$425,Utslippsfaktorer!H$5,FALSE)))*$T40)+($U40*Utslippsfaktorer!H$141) -> 0 | BL40: =((IF($P40="",0,VLOOKUP($P40,Utslippsfaktorer!$C$9:$I$425,Utslippsfaktorer!I$5,FALSE)))*$T40)+($U40*Utslippsfaktorer!I$141) -> 0 | BM40: 0 | BN40: 0 | BO40: 0 | BP40: 0 | BQ40: 0
B41: 13.7 | D41: Midlertidig beskyttelse og etterf. rengjøring av planum og overbygning | F41: NOK | P41: Midlertidig beskyttelse og etterf. rengjøring av planum og overbygning | R41: 0 | V41: =IF(P41="","",VLOOKUP(P41,Utslippsfaktorer!$C$9:$AL$391,Utslippsfaktorer!$AL$5,FALSE)) -> RS - Rigg og drift | AH41: =$N41*Utslippsfaktorer!E$147 -> 0 | AI41: =$N41*Utslippsfaktorer!F$147 -> 0 | AJ41: =$N41*Utslippsfaktorer!G$147 -> 0 | AK41: =$N41*Utslippsfaktorer!H$147 -> 0 | AL41: =$N41*Utslippsfaktorer!I$147 -> 0 | AM41: =((IF($P41="",0,VLOOKUP($P41,Utslippsfaktorer!$C$9:$I$425,Utslippsfaktorer!E$5,FALSE)))*$R41)+($S41*Utslippsfaktorer!E$141) -> 0 | AN41: =((IF($P41="",0,VLOOKUP($P41,Utslippsfaktorer!$C$9:$I$425,Utslippsfaktorer!F$5,FALSE)))*$R41)+($S41*Utslippsfaktorer!F$141) -> 0 | AO41: =((IF($P41="",0,VLOOKUP($P41,Utslippsfaktorer!$C$9:$I$425,Utslippsfaktorer!G$5,FALSE)))*$R41)+($S41*Utslippsfaktorer!G$141) -> 0 | AP41: =((IF($P41="",0,VLOOKUP($P41,Utslippsfaktorer!$C$9:$I$425,Utslippsfaktorer!H$5,FALSE)))*$R41)+($S41*Utslippsfaktorer!H$141) -> 0 | AQ41: =((IF($P41="",0,VLOOKUP($P41,Utslippsfaktorer!$C$9:$I$425,Utslippsfaktorer!I$5,FALSE)))*$R41)+($S41*Utslippsfaktorer!I$141) -> 0 | AR41: 0 | AS41: 0 | AT41: 0 | AU41: 0 | AV41: 0 | AX41: =$J41*Utslippsfaktorer!E$131 -> 0 | AY41: =$J41*Utslippsfaktorer!F$131 -> 0 | AZ41: =$J41*Utslippsfaktorer!G$131 -> 0 | BA41: =$J41*Utslippsfaktorer!H$131 -> 0 | BB41: =$J41*Utslippsfaktorer!I$131 -> 0 | BC41: =$O41*Utslippsfaktorer!E$148 -> 0 | BD41: =$O41*Utslippsfaktorer!F$148 -> 0 | BE41: =$O41*Utslippsfaktorer!G$148 -> 0 | BF41: =$O41*Utslippsfaktorer!H$148 -> 0 | BG41: =$O41*Utslippsfaktorer!I$148 -> 0 | BH41: =((IF($P41="",0,VLOOKUP($P41,Utslippsfaktorer!$C$9:$I$425,Utslippsfaktorer!E$5,FALSE)))*$T41)+($U41*Utslippsfaktorer!E$141) -> 0 | BI41: =((IF($P41="",0,VLOOKUP($P41,Utslippsfaktorer!$C$9:$I$425,Utslippsfaktorer!F$5,FALSE)))*$T41)+($U41*Utslippsfaktorer!F$141) -> 0 | BJ41: =((IF($P41="",0,VLOOKUP($P41,Utslippsfaktorer!$C$9:$I$425,Utslippsfaktorer!G$5,FALSE)))*$T41)+($U41*Utslippsfaktorer!G$141) -> 0 | BK41: =((IF($P41="",0,VLOOKUP($P41,Utslippsfaktorer!$C$9:$I$425,Utslippsfaktorer!H$5,FALSE)))*$T41)+($U41*Utslippsfaktorer!H$141) -> 0 | BL41: =((IF($P41="",0,VLOOKUP($P41,Utslippsfaktorer!$C$9:$I$425,Utslippsfaktorer!I$5,FALSE)))*$T41)+($U41*Utslippsfaktorer!I$141) -> 0 | BM41: 0 | BN41: 0 | BO41: 0 | BP41: 0 | BQ41: 0
B43: 14. MIDLERTIDIG TRAFIKKAVVIKLING
B44: 14.1 | D44: Trafikkulemper | F44: NOK | P44: =D44 -> Trafikkulemper | R44: =E44 -> 0 | V44: =IF(P44="","",VLOOKUP(P44,Utslippsfaktorer!$C$9:$AL$391,Utslippsfaktorer!$AL$5,FALSE)) -> RS - Midlertidig trafikkavvikling | AH44: =$N44*Utslippsfaktorer!E$147 -> 0 | AI44: =$N44*Utslippsfaktorer!F$147 -> 0 | AJ44: =$N44*Utslippsfaktorer!G$147 -> 0 | AK44: =$N44*Utslippsfaktorer!H$147 -> 0 | AL44: =$N44*Utslippsfaktorer!I$147 -> 0 | AM44: =((IF($P44="",0,VLOOKUP($P44,Utslippsfaktorer!$C$9:$I$425,Utslippsfaktorer!E$5,FALSE)))*$R44)+($S44*Utslippsfaktorer!E$141) -> 0 | AN44: =((IF($P44="",0,VLOOKUP($P44,Utslippsfaktorer!$C$9:$I$425,Utslippsfaktorer!F$5,FALSE)))*$R44)+($S44*Utslippsfaktorer!F$141) -> 0 | AO44: =((IF($P44="",0,VLOOKUP($P44,Utslippsfaktorer!$C$9:$I$425,Utslippsfaktorer!G$5,FALSE)))*$R44)+($S44*Utslippsfaktorer!G$141) -> 0 | AP44: =((IF($P44="",0,VLOOKUP($P44,Utslippsfaktorer!$C$9:$I$425,Utslippsfaktorer!H$5,FALSE)))*$R44)+($S44*Utslippsfaktorer!H$141) -> 0 | AQ44: =((IF($P44="",0,VLOOKUP($P44,Utslippsfaktorer!$C$9:$I$425,Utslippsfaktorer!I$5,FALSE)))*$R44)+($S44*Utslippsfaktorer!I$141) -> 0 | AR44: 0 | AS44: 0 | AT44: 0 | AU44: 0 | AV44: 0 | AX44: =$J44*Utslippsfaktorer!E$131 -> 0 | AY44: =$J44*Utslippsfaktorer!F$131 -> 0 | AZ44: =$J44*Utslippsfaktorer!G$131 -> 0 | BA44: =$J44*Utslippsfaktorer!H$131 -> 0 | BB44: =$J44*Utslippsfaktorer!I$131 -> 0 | BC44: =$O44*Utslippsfaktorer!E$148 -> 0 | BD44: =$O44*Utslippsfaktorer!F$148 -> 0 | BE44: =$O44*Utslippsfaktorer!G$148 -> 0 | BF44: =$O44*Utslippsfaktorer!H$148 -> 0 | BG44: =$O44*Utslippsfaktorer!I$148 -> 0 | BH44: =((IF($P44="",0,VLOOKUP($P44,Utslippsfaktorer!$C$9:$I$425,Utslippsfaktorer!E$5,FALSE)))*$T44)+($U44*Utslippsfaktorer!E$141) -> 0 | BI44: =((IF($P44="",0,VLOOKUP($P44,Utslippsfaktorer!$C$9:$I$425,Utslippsfaktorer!F$5,FALSE)))*$T44)+($U44*Utslippsfaktorer!F$141) -> 0 | BJ44: =((IF($P44="",0,VLOOKUP($P44,Utslippsfaktorer!$C$9:$I$425,Utslippsfaktorer!G$5,FALSE)))*$T44)+($U44*Utslippsfaktorer!G$141) -> 0 | BK44: =((IF($P44="",0,VLOOKUP($P44,Utslippsfaktorer!$C$9:$I$425,Utslippsfaktorer!H$5,FALSE)))*$T44)+($U44*Utslippsfaktorer!H$141) -> 0 | BL44: =((IF($P44="",0,VLOOKUP($P44,Utslippsfaktorer!$C$9:$I$425,Utslippsfaktorer!I$5,FALSE)))*$T44)+($U44*Utslippsfaktorer!I$141) -> 0 | BM44: 0 | BN44: 0 | BO44: 0 | BP44: 0 | BQ44: 0
B45: 14.2 | D45: Tiltak for kollektivtrafikk | F45: NOK | P45: Tiltak for kollektivtrafikk | R45: 0 | V45: =IF(P45="","",VLOOKUP(P45,Utslippsfaktorer!$C$9:$AL$391,Utslippsfaktorer!$AL$5,FALSE)) -> RS - Midlertidig trafikkavvikling | AH45: =$N45*Utslippsfaktorer!E$147 -> 0 | AI45: =$N45*Utslippsfaktorer!F$147 -> 0 | AJ45: =$N45*Utslippsfaktorer!G$147 -> 0 | AK45: =$N45*Utslippsfaktorer!H$147 -> 0 | AL45: =$N45*Utslippsfaktorer!I$147 -> 0 | AM45: =((IF($P45="",0,VLOOKUP($P45,Utslippsfaktorer!$C$9:$I$425,Utslippsfaktorer!E$5,FALSE)))*$R45)+($S45*Utslippsfaktorer!E$141) -> 0 | AN45: =((IF($P45="",0,VLOOKUP($P45,Utslippsfaktorer!$C$9:$I$425,Utslippsfaktorer!F$5,FALSE)))*$R45)+($S45*Utslippsfaktorer!F$141) -> 0 | AO45: =((IF($P45="",0,VLOOKUP($P45,Utslippsfaktorer!$C$9:$I$425,Utslippsfaktorer!G$5,FALSE)))*$R45)+($S45*Utslippsfaktorer!G$141) -> 0 | AP45: =((IF($P45="",0,VLOOKUP($P45,Utslippsfaktorer!$C$9:$I$425,Utslippsfaktorer!H$5,FALSE)))*$R45)+($S45*Utslippsfaktorer!H$141) -> 0 | AQ45: =((IF($P45="",0,VLOOKUP($P45,Utslippsfaktorer!$C$9:$I$425,Utslippsfaktorer!I$5,FALSE)))*$R45)+($S45*Utslippsfaktorer!I$141) -> 0 | AR45: 0 | AS45: 0 | AT45: 0 | AU45: 0 | AV45: 0 | AX45: =$J45*Utslippsfaktorer!E$131 -> 0 | AY45: =$J45*Utslippsfaktorer!F$131 -> 0 | AZ45: =$J45*Utslippsfaktorer!G$131 -> 0 | BA45: =$J45*Utslippsfaktorer!H$131 -> 0 | BB45: =$J45*Utslippsfaktorer!I$131 -> 0 | BC45: =$O45*Utslippsfaktorer!E$148 -> 0 | BD45: =$O45*Utslippsfaktorer!F$148 -> 0 | BE45: =$O45*Utslippsfaktorer!G$148 -> 0 | BF45: =$O45*Utslippsfaktorer!H$148 -> 0 | BG45: =$O45*Utslippsfaktorer!I$148 -> 0 | BH45: =((IF($P45="",0,VLOOKUP($P45,Utslippsfaktorer!$C$9:$I$425,Utslippsfaktorer!E$5,FALSE)))*$T45)+($U45*Utslippsfaktorer!E$141) -> 0 | BI45: =((IF($P45="",0,VLOOKUP($P45,Utslippsfaktorer!$C$9:$I$425,Utslippsfaktorer!F$5,FALSE)))*$T45)+($U45*Utslippsfaktorer!F$141) -> 0 | BJ45: =((IF($P45="",0,VLOOKUP($P45,Utslippsfaktorer!$C$9:$I$425,Utslippsfaktorer!G$5,FALSE)))*$T45)+($U45*Utslippsfaktorer!G$141) -> 0 | BK45: =((IF($P45="",0,VLOOKUP($P45,Utslippsfaktorer!$C$9:$I$425,Utslippsfaktorer!H$5,FALSE)))*$T45)+($U45*Utslippsfaktorer!H$141) -> 0 | BL45: =((IF($P45="",0,VLOOKUP($P45,Utslippsfaktorer!$C$9:$I$425,Utslippsfaktorer!I$5,FALSE)))*$T45)+($U45*Utslippsfaktorer!I$141) -> 0 | BM45: 0 | BN45: 0 | BO45: 0 | BP45: 0 | BQ45: 0
B46: 14.3 | D46: Tiltak for myke trafikanter | F46: NOK | P46: Tiltak for myke trafikanter | R46: 0 | V46: =IF(P46="","",VLOOKUP(P46,Utslippsfaktorer!$C$9:$AL$391,Utslippsfaktorer!$AL$5,FALSE)) -> RS - Midlertidig trafikkavvikling | AH46: =$N46*Utslippsfaktorer!E$147 -> 0 | AI46: =$N46*Utslippsfaktorer!F$147 -> 0 | AJ46: =$N46*Utslippsfaktorer!G$147 -> 0 | AK46: =$N46*Utslippsfaktorer!H$147 -> 0 | AL46: =$N46*Utslippsfaktorer!I$147 -> 0 | AM46: =((IF($P46="",0,VLOOKUP($P46,Utslippsfaktorer!$C$9:$I$425,Utslippsfaktorer!E$5,FALSE)))*$R46)+($S46*Utslippsfaktorer!E$141) -> 0 | AN46: =((IF($P46="",0,VLOOKUP($P46,Utslippsfaktorer!$C$9:$I$425,Utslippsfaktorer!F$5,FALSE)))*$R46)+($S46*Utslippsfaktorer!F$141) -> 0 | AO46: =((IF($P46="",0,VLOOKUP($P46,Utslippsfaktorer!$C$9:$I$425,Utslippsfaktorer!G$5,FALSE)))*$R46)+($S46*Utslippsfaktorer!G$141) -> 0 | AP46: =((IF($P46="",0,VLOOKUP($P46,Utslippsfaktorer!$C$9:$I$425,Utslippsfaktorer!H$5,FALSE)))*$R46)+($S46*Utslippsfaktorer!H$141) -> 0 | AQ46: =((IF($P46="",0,VLOOKUP($P46,Utslippsfaktorer!$C$9:$I$425,Utslippsfaktorer!I$5,FALSE)))*$R46)+($S46*Utslippsfaktorer!I$141) -> 0 | AR46: 0 | AS46: 0 | AT46: 0 | AU46: 0 | AV46: 0 | AX46: =$J46*Utslippsfaktorer!E$131 -> 0 | AY46: =$J46*Utslippsfaktorer!F$131 -> 0 | AZ46: =$J46*Utslippsfaktorer!G$131 -> 0 | BA46: =$J46*Utslippsfaktorer!H$131 -> 0 | BB46: =$J46*Utslippsfaktorer!I$131 -> 0 | BC46: =$O46*Utslippsfaktorer!E$148 -> 0 | BD46: =$O46*Utslippsfaktorer!F$148 -> 0 | BE46: =$O46*Utslippsfaktorer!G$148 -> 0 | BF46: =$O46*Utslippsfaktorer!H$148 -> 0 | BG46: =$O46*Utslippsfaktorer!I$148 -> 0 | BH46: =((IF($P46="",0,VLOOKUP($P46,Utslippsfaktorer!$C$9:$I$425,Utslippsfaktorer!E$5,FALSE)))*$T46)+($U46*Utslippsfaktorer!E$141) -> 0 | BI46: =((IF($P46="",0,VLOOKUP($P46,Utslippsfaktorer!$C$9:$I$425,Utslippsfaktorer!F$5,FALSE)))*$T46)+($U46*Utslippsfaktorer!F$141) -> 0 | BJ46: =((IF($P46="",0,VLOOKUP($P46,Utslippsfaktorer!$C$9:$I$425,Utslippsfaktorer!G$5,FALSE)))*$T46)+($U46*Utslippsfaktorer!G$141) -> 0 | BK46: =((IF($P46="",0,VLOOKUP($P46,Utslippsfaktorer!$C$9:$I$425,Utslippsfaktorer!H$5,FALSE)))*$T46)+($U46*Utslippsfaktorer!H$141) -> 0 | BL46: =((IF($P46="",0,VLOOKUP($P46,Utslippsfaktorer!$C$9:$I$425,Utslippsfaktorer!I$5,FALSE)))*$T46)+($U46*Utslippsfaktorer!I$141) -> 0 | BM46: 0 | BN46: 0 | BO46: 0 | BP46: 0 | BQ46: 0
B47: 14.4 | D47: Oppmerking og signaler | F47: NOK | P47: Oppmerking og signaler | R47: 0 | V47: =IF(P47="","",VLOOKUP(P47,Utslippsfaktorer!$C$9:$AL$391,Utslippsfaktorer!$AL$5,FALSE)) -> RS - Midlertidig trafikkavvikling | AH47: =$N47*Utslippsfaktorer!E$147 -> 0 | AI47: =$N47*Utslippsfaktorer!F$147 -> 0 | AJ47: =$N47*Utslippsfaktorer!G$147 -> 0 | AK47: =$N47*Utslippsfaktorer!H$147 -> 0 | AL47: =$N47*Utslippsfaktorer!I$147 -> 0 | AM47: =((IF($P47="",0,VLOOKUP($P47,Utslippsfaktorer!$C$9:$I$425,Utslippsfaktorer!E$5,FALSE)))*$R47)+($S47*Utslippsfaktorer!E$141) -> 0 | AN47: =((IF($P47="",0,VLOOKUP($P47,Utslippsfaktorer!$C$9:$I$425,Utslippsfaktorer!F$5,FALSE)))*$R47)+($S47*Utslippsfaktorer!F$141) -> 0 | AO47: =((IF($P47="",0,VLOOKUP($P47,Utslippsfaktorer!$C$9:$I$425,Utslippsfaktorer!G$5,FALSE)))*$R47)+($S47*Utslippsfaktorer!G$141) -> 0 | AP47: =((IF($P47="",0,VLOOKUP($P47,Utslippsfaktorer!$C$9:$I$425,Utslippsfaktorer!H$5,FALSE)))*$R47)+($S47*Utslippsfaktorer!H$141) -> 0 | AQ47: =((IF($P47="",0,VLOOKUP($P47,Utslippsfaktorer!$C$9:$I$425,Utslippsfaktorer!I$5,FALSE)))*$R47)+($S47*Utslippsfaktorer!I$141) -> 0 | AR47: 0 | AS47: 0 | AT47: 0 | AU47: 0 | AV47: 0 | AX47: =$J47*Utslippsfaktorer!E$131 -> 0 | AY47: =$J47*Utslippsfaktorer!F$131 -> 0 | AZ47: =$J47*Utslippsfaktorer!G$131 -> 0 | BA47: =$J47*Utslippsfaktorer!H$131 -> 0 | BB47: =$J47*Utslippsfaktorer!I$131 -> 0 | BC47: =$O47*Utslippsfaktorer!E$148 -> 0 | BD47: =$O47*Utslippsfaktorer!F$148 -> 0 | BE47: =$O47*Utslippsfaktorer!G$148 -> 0 | BF47: =$O47*Utslippsfaktorer!H$148 -> 0 | BG47: =$O47*Utslippsfaktorer!I$148 -> 0 | BH47: =((IF($P47="",0,VLOOKUP($P47,Utslippsfaktorer!$C$9:$I$425,Utslippsfaktorer!E$5,FALSE)))*$T47)+($U47*Utslippsfaktorer!E$141) -> 0 | BI47: =((IF($P47="",0,VLOOKUP($P47,Utslippsfaktorer!$C$9:$I$425,Utslippsfaktorer!F$5,FALSE)))*$T47)+($U47*Utslippsfaktorer!F$141) -> 0 | BJ47: =((IF($P47="",0,VLOOKUP($P47,Utslippsfaktorer!$C$9:$I$425,Utslippsfaktorer!G$5,FALSE)))*$T47)+($U47*Utslippsfaktorer!G$141) -> 0 | BK47: =((IF($P47="",0,VLOOKUP($P47,Utslippsfaktorer!$C$9:$I$425,Utslippsfaktorer!H$5,FALSE)))*$T47)+($U47*Utslippsfaktorer!H$141) -> 0 | BL47: =((IF($P47="",0,VLOOKUP($P47,Utslippsfaktorer!$C$9:$I$425,Utslippsfaktorer!I$5,FALSE)))*$T47)+($U47*Utslippsfaktorer!I$141) -> 0 | BM47: 0 | BN47: 0 | BO47: 0 | BP47: 0 | BQ47: 0
B48: 14.5 | D48: Provisorisk omlegging av eksisterende veger | F48: NOK | P48: Provisorisk omlegging av eksisterende veger | R48: 0 | V48: =IF(P48="","",VLOOKUP(P48,Utslippsfaktorer!$C$9:$AL$391,Utslippsfaktorer!$AL$5,FALSE)) -> RS - Midlertidig trafikkavvikling | AH48: =$N48*Utslippsfaktorer!E$147 -> 0 | AI48: =$N48*Utslippsfaktorer!F$147 -> 0 | AJ48: =$N48*Utslippsfaktorer!G$147 -> 0 | AK48: =$N48*Utslippsfaktorer!H$147 -> 0 | AL48: =$N48*Utslippsfaktorer!I$147 -> 0 | AM48: =((IF($P48="",0,VLOOKUP($P48,Utslippsfaktorer!$C$9:$I$425,Utslippsfaktorer!E$5,FALSE)))*$R48)+($S48*Utslippsfaktorer!E$141) -> 0 | AN48: =((IF($P48="",0,VLOOKUP($P48,Utslippsfaktorer!$C$9:$I$425,Utslippsfaktorer!F$5,FALSE)))*$R48)+($S48*Utslippsfaktorer!F$141) -> 0 | AO48: =((IF($P48="",0,VLOOKUP($P48,Utslippsfaktorer!$C$9:$I$425,Utslippsfaktorer!G$5,FALSE)))*$R48)+($S48*Utslippsfaktorer!G$141) -> 0 | AP48: =((IF($P48="",0,VLOOKUP($P48,Utslippsfaktorer!$C$9:$I$425,Utslippsfaktorer!H$5,FALSE)))*$R48)+($S48*Utslippsfaktorer!H$141) -> 0 | AQ48: =((IF($P48="",0,VLOOKUP($P48,Utslippsfaktorer!$C$9:$I$425,Utslippsfaktorer!I$5,FALSE)))*$R48)+($S48*Utslippsfaktorer!I$141) -> 0 | AR48: 0 | AS48: 0 | AT48: 0 | AU48: 0 | AV48: 0 | AX48: =$J48*Utslippsfaktorer!E$131 -> 0 | AY48: =$J48*Utslippsfaktorer!F$131 -> 0 | AZ48: =$J48*Utslippsfaktorer!G$131 -> 0 | BA48: =$J48*Utslippsfaktorer!H$131 -> 0 | BB48: =$J48*Utslippsfaktorer!I$131 -> 0 | BC48: =$O48*Utslippsfaktorer!E$148 -> 0 | BD48: =$O48*Utslippsfaktorer!F$148 -> 0 | BE48: =$O48*Utslippsfaktorer!G$148 -> 0 | BF48: =$O48*Utslippsfaktorer!H$148 -> 0 | BG48: =$O48*Utslippsfaktorer!I$148 -> 0 | BH48: =((IF($P48="",0,VLOOKUP($P48,Utslippsfaktorer!$C$9:$I$425,Utslippsfaktorer!E$5,FALSE)))*$T48)+($U48*Utslippsfaktorer!E$141) -> 0 | BI48: =((IF($P48="",0,VLOOKUP($P48,Utslippsfaktorer!$C$9:$I$425,Utslippsfaktorer!F$5,FALSE)))*$T48)+($U48*Utslippsfaktorer!F$141) -> 0 | BJ48: =((IF($P48="",0,VLOOKUP($P48,Utslippsfaktorer!$C$9:$I$425,Utslippsfaktorer!G$5,FALSE)))*$T48)+($U48*Utslippsfaktorer!G$141) -> 0 | BK48: =((IF($P48="",0,VLOOKUP($P48,Utslippsfaktorer!$C$9:$I$425,Utslippsfaktorer!H$5,FALSE)))*$T48)+($U48*Utslippsfaktorer!H$141) -> 0 | BL48: =((IF($P48="",0,VLOOKUP($P48,Utslippsfaktorer!$C$9:$I$425,Utslippsfaktorer!I$5,FALSE)))*$T48)+($U48*Utslippsfaktorer!I$141) -> 0 | BM48: 0 | BN48: 0 | BO48: 0 | BP48: 0 | BQ48: 0
B49: 14.6 | D49: Sikringstiltak | F49: NOK | P49: Sikringstiltak | R49: 0 | V49: =IF(P49="","",VLOOKUP(P49,Utslippsfaktorer!$C$9:$AL$391,Utslippsfaktorer!$AL$5,FALSE)) -> RS - Midlertidig trafikkavvikling | AH49: =$N49*Utslippsfaktorer!E$147 -> 0 | AI49: =$N49*Utslippsfaktorer!F$147 -> 0 | AJ49: =$N49*Utslippsfaktorer!G$147 -> 0 | AK49: =$N49*Utslippsfaktorer!H$147 -> 0 | AL49: =$N49*Utslippsfaktorer!I$147 -> 0 | AM49: =((IF($P49="",0,VLOOKUP($P49,Utslippsfaktorer!$C$9:$I$425,Utslippsfaktorer!E$5,FALSE)))*$R49)+($S49*Utslippsfaktorer!E$141) -> 0 | AN49: =((IF($P49="",0,VLOOKUP($P49,Utslippsfaktorer!$C$9:$I$425,Utslippsfaktorer!F$5,FALSE)))*$R49)+($S49*Utslippsfaktorer!F$141) -> 0 | AO49: =((IF($P49="",0,VLOOKUP($P49,Utslippsfaktorer!$C$9:$I$425,Utslippsfaktorer!G$5,FALSE)))*$R49)+($S49*Utslippsfaktorer!G$141) -> 0 | AP49: =((IF($P49="",0,VLOOKUP($P49,Utslippsfaktorer!$C$9:$I$425,Utslippsfaktorer!H$5,FALSE)))*$R49)+($S49*Utslippsfaktorer!H$141) -> 0 | AQ49: =((IF($P49="",0,VLOOKUP($P49,Utslippsfaktorer!$C$9:$I$425,Utslippsfaktorer!I$5,FALSE)))*$R49)+($S49*Utslippsfaktorer!I$141) -> 0 | AR49: 0 | AS49: 0 | AT49: 0 | AU49: 0 | AV49: 0 | AX49: =$J49*Utslippsfaktorer!E$131 -> 0 | AY49: =$J49*Utslippsfaktorer!F$131 -> 0 | AZ49: =$J49*Utslippsfaktorer!G$131 -> 0 | BA49: =$J49*Utslippsfaktorer!H$131 -> 0 | BB49: =$J49*Utslippsfaktorer!I$131 -> 0 | BC49: =$O49*Utslippsfaktorer!E$148 -> 0 | BD49: =$O49*Utslippsfaktorer!F$148 -> 0 | BE49: =$O49*Utslippsfaktorer!G$148 -> 0 | BF49: =$O49*Utslippsfaktorer!H$148 -> 0 | BG49: =$O49*Utslippsfaktorer!I$148 -> 0 | BH49: =((IF($P49="",0,VLOOKUP($P49,Utslippsfaktorer!$C$9:$I$425,Utslippsfaktorer!E$5,FALSE)))*$T49)+($U49*Utslippsfaktorer!E$141) -> 0 | BI49: =((IF($P49="",0,VLOOKUP($P49,Utslippsfaktorer!$C$9:$I$425,Utslippsfaktorer!F$5,FALSE)))*$T49)+($U49*Utslippsfaktorer!F$141) -> 0 | BJ49: =((IF($P49="",0,VLOOKUP($P49,Utslippsfaktorer!$C$9:$I$425,Utslippsfaktorer!G$5,FALSE)))*$T49)+($U49*Utslippsfaktorer!G$141) -> 0 | BK49: =((IF($P49="",0,VLOOKUP($P49,Utslippsfaktorer!$C$9:$I$425,Utslippsfaktorer!H$5,FALSE)))*$T49)+($U49*Utslippsfaktorer!H$141) -> 0 | BL49: =((IF($P49="",0,VLOOKUP($P49,Utslippsfaktorer!$C$9:$I$425,Utslippsfaktorer!I$5,FALSE)))*$T49)+($U49*Utslippsfaktorer!I$141) -> 0 | BM49: 0 | BN49: 0 | BO49: 0 | BP49: 0 | BQ49: 0
B51: 15: RIVING OG FJERNING
B52: 15.1 | D52: Riving og fjerning av hus, grunnmurer, støttemurer etc. | F52: NOK | P52: =D52 -> Riving og fjerning av hus, grunnmurer, støttemurer etc. | R52: =E52 -> 0 | V52: =IF(P52="","",VLOOKUP(P52,Utslippsfaktorer!$C$9:$AL$391,Utslippsfaktorer!$AL$5,FALSE)) -> RS - Riving og fjerning | AH52: =$N52*Utslippsfaktorer!E$147 -> 0 | AI52: =$N52*Utslippsfaktorer!F$147 -> 0 | AJ52: =$N52*Utslippsfaktorer!G$147 -> 0 | AK52: =$N52*Utslippsfaktorer!H$147 -> 0 | AL52: =$N52*Utslippsfaktorer!I$147 -> 0 | AM52: =((IF($P52="",0,VLOOKUP($P52,Utslippsfaktorer!$C$9:$I$425,Utslippsfaktorer!E$5,FALSE)))*$R52)+($S52*Utslippsfaktorer!E$141) -> 0 | AN52: =((IF($P52="",0,VLOOKUP($P52,Utslippsfaktorer!$C$9:$I$425,Utslippsfaktorer!F$5,FALSE)))*$R52)+($S52*Utslippsfaktorer!F$141) -> 0 | AO52: =((IF($P52="",0,VLOOKUP($P52,Utslippsfaktorer!$C$9:$I$425,Utslippsfaktorer!G$5,FALSE)))*$R52)+($S52*Utslippsfaktorer!G$141) -> 0 | AP52: =((IF($P52="",0,VLOOKUP($P52,Utslippsfaktorer!$C$9:$I$425,Utslippsfaktorer!H$5,FALSE)))*$R52)+($S52*Utslippsfaktorer!H$141) -> 0 | AQ52: =((IF($P52="",0,VLOOKUP($P52,Utslippsfaktorer!$C$9:$I$425,Utslippsfaktorer!I$5,FALSE)))*$R52)+($S52*Utslippsfaktorer!I$141) -> 0 | AR52: 0 | AS52: 0 | AT52: 0 | AU52: 0 | AV52: 0 | AX52: =$J52*Utslippsfaktorer!E$131 -> 0 | AY52: =$J52*Utslippsfaktorer!F$131 -> 0 | AZ52: =$J52*Utslippsfaktorer!G$131 -> 0 | BA52: =$J52*Utslippsfaktorer!H$131 -> 0 | BB52: =$J52*Utslippsfaktorer!I$131 -> 0 | BC52: =$O52*Utslippsfaktorer!E$148 -> 0 | BD52: =$O52*Utslippsfaktorer!F$148 -> 0 | BE52: =$O52*Utslippsfaktorer!G$148 -> 0 | BF52: =$O52*Utslippsfaktorer!H$148 -> 0 | BG52: =$O52*Utslippsfaktorer!I$148 -> 0 | BH52: =((IF($P52="",0,VLOOKUP($P52,Utslippsfaktorer!$C$9:$I$425,Utslippsfaktorer!E$5,FALSE)))*$T52)+($U52*Utslippsfaktorer!E$141) -> 0 | BI52: =((IF($P52="",0,VLOOKUP($P52,Utslippsfaktorer!$C$9:$I$425,Utslippsfaktorer!F$5,FALSE)))*$T52)+($U52*Utslippsfaktorer!F$141) -> 0 | BJ52: =((IF($P52="",0,VLOOKUP($P52,Utslippsfaktorer!$C$9:$I$425,Utslippsfaktorer!G$5,FALSE)))*$T52)+($U52*Utslippsfaktorer!G$141) -> 0 | BK52: =((IF($P52="",0,VLOOKUP($P52,Utslippsfaktorer!$C$9:$I$425,Utslippsfaktorer!H$5,FALSE)))*$T52)+($U52*Utslippsfaktorer!H$141) -> 0 | BL52: =((IF($P52="",0,VLOOKUP($P52,Utslippsfaktorer!$C$9:$I$425,Utslippsfaktorer!I$5,FALSE)))*$T52)+($U52*Utslippsfaktorer!I$141) -> 0 | BM52: 0 | BN52: 0 | BO52: 0 | BP52: 0 | BQ52: 0
B53: 15.2 | D53: Riving og fjerning av bruer, brufundamenter etc. | F53: NOK | P53: =D53 -> Riving og fjerning av bruer, brufundamenter etc. | R53: =E53 -> 0 | V53: =IF(P53="","",VLOOKUP(P53,Utslippsfaktorer!$C$9:$AL$391,Utslippsfaktorer!$AL$5,FALSE)) -> RS - Riving og fjerning | AH53: =$N53*Utslippsfaktorer!E$147 -> 0 | AI53: =$N53*Utslippsfaktorer!F$147 -> 0 | AJ53: =$N53*Utslippsfaktorer!G$147 -> 0 | AK53: =$N53*Utslippsfaktorer!H$147 -> 0 | AL53: =$N53*Utslippsfaktorer!I$147 -> 0 | AM53: =((IF($P53="",0,VLOOKUP($P53,Utslippsfaktorer!$C$9:$I$425,Utslippsfaktorer!E$5,FALSE)))*$R53)+($S53*Utslippsfaktorer!E$141) -> 0 | AN53: =((IF($P53="",0,VLOOKUP($P53,Utslippsfaktorer!$C$9:$I$425,Utslippsfaktorer!F$5,FALSE)))*$R53)+($S53*Utslippsfaktorer!F$141) -> 0 | AO53: =((IF($P53="",0,VLOOKUP($P53,Utslippsfaktorer!$C$9:$I$425,Utslippsfaktorer!G$5,FALSE)))*$R53)+($S53*Utslippsfaktorer!G$141) -> 0 | AP53: =((IF($P53="",0,VLOOKUP($P53,Utslippsfaktorer!$C$9:$I$425,Utslippsfaktorer!H$5,FALSE)))*$R53)+($S53*Utslippsfaktorer!H$141) -> 0 | AQ53: =((IF($P53="",0,VLOOKUP($P53,Utslippsfaktorer!$C$9:$I$425,Utslippsfaktorer!I$5,FALSE)))*$R53)+($S53*Utslippsfaktorer!I$141) -> 0 | AR53: 0 | AS53: 0 | AT53: 0 | AU53: 0 | AV53: 0 | AX53: =$J53*Utslippsfaktorer!E$131 -> 0 | AY53: =$J53*Utslippsfaktorer!F$131 -> 0 | AZ53: =$J53*Utslippsfaktorer!G$131 -> 0 | BA53: =$J53*Utslippsfaktorer!H$131 -> 0 | BB53: =$J53*Utslippsfaktorer!I$131 -> 0 | BC53: =$O53*Utslippsfaktorer!E$148 -> 0 | BD53: =$O53*Utslippsfaktorer!F$148 -> 0 | BE53: =$O53*Utslippsfaktorer!G$148 -> 0 | BF53: =$O53*Utslippsfaktorer!H$148 -> 0 | BG53: =$O53*Utslippsfaktorer!I$148 -> 0 | BH53: =((IF($P53="",0,VLOOKUP($P53,Utslippsfaktorer!$C$9:$I$425,Utslippsfaktorer!E$5,FALSE)))*$T53)+($U53*Utslippsfaktorer!E$141) -> 0 | BI53: =((IF($P53="",0,VLOOKUP($P53,Utslippsfaktorer!$C$9:$I$425,Utslippsfaktorer!F$5,FALSE)))*$T53)+($U53*Utslippsfaktorer!F$141) -> 0 | BJ53: =((IF($P53="",0,VLOOKUP($P53,Utslippsfaktorer!$C$9:$I$425,Utslippsfaktorer!G$5,FALSE)))*$T53)+($U53*Utslippsfaktorer!G$141) -> 0 | BK53: =((IF($P53="",0,VLOOKUP($P53,Utslippsfaktorer!$C$9:$I$425,Utslippsfaktorer!H$5,FALSE)))*$T53)+($U53*Utslippsfaktorer!H$141) -> 0 | BL53: =((IF($P53="",0,VLOOKUP($P53,Utslippsfaktorer!$C$9:$I$425,Utslippsfaktorer!I$5,FALSE)))*$T53)+($U53*Utslippsfaktorer!I$141) -> 0 | BM53: 0 | BN53: 0 | BO53: 0 | BP53: 0 | BQ53: 0
B54: 15.3 | D54: Riving og fjerning av kummer, stikkrenner, kulverter og rørledninger | F54: NOK | P54: =D54 -> Riving og fjerning av kummer, stikkrenner, kulverter og rørledninger | R54: =E54 -> 0 | V54: =IF(P54="","",VLOOKUP(P54,Utslippsfaktorer!$C$9:$AL$391,Utslippsfaktorer!$AL$5,FALSE)) -> RS - Riving og fjerning | AH54: =$N54*Utslippsfaktorer!E$147 -> 0 | AI54: =$N54*Utslippsfaktorer!F$147 -> 0 | AJ54: =$N54*Utslippsfaktorer!G$147 -> 0 | AK54: =$N54*Utslippsfaktorer!H$147 -> 0 | AL54: =$N54*Utslippsfaktorer!I$147 -> 0 | AM54: =((IF($P54="",0,VLOOKUP($P54,Utslippsfaktorer!$C$9:$I$425,Utslippsfaktorer!E$5,FALSE)))*$R54)+($S54*Utslippsfaktorer!E$141) -> 0 | AN54: =((IF($P54="",0,VLOOKUP($P54,Utslippsfaktorer!$C$9:$I$425,Utslippsfaktorer!F$5,FALSE)))*$R54)+($S54*Utslippsfaktorer!F$141) -> 0 | AO54: =((IF($P54="",0,VLOOKUP($P54,Utslippsfaktorer!$C$9:$I$425,Utslippsfaktorer!G$5,FALSE)))*$R54)+($S54*Utslippsfaktorer!G$141) -> 0 | AP54: =((IF($P54="",0,VLOOKUP($P54,Utslippsfaktorer!$C$9:$I$425,Utslippsfaktorer!H$5,FALSE)))*$R54)+($S54*Utslippsfaktorer!H$141) -> 0 | AQ54: =((IF($P54="",0,VLOOKUP($P54,Utslippsfaktorer!$C$9:$I$425,Utslippsfaktorer!I$5,FALSE)))*$R54)+($S54*Utslippsfaktorer!I$141) -> 0 | AR54: 0 | AS54: 0 | AT54: 0 | AU54: 0 | AV54: 0 | AX54: =$J54*Utslippsfaktorer!E$131 -> 0 | AY54: =$J54*Utslippsfaktorer!F$131 -> 0 | AZ54: =$J54*Utslippsfaktorer!G$131 -> 0 | BA54: =$J54*Utslippsfaktorer!H$131 -> 0 | BB54: =$J54*Utslippsfaktorer!I$131 -> 0 | BC54: =$O54*Utslippsfaktorer!E$148 -> 0 | BD54: =$O54*Utslippsfaktorer!F$148 -> 0 | BE54: =$O54*Utslippsfaktorer!G$148 -> 0 | BF54: =$O54*Utslippsfaktorer!H$148 -> 0 | BG54: =$O54*Utslippsfaktorer!I$148 -> 0 | BH54: =((IF($P54="",0,VLOOKUP($P54,Utslippsfaktorer!$C$9:$I$425,Utslippsfaktorer!E$5,FALSE)))*$T54)+($U54*Utslippsfaktorer!E$141) -> 0 | BI54: =((IF($P54="",0,VLOOKUP($P54,Utslippsfaktorer!$C$9:$I$425,Utslippsfaktorer!F$5,FALSE)))*$T54)+($U54*Utslippsfaktorer!F$141) -> 0 | BJ54: =((IF($P54="",0,VLOOKUP($P54,Utslippsfaktorer!$C$9:$I$425,Utslippsfaktorer!G$5,FALSE)))*$T54)+($U54*Utslippsfaktorer!G$141) -> 0 | BK54: =((IF($P54="",0,VLOOKUP($P54,Utslippsfaktorer!$C$9:$I$425,Utslippsfaktorer!H$5,FALSE)))*$T54)+($U54*Utslippsfaktorer!H$141) -> 0 | BL54: =((IF($P54="",0,VLOOKUP($P54,Utslippsfaktorer!$C$9:$I$425,Utslippsfaktorer!I$5,FALSE)))*$T54)+($U54*Utslippsfaktorer!I$141) -> 0 | BM54: 0 | BN54: 0 | BO54: 0 | BP54: 0 | BQ54: 0
B55: 15.4 | D55: Riving og fjerning av kantstein, rekkverk, skilt, vegutstyr mm | F55: NOK | P55: =D55 -> Riving og fjerning av kantstein, rekkverk, skilt, vegutstyr mm | R55: =E55 -> 0 | V55: =IF(P55="","",VLOOKUP(P55,Utslippsfaktorer!$C$9:$AL$391,Utslippsfaktorer!$AL$5,FALSE)) -> RS - Riving og fjerning | AH55: =$N55*Utslippsfaktorer!E$147 -> 0 | AI55: =$N55*Utslippsfaktorer!F$147 -> 0 | AJ55: =$N55*Utslippsfaktorer!G$147 -> 0 | AK55: =$N55*Utslippsfaktorer!H$147 -> 0 | AL55: =$N55*Utslippsfaktorer!I$147 -> 0 | AM55: =((IF($P55="",0,VLOOKUP($P55,Utslippsfaktorer!$C$9:$I$425,Utslippsfaktorer!E$5,FALSE)))*$R55)+($S55*Utslippsfaktorer!E$141) -> 0 | AN55: =((IF($P55="",0,VLOOKUP($P55,Utslippsfaktorer!$C$9:$I$425,Utslippsfaktorer!F$5,FALSE)))*$R55)+($S55*Utslippsfaktorer!F$141) -> 0 | AO55: =((IF($P55="",0,VLOOKUP($P55,Utslippsfaktorer!$C$9:$I$425,Utslippsfaktorer!G$5,FALSE)))*$R55)+($S55*Utslippsfaktorer!G$141) -> 0 | AP55: =((IF($P55="",0,VLOOKUP($P55,Utslippsfaktorer!$C$9:$I$425,Utslippsfaktorer!H$5,FALSE)))*$R55)+($S55*Utslippsfaktorer!H$141) -> 0 | AQ55: =((IF($P55="",0,VLOOKUP($P55,Utslippsfaktorer!$C$9:$I$425,Utslippsfaktorer!I$5,FALSE)))*$R55)+($S55*Utslippsfaktorer!I$141) -> 0 | AR55: 0 | AS55: 0 | AT55: 0 | AU55: 0 | AV55: 0 | AX55: =$J55*Utslippsfaktorer!E$131 -> 0 | AY55: =$J55*Utslippsfaktorer!F$131 -> 0 | AZ55: =$J55*Utslippsfaktorer!G$131 -> 0 | BA55: =$J55*Utslippsfaktorer!H$131 -> 0 | BB55: =$J55*Utslippsfaktorer!I$131 -> 0 | BC55: =$O55*Utslippsfaktorer!E$148 -> 0 | BD55: =$O55*Utslippsfaktorer!F$148 -> 0 | BE55: =$O55*Utslippsfaktorer!G$148 -> 0 | BF55: =$O55*Utslippsfaktorer!H$148 -> 0 | BG55: =$O55*Utslippsfaktorer!I$148 -> 0 | BH55: =((IF($P55="",0,VLOOKUP($P55,Utslippsfaktorer!$C$9:$I$425,Utslippsfaktorer!E$5,FALSE)))*$T55)+($U55*Utslippsfaktorer!E$141) -> 0 | BI55: =((IF($P55="",0,VLOOKUP($P55,Utslippsfaktorer!$C$9:$I$425,Utslippsfaktorer!F$5,FALSE)))*$T55)+($U55*Utslippsfaktorer!F$141) -> 0 | BJ55: =((IF($P55="",0,VLOOKUP($P55,Utslippsfaktorer!$C$9:$I$425,Utslippsfaktorer!G$5,FALSE)))*$T55)+($U55*Utslippsfaktorer!G$141) -> 0 | BK55: =((IF($P55="",0,VLOOKUP($P55,Utslippsfaktorer!$C$9:$I$425,Utslippsfaktorer!H$5,FALSE)))*$T55)+($U55*Utslippsfaktorer!H$141) -> 0 | BL55: =((IF($P55="",0,VLOOKUP($P55,Utslippsfaktorer!$C$9:$I$425,Utslippsfaktorer!I$5,FALSE)))*$T55)+($U55*Utslippsfaktorer!I$141) -> 0 | BM55: 0 | BN55: 0 | BO55: 0 | BP55: 0 | BQ55: 0
B56: 15.5 | D56: Riving og fjerning av gjerder og stolper med fundamentering | F56: m | P56: =D56 -> Riving og fjerning av gjerder og stolper med fundamentering | R56: =E56 -> 0 | V56: =IF(P56="","",VLOOKUP(P56,Utslippsfaktorer!$C$9:$AL$391,Utslippsfaktorer!$AL$5,FALSE)) -> RS - Riving og fjerning | AH56: =$N56*Utslippsfaktorer!E$147 -> 0 | AI56: =$N56*Utslippsfaktorer!F$147 -> 0 | AJ56: =$N56*Utslippsfaktorer!G$147 -> 0 | AK56: =$N56*Utslippsfaktorer!H$147 -> 0 | AL56: =$N56*Utslippsfaktorer!I$147 -> 0 | AM56: =((IF($P56="",0,VLOOKUP($P56,Utslippsfaktorer!$C$9:$I$425,Utslippsfaktorer!E$5,FALSE)))*$R56)+($S56*Utslippsfaktorer!E$141) -> 0 | AN56: =((IF($P56="",0,VLOOKUP($P56,Utslippsfaktorer!$C$9:$I$425,Utslippsfaktorer!F$5,FALSE)))*$R56)+($S56*Utslippsfaktorer!F$141) -> 0 | AO56: =((IF($P56="",0,VLOOKUP($P56,Utslippsfaktorer!$C$9:$I$425,Utslippsfaktorer!G$5,FALSE)))*$R56)+($S56*Utslippsfaktorer!G$141) -> 0 | AP56: =((IF($P56="",0,VLOOKUP($P56,Utslippsfaktorer!$C$9:$I$425,Utslippsfaktorer!H$5,FALSE)))*$R56)+($S56*Utslippsfaktorer!H$141) -> 0 | AQ56: =((IF($P56="",0,VLOOKUP($P56,Utslippsfaktorer!$C$9:$I$425,Utslippsfaktorer!I$5,FALSE)))*$R56)+($S56*Utslippsfaktorer!I$141) -> 0 | AR56: 0 | AS56: 0 | AT56: 0 | AU56: 0 | AV56: 0 | AX56: =$J56*Utslippsfaktorer!E$131 -> 0 | AY56: =$J56*Utslippsfaktorer!F$131 -> 0 | AZ56: =$J56*Utslippsfaktorer!G$131 -> 0 | BA56: =$J56*Utslippsfaktorer!H$131 -> 0 | BB56: =$J56*Utslippsfaktorer!I$131 -> 0 | BC56: =$O56*Utslippsfaktorer!E$148 -> 0 | BD56: =$O56*Utslippsfaktorer!F$148 -> 0 | BE56: =$O56*Utslippsfaktorer!G$148 -> 0 | BF56: =$O56*Utslippsfaktorer!H$148 -> 0 | BG56: =$O56*Utslippsfaktorer!I$148 -> 0 | BH56: =((IF($P56="",0,VLOOKUP($P56,Utslippsfaktorer!$C$9:$I$425,Utslippsfaktorer!E$5,FALSE)))*$T56)+($U56*Utslippsfaktorer!E$141) -> 0 | BI56: =((IF($P56="",0,VLOOKUP($P56,Utslippsfaktorer!$C$9:$I$425,Utslippsfaktorer!F$5,FALSE)))*$T56)+($U56*Utslippsfaktorer!F$141) -> 0 | BJ56: =((IF($P56="",0,VLOOKUP($P56,Utslippsfaktorer!$C$9:$I$425,Utslippsfaktorer!G$5,FALSE)))*$T56)+($U56*Utslippsfaktorer!G$141) -> 0 | BK56: =((IF($P56="",0,VLOOKUP($P56,Utslippsfaktorer!$C$9:$I$425,Utslippsfaktorer!H$5,FALSE)))*$T56)+($U56*Utslippsfaktorer!H$141) -> 0 | BL56: =((IF($P56="",0,VLOOKUP($P56,Utslippsfaktorer!$C$9:$I$425,Utslippsfaktorer!I$5,FALSE)))*$T56)+($U56*Utslippsfaktorer!I$141) -> 0 | BM56: 0 | BN56: 0 | BO56: 0 | BP56: 0 | BQ56: 0
B58: 16: FLYTTING OG OMLEGGING
B59: 16.1 | D59: Flytting av hus | F59: NOK | P59: =D59 -> Flytting av hus | R59: =E59 -> 0 | V59: =IF(P59="","",VLOOKUP(P59,Utslippsfaktorer!$C$9:$AL$391,Utslippsfaktorer!$AL$5,FALSE)) -> RS - Flytting og omlegging | AH59: =$N59*Utslippsfaktorer!E$147 -> 0 | AI59: =$N59*Utslippsfaktorer!F$147 -> 0 | AJ59: =$N59*Utslippsfaktorer!G$147 -> 0 | AK59: =$N59*Utslippsfaktorer!H$147 -> 0 | AL59: =$N59*Utslippsfaktorer!I$147 -> 0 | AM59: =((IF($P59="",0,VLOOKUP($P59,Utslippsfaktorer!$C$9:$I$425,Utslippsfaktorer!E$5,FALSE)))*$R59)+($S59*Utslippsfaktorer!E$141) -> 0 | AN59: =((IF($P59="",0,VLOOKUP($P59,Utslippsfaktorer!$C$9:$I$425,Utslippsfaktorer!F$5,FALSE)))*$R59)+($S59*Utslippsfaktorer!F$141) -> 0 | AO59: =((IF($P59="",0,VLOOKUP($P59,Utslippsfaktorer!$C$9:$I$425,Utslippsfaktorer!G$5,FALSE)))*$R59)+($S59*Utslippsfaktorer!G$141) -> 0 | AP59: =((IF($P59="",0,VLOOKUP($P59,Utslippsfaktorer!$C$9:$I$425,Utslippsfaktorer!H$5,FALSE)))*$R59)+($S59*Utslippsfaktorer!H$141) -> 0 | AQ59: =((IF($P59="",0,VLOOKUP($P59,Utslippsfaktorer!$C$9:$I$425,Utslippsfaktorer!I$5,FALSE)))*$R59)+($S59*Utslippsfaktorer!I$141) -> 0 | AR59: 0 | AS59: 0 | AT59: 0 | AU59: 0 | AV59: 0 | AX59: =$J59*Utslippsfaktorer!E$131 -> 0 | AY59: =$J59*Utslippsfaktorer!F$131 -> 0 | AZ59: =$J59*Utslippsfaktorer!G$131 -> 0 | BA59: =$J59*Utslippsfaktorer!H$131 -> 0 | BB59: =$J59*Utslippsfaktorer!I$131 -> 0 | BC59: =$O59*Utslippsfaktorer!E$148 -> 0 | BD59: =$O59*Utslippsfaktorer!F$148 -> 0 | BE59: =$O59*Utslippsfaktorer!G$148 -> 0 | BF59: =$O59*Utslippsfaktorer!H$148 -> 0 | BG59: =$O59*Utslippsfaktorer!I$148 -> 0 | BH59: =((IF($P59="",0,VLOOKUP($P59,Utslippsfaktorer!$C$9:$I$425,Utslippsfaktorer!E$5,FALSE)))*$T59)+($U59*Utslippsfaktorer!E$141) -> 0 | BI59: =((IF($P59="",0,VLOOKUP($P59,Utslippsfaktorer!$C$9:$I$425,Utslippsfaktorer!F$5,FALSE)))*$T59)+($U59*Utslippsfaktorer!F$141) -> 0 | BJ59: =((IF($P59="",0,VLOOKUP($P59,Utslippsfaktorer!$C$9:$I$425,Utslippsfaktorer!G$5,FALSE)))*$T59)+($U59*Utslippsfaktorer!G$141) -> 0 | BK59: =((IF($P59="",0,VLOOKUP($P59,Utslippsfaktorer!$C$9:$I$425,Utslippsfaktorer!H$5,FALSE)))*$T59)+($U59*Utslippsfaktorer!H$141) -> 0 | BL59: =((IF($P59="",0,VLOOKUP($P59,Utslippsfaktorer!$C$9:$I$425,Utslippsfaktorer!I$5,FALSE)))*$T59)+($U59*Utslippsfaktorer!I$141) -> 0 | BM59: 0 | BN59: 0 | BO59: 0 | BP59: 0 | BQ59: 0
B60: 16.2 | D60: Flytting og omlegging av private vann- og avløpsledninger, brønner | F60: NOK | P60: =D60 -> Flytting og omlegging av private vann- og avløpsledninger, brønner | R60: =E60 -> 0 | V60: =IF(P60="","",VLOOKUP(P60,Utslippsfaktorer!$C$9:$AL$391,Utslippsfaktorer!$AL$5,FALSE)) -> RS - Flytting og omlegging | AH60: =$N60*Utslippsfaktorer!E$147 -> 0 | AI60: =$N60*Utslippsfaktorer!F$147 -> 0 | AJ60: =$N60*Utslippsfaktorer!G$147 -> 0 | AK60: =$N60*Utslippsfaktorer!H$147 -> 0 | AL60: =$N60*Utslippsfaktorer!I$147 -> 0 | AM60: =((IF($P60="",0,VLOOKUP($P60,Utslippsfaktorer!$C$9:$I$425,Utslippsfaktorer!E$5,FALSE)))*$R60)+($S60*Utslippsfaktorer!E$141) -> 0 | AN60: =((IF($P60="",0,VLOOKUP($P60,Utslippsfaktorer!$C$9:$I$425,Utslippsfaktorer!F$5,FALSE)))*$R60)+($S60*Utslippsfaktorer!F$141) -> 0 | AO60: =((IF($P60="",0,VLOOKUP($P60,Utslippsfaktorer!$C$9:$I$425,Utslippsfaktorer!G$5,FALSE)))*$R60)+($S60*Utslippsfaktorer!G$141) -> 0 | AP60: =((IF($P60="",0,VLOOKUP($P60,Utslippsfaktorer!$C$9:$I$425,Utslippsfaktorer!H$5,FALSE)))*$R60)+($S60*Utslippsfaktorer!H$141) -> 0 | AQ60: =((IF($P60="",0,VLOOKUP($P60,Utslippsfaktorer!$C$9:$I$425,Utslippsfaktorer!I$5,FALSE)))*$R60)+($S60*Utslippsfaktorer!I$141) -> 0 | AR60: 0 | AS60: 0 | AT60: 0 | AU60: 0 | AV60: 0 | AX60: =$J60*Utslippsfaktorer!E$131 -> 0 | AY60: =$J60*Utslippsfaktorer!F$131 -> 0 | AZ60: =$J60*Utslippsfaktorer!G$131 -> 0 | BA60: =$J60*Utslippsfaktorer!H$131 -> 0 | BB60: =$J60*Utslippsfaktorer!I$131 -> 0 | BC60: =$O60*Utslippsfaktorer!E$148 -> 0 | BD60: =$O60*Utslippsfaktorer!F$148 -> 0 | BE60: =$O60*Utslippsfaktorer!G$148 -> 0 | BF60: =$O60*Utslippsfaktorer!H$148 -> 0 | BG60: =$O60*Utslippsfaktorer!I$148 -> 0 | BH60: =((IF($P60="",0,VLOOKUP($P60,Utslippsfaktorer!$C$9:$I$425,Utslippsfaktorer!E$5,FALSE)))*$T60)+($U60*Utslippsfaktorer!E$141) -> 0 | BI60: =((IF($P60="",0,VLOOKUP($P60,Utslippsfaktorer!$C$9:$I$425,Utslippsfaktorer!F$5,FALSE)))*$T60)+($U60*Utslippsfaktorer!F$141) -> 0 | BJ60: =((IF($P60="",0,VLOOKUP($P60,Utslippsfaktorer!$C$9:$I$425,Utslippsfaktorer!G$5,FALSE)))*$T60)+($U60*Utslippsfaktorer!G$141) -> 0 | BK60: =((IF($P60="",0,VLOOKUP($P60,Utslippsfaktorer!$C$9:$I$425,Utslippsfaktorer!H$5,FALSE)))*$T60)+($U60*Utslippsfaktorer!H$141) -> 0 | BL60: =((IF($P60="",0,VLOOKUP($P60,Utslippsfaktorer!$C$9:$I$425,Utslippsfaktorer!I$5,FALSE)))*$T60)+($U60*Utslippsfaktorer!I$141) -> 0 | BM60: 0 | BN60: 0 | BO60: 0 | BP60: 0 | BQ60: 0
B61: 16.3 | D61: Fjerning/flytting av kabler og utstyr | F61: NOK | P61: =D61 -> Fjerning/flytting av kabler og utstyr | R61: =E61 -> 0 | V61: =IF(P61="","",VLOOKUP(P61,Utslippsfaktorer!$C$9:$AL$391,Utslippsfaktorer!$AL$5,FALSE)) -> RS - Flytting og omlegging | AH61: =$N61*Utslippsfaktorer!E$147 -> 0 | AI61: =$N61*Utslippsfaktorer!F$147 -> 0 | AJ61: =$N61*Utslippsfaktorer!G$147 -> 0 | AK61: =$N61*Utslippsfaktorer!H$147 -> 0 | AL61: =$N61*Utslippsfaktorer!I$147 -> 0 | AM61: =((IF($P61="",0,VLOOKUP($P61,Utslippsfaktorer!$C$9:$I$425,Utslippsfaktorer!E$5,FALSE)))*$R61)+($S61*Utslippsfaktorer!E$141) -> 0 | AN61: =((IF($P61="",0,VLOOKUP($P61,Utslippsfaktorer!$C$9:$I$425,Utslippsfaktorer!F$5,FALSE)))*$R61)+($S61*Utslippsfaktorer!F$141) -> 0 | AO61: =((IF($P61="",0,VLOOKUP($P61,Utslippsfaktorer!$C$9:$I$425,Utslippsfaktorer!G$5,FALSE)))*$R61)+($S61*Utslippsfaktorer!G$141) -> 0 | AP61: =((IF($P61="",0,VLOOKUP($P61,Utslippsfaktorer!$C$9:$I$425,Utslippsfaktorer!H$5,FALSE)))*$R61)+($S61*Utslippsfaktorer!H$141) -> 0 | AQ61: =((IF($P61="",0,VLOOKUP($P61,Utslippsfaktorer!$C$9:$I$425,Utslippsfaktorer!I$5,FALSE)))*$R61)+($S61*Utslippsfaktorer!I$141) -> 0 | AR61: 0 | AS61: 0 | AT61: 0 | AU61: 0 | AV61: 0 | AX61: =$J61*Utslippsfaktorer!E$131 -> 0 | AY61: =$J61*Utslippsfaktorer!F$131 -> 0 | AZ61: =$J61*Utslippsfaktorer!G$131 -> 0 | BA61: =$J61*Utslippsfaktorer!H$131 -> 0 | BB61: =$J61*Utslippsfaktorer!I$131 -> 0 | BC61: =$O61*Utslippsfaktorer!E$148 -> 0 | BD61: =$O61*Utslippsfaktorer!F$148 -> 0 | BE61: =$O61*Utslippsfaktorer!G$148 -> 0 | BF61: =$O61*Utslippsfaktorer!H$148 -> 0 | BG61: =$O61*Utslippsfaktorer!I$148 -> 0 | BH61: =((IF($P61="",0,VLOOKUP($P61,Utslippsfaktorer!$C$9:$I$425,Utslippsfaktorer!E$5,FALSE)))*$T61)+($U61*Utslippsfaktorer!E$141) -> 0 | BI61: =((IF($P61="",0,VLOOKUP($P61,Utslippsfaktorer!$C$9:$I$425,Utslippsfaktorer!F$5,FALSE)))*$T61)+($U61*Utslippsfaktorer!F$141) -> 0 | BJ61: =((IF($P61="",0,VLOOKUP($P61,Utslippsfaktorer!$C$9:$I$425,Utslippsfaktorer!G$5,FALSE)))*$T61)+($U61*Utslippsfaktorer!G$141) -> 0 | BK61: =((IF($P61="",0,VLOOKUP($P61,Utslippsfaktorer!$C$9:$I$425,Utslippsfaktorer!H$5,FALSE)))*$T61)+($U61*Utslippsfaktorer!H$141) -> 0 | BL61: =((IF($P61="",0,VLOOKUP($P61,Utslippsfaktorer!$C$9:$I$425,Utslippsfaktorer!I$5,FALSE)))*$T61)+($U61*Utslippsfaktorer!I$141) -> 0 | BM61: 0 | BN61: 0 | BO61: 0 | BP61: 0 | BQ61: 0
B62: 16.4 | D62: Midlertidig flytting og omlegging av eksisterende bekkeløp | F62: m | P62: =D62 -> Midlertidig flytting og omlegging av eksisterende bekkeløp | R62: =E62 -> 0 | V62: =IF(P62="","",VLOOKUP(P62,Utslippsfaktorer!$C$9:$AL$391,Utslippsfaktorer!$AL$5,FALSE)) -> RS - Flytting og omlegging | AH62: =$N62*Utslippsfaktorer!E$147 -> 0 | AI62: =$N62*Utslippsfaktorer!F$147 -> 0 | AJ62: =$N62*Utslippsfaktorer!G$147 -> 0 | AK62: =$N62*Utslippsfaktorer!H$147 -> 0 | AL62: =$N62*Utslippsfaktorer!I$147 -> 0 | AM62: =((IF($P62="",0,VLOOKUP($P62,Utslippsfaktorer!$C$9:$I$425,Utslippsfaktorer!E$5,FALSE)))*$R62)+($S62*Utslippsfaktorer!E$141) -> 0 | AN62: =((IF($P62="",0,VLOOKUP($P62,Utslippsfaktorer!$C$9:$I$425,Utslippsfaktorer!F$5,FALSE)))*$R62)+($S62*Utslippsfaktorer!F$141) -> 0 | AO62: =((IF($P62="",0,VLOOKUP($P62,Utslippsfaktorer!$C$9:$I$425,Utslippsfaktorer!G$5,FALSE)))*$R62)+($S62*Utslippsfaktorer!G$141) -> 0 | AP62: =((IF($P62="",0,VLOOKUP($P62,Utslippsfaktorer!$C$9:$I$425,Utslippsfaktorer!H$5,FALSE)))*$R62)+($S62*Utslippsfaktorer!H$141) -> 0 | AQ62: =((IF($P62="",0,VLOOKUP($P62,Utslippsfaktorer!$C$9:$I$425,Utslippsfaktorer!I$5,FALSE)))*$R62)+($S62*Utslippsfaktorer!I$141) -> 0 | AR62: 0 | AS62: 0 | AT62: 0 | AU62: 0 | AV62: 0 | AX62: =$J62*Utslippsfaktorer!E$131 -> 0 | AY62: =$J62*Utslippsfaktorer!F$131 -> 0 | AZ62: =$J62*Utslippsfaktorer!G$131 -> 0 | BA62: =$J62*Utslippsfaktorer!H$131 -> 0 | BB62: =$J62*Utslippsfaktorer!I$131 -> 0 | BC62: =$O62*Utslippsfaktorer!E$148 -> 0 | BD62: =$O62*Utslippsfaktorer!F$148 -> 0 | BE62: =$O62*Utslippsfaktorer!G$148 -> 0 | BF62: =$O62*Utslippsfaktorer!H$148 -> 0 | BG62: =$O62*Utslippsfaktorer!I$148 -> 0 | BH62: =((IF($P62="",0,VLOOKUP($P62,Utslippsfaktorer!$C$9:$I$425,Utslippsfaktorer!E$5,FALSE)))*$T62)+($U62*Utslippsfaktorer!E$141) -> 0 | BI62: =((IF($P62="",0,VLOOKUP($P62,Utslippsfaktorer!$C$9:$I$425,Utslippsfaktorer!F$5,FALSE)))*$T62)+($U62*Utslippsfaktorer!F$141) -> 0 | BJ62: =((IF($P62="",0,VLOOKUP($P62,Utslippsfaktorer!$C$9:$I$425,Utslippsfaktorer!G$5,FALSE)))*$T62)+($U62*Utslippsfaktorer!G$141) -> 0 | BK62: =((IF($P62="",0,VLOOKUP($P62,Utslippsfaktorer!$C$9:$I$425,Utslippsfaktorer!H$5,FALSE)))*$T62)+($U62*Utslippsfaktorer!H$141) -> 0 | BL62: =((IF($P62="",0,VLOOKUP($P62,Utslippsfaktorer!$C$9:$I$425,Utslippsfaktorer!I$5,FALSE)))*$T62)+($U62*Utslippsfaktorer!I$141) -> 0 | BM62: 0 | BN62: 0 | BO62: 0 | BP62: 0 | BQ62: 0
B63: 16.5 | D63: Flytting og omlegging av gjerder | F63: m | P63: =D63 -> Flytting og omlegging av gjerder | R63: =E63 -> 0 | V63: =IF(P63="","",VLOOKUP(P63,Utslippsfaktorer!$C$9:$AL$391,Utslippsfaktorer!$AL$5,FALSE)) -> RS - Flytting og omlegging | AH63: =$N63*Utslippsfaktorer!E$147 -> 0 | AI63: =$N63*Utslippsfaktorer!F$147 -> 0 | AJ63: =$N63*Utslippsfaktorer!G$147 -> 0 | AK63: =$N63*Utslippsfaktorer!H$147 -> 0 | AL63: =$N63*Utslippsfaktorer!I$147 -> 0 | AM63: =((IF($P63="",0,VLOOKUP($P63,Utslippsfaktorer!$C$9:$I$425,Utslippsfaktorer!E$5,FALSE)))*$R63)+($S63*Utslippsfaktorer!E$141) -> 0 | AN63: =((IF($P63="",0,VLOOKUP($P63,Utslippsfaktorer!$C$9:$I$425,Utslippsfaktorer!F$5,FALSE)))*$R63)+($S63*Utslippsfaktorer!F$141) -> 0 | AO63: =((IF($P63="",0,VLOOKUP($P63,Utslippsfaktorer!$C$9:$I$425,Utslippsfaktorer!G$5,FALSE)))*$R63)+($S63*Utslippsfaktorer!G$141) -> 0 | AP63: =((IF($P63="",0,VLOOKUP($P63,Utslippsfaktorer!$C$9:$I$425,Utslippsfaktorer!H$5,FALSE)))*$R63)+($S63*Utslippsfaktorer!H$141) -> 0 | AQ63: =((IF($P63="",0,VLOOKUP($P63,Utslippsfaktorer!$C$9:$I$425,Utslippsfaktorer!I$5,FALSE)))*$R63)+($S63*Utslippsfaktorer!I$141) -> 0 | AR63: 0 | AS63: 0 | AT63: 0 | AU63: 0 | AV63: 0 | AX63: =$J63*Utslippsfaktorer!E$131 -> 0 | AY63: =$J63*Utslippsfaktorer!F$131 -> 0 | AZ63: =$J63*Utslippsfaktorer!G$131 -> 0 | BA63: =$J63*Utslippsfaktorer!H$131 -> 0 | BB63: =$J63*Utslippsfaktorer!I$131 -> 0 | BC63: =$O63*Utslippsfaktorer!E$148 -> 0 | BD63: =$O63*Utslippsfaktorer!F$148 -> 0 | BE63: =$O63*Utslippsfaktorer!G$148 -> 0 | BF63: =$O63*Utslippsfaktorer!H$148 -> 0 | BG63: =$O63*Utslippsfaktorer!I$148 -> 0 | BH63: =((IF($P63="",0,VLOOKUP($P63,Utslippsfaktorer!$C$9:$I$425,Utslippsfaktorer!E$5,FALSE)))*$T63)+($U63*Utslippsfaktorer!E$141) -> 0 | BI63: =((IF($P63="",0,VLOOKUP($P63,Utslippsfaktorer!$C$9:$I$425,Utslippsfaktorer!F$5,FALSE)))*$T63)+($U63*Utslippsfaktorer!F$141) -> 0 | BJ63: =((IF($P63="",0,VLOOKUP($P63,Utslippsfaktorer!$C$9:$I$425,Utslippsfaktorer!G$5,FALSE)))*$T63)+($U63*Utslippsfaktorer!G$141) -> 0 | BK63: =((IF($P63="",0,VLOOKUP($P63,Utslippsfaktorer!$C$9:$I$425,Utslippsfaktorer!H$5,FALSE)))*$T63)+($U63*Utslippsfaktorer!H$141) -> 0 | BL63: =((IF($P63="",0,VLOOKUP($P63,Utslippsfaktorer!$C$9:$I$425,Utslippsfaktorer!I$5,FALSE)))*$T63)+($U63*Utslippsfaktorer!I$141) -> 0 | BM63: 0 | BN63: 0 | BO63: 0 | BP63: 0 | BQ63: 0
H64: SUM | I64: =SUM(I10:I63) -> 0 | J64: =SUM(J10:J63) -> 0 | K64: 0 | L64: 0 | M64: 0 | N64: 0 | O64: 0 | P64: 0 | R64: 0 | S64: 0 | T64: 0 | U64: 0 | V64: 0 | X64: 0 | Y64: 0 | Z64: 0 | AA64: 0 | AB64: 0 | AC64: =SUM(AC10:AC63) -> 0 | AD64: 0 | AE64: 0 | AF64: 0 | AG64: 0 | AH64: 0 | AI64: 0 | AJ64: 0 | AK64: 0 | AL64: 0 | AM64: 0 | AN64: 0 | AO64: 0 | AP64: 0 | AQ64: 0 | AR64: 0 | AS64: 0 | AT64: 0 | AU64: 0 | AV64: 0 | AX64: =SUM(AX10:AX63) -> 0 | AY64: 0 | AZ64: 0 | BA64: 0 | BB64: 0 | BC64: 0 | BD64: 0 | BE64: 0 | BF64: 0 | BG64: 0 | BH64: 0 | BI64: 0 | BJ64: 0 | BK64: 0 | BL64: 0 | BM64: 0 | BN64: 0 | BO64: 0 | BP64: 0 | BQ64: 0
B65: 02: SPRENGNING OG MASSEFLYTTING
Q66: =IF(P66="","",VLOOKUP(P66,Utslippsfaktorer!$C$9:$D$392,2,FALSE)) ->  | V66: =IF(P66="","",VLOOKUP(P66,Utslippsfaktorer!$C$9:$AL$391,Utslippsfaktorer!$AL$5,FALSE)) -> 
B67: 21: VEGETASJON, MATJORD, BERGRENSK | Q67: =IF(P67="","",VLOOKUP(P67,Utslippsfaktorer!$C$9:$D$392,2,FALSE)) ->  | V67: =IF(P67="","",VLOOKUP(P67,Utslippsfaktorer!$C$9:$AL$391,Utslippsfaktorer!$AL$5,FALSE)) -> 
B68: 21.2 | C68: Velg bonitetsklasse | D68: Vegetasjonsrydding | F68: m2 | I68: =E68*Beregningsfaktorer!M47*Beregningsfaktorer!M46 -> 0 | K68: Felling/rydding av skog | L68: =E68*Beregningsfaktorer!M47*Beregningsfaktorer!C$244*Beregningsfaktorer!M$13 -> 0 | M68: antar transport til depot | Q68: =IF(P68="","",VLOOKUP(P68,Utslippsfaktorer!$C$9:$D$392,2,FALSE)) ->  | S68: =IF((OR(F68=Nedtrekksmenyer!$F$4,P68="")),0,VLOOKUP(P68,Beregningsfaktorer!$L$70:$Q$328,Beregningsfaktorer!$Q$70,FALSE))*R68 -> 0 | U68: =IF((OR(F68=Nedtrekksmenyer!$F$4,P68="")),0,VLOOKUP(P68,Beregningsfaktorer!$L$70:$Q$328,Beregningsfaktorer!$Q$70,FALSE))*T68 -> 0 | V68: =IF(P68="","",VLOOKUP(P68,Utslippsfaktorer!$C$9:$AL$391,Utslippsfaktorer!$AL$5,FALSE)) ->  | X68: =$I68*Utslippsfaktorer!E$131 -> 0 | Y68: =$I68*Utslippsfaktorer!F$131 -> 0 | Z68: =$I68*Utslippsfaktorer!G$131 -> 0 | AA68: =$I68*Utslippsfaktorer!H$131 -> 0 | AB68: =$I68*Utslippsfaktorer!I$131 -> 0 | AC68: =$L68*Utslippsfaktorer!E$142*Utslippsfaktorer!$AO$142 -> 0 | AD68: =$L68*Utslippsfaktorer!F$142*Utslippsfaktorer!$AO$142 -> 0 | AE68: =$L68*Utslippsfaktorer!G$142*Utslippsfaktorer!$AO$142 -> 0 | AF68: =$L68*Utslippsfaktorer!H$142*Utslippsfaktorer!$AO$142 -> 0 | AG68: =$L68*Utslippsfaktorer!I$142*Utslippsfaktorer!$AO$142 -> 0 | AH68: =$N68*Utslippsfaktorer!E$147 -> 0 | AI68: =$N68*Utslippsfaktorer!F$147 -> 0 | AJ68: =$N68*Utslippsfaktorer!G$147 -> 0 | AK68: =$N68*Utslippsfaktorer!H$147 -> 0 | AL68: =$N68*Utslippsfaktorer!I$147 -> 0 | AM68: =((IF($P68="",0,VLOOKUP($P68,Utslippsfaktorer!$C$9:$I$425,Utslippsfaktorer!E$5,FALSE)))*$R68)+($S68*Utslippsfaktorer!E$141) -> 0 | AN68: =((IF($P68="",0,VLOOKUP($P68,Utslippsfaktorer!$C$9:$I$425,Utslippsfaktorer!F$5,FALSE)))*$R68)+($S68*Utslippsfaktorer!F$141) -> 0 | AO68: =((IF($P68="",0,VLOOKUP($P68,Utslippsfaktorer!$C$9:$I$425,Utslippsfaktorer!G$5,FALSE)))*$R68)+($S68*Utslippsfaktorer!G$141) -> 0 | AP68: =((IF($P68="",0,VLOOKUP($P68,Utslippsfaktorer!$C$9:$I$425,Utslippsfaktorer!H$5,FALSE)))*$R68)+($S68*Utslippsfaktorer!H$141) -> 0 | AQ68: =((IF($P68="",0,VLOOKUP($P68,Utslippsfaktorer!$C$9:$I$425,Utslippsfaktorer!I$5,FALSE)))*$R68)+($S68*Utslippsfaktorer!I$141) -> 0 | AR68: =X68+AC68+AH68+AM68 -> 0 | AS68: =Y68+AD68+AI68+AN68 -> 0 | AT68: =Z68+AE68+AJ68+AO68 -> 0 | AU68: =AA68+AF68+AK68+AP68 -> 0 | AV68: =AB68+AG68+AL68+AQ68 -> 0 | AX68: =$J68*Utslippsfaktorer!E$131 -> 0 | AY68: =$J68*Utslippsfaktorer!F$131 -> 0 | AZ68: =$J68*Utslippsfaktorer!G$131 -> 0 | BA68: =$J68*Utslippsfaktorer!H$131 -> 0 | BB68: =$J68*Utslippsfaktorer!I$131 -> 0 | BC68: =$O68*Utslippsfaktorer!E$148 -> 0 | BD68: =$O68*Utslippsfaktorer!F$148 -> 0 | BE68: =$O68*Utslippsfaktorer!G$148 -> 0 | BF68: =$O68*Utslippsfaktorer!H$148 -> 0 | BG68: =$O68*Utslippsfaktorer!I$148 -> 0 | BH68: =((IF($P68="",0,VLOOKUP($P68,Utslippsfaktorer!$C$9:$I$425,Utslippsfaktorer!E$5,FALSE)))*$T68)+($U68*Utslippsfaktorer!E$141) -> 0 | BI68: =((IF($P68="",0,VLOOKUP($P68,Utslippsfaktorer!$C$9:$I$425,Utslippsfaktorer!F$5,FALSE)))*$T68)+($U68*Utslippsfaktorer!F$141) -> 0 | BJ68: =((IF($P68="",0,VLOOKUP($P68,Utslippsfaktorer!$C$9:$I$425,Utslippsfaktorer!G$5,FALSE)))*$T68)+($U68*Utslippsfaktorer!G$141) -> 0 | BK68: =((IF($P68="",0,VLOOKUP($P68,Utslippsfaktorer!$C$9:$I$425,Utslippsfaktorer!H$5,FALSE)))*$T68)+($U68*Utslippsfaktorer!H$141) -> 0 | BL68: =((IF($P68="",0,VLOOKUP($P68,Utslippsfaktorer!$C$9:$I$425,Utslippsfaktorer!I$5,FALSE)))*$T68)+($U68*Utslippsfaktorer!I$141) -> 0 | BM68: =AX68+BC68+BH68 -> 0 | BN68: =AY68+BD68+BI68 -> 0 | BO68: =AZ68+BE68+BJ68 -> 0 | BP68: =BA68+BF68+BK68 -> 0 | BQ68: =BB68+BG68+BL68 -> 0
B69: 21.21 | D69: Felling av trær til tømmer | F69: m3 | I69: =E69*Beregningsfaktorer!M46 -> 0 | L69: =E69*Beregningsfaktorer!M$13*Beregningsfaktorer!C$244 -> 0 | Q69: =IF(P69="","",VLOOKUP(P69,Utslippsfaktorer!$C$9:$D$392,2,FALSE)) ->  | S69: =IF((OR(F69=Nedtrekksmenyer!$F$4,P69="")),0,VLOOKUP(P69,Beregningsfaktorer!$L$70:$Q$328,Beregningsfaktorer!$Q$70,FALSE))*R69 -> 0 | U69: =IF((OR(F69=Nedtrekksmenyer!$F$4,P69="")),0,VLOOKUP(P69,Beregningsfaktorer!$L$70:$Q$328,Beregningsfaktorer!$Q$70,FALSE))*T69 -> 0 | V69: =IF(P69="","",VLOOKUP(P69,Utslippsfaktorer!$C$9:$AL$391,Utslippsfaktorer!$AL$5,FALSE)) ->  | X69: =$I69*Utslippsfaktorer!E$131 -> 0 | Y69: =$I69*Utslippsfaktorer!F$131 -> 0 | Z69: =$I69*Utslippsfaktorer!G$131 -> 0 | AA69: =$I69*Utslippsfaktorer!H$131 -> 0 | AB69: =$I69*Utslippsfaktorer!I$131 -> 0 | AC69: =$L69*Utslippsfaktorer!E$142*Utslippsfaktorer!$AO$142 -> 0 | AD69: =$L69*Utslippsfaktorer!F$142*Utslippsfaktorer!$AO$142 -> 0 | AE69: =$L69*Utslippsfaktorer!G$142*Utslippsfaktorer!$AO$142 -> 0 | AF69: =$L69*Utslippsfaktorer!H$142*Utslippsfaktorer!$AO$142 -> 0 | AG69: =$L69*Utslippsfaktorer!I$142*Utslippsfaktorer!$AO$142 -> 0 | AH69: =$N69*Utslippsfaktorer!E$147 -> 0 | AI69: =$N69*Utslippsfaktorer!F$147 -> 0 | AJ69: =$N69*Utslippsfaktorer!G$147 -> 0 | AK69: =$N69*Utslippsfaktorer!H$147 -> 0 | AL69: =$N69*Utslippsfaktorer!I$147 -> 0 | AM69: =((IF($P69="",0,VLOOKUP($P69,Utslippsfaktorer!$C$9:$I$425,Utslippsfaktorer!E$5,FALSE)))*$R69)+($S69*Utslippsfaktorer!E$141) -> 0 | AN69: =((IF($P69="",0,VLOOKUP($P69,Utslippsfaktorer!$C$9:$I$425,Utslippsfaktorer!F$5,FALSE)))*$R69)+($S69*Utslippsfaktorer!F$141) -> 0 | AO69: =((IF($P69="",0,VLOOKUP($P69,Utslippsfaktorer!$C$9:$I$425,Utslippsfaktorer!G$5,FALSE)))*$R69)+($S69*Utslippsfaktorer!G$141) -> 0 | AP69: =((IF($P69="",0,VLOOKUP($P69,Utslippsfaktorer!$C$9:$I$425,Utslippsfaktorer!H$5,FALSE)))*$R69)+($S69*Utslippsfaktorer!H$141) -> 0 | AQ69: =((IF($P69="",0,VLOOKUP($P69,Utslippsfaktorer!$C$9:$I$425,Utslippsfaktorer!I$5,FALSE)))*$R69)+($S69*Utslippsfaktorer!I$141) -> 0 | AR69: =X69+AC69+AH69+AM69 -> 0 | AS69: =Y69+AD69+AI69+AN69 -> 0 | AT69: =Z69+AE69+AJ69+AO69 -> 0 | AU69: =AA69+AF69+AK69+AP69 -> 0 | AV69: =AB69+AG69+AL69+AQ69 -> 0 | AX69: =$J69*Utslippsfaktorer!E$131 -> 0 | AY69: =$J69*Utslippsfaktorer!F$131 -> 0 | AZ69: =$J69*Utslippsfaktorer!G$131 -> 0 | BA69: =$J69*Utslippsfaktorer!H$131 -> 0 | BB69: =$J69*Utslippsfaktorer!I$131 -> 0 | BC69: =$O69*Utslippsfaktorer!E$148 -> 0 | BD69: =$O69*Utslippsfaktorer!F$148 -> 0 | BE69: =$O69*Utslippsfaktorer!G$148 -> 0 | BF69: =$O69*Utslippsfaktorer!H$148 -> 0 | BG69: =$O69*Utslippsfaktorer!I$148 -> 0 | BH69: =((IF($P69="",0,VLOOKUP($P69,Utslippsfaktorer!$C$9:$I$425,Utslippsfaktorer!E$5,FALSE)))*$T69)+($U69*Utslippsfaktorer!E$141) -> 0 | BI69: =((IF($P69="",0,VLOOKUP($P69,Utslippsfaktorer!$C$9:$I$425,Utslippsfaktorer!F$5,FALSE)))*$T69)+($U69*Utslippsfaktorer!F$141) -> 0 | BJ69: =((IF($P69="",0,VLOOKUP($P69,Utslippsfaktorer!$C$9:$I$425,Utslippsfaktorer!G$5,FALSE)))*$T69)+($U69*Utslippsfaktorer!G$141) -> 0 | BK69: =((IF($P69="",0,VLOOKUP($P69,Utslippsfaktorer!$C$9:$I$425,Utslippsfaktorer!H$5,FALSE)))*$T69)+($U69*Utslippsfaktorer!H$141) -> 0 | BL69: =((IF($P69="",0,VLOOKUP($P69,Utslippsfaktorer!$C$9:$I$425,Utslippsfaktorer!I$5,FALSE)))*$T69)+($U69*Utslippsfaktorer!I$141) -> 0 | BM69: =AX69+BC69+BH69 -> 0 | BN69: =AY69+BD69+BI69 -> 0 | BO69: =AZ69+BE69+BJ69 -> 0 | BP69: =BA69+BF69+BK69 -> 0 | BQ69: =BB69+BG69+BL69 -> 0
B70: 21.22 | D70: Felling av trær til ved | F70: m3 | I70: =E70*Beregningsfaktorer!M46 -> 0 | L70: =E70*Beregningsfaktorer!M$13*Beregningsfaktorer!C$244 -> 0 | Q70: =IF(P70="","",VLOOKUP(P70,Utslippsfaktorer!$C$9:$D$392,2,FALSE)) ->  | S70: =IF((OR(F70=Nedtrekksmenyer!$F$4,P70="")),0,VLOOKUP(P70,Beregningsfaktorer!$L$70:$Q$328,Beregningsfaktorer!$Q$70,FALSE))*R70 -> 0 | U70: =IF((OR(F70=Nedtrekksmenyer!$F$4,P70="")),0,VLOOKUP(P70,Beregningsfaktorer!$L$70:$Q$328,Beregningsfaktorer!$Q$70,FALSE))*T70 -> 0 | V70: =IF(P70="","",VLOOKUP(P70,Utslippsfaktorer!$C$9:$AL$391,Utslippsfaktorer!$AL$5,FALSE)) ->  | X70: =$I70*Utslippsfaktorer!E$131 -> 0 | Y70: =$I70*Utslippsfaktorer!F$131 -> 0 | Z70: =$I70*Utslippsfaktorer!G$131 -> 0 | AA70: =$I70*Utslippsfaktorer!H$131 -> 0 | AB70: =$I70*Utslippsfaktorer!I$131 -> 0 | AC70: =$L70*Utslippsfaktorer!E$142*Utslippsfaktorer!$AO$142 -> 0 | AD70: =$L70*Utslippsfaktorer!F$142*Utslippsfaktorer!$AO$142 -> 0 | AE70: =$L70*Utslippsfaktorer!G$142*Utslippsfaktorer!$AO$142 -> 0 | AF70: =$L70*Utslippsfaktorer!H$142*Utslippsfaktorer!$AO$142 -> 0 | AG70: =$L70*Utslippsfaktorer!I$142*Utslippsfaktorer!$AO$142 -> 0 | AH70: =$N70*Utslippsfaktorer!E$147 -> 0 | AI70: =$N70*Utslippsfaktorer!F$147 -> 0 | AJ70: =$N70*Utslippsfaktorer!G$147 -> 0 | AK70: =$N70*Utslippsfaktorer!H$147 -> 0 | AL70: =$N70*Utslippsfaktorer!I$147 -> 0 | AM70: =((IF($P70="",0,VLOOKUP($P70,Utslippsfaktorer!$C$9:$I$425,Utslippsfaktorer!E$5,FALSE)))*$R70)+($S70*Utslippsfaktorer!E$141) -> 0 | AN70: =((IF($P70="",0,VLOOKUP($P70,Utslippsfaktorer!$C$9:$I$425,Utslippsfaktorer!F$5,FALSE)))*$R70)+($S70*Utslippsfaktorer!F$141) -> 0 | AO70: =((IF($P70="",0,VLOOKUP($P70,Utslippsfaktorer!$C$9:$I$425,Utslippsfaktorer!G$5,FALSE)))*$R70)+($S70*Utslippsfaktorer!G$141) -> 0 | AP70: =((IF($P70="",0,VLOOKUP($P70,Utslippsfaktorer!$C$9:$I$425,Utslippsfaktorer!H$5,FALSE)))*$R70)+($S70*Utslippsfaktorer!H$141) -> 0 | AQ70: =((IF($P70="",0,VLOOKUP($P70,Utslippsfaktorer!$C$9:$I$425,Utslippsfaktorer!I$5,FALSE)))*$R70)+($S70*Utslippsfaktorer!I$141) -> 0 | AR70: 0 | AS70: 0 | AT70: 0 | AU70: 0 | AV70: 0 | AX70: =$J70*Utslippsfaktorer!E$131 -> 0 | AY70: =$J70*Utslippsfaktorer!F$131 -> 0 | AZ70: =$J70*Utslippsfaktorer!G$131 -> 0 | BA70: =$J70*Utslippsfaktorer!H$131 -> 0 | BB70: =$J70*Utslippsfaktorer!I$131 -> 0 | BC70: =$O70*Utslippsfaktorer!E$148 -> 0 | BD70: =$O70*Utslippsfaktorer!F$148 -> 0 | BE70: =$O70*Utslippsfaktorer!G$148 -> 0 | BF70: =$O70*Utslippsfaktorer!H$148 -> 0 | BG70: =$O70*Utslippsfaktorer!I$148 -> 0 | BH70: =((IF($P70="",0,VLOOKUP($P70,Utslippsfaktorer!$C$9:$I$425,Utslippsfaktorer!E$5,FALSE)))*$T70)+($U70*Utslippsfaktorer!E$141) -> 0 | BI70: =((IF($P70="",0,VLOOKUP($P70,Utslippsfaktorer!$C$9:$I$425,Utslippsfaktorer!F$5,FALSE)))*$T70)+($U70*Utslippsfaktorer!F$141) -> 0 | BJ70: =((IF($P70="",0,VLOOKUP($P70,Utslippsfaktorer!$C$9:$I$425,Utslippsfaktorer!G$5,FALSE)))*$T70)+($U70*Utslippsfaktorer!G$141) -> 0 | BK70: =((IF($P70="",0,VLOOKUP($P70,Utslippsfaktorer!$C$9:$I$425,Utslippsfaktorer!H$5,FALSE)))*$T70)+($U70*Utslippsfaktorer!H$141) -> 0 | BL70: =((IF($P70="",0,VLOOKUP($P70,Utslippsfaktorer!$C$9:$I$425,Utslippsfaktorer!I$5,FALSE)))*$T70)+($U70*Utslippsfaktorer!I$141) -> 0 | BM70: 0 | BN70: 0 | BO70: 0 | BP70: 0 | BQ70: 0
B71: 21.25 | D71: Rydding og fjerning av buskas og hogstavfall | F71: m2 | I71: =E71*0.1*Beregningsfaktorer!M46 -> 0 | K71: Felling/rydding av skog | L71: =E71*0.1*Beregningsfaktorer!M$13*Beregningsfaktorer!C$244 -> 0 | M71: antar transport til depot | Q71: =IF(P71="","",VLOOKUP(P71,Utslippsfaktorer!$C$9:$D$392,2,FALSE)) ->  | S71: =IF((OR(F71=Nedtrekksmenyer!$F$4,P71="")),0,VLOOKUP(P71,Beregningsfaktorer!$L$70:$Q$328,Beregningsfaktorer!$Q$70,FALSE))*R71 -> 0 | U71: =IF((OR(F71=Nedtrekksmenyer!$F$4,P71="")),0,VLOOKUP(P71,Beregningsfaktorer!$L$70:$Q$328,Beregningsfaktorer!$Q$70,FALSE))*T71 -> 0 | V71: =IF(P71="","",VLOOKUP(P71,Utslippsfaktorer!$C$9:$AL$391,Utslippsfaktorer!$AL$5,FALSE)) ->  | X71: =$I71*Utslippsfaktorer!E$131 -> 0 | Y71: =$I71*Utslippsfaktorer!F$131 -> 0 | Z71: =$I71*Utslippsfaktorer!G$131 -> 0 | AA71: =$I71*Utslippsfaktorer!H$131 -> 0 | AB71: =$I71*Utslippsfaktorer!I$131 -> 0 | AC71: =$L71*Utslippsfaktorer!E$142*Utslippsfaktorer!$AO$142 -> 0 | AD71: =$L71*Utslippsfaktorer!F$142*Utslippsfaktorer!$AO$142 -> 0 | AE71: =$L71*Utslippsfaktorer!G$142*Utslippsfaktorer!$AO$142 -> 0 | AF71: =$L71*Utslippsfaktorer!H$142*Utslippsfaktorer!$AO$142 -> 0 | AG71: =$L71*Utslippsfaktorer!I$142*Utslippsfaktorer!$AO$142 -> 0 | AH71: =$N71*Utslippsfaktorer!E$147 -> 0 | AI71: =$N71*Utslippsfaktorer!F$147 -> 0 | AJ71: =$N71*Utslippsfaktorer!G$147 -> 0 | AK71: =$N71*Utslippsfaktorer!H$147 -> 0 | AL71: =$N71*Utslippsfaktorer!I$147 -> 0 | AM71: =((IF($P71="",0,VLOOKUP($P71,Utslippsfaktorer!$C$9:$I$425,Utslippsfaktorer!E$5,FALSE)))*$R71)+($S71*Utslippsfaktorer!E$141) -> 0 | AN71: =((IF($P71="",0,VLOOKUP($P71,Utslippsfaktorer!$C$9:$I$425,Utslippsfaktorer!F$5,FALSE)))*$R71)+($S71*Utslippsfaktorer!F$141) -> 0 | AO71: =((IF($P71="",0,VLOOKUP($P71,Utslippsfaktorer!$C$9:$I$425,Utslippsfaktorer!G$5,FALSE)))*$R71)+($S71*Utslippsfaktorer!G$141) -> 0 | AP71: =((IF($P71="",0,VLOOKUP($P71,Utslippsfaktorer!$C$9:$I$425,Utslippsfaktorer!H$5,FALSE)))*$R71)+($S71*Utslippsfaktorer!H$141) -> 0 | AQ71: =((IF($P71="",0,VLOOKUP($P71,Utslippsfaktorer!$C$9:$I$425,Utslippsfaktorer!I$5,FALSE)))*$R71)+($S71*Utslippsfaktorer!I$141) -> 0 | AR71: 0 | AS71: 0 | AT71: 0 | AU71: 0 | AV71: 0 | AX71: =$J71*Utslippsfaktorer!E$131 -> 0 | AY71: =$J71*Utslippsfaktorer!F$131 -> 0 | AZ71: =$J71*Utslippsfaktorer!G$131 -> 0 | BA71: =$J71*Utslippsfaktorer!H$131 -> 0 | BB71: =$J71*Utslippsfaktorer!I$131 -> 0 | BC71: =$O71*Utslippsfaktorer!E$148 -> 0 | BD71: =$O71*Utslippsfaktorer!F$148 -> 0 | BE71: =$O71*Utslippsfaktorer!G$148 -> 0 | BF71: =$O71*Utslippsfaktorer!H$148 -> 0 | BG71: =$O71*Utslippsfaktorer!I$148 -> 0 | BH71: =((IF($P71="",0,VLOOKUP($P71,Utslippsfaktorer!$C$9:$I$425,Utslippsfaktorer!E$5,FALSE)))*$T71)+($U71*Utslippsfaktorer!E$141) -> 0 | BI71: =((IF($P71="",0,VLOOKUP($P71,Utslippsfaktorer!$C$9:$I$425,Utslippsfaktorer!F$5,FALSE)))*$T71)+($U71*Utslippsfaktorer!F$141) -> 0 | BJ71: =((IF($P71="",0,VLOOKUP($P71,Utslippsfaktorer!$C$9:$I$425,Utslippsfaktorer!G$5,FALSE)))*$T71)+($U71*Utslippsfaktorer!G$141) -> 0 | BK71: =((IF($P71="",0,VLOOKUP($P71,Utslippsfaktorer!$C$9:$I$425,Utslippsfaktorer!H$5,FALSE)))*$T71)+($U71*Utslippsfaktorer!H$141) -> 0 | BL71: =((IF($P71="",0,VLOOKUP($P71,Utslippsfaktorer!$C$9:$I$425,Utslippsfaktorer!I$5,FALSE)))*$T71)+($U71*Utslippsfaktorer!I$141) -> 0 | BM71: 0 | BN71: 0 | BO71: 0 | BP71: 0 | BQ71: 0
B72: 21.31 | C72: Velg type vegetasjon | D72: Avtaging av vegetasjonsdekke | F72: fm3 | I72: =E72*Beregningsfaktorer!M48*Beregningsfaktorer!AL32 -> 0 | K72: Rensk av skjæring | L72: =E72*Beregningsfaktorer!M13*Beregningsfaktorer!C239*Beregningsfaktorer!AL32 -> 0 | Q72: =IF(P72="","",VLOOKUP(P72,Utslippsfaktorer!$C$9:$D$392,2,FALSE)) ->  | S72: =IF((OR(F72=Nedtrekksmenyer!$F$4,P72="")),0,VLOOKUP(P72,Beregningsfaktorer!$L$70:$Q$328,Beregningsfaktorer!$Q$70,FALSE))*R72 -> 0 | U72: =IF((OR(F72=Nedtrekksmenyer!$F$4,P72="")),0,VLOOKUP(P72,Beregningsfaktorer!$L$70:$Q$328,Beregningsfaktorer!$Q$70,FALSE))*T72 -> 0 | V72: =IF(P72="","",VLOOKUP(P72,Utslippsfaktorer!$C$9:$AL$391,Utslippsfaktorer!$AL$5,FALSE)) ->  | X72: =$I72*Utslippsfaktorer!E$131 -> 0 | Y72: =$I72*Utslippsfaktorer!F$131 -> 0 | Z72: =$I72*Utslippsfaktorer!G$131 -> 0 | AA72: =$I72*Utslippsfaktorer!H$131 -> 0 | AB72: =$I72*Utslippsfaktorer!I$131 -> 0 | AC72: =$L72*Utslippsfaktorer!E$142*Utslippsfaktorer!$AO$142 -> 0 | AD72: =$L72*Utslippsfaktorer!F$142*Utslippsfaktorer!$AO$142 -> 0 | AE72: =$L72*Utslippsfaktorer!G$142*Utslippsfaktorer!$AO$142 -> 0 | AF72: =$L72*Utslippsfaktorer!H$142*Utslippsfaktorer!$AO$142 -> 0 | AG72: =$L72*Utslippsfaktorer!I$142*Utslippsfaktorer!$AO$142 -> 0 | AH72: =$N72*Utslippsfaktorer!E$147 -> 0 | AI72: =$N72*Utslippsfaktorer!F$147 -> 0 | AJ72: =$N72*Utslippsfaktorer!G$147 -> 0 | AK72: =$N72*Utslippsfaktorer!H$147 -> 0 | AL72: =$N72*Utslippsfaktorer!I$147 -> 0 | AM72: =((IF($P72="",0,VLOOKUP($P72,Utslippsfaktorer!$C$9:$I$425,Utslippsfaktorer!E$5,FALSE)))*$R72)+($S72*Utslippsfaktorer!E$141) -> 0 | AN72: =((IF($P72="",0,VLOOKUP($P72,Utslippsfaktorer!$C$9:$I$425,Utslippsfaktorer!F$5,FALSE)))*$R72)+($S72*Utslippsfaktorer!F$141) -> 0 | AO72: =((IF($P72="",0,VLOOKUP($P72,Utslippsfaktorer!$C$9:$I$425,Utslippsfaktorer!G$5,FALSE)))*$R72)+($S72*Utslippsfaktorer!G$141) -> 0 | AP72: =((IF($P72="",0,VLOOKUP($P72,Utslippsfaktorer!$C$9:$I$425,Utslippsfaktorer!H$5,FALSE)))*$R72)+($S72*Utslippsfaktorer!H$141) -> 0 | AQ72: =((IF($P72="",0,VLOOKUP($P72,Utslippsfaktorer!$C$9:$I$425,Utslippsfaktorer!I$5,FALSE)))*$R72)+($S72*Utslippsfaktorer!I$141) -> 0 | AR72: 0 | AS72: 0 | AT72: 0 | AU72: 0 | AV72: 0 | AX72: =$J72*Utslippsfaktorer!E$131 -> 0 | AY72: =$J72*Utslippsfaktorer!F$131 -> 0 | AZ72: =$J72*Utslippsfaktorer!G$131 -> 0 | BA72: =$J72*Utslippsfaktorer!H$131 -> 0 | BB72: =$J72*Utslippsfaktorer!I$131 -> 0 | BC72: =$O72*Utslippsfaktorer!E$148 -> 0 | BD72: =$O72*Utslippsfaktorer!F$148 -> 0 | BE72: =$O72*Utslippsfaktorer!G$148 -> 0 | BF72: =$O72*Utslippsfaktorer!H$148 -> 0 | BG72: =$O72*Utslippsfaktorer!I$148 -> 0 | BH72: =((IF($P72="",0,VLOOKUP($P72,Utslippsfaktorer!$C$9:$I$425,Utslippsfaktorer!E$5,FALSE)))*$T72)+($U72*Utslippsfaktorer!E$141) -> 0 | BI72: =((IF($P72="",0,VLOOKUP($P72,Utslippsfaktorer!$C$9:$I$425,Utslippsfaktorer!F$5,FALSE)))*$T72)+($U72*Utslippsfaktorer!F$141) -> 0 | BJ72: =((IF($P72="",0,VLOOKUP($P72,Utslippsfaktorer!$C$9:$I$425,Utslippsfaktorer!G$5,FALSE)))*$T72)+($U72*Utslippsfaktorer!G$141) -> 0 | BK72: =((IF($P72="",0,VLOOKUP($P72,Utslippsfaktorer!$C$9:$I$425,Utslippsfaktorer!H$5,FALSE)))*$T72)+($U72*Utslippsfaktorer!H$141) -> 0 | BL72: =((IF($P72="",0,VLOOKUP($P72,Utslippsfaktorer!$C$9:$I$425,Utslippsfaktorer!I$5,FALSE)))*$T72)+($U72*Utslippsfaktorer!I$141) -> 0 | BM72: 0 | BN72: 0 | BO72: 0 | BP72: 0 | BQ72: 0
B73: 21.32 | D73: Avtaging av matjord | F73: fm3 | I73: =E73*Beregningsfaktorer!M48*Beregningsfaktorer!AL32 -> 0 | K73: Rensk av skjæring | L73: =E73*Beregningsfaktorer!M13*Beregningsfaktorer!C239*Beregningsfaktorer!AL32 -> 0 | M73: antar transport til depot | Q73: =IF(P73="","",VLOOKUP(P73,Utslippsfaktorer!$C$9:$D$392,2,FALSE)) ->  | S73: =IF((OR(F73=Nedtrekksmenyer!$F$4,P73="")),0,VLOOKUP(P73,Beregningsfaktorer!$L$70:$Q$328,Beregningsfaktorer!$Q$70,FALSE))*R73 -> 0 | U73: =IF((OR(F73=Nedtrekksmenyer!$F$4,P73="")),0,VLOOKUP(P73,Beregningsfaktorer!$L$70:$Q$328,Beregningsfaktorer!$Q$70,FALSE))*T73 -> 0 | V73: =IF(P73="","",VLOOKUP(P73,Utslippsfaktorer!$C$9:$AL$391,Utslippsfaktorer!$AL$5,FALSE)) ->  | X73: =$I73*Utslippsfaktorer!E$131 -> 0 | Y73: =$I73*Utslippsfaktorer!F$131 -> 0 | Z73: =$I73*Utslippsfaktorer!G$131 -> 0 | AA73: =$I73*Utslippsfaktorer!H$131 -> 0 | AB73: =$I73*Utslippsfaktorer!I$131 -> 0 | AC73: =$L73*Utslippsfaktorer!E$142*Utslippsfaktorer!$AO$142 -> 0 | AD73: =$L73*Utslippsfaktorer!F$142*Utslippsfaktorer!$AO$142 -> 0 | AE73: =$L73*Utslippsfaktorer!G$142*Utslippsfaktorer!$AO$142 -> 0 | AF73: =$L73*Utslippsfaktorer!H$142*Utslippsfaktorer!$AO$142 -> 0 | AG73: =$L73*Utslippsfaktorer!I$142*Utslippsfaktorer!$AO$142 -> 0 | AH73: =$N73*Utslippsfaktorer!E$147 -> 0 | AI73: =$N73*Utslippsfaktorer!F$147 -> 0 | AJ73: =$N73*Utslippsfaktorer!G$147 -> 0 | AK73: =$N73*Utslippsfaktorer!H$147 -> 0 | AL73: =$N73*Utslippsfaktorer!I$147 -> 0 | AM73: =((IF($P73="",0,VLOOKUP($P73,Utslippsfaktorer!$C$9:$I$425,Utslippsfaktorer!E$5,FALSE)))*$R73)+($S73*Utslippsfaktorer!E$141) -> 0 | AN73: =((IF($P73="",0,VLOOKUP($P73,Utslippsfaktorer!$C$9:$I$425,Utslippsfaktorer!F$5,FALSE)))*$R73)+($S73*Utslippsfaktorer!F$141) -> 0 | AO73: =((IF($P73="",0,VLOOKUP($P73,Utslippsfaktorer!$C$9:$I$425,Utslippsfaktorer!G$5,FALSE)))*$R73)+($S73*Utslippsfaktorer!G$141) -> 0 | AP73: =((IF($P73="",0,VLOOKUP($P73,Utslippsfaktorer!$C$9:$I$425,Utslippsfaktorer!H$5,FALSE)))*$R73)+($S73*Utslippsfaktorer!H$141) -> 0 | AQ73: =((IF($P73="",0,VLOOKUP($P73,Utslippsfaktorer!$C$9:$I$425,Utslippsfaktorer!I$5,FALSE)))*$R73)+($S73*Utslippsfaktorer!I$141) -> 0 | AR73: 0 | AS73: 0 | AT73: 0 | AU73: 0 | AV73: 0 | AX73: =$J73*Utslippsfaktorer!E$131 -> 0 | AY73: =$J73*Utslippsfaktorer!F$131 -> 0 | AZ73: =$J73*Utslippsfaktorer!G$131 -> 0 | BA73: =$J73*Utslippsfaktorer!H$131 -> 0 | BB73: =$J73*Utslippsfaktorer!I$131 -> 0 | BC73: =$O73*Utslippsfaktorer!E$148 -> 0 | BD73: =$O73*Utslippsfaktorer!F$148 -> 0 | BE73: =$O73*Utslippsfaktorer!G$148 -> 0 | BF73: =$O73*Utslippsfaktorer!H$148 -> 0 | BG73: =$O73*Utslippsfaktorer!I$148 -> 0 | BH73: =((IF($P73="",0,VLOOKUP($P73,Utslippsfaktorer!$C$9:$I$425,Utslippsfaktorer!E$5,FALSE)))*$T73)+($U73*Utslippsfaktorer!E$141) -> 0 | BI73: =((IF($P73="",0,VLOOKUP($P73,Utslippsfaktorer!$C$9:$I$425,Utslippsfaktorer!F$5,FALSE)))*$T73)+($U73*Utslippsfaktorer!F$141) -> 0 | BJ73: =((IF($P73="",0,VLOOKUP($P73,Utslippsfaktorer!$C$9:$I$425,Utslippsfaktorer!G$5,FALSE)))*$T73)+($U73*Utslippsfaktorer!G$141) -> 0 | BK73: =((IF($P73="",0,VLOOKUP($P73,Utslippsfaktorer!$C$9:$I$425,Utslippsfaktorer!H$5,FALSE)))*$T73)+($U73*Utslippsfaktorer!H$141) -> 0 | BL73: =((IF($P73="",0,VLOOKUP($P73,Utslippsfaktorer!$C$9:$I$425,Utslippsfaktorer!I$5,FALSE)))*$T73)+($U73*Utslippsfaktorer!I$141) -> 0 | BM73: 0 | BN73: 0 | BO73: 0 | BP73: 0 | BQ73: 0
B74: 21.4 | D74: Rensk av bergoverflate | F74: m2 | I74: =E74*0.05*Beregningsfaktorer!M48 -> 0 | K74: Rensk av skjæring | L74: =E74*0.1*Beregningsfaktorer!M13*Beregningsfaktorer!C239 -> 0 | M74: antar 0,1 m tykkelse | Q74: =IF(P74="","",VLOOKUP(P74,Utslippsfaktorer!$C$9:$D$392,2,FALSE)) ->  | S74: =IF((OR(F74=Nedtrekksmenyer!$F$4,P74="")),0,VLOOKUP(P74,Beregningsfaktorer!$L$70:$Q$328,Beregningsfaktorer!$Q$70,FALSE))*R74 -> 0 | U74: =IF((OR(F74=Nedtrekksmenyer!$F$4,P74="")),0,VLOOKUP(P74,Beregningsfaktorer!$L$70:$Q$328,Beregningsfaktorer!$Q$70,FALSE))*T74 -> 0 | V74: =IF(P74="","",VLOOKUP(P74,Utslippsfaktorer!$C$9:$AL$391,Utslippsfaktorer!$AL$5,FALSE)) ->  | X74: =$I74*Utslippsfaktorer!E$131 -> 0 | Y74: =$I74*Utslippsfaktorer!F$131 -> 0 | Z74: =$I74*Utslippsfaktorer!G$131 -> 0 | AA74: =$I74*Utslippsfaktorer!H$131 -> 0 | AB74: =$I74*Utslippsfaktorer!I$131 -> 0 | AC74: =$L74*Utslippsfaktorer!E$142*Utslippsfaktorer!$AO$142 -> 0 | AD74: =$L74*Utslippsfaktorer!F$142*Utslippsfaktorer!$AO$142 -> 0 | AE74: =$L74*Utslippsfaktorer!G$142*Utslippsfaktorer!$AO$142 -> 0 | AF74: =$L74*Utslippsfaktorer!H$142*Utslippsfaktorer!$AO$142 -> 0 | AG74: =$L74*Utslippsfaktorer!I$142*Utslippsfaktorer!$AO$142 -> 0 | AH74: =$N74*Utslippsfaktorer!E$147 -> 0 | AI74: =$N74*Utslippsfaktorer!F$147 -> 0 | AJ74: =$N74*Utslippsfaktorer!G$147 -> 0 | AK74: =$N74*Utslippsfaktorer!H$147 -> 0 | AL74: =$N74*Utslippsfaktorer!I$147 -> 0 | AM74: =((IF($P74="",0,VLOOKUP($P74,Utslippsfaktorer!$C$9:$I$425,Utslippsfaktorer!E$5,FALSE)))*$R74)+($S74*Utslippsfaktorer!E$141) -> 0 | AN74: =((IF($P74="",0,VLOOKUP($P74,Utslippsfaktorer!$C$9:$I$425,Utslippsfaktorer!F$5,FALSE)))*$R74)+($S74*Utslippsfaktorer!F$141) -> 0 | AO74: =((IF($P74="",0,VLOOKUP($P74,Utslippsfaktorer!$C$9:$I$425,Utslippsfaktorer!G$5,FALSE)))*$R74)+($S74*Utslippsfaktorer!G$141) -> 0 | AP74: =((IF($P74="",0,VLOOKUP($P74,Utslippsfaktorer!$C$9:$I$425,Utslippsfaktorer!H$5,FALSE)))*$R74)+($S74*Utslippsfaktorer!H$141) -> 0 | AQ74: =((IF($P74="",0,VLOOKUP($P74,Utslippsfaktorer!$C$9:$I$425,Utslippsfaktorer!I$5,FALSE)))*$R74)+($S74*Utslippsfaktorer!I$141) -> 0 | AR74: 0 | AS74: 0 | AT74: 0 | AU74: 0 | AV74: 0 | AX74: =$J74*Utslippsfaktorer!E$131 -> 0 | AY74: =$J74*Utslippsfaktorer!F$131 -> 0 | AZ74: =$J74*Utslippsfaktorer!G$131 -> 0 | BA74: =$J74*Utslippsfaktorer!H$131 -> 0 | BB74: =$J74*Utslippsfaktorer!I$131 -> 0 | BC74: =$O74*Utslippsfaktorer!E$148 -> 0 | BD74: =$O74*Utslippsfaktorer!F$148 -> 0 | BE74: =$O74*Utslippsfaktorer!G$148 -> 0 | BF74: =$O74*Utslippsfaktorer!H$148 -> 0 | BG74: =$O74*Utslippsfaktorer!I$148 -> 0 | BH74: =((IF($P74="",0,VLOOKUP($P74,Utslippsfaktorer!$C$9:$I$425,Utslippsfaktorer!E$5,FALSE)))*$T74)+($U74*Utslippsfaktorer!E$141) -> 0 | BI74: =((IF($P74="",0,VLOOKUP($P74,Utslippsfaktorer!$C$9:$I$425,Utslippsfaktorer!F$5,FALSE)))*$T74)+($U74*Utslippsfaktorer!F$141) -> 0 | BJ74: =((IF($P74="",0,VLOOKUP($P74,Utslippsfaktorer!$C$9:$I$425,Utslippsfaktorer!G$5,FALSE)))*$T74)+($U74*Utslippsfaktorer!G$141) -> 0 | BK74: =((IF($P74="",0,VLOOKUP($P74,Utslippsfaktorer!$C$9:$I$425,Utslippsfaktorer!H$5,FALSE)))*$T74)+($U74*Utslippsfaktorer!H$141) -> 0 | BL74: =((IF($P74="",0,VLOOKUP($P74,Utslippsfaktorer!$C$9:$I$425,Utslippsfaktorer!I$5,FALSE)))*$T74)+($U74*Utslippsfaktorer!I$141) -> 0 | BM74: 0 | BN74: 0 | BO74: 0 | BP74: 0 | BQ74: 0
B76: 22: SPRENGNING I DAGEN
B77: 22.1 | C77: Velg grunnforhold | D77: Sprengning i linjen | F77: pfm3 | I77: =E77*Beregningsfaktorer!M49 -> 0 | K77: Drilling, sprengning i dagen | P77: Sprengstoff | Q77: =IF(P77="","",VLOOKUP(P77,Utslippsfaktorer!$C$9:$D$392,2,FALSE)) -> kg | R77: =E77*IF(OR(C77=Nedtrekksmenyer!$B$93,C77=Nedtrekksmenyer!$B$96),Beregningsfaktorer!$M$22,IF(C77=Nedtrekksmenyer!$B$94,Beregningsfaktorer!$M$20,Beregningsfaktorer!$M$21)) -> 0 | S77: =IF((OR(F77=Nedtrekksmenyer!$F$4,P77="")),0,VLOOKUP(P77,Beregningsfaktorer!$L$70:$Q$328,Beregningsfaktorer!$Q$70,FALSE))*R77 -> 0 | U77: =IF((OR(F77=Nedtrekksmenyer!$F$4,P77="")),0,VLOOKUP(P77,Beregningsfaktorer!$L$70:$Q$328,Beregningsfaktorer!$Q$70,FALSE))*T77 -> 0 | V77: =IF(P77="","",VLOOKUP(P77,Utslippsfaktorer!$C$9:$AL$391,Utslippsfaktorer!$AL$5,FALSE)) -> Sprengstoff | X77: =$I77*Utslippsfaktorer!E$131 -> 0 | Y77: =$I77*Utslippsfaktorer!F$131 -> 0 | Z77: =$I77*Utslippsfaktorer!G$131 -> 0 | AA77: =$I77*Utslippsfaktorer!H$131 -> 0 | AB77: =$I77*Utslippsfaktorer!I$131 -> 0 | AC77: =$L77*Utslippsfaktorer!E$142*Utslippsfaktorer!$AO$142 -> 0 | AD77: =$L77*Utslippsfaktorer!F$142*Utslippsfaktorer!$AO$142 -> 0 | AE77: =$L77*Utslippsfaktorer!G$142*Utslippsfaktorer!$AO$142 -> 0 | AF77: =$L77*Utslippsfaktorer!H$142*Utslippsfaktorer!$AO$142 -> 0 | AG77: =$L77*Utslippsfaktorer!I$142*Utslippsfaktorer!$AO$142 -> 0 | AH77: =$N77*Utslippsfaktorer!E$147 -> 0 | AI77: =$N77*Utslippsfaktorer!F$147 -> 0 | AJ77: =$N77*Utslippsfaktorer!G$147 -> 0 | AK77: =$N77*Utslippsfaktorer!H$147 -> 0 | AL77: =$N77*Utslippsfaktorer!I$147 -> 0 | AM77: =((IF($P77="",0,VLOOKUP($P77,Utslippsfaktorer!$C$9:$I$425,Utslippsfaktorer!E$5,FALSE)))*$R77)+($S77*Utslippsfaktorer!E$141) -> 0 | AN77: =((IF($P77="",0,VLOOKUP($P77,Utslippsfaktorer!$C$9:$I$425,Utslippsfaktorer!F$5,FALSE)))*$R77)+($S77*Utslippsfaktorer!F$141) -> 0 | AO77: =((IF($P77="",0,VLOOKUP($P77,Utslippsfaktorer!$C$9:$I$425,Utslippsfaktorer!G$5,FALSE)))*$R77)+($S77*Utslippsfaktorer!G$141) -> 0 | AP77: =((IF($P77="",0,VLOOKUP($P77,Utslippsfaktorer!$C$9:$I$425,Utslippsfaktorer!H$5,FALSE)))*$R77)+($S77*Utslippsfaktorer!H$141) -> 0 | AQ77: =((IF($P77="",0,VLOOKUP($P77,Utslippsfaktorer!$C$9:$I$425,Utslippsfaktorer!I$5,FALSE)))*$R77)+($S77*Utslippsfaktorer!I$141) -> 0 | AR77: 0 | AS77: 0 | AT77: 0 | AU77: 0 | AV77: 0 | AX77: =$J77*Utslippsfaktorer!E$131 -> 0 | AY77: =$J77*Utslippsfaktorer!F$131 -> 0 | AZ77: =$J77*Utslippsfaktorer!G$131 -> 0 | BA77: =$J77*Utslippsfaktorer!H$131 -> 0 | BB77: =$J77*Utslippsfaktorer!I$131 -> 0 | BC77: =$O77*Utslippsfaktorer!E$148 -> 0 | BD77: =$O77*Utslippsfaktorer!F$148 -> 0 | BE77: =$O77*Utslippsfaktorer!G$148 -> 0 | BF77: =$O77*Utslippsfaktorer!H$148 -> 0 | BG77: =$O77*Utslippsfaktorer!I$148 -> 0 | BH77: =((IF($P77="",0,VLOOKUP($P77,Utslippsfaktorer!$C$9:$I$425,Utslippsfaktorer!E$5,FALSE)))*$T77)+($U77*Utslippsfaktorer!E$141) -> 0 | BI77: =((IF($P77="",0,VLOOKUP($P77,Utslippsfaktorer!$C$9:$I$425,Utslippsfaktorer!F$5,FALSE)))*$T77)+($U77*Utslippsfaktorer!F$141) -> 0 | BJ77: =((IF($P77="",0,VLOOKUP($P77,Utslippsfaktorer!$C$9:$I$425,Utslippsfaktorer!G$5,FALSE)))*$T77)+($U77*Utslippsfaktorer!G$141) -> 0 | BK77: =((IF($P77="",0,VLOOKUP($P77,Utslippsfaktorer!$C$9:$I$425,Utslippsfaktorer!H$5,FALSE)))*$T77)+($U77*Utslippsfaktorer!H$141) -> 0 | BL77: =((IF($P77="",0,VLOOKUP($P77,Utslippsfaktorer!$C$9:$I$425,Utslippsfaktorer!I$5,FALSE)))*$T77)+($U77*Utslippsfaktorer!I$141) -> 0 | BM77: 0 | BN77: 0 | BO77: 0 | BP77: 0 | BQ77: 0
B78: 22.21 | D78: Kontursprengning | F78: m | I78: =E78*Beregningsfaktorer!M52 -> 0 | K78: Hullboring | P78: Sprengstoff | Q78: =IF(P78="","",VLOOKUP(P78,Utslippsfaktorer!$C$9:$D$392,2,FALSE)) -> kg | R78: =E78*Beregningsfaktorer!M29 -> 0 | S78: =IF((OR(F78=Nedtrekksmenyer!$F$4,P78="")),0,VLOOKUP(P78,Beregningsfaktorer!$L$70:$Q$328,Beregningsfaktorer!$Q$70,FALSE))*R78 -> 0 | U78: =IF((OR(F78=Nedtrekksmenyer!$F$4,P78="")),0,VLOOKUP(P78,Beregningsfaktorer!$L$70:$Q$328,Beregningsfaktorer!$Q$70,FALSE))*T78 -> 0 | V78: =IF(P78="","",VLOOKUP(P78,Utslippsfaktorer!$C$9:$AL$391,Utslippsfaktorer!$AL$5,FALSE)) -> Sprengstoff | X78: =$I78*Utslippsfaktorer!E$131 -> 0 | Y78: =$I78*Utslippsfaktorer!F$131 -> 0 | Z78: =$I78*Utslippsfaktorer!G$131 -> 0 | AA78: =$I78*Utslippsfaktorer!H$131 -> 0 | AB78: =$I78*Utslippsfaktorer!I$131 -> 0 | AC78: =$L78*Utslippsfaktorer!E$142*Utslippsfaktorer!$AO$142 -> 0 | AD78: =$L78*Utslippsfaktorer!F$142*Utslippsfaktorer!$AO$142 -> 0 | AE78: =$L78*Utslippsfaktorer!G$142*Utslippsfaktorer!$AO$142 -> 0 | AF78: =$L78*Utslippsfaktorer!H$142*Utslippsfaktorer!$AO$142 -> 0 | AG78: =$L78*Utslippsfaktorer!I$142*Utslippsfaktorer!$AO$142 -> 0 | AH78: =$N78*Utslippsfaktorer!E$147 -> 0 | AI78: =$N78*Utslippsfaktorer!F$147 -> 0 | AJ78: =$N78*Utslippsfaktorer!G$147 -> 0 | AK78: =$N78*Utslippsfaktorer!H$147 -> 0 | AL78: =$N78*Utslippsfaktorer!I$147 -> 0 | AM78: =((IF($P78="",0,VLOOKUP($P78,Utslippsfaktorer!$C$9:$I$425,Utslippsfaktorer!E$5,FALSE)))*$R78)+($S78*Utslippsfaktorer!E$141) -> 0 | AN78: =((IF($P78="",0,VLOOKUP($P78,Utslippsfaktorer!$C$9:$I$425,Utslippsfaktorer!F$5,FALSE)))*$R78)+($S78*Utslippsfaktorer!F$141) -> 0 | AO78: =((IF($P78="",0,VLOOKUP($P78,Utslippsfaktorer!$C$9:$I$425,Utslippsfaktorer!G$5,FALSE)))*$R78)+($S78*Utslippsfaktorer!G$141) -> 0 | AP78: =((IF($P78="",0,VLOOKUP($P78,Utslippsfaktorer!$C$9:$I$425,Utslippsfaktorer!H$5,FALSE)))*$R78)+($S78*Utslippsfaktorer!H$141) -> 0 | AQ78: =((IF($P78="",0,VLOOKUP($P78,Utslippsfaktorer!$C$9:$I$425,Utslippsfaktorer!I$5,FALSE)))*$R78)+($S78*Utslippsfaktorer!I$141) -> 0 | AR78: 0 | AS78: 0 | AT78: 0 | AU78: 0 | AV78: 0 | AX78: =$J78*Utslippsfaktorer!E$131 -> 0 | AY78: =$J78*Utslippsfaktorer!F$131 -> 0 | AZ78: =$J78*Utslippsfaktorer!G$131 -> 0 | BA78: =$J78*Utslippsfaktorer!H$131 -> 0 | BB78: =$J78*Utslippsfaktorer!I$131 -> 0 | BC78: =$O78*Utslippsfaktorer!E$148 -> 0 | BD78: =$O78*Utslippsfaktorer!F$148 -> 0 | BE78: =$O78*Utslippsfaktorer!G$148 -> 0 | BF78: =$O78*Utslippsfaktorer!H$148 -> 0 | BG78: =$O78*Utslippsfaktorer!I$148 -> 0 | BH78: =((IF($P78="",0,VLOOKUP($P78,Utslippsfaktorer!$C$9:$I$425,Utslippsfaktorer!E$5,FALSE)))*$T78)+($U78*Utslippsfaktorer!E$141) -> 0 | BI78: =((IF($P78="",0,VLOOKUP($P78,Utslippsfaktorer!$C$9:$I$425,Utslippsfaktorer!F$5,FALSE)))*$T78)+($U78*Utslippsfaktorer!F$141) -> 0 | BJ78: =((IF($P78="",0,VLOOKUP($P78,Utslippsfaktorer!$C$9:$I$425,Utslippsfaktorer!G$5,FALSE)))*$T78)+($U78*Utslippsfaktorer!G$141) -> 0 | BK78: =((IF($P78="",0,VLOOKUP($P78,Utslippsfaktorer!$C$9:$I$425,Utslippsfaktorer!H$5,FALSE)))*$T78)+($U78*Utslippsfaktorer!H$141) -> 0 | BL78: =((IF($P78="",0,VLOOKUP($P78,Utslippsfaktorer!$C$9:$I$425,Utslippsfaktorer!I$5,FALSE)))*$T78)+($U78*Utslippsfaktorer!I$141) -> 0 | BM78: 0 | BN78: 0 | BO78: 0 | BP78: 0 | BQ78: 0
B79: 22.24 | D79: Vaiersaging | F79: m2 | I79: =E79*Beregningsfaktorer!M51 -> 0 | X79: =$I79*Utslippsfaktorer!E$131 -> 0 | Y79: =$I79*Utslippsfaktorer!F$131 -> 0 | Z79: =$I79*Utslippsfaktorer!G$131 -> 0 | AA79: =$I79*Utslippsfaktorer!H$131 -> 0 | AB79: =$I79*Utslippsfaktorer!I$131 -> 0 | AC79: =$L79*Utslippsfaktorer!E$142*Utslippsfaktorer!$AO$142 -> 0 | AD79: =$L79*Utslippsfaktorer!F$142*Utslippsfaktorer!$AO$142 -> 0 | AE79: =$L79*Utslippsfaktorer!G$142*Utslippsfaktorer!$AO$142 -> 0 | AF79: =$L79*Utslippsfaktorer!H$142*Utslippsfaktorer!$AO$142 -> 0 | AG79: =$L79*Utslippsfaktorer!I$142*Utslippsfaktorer!$AO$142 -> 0 | AH79: =$N79*Utslippsfaktorer!E$147 -> 0 | AI79: =$N79*Utslippsfaktorer!F$147 -> 0 | AJ79: =$N79*Utslippsfaktorer!G$147 -> 0 | AK79: =$N79*Utslippsfaktorer!H$147 -> 0 | AL79: =$N79*Utslippsfaktorer!I$147 -> 0 | AM79: =((IF($P79="",0,VLOOKUP($P79,Utslippsfaktorer!$C$9:$I$425,Utslippsfaktorer!E$5,FALSE)))*$R79)+($S79*Utslippsfaktorer!E$141) -> 0 | AN79: =((IF($P79="",0,VLOOKUP($P79,Utslippsfaktorer!$C$9:$I$425,Utslippsfaktorer!F$5,FALSE)))*$R79)+($S79*Utslippsfaktorer!F$141) -> 0 | AO79: =((IF($P79="",0,VLOOKUP($P79,Utslippsfaktorer!$C$9:$I$425,Utslippsfaktorer!G$5,FALSE)))*$R79)+($S79*Utslippsfaktorer!G$141) -> 0 | AP79: =((IF($P79="",0,VLOOKUP($P79,Utslippsfaktorer!$C$9:$I$425,Utslippsfaktorer!H$5,FALSE)))*$R79)+($S79*Utslippsfaktorer!H$141) -> 0 | AQ79: =((IF($P79="",0,VLOOKUP($P79,Utslippsfaktorer!$C$9:$I$425,Utslippsfaktorer!I$5,FALSE)))*$R79)+($S79*Utslippsfaktorer!I$141) -> 0 | AR79: =X79+AC79+AH79+AM79 -> 0 | AS79: =Y79+AD79+AI79+AN79 -> 0 | AT79: =Z79+AE79+AJ79+AO79 -> 0 | AU79: =AA79+AF79+AK79+AP79 -> 0 | AV79: =AB79+AG79+AL79+AQ79 -> 0 | AX79: =$J79*Utslippsfaktorer!E$131 -> 0 | AY79: =$J79*Utslippsfaktorer!F$131 -> 0 | AZ79: =$J79*Utslippsfaktorer!G$131 -> 0 | BA79: =$J79*Utslippsfaktorer!H$131 -> 0 | BB79: =$J79*Utslippsfaktorer!I$131 -> 0 | BC79: =$O79*Utslippsfaktorer!E$148 -> 0 | BD79: =$O79*Utslippsfaktorer!F$148 -> 0 | BE79: =$O79*Utslippsfaktorer!G$148 -> 0 | BF79: =$O79*Utslippsfaktorer!H$148 -> 0 | BG79: =$O79*Utslippsfaktorer!I$148 -> 0 | BH79: =((IF($P79="",0,VLOOKUP($P79,Utslippsfaktorer!$C$9:$I$425,Utslippsfaktorer!E$5,FALSE)))*$T79)+($U79*Utslippsfaktorer!E$141) -> 0 | BI79: =((IF($P79="",0,VLOOKUP($P79,Utslippsfaktorer!$C$9:$I$425,Utslippsfaktorer!F$5,FALSE)))*$T79)+($U79*Utslippsfaktorer!F$141) -> 0 | BJ79: =((IF($P79="",0,VLOOKUP($P79,Utslippsfaktorer!$C$9:$I$425,Utslippsfaktorer!G$5,FALSE)))*$T79)+($U79*Utslippsfaktorer!G$141) -> 0 | BK79: =((IF($P79="",0,VLOOKUP($P79,Utslippsfaktorer!$C$9:$I$425,Utslippsfaktorer!H$5,FALSE)))*$T79)+($U79*Utslippsfaktorer!H$141) -> 0 | BL79: =((IF($P79="",0,VLOOKUP($P79,Utslippsfaktorer!$C$9:$I$425,Utslippsfaktorer!I$5,FALSE)))*$T79)+($U79*Utslippsfaktorer!I$141) -> 0 | BM79: =AX79+BC79+BH79 -> 0 | BN79: =AY79+BD79+BI79 -> 0 | BO79: =AZ79+BE79+BJ79 -> 0 | BP79: =BA79+BF79+BK79 -> 0 | BQ79: =BB79+BG79+BL79 -> 0
B80: 22.3 | C80: Velg grunnforhold | D80: Sprengning i sidetak | F80: pfm3 | I80: =E80*Beregningsfaktorer!M49 -> 0 | K80: Drilling, sprengning i dagen | P80: Sprengstoff | Q80: =IF(P80="","",VLOOKUP(P80,Utslippsfaktorer!$C$9:$D$392,2,FALSE)) -> kg | R80: =E80*IF(OR(C80=Nedtrekksmenyer!$B$93,C80=Nedtrekksmenyer!$B$96),Beregningsfaktorer!$M$22,IF(C80=Nedtrekksmenyer!$B$94,Beregningsfaktorer!$M$20,Beregningsfaktorer!$M$21)) -> 0 | S80: =IF((OR(F80=Nedtrekksmenyer!$F$4,P80="")),0,VLOOKUP(P80,Beregningsfaktorer!$L$70:$Q$328,Beregningsfaktorer!$Q$70,FALSE))*R80 -> 0 | U80: =IF((OR(F80=Nedtrekksmenyer!$F$4,P80="")),0,VLOOKUP(P80,Beregningsfaktorer!$L$70:$Q$328,Beregningsfaktorer!$Q$70,FALSE))*T80 -> 0 | V80: =IF(P80="","",VLOOKUP(P80,Utslippsfaktorer!$C$9:$AL$391,Utslippsfaktorer!$AL$5,FALSE)) -> Sprengstoff | X80: =$I80*Utslippsfaktorer!E$131 -> 0 | Y80: =$I80*Utslippsfaktorer!F$131 -> 0 | Z80: =$I80*Utslippsfaktorer!G$131 -> 0 | AA80: =$I80*Utslippsfaktorer!H$131 -> 0 | AB80: =$I80*Utslippsfaktorer!I$131 -> 0 | AC80: =$L80*Utslippsfaktorer!E$142*Utslippsfaktorer!$AO$142 -> 0 | AD80: =$L80*Utslippsfaktorer!F$142*Utslippsfaktorer!$AO$142 -> 0 | AE80: =$L80*Utslippsfaktorer!G$142*Utslippsfaktorer!$AO$142 -> 0 | AF80: =$L80*Utslippsfaktorer!H$142*Utslippsfaktorer!$AO$142 -> 0 | AG80: =$L80*Utslippsfaktorer!I$142*Utslippsfaktorer!$AO$142 -> 0 | AH80: =$N80*Utslippsfaktorer!E$147 -> 0 | AI80: =$N80*Utslippsfaktorer!F$147 -> 0 | AJ80: =$N80*Utslippsfaktorer!G$147 -> 0 | AK80: =$N80*Utslippsfaktorer!H$147 -> 0 | AL80: =$N80*Utslippsfaktorer!I$147 -> 0 | AM80: =((IF($P80="",0,VLOOKUP($P80,Utslippsfaktorer!$C$9:$I$425,Utslippsfaktorer!E$5,FALSE)))*$R80)+($S80*Utslippsfaktorer!E$141) -> 0 | AN80: =((IF($P80="",0,VLOOKUP($P80,Utslippsfaktorer!$C$9:$I$425,Utslippsfaktorer!F$5,FALSE)))*$R80)+($S80*Utslippsfaktorer!F$141) -> 0 | AO80: =((IF($P80="",0,VLOOKUP($P80,Utslippsfaktorer!$C$9:$I$425,Utslippsfaktorer!G$5,FALSE)))*$R80)+($S80*Utslippsfaktorer!G$141) -> 0 | AP80: =((IF($P80="",0,VLOOKUP($P80,Utslippsfaktorer!$C$9:$I$425,Utslippsfaktorer!H$5,FALSE)))*$R80)+($S80*Utslippsfaktorer!H$141) -> 0 | AQ80: =((IF($P80="",0,VLOOKUP($P80,Utslippsfaktorer!$C$9:$I$425,Utslippsfaktorer!I$5,FALSE)))*$R80)+($S80*Utslippsfaktorer!I$141) -> 0 | AR80: 0 | AS80: 0 | AT80: 0 | AU80: 0 | AV80: 0 | AX80: =$J80*Utslippsfaktorer!E$131 -> 0 | AY80: =$J80*Utslippsfaktorer!F$131 -> 0 | AZ80: =$J80*Utslippsfaktorer!G$131 -> 0 | BA80: =$J80*Utslippsfaktorer!H$131 -> 0 | BB80: =$J80*Utslippsfaktorer!I$131 -> 0 | BC80: =$O80*Utslippsfaktorer!E$148 -> 0 | BD80: =$O80*Utslippsfaktorer!F$148 -> 0 | BE80: =$O80*Utslippsfaktorer!G$148 -> 0 | BF80: =$O80*Utslippsfaktorer!H$148 -> 0 | BG80: =$O80*Utslippsfaktorer!I$148 -> 0 | BH80: =((IF($P80="",0,VLOOKUP($P80,Utslippsfaktorer!$C$9:$I$425,Utslippsfaktorer!E$5,FALSE)))*$T80)+($U80*Utslippsfaktorer!E$141) -> 0 | BI80: =((IF($P80="",0,VLOOKUP($P80,Utslippsfaktorer!$C$9:$I$425,Utslippsfaktorer!F$5,FALSE)))*$T80)+($U80*Utslippsfaktorer!F$141) -> 0 | BJ80: =((IF($P80="",0,VLOOKUP($P80,Utslippsfaktorer!$C$9:$I$425,Utslippsfaktorer!G$5,FALSE)))*$T80)+($U80*Utslippsfaktorer!G$141) -> 0 | BK80: =((IF($P80="",0,VLOOKUP($P80,Utslippsfaktorer!$C$9:$I$425,Utslippsfaktorer!H$5,FALSE)))*$T80)+($U80*Utslippsfaktorer!H$141) -> 0 | BL80: =((IF($P80="",0,VLOOKUP($P80,Utslippsfaktorer!$C$9:$I$425,Utslippsfaktorer!I$5,FALSE)))*$T80)+($U80*Utslippsfaktorer!I$141) -> 0 | BM80: 0 | BN80: 0 | BO80: 0 | BP80: 0 | BQ80: 0
B82: 23: RENSK OG SIKRING I DAGEN
B83: 23.1 | D83: Rensk av skjæringer i berg, fjerning av renskemasse | F83: m2 | I83: =E83*0.05*Beregningsfaktorer!M48 -> 0 | K83: Rensk av skjæring | Q83: =IF(P83="","",VLOOKUP(P83,Utslippsfaktorer!$C$9:$D$392,2,FALSE)) ->  | S83: =IF((OR(F83=Nedtrekksmenyer!$F$4,P83="")),0,VLOOKUP(P83,Beregningsfaktorer!$L$70:$Q$328,Beregningsfaktorer!$Q$70,FALSE))*R83 -> 0 | U83: =IF((OR(F83=Nedtrekksmenyer!$F$4,P83="")),0,VLOOKUP(P83,Beregningsfaktorer!$L$70:$Q$328,Beregningsfaktorer!$Q$70,FALSE))*T83 -> 0 | V83: =IF(P83="","",VLOOKUP(P83,Utslippsfaktorer!$C$9:$AL$391,Utslippsfaktorer!$AL$5,FALSE)) ->  | X83: =$I83*Utslippsfaktorer!E$131 -> 0 | Y83: =$I83*Utslippsfaktorer!F$131 -> 0 | Z83: =$I83*Utslippsfaktorer!G$131 -> 0 | AA83: =$I83*Utslippsfaktorer!H$131 -> 0 | AB83: =$I83*Utslippsfaktorer!I$131 -> 0 | AC83: =$L83*Utslippsfaktorer!E$142*Utslippsfaktorer!$AO$142 -> 0 | AD83: =$L83*Utslippsfaktorer!F$142*Utslippsfaktorer!$AO$142 -> 0 | AE83: =$L83*Utslippsfaktorer!G$142*Utslippsfaktorer!$AO$142 -> 0 | AF83: =$L83*Utslippsfaktorer!H$142*Utslippsfaktorer!$AO$142 -> 0 | AG83: =$L83*Utslippsfaktorer!I$142*Utslippsfaktorer!$AO$142 -> 0 | AH83: =$N83*Utslippsfaktorer!E$147 -> 0 | AI83: =$N83*Utslippsfaktorer!F$147 -> 0 | AJ83: =$N83*Utslippsfaktorer!G$147 -> 0 | AK83: =$N83*Utslippsfaktorer!H$147 -> 0 | AL83: =$N83*Utslippsfaktorer!I$147 -> 0 | AM83: =((IF($P83="",0,VLOOKUP($P83,Utslippsfaktorer!$C$9:$I$425,Utslippsfaktorer!E$5,FALSE)))*$R83)+($S83*Utslippsfaktorer!E$141) -> 0 | AN83: =((IF($P83="",0,VLOOKUP($P83,Utslippsfaktorer!$C$9:$I$425,Utslippsfaktorer!F$5,FALSE)))*$R83)+($S83*Utslippsfaktorer!F$141) -> 0 | AO83: =((IF($P83="",0,VLOOKUP($P83,Utslippsfaktorer!$C$9:$I$425,Utslippsfaktorer!G$5,FALSE)))*$R83)+($S83*Utslippsfaktorer!G$141) -> 0 | AP83: =((IF($P83="",0,VLOOKUP($P83,Utslippsfaktorer!$C$9:$I$425,Utslippsfaktorer!H$5,FALSE)))*$R83)+($S83*Utslippsfaktorer!H$141) -> 0 | AQ83: =((IF($P83="",0,VLOOKUP($P83,Utslippsfaktorer!$C$9:$I$425,Utslippsfaktorer!I$5,FALSE)))*$R83)+($S83*Utslippsfaktorer!I$141) -> 0 | AR83: 0 | AS83: 0 | AT83: 0 | AU83: 0 | AV83: 0 | AX83: =$J83*Utslippsfaktorer!E$131 -> 0 | AY83: =$J83*Utslippsfaktorer!F$131 -> 0 | AZ83: =$J83*Utslippsfaktorer!G$131 -> 0 | BA83: =$J83*Utslippsfaktorer!H$131 -> 0 | BB83: =$J83*Utslippsfaktorer!I$131 -> 0 | BC83: =$O83*Utslippsfaktorer!E$148 -> 0 | BD83: =$O83*Utslippsfaktorer!F$148 -> 0 | BE83: =$O83*Utslippsfaktorer!G$148 -> 0 | BF83: =$O83*Utslippsfaktorer!H$148 -> 0 | BG83: =$O83*Utslippsfaktorer!I$148 -> 0 | BH83: =((IF($P83="",0,VLOOKUP($P83,Utslippsfaktorer!$C$9:$I$425,Utslippsfaktorer!E$5,FALSE)))*$T83)+($U83*Utslippsfaktorer!E$141) -> 0 | BI83: =((IF($P83="",0,VLOOKUP($P83,Utslippsfaktorer!$C$9:$I$425,Utslippsfaktorer!F$5,FALSE)))*$T83)+($U83*Utslippsfaktorer!F$141) -> 0 | BJ83: =((IF($P83="",0,VLOOKUP($P83,Utslippsfaktorer!$C$9:$I$425,Utslippsfaktorer!G$5,FALSE)))*$T83)+($U83*Utslippsfaktorer!G$141) -> 0 | BK83: =((IF($P83="",0,VLOOKUP($P83,Utslippsfaktorer!$C$9:$I$425,Utslippsfaktorer!H$5,FALSE)))*$T83)+($U83*Utslippsfaktorer!H$141) -> 0 | BL83: =((IF($P83="",0,VLOOKUP($P83,Utslippsfaktorer!$C$9:$I$425,Utslippsfaktorer!I$5,FALSE)))*$T83)+($U83*Utslippsfaktorer!I$141) -> 0 | BM83: 0 | BN83: 0 | BO83: 0 | BP83: 0 | BQ83: 0
B84: 23.21 | D84: Fullt innstøpte bolter (lengde 2,4 m, diameter 20 mm) | F84: stk | P84: Stål, bolter av kamstål | Q84: =IF(P84="","",VLOOKUP(P84,Utslippsfaktorer!$C$9:$D$392,2,FALSE)) -> kg | R84: =E84*2.4*Beregningsfaktorer!$C$50 -> 0 | S84: =IF((OR(F84=Nedtrekksmenyer!$F$4,P84="")),0,VLOOKUP(P84,Beregningsfaktorer!$L$70:$Q$328,Beregningsfaktorer!$Q$70,FALSE))*R84 -> 0 | U84: =IF((OR(F84=Nedtrekksmenyer!$F$4,P84="")),0,VLOOKUP(P84,Beregningsfaktorer!$L$70:$Q$328,Beregningsfaktorer!$Q$70,FALSE))*T84 -> 0 | V84: =IF(P84="","",VLOOKUP(P84,Utslippsfaktorer!$C$9:$AL$391,Utslippsfaktorer!$AL$5,FALSE)) -> Stål, armering og bolter kamstål | X84: =$I84*Utslippsfaktorer!E$131 -> 0 | Y84: =$I84*Utslippsfaktorer!F$131 -> 0 | Z84: =$I84*Utslippsfaktorer!G$131 -> 0 | AA84: =$I84*Utslippsfaktorer!H$131 -> 0 | AB84: =$I84*Utslippsfaktorer!I$131 -> 0 | AC84: =$L84*Utslippsfaktorer!E$142*Utslippsfaktorer!$AO$142 -> 0 | AD84: =$L84*Utslippsfaktorer!F$142*Utslippsfaktorer!$AO$142 -> 0 | AE84: =$L84*Utslippsfaktorer!G$142*Utslippsfaktorer!$AO$142 -> 0 | AF84: =$L84*Utslippsfaktorer!H$142*Utslippsfaktorer!$AO$142 -> 0 | AG84: =$L84*Utslippsfaktorer!I$142*Utslippsfaktorer!$AO$142 -> 0 | AH84: =$N84*Utslippsfaktorer!E$147 -> 0 | AI84: =$N84*Utslippsfaktorer!F$147 -> 0 | AJ84: =$N84*Utslippsfaktorer!G$147 -> 0 | AK84: =$N84*Utslippsfaktorer!H$147 -> 0 | AL84: =$N84*Utslippsfaktorer!I$147 -> 0 | AM84: =((IF($P84="",0,VLOOKUP($P84,Utslippsfaktorer!$C$9:$I$425,Utslippsfaktorer!E$5,FALSE)))*$R84)+($S84*Utslippsfaktorer!E$141) -> 0 | AN84: =((IF($P84="",0,VLOOKUP($P84,Utslippsfaktorer!$C$9:$I$425,Utslippsfaktorer!F$5,FALSE)))*$R84)+($S84*Utslippsfaktorer!F$141) -> 0 | AO84: =((IF($P84="",0,VLOOKUP($P84,Utslippsfaktorer!$C$9:$I$425,Utslippsfaktorer!G$5,FALSE)))*$R84)+($S84*Utslippsfaktorer!G$141) -> 0 | AP84: =((IF($P84="",0,VLOOKUP($P84,Utslippsfaktorer!$C$9:$I$425,Utslippsfaktorer!H$5,FALSE)))*$R84)+($S84*Utslippsfaktorer!H$141) -> 0 | AQ84: =((IF($P84="",0,VLOOKUP($P84,Utslippsfaktorer!$C$9:$I$425,Utslippsfaktorer!I$5,FALSE)))*$R84)+($S84*Utslippsfaktorer!I$141) -> 0 | AR84: 0 | AS84: 0 | AT84: 0 | AU84: 0 | AV84: 0 | AX84: =$J84*Utslippsfaktorer!E$131 -> 0 | AY84: =$J84*Utslippsfaktorer!F$131 -> 0 | AZ84: =$J84*Utslippsfaktorer!G$131 -> 0 | BA84: =$J84*Utslippsfaktorer!H$131 -> 0 | BB84: =$J84*Utslippsfaktorer!I$131 -> 0 | BC84: =$O84*Utslippsfaktorer!E$148 -> 0 | BD84: =$O84*Utslippsfaktorer!F$148 -> 0 | BE84: =$O84*Utslippsfaktorer!G$148 -> 0 | BF84: =$O84*Utslippsfaktorer!H$148 -> 0 | BG84: =$O84*Utslippsfaktorer!I$148 -> 0 | BH84: =((IF($P84="",0,VLOOKUP($P84,Utslippsfaktorer!$C$9:$I$425,Utslippsfaktorer!E$5,FALSE)))*$T84)+($U84*Utslippsfaktorer!E$141) -> 0 | BI84: =((IF($P84="",0,VLOOKUP($P84,Utslippsfaktorer!$C$9:$I$425,Utslippsfaktorer!F$5,FALSE)))*$T84)+($U84*Utslippsfaktorer!F$141) -> 0 | BJ84: =((IF($P84="",0,VLOOKUP($P84,Utslippsfaktorer!$C$9:$I$425,Utslippsfaktorer!G$5,FALSE)))*$T84)+($U84*Utslippsfaktorer!G$141) -> 0 | BK84: =((IF($P84="",0,VLOOKUP($P84,Utslippsfaktorer!$C$9:$I$425,Utslippsfaktorer!H$5,FALSE)))*$T84)+($U84*Utslippsfaktorer!H$141) -> 0 | BL84: =((IF($P84="",0,VLOOKUP($P84,Utslippsfaktorer!$C$9:$I$425,Utslippsfaktorer!I$5,FALSE)))*$T84)+($U84*Utslippsfaktorer!I$141) -> 0 | BM84: 0 | BN84: 0 | BO84: 0 | BP84: 0 | BQ84: 0
B85: 23.211 | D85: Bolter, full innstøpt, lengde 1,5 m, diameter 20 mm | F85: stk | P85: Stål, bolter av kamstål | Q85: =IF(P85="","",VLOOKUP(P85,Utslippsfaktorer!$C$9:$D$392,2,FALSE)) -> kg | R85: =E85*1.5*Beregningsfaktorer!$C$50 -> 0 | S85: =IF((OR(F85=Nedtrekksmenyer!$F$4,P85="")),0,VLOOKUP(P85,Beregningsfaktorer!$L$70:$Q$328,Beregningsfaktorer!$Q$70,FALSE))*R85 -> 0 | U85: =IF((OR(F85=Nedtrekksmenyer!$F$4,P85="")),0,VLOOKUP(P85,Beregningsfaktorer!$L$70:$Q$328,Beregningsfaktorer!$Q$70,FALSE))*T85 -> 0 | V85: =IF(P85="","",VLOOKUP(P85,Utslippsfaktorer!$C$9:$AL$391,Utslippsfaktorer!$AL$5,FALSE)) -> Stål, armering og bolter kamstål | X85: =$I85*Utslippsfaktorer!E$131 -> 0 | Y85: =$I85*Utslippsfaktorer!F$131 -> 0 | Z85: =$I85*Utslippsfaktorer!G$131 -> 0 | AA85: =$I85*Utslippsfaktorer!H$131 -> 0 | AB85: =$I85*Utslippsfaktorer!I$131 -> 0 | AC85: =$L85*Utslippsfaktorer!E$142*Utslippsfaktorer!$AO$142 -> 0 | AD85: =$L85*Utslippsfaktorer!F$142*Utslippsfaktorer!$AO$142 -> 0 | AE85: =$L85*Utslippsfaktorer!G$142*Utslippsfaktorer!$AO$142 -> 0 | AF85: =$L85*Utslippsfaktorer!H$142*Utslippsfaktorer!$AO$142 -> 0 | AG85: =$L85*Utslippsfaktorer!I$142*Utslippsfaktorer!$AO$142 -> 0 | AH85: =$N85*Utslippsfaktorer!E$147 -> 0 | AI85: =$N85*Utslippsfaktorer!F$147 -> 0 | AJ85: =$N85*Utslippsfaktorer!G$147 -> 0 | AK85: =$N85*Utslippsfaktorer!H$147 -> 0 | AL85: =$N85*Utslippsfaktorer!I$147 -> 0 | AM85: =((IF($P85="",0,VLOOKUP($P85,Utslippsfaktorer!$C$9:$I$425,Utslippsfaktorer!E$5,FALSE)))*$R85)+($S85*Utslippsfaktorer!E$141) -> 0 | AN85: =((IF($P85="",0,VLOOKUP($P85,Utslippsfaktorer!$C$9:$I$425,Utslippsfaktorer!F$5,FALSE)))*$R85)+($S85*Utslippsfaktorer!F$141) -> 0 | AO85: =((IF($P85="",0,VLOOKUP($P85,Utslippsfaktorer!$C$9:$I$425,Utslippsfaktorer!G$5,FALSE)))*$R85)+($S85*Utslippsfaktorer!G$141) -> 0 | AP85: =((IF($P85="",0,VLOOKUP($P85,Utslippsfaktorer!$C$9:$I$425,Utslippsfaktorer!H$5,FALSE)))*$R85)+($S85*Utslippsfaktorer!H$141) -> 0 | AQ85: =((IF($P85="",0,VLOOKUP($P85,Utslippsfaktorer!$C$9:$I$425,Utslippsfaktorer!I$5,FALSE)))*$R85)+($S85*Utslippsfaktorer!I$141) -> 0 | AR85: 0 | AS85: 0 | AT85: 0 | AU85: 0 | AV85: 0 | AX85: =$J85*Utslippsfaktorer!E$131 -> 0 | AY85: =$J85*Utslippsfaktorer!F$131 -> 0 | AZ85: =$J85*Utslippsfaktorer!G$131 -> 0 | BA85: =$J85*Utslippsfaktorer!H$131 -> 0 | BB85: =$J85*Utslippsfaktorer!I$131 -> 0 | BC85: =$O85*Utslippsfaktorer!E$148 -> 0 | BD85: =$O85*Utslippsfaktorer!F$148 -> 0 | BE85: =$O85*Utslippsfaktorer!G$148 -> 0 | BF85: =$O85*Utslippsfaktorer!H$148 -> 0 | BG85: =$O85*Utslippsfaktorer!I$148 -> 0 | BH85: =((IF($P85="",0,VLOOKUP($P85,Utslippsfaktorer!$C$9:$I$425,Utslippsfaktorer!E$5,FALSE)))*$T85)+($U85*Utslippsfaktorer!E$141) -> 0 | BI85: =((IF($P85="",0,VLOOKUP($P85,Utslippsfaktorer!$C$9:$I$425,Utslippsfaktorer!F$5,FALSE)))*$T85)+($U85*Utslippsfaktorer!F$141) -> 0 | BJ85: =((IF($P85="",0,VLOOKUP($P85,Utslippsfaktorer!$C$9:$I$425,Utslippsfaktorer!G$5,FALSE)))*$T85)+($U85*Utslippsfaktorer!G$141) -> 0 | BK85: =((IF($P85="",0,VLOOKUP($P85,Utslippsfaktorer!$C$9:$I$425,Utslippsfaktorer!H$5,FALSE)))*$T85)+($U85*Utslippsfaktorer!H$141) -> 0 | BL85: =((IF($P85="",0,VLOOKUP($P85,Utslippsfaktorer!$C$9:$I$425,Utslippsfaktorer!I$5,FALSE)))*$T85)+($U85*Utslippsfaktorer!I$141) -> 0 | BM85: 0 | BN85: 0 | BO85: 0 | BP85: 0 | BQ85: 0
B86: 23.212 | D86: Bolter, full innstøpt, lengde 2,4 m, diameter 20 mm | F86: stk | P86: Stål, bolter av kamstål | Q86: =IF(P86="","",VLOOKUP(P86,Utslippsfaktorer!$C$9:$D$392,2,FALSE)) -> kg | R86: =E86*2.4*Beregningsfaktorer!$C$50 -> 0 | S86: =IF((OR(F86=Nedtrekksmenyer!$F$4,P86="")),0,VLOOKUP(P86,Beregningsfaktorer!$L$70:$Q$328,Beregningsfaktorer!$Q$70,FALSE))*R86 -> 0 | U86: =IF((OR(F86=Nedtrekksmenyer!$F$4,P86="")),0,VLOOKUP(P86,Beregningsfaktorer!$L$70:$Q$328,Beregningsfaktorer!$Q$70,FALSE))*T86 -> 0 | V86: =IF(P86="","",VLOOKUP(P86,Utslippsfaktorer!$C$9:$AL$391,Utslippsfaktorer!$AL$5,FALSE)) -> Stål, armering og bolter kamstål | X86: =$I86*Utslippsfaktorer!E$131 -> 0 | Y86: =$I86*Utslippsfaktorer!F$131 -> 0 | Z86: =$I86*Utslippsfaktorer!G$131 -> 0 | AA86: =$I86*Utslippsfaktorer!H$131 -> 0 | AB86: =$I86*Utslippsfaktorer!I$131 -> 0 | AC86: =$L86*Utslippsfaktorer!E$142*Utslippsfaktorer!$AO$142 -> 0 | AD86: =$L86*Utslippsfaktorer!F$142*Utslippsfaktorer!$AO$142 -> 0 | AE86: =$L86*Utslippsfaktorer!G$142*Utslippsfaktorer!$AO$142 -> 0 | AF86: =$L86*Utslippsfaktorer!H$142*Utslippsfaktorer!$AO$142 -> 0 | AG86: =$L86*Utslippsfaktorer!I$142*Utslippsfaktorer!$AO$142 -> 0 | AH86: =$N86*Utslippsfaktorer!E$147 -> 0 | AI86: =$N86*Utslippsfaktorer!F$147 -> 0 | AJ86: =$N86*Utslippsfaktorer!G$147 -> 0 | AK86: =$N86*Utslippsfaktorer!H$147 -> 0 | AL86: =$N86*Utslippsfaktorer!I$147 -> 0 | AM86: =((IF($P86="",0,VLOOKUP($P86,Utslippsfaktorer!$C$9:$I$425,Utslippsfaktorer!E$5,FALSE)))*$R86)+($S86*Utslippsfaktorer!E$141) -> 0 | AN86: =((IF($P86="",0,VLOOKUP($P86,Utslippsfaktorer!$C$9:$I$425,Utslippsfaktorer!F$5,FALSE)))*$R86)+($S86*Utslippsfaktorer!F$141) -> 0 | AO86: =((IF($P86="",0,VLOOKUP($P86,Utslippsfaktorer!$C$9:$I$425,Utslippsfaktorer!G$5,FALSE)))*$R86)+($S86*Utslippsfaktorer!G$141) -> 0 | AP86: =((IF($P86="",0,VLOOKUP($P86,Utslippsfaktorer!$C$9:$I$425,Utslippsfaktorer!H$5,FALSE)))*$R86)+($S86*Utslippsfaktorer!H$141) -> 0 | AQ86: =((IF($P86="",0,VLOOKUP($P86,Utslippsfaktorer!$C$9:$I$425,Utslippsfaktorer!I$5,FALSE)))*$R86)+($S86*Utslippsfaktorer!I$141) -> 0 | AR86: 0 | AS86: 0 | AT86: 0 | AU86: 0 | AV86: 0 | AX86: =$J86*Utslippsfaktorer!E$131 -> 0 | AY86: =$J86*Utslippsfaktorer!F$131 -> 0 | AZ86: =$J86*Utslippsfaktorer!G$131 -> 0 | BA86: =$J86*Utslippsfaktorer!H$131 -> 0 | BB86: =$J86*Utslippsfaktorer!I$131 -> 0 | BC86: =$O86*Utslippsfaktorer!E$148 -> 0 | BD86: =$O86*Utslippsfaktorer!F$148 -> 0 | BE86: =$O86*Utslippsfaktorer!G$148 -> 0 | BF86: =$O86*Utslippsfaktorer!H$148 -> 0 | BG86: =$O86*Utslippsfaktorer!I$148 -> 0 | BH86: =((IF($P86="",0,VLOOKUP($P86,Utslippsfaktorer!$C$9:$I$425,Utslippsfaktorer!E$5,FALSE)))*$T86)+($U86*Utslippsfaktorer!E$141) -> 0 | BI86: =((IF($P86="",0,VLOOKUP($P86,Utslippsfaktorer!$C$9:$I$425,Utslippsfaktorer!F$5,FALSE)))*$T86)+($U86*Utslippsfaktorer!F$141) -> 0 | BJ86: =((IF($P86="",0,VLOOKUP($P86,Utslippsfaktorer!$C$9:$I$425,Utslippsfaktorer!G$5,FALSE)))*$T86)+($U86*Utslippsfaktorer!G$141) -> 0 | BK86: =((IF($P86="",0,VLOOKUP($P86,Utslippsfaktorer!$C$9:$I$425,Utslippsfaktorer!H$5,FALSE)))*$T86)+($U86*Utslippsfaktorer!H$141) -> 0 | BL86: =((IF($P86="",0,VLOOKUP($P86,Utslippsfaktorer!$C$9:$I$425,Utslippsfaktorer!I$5,FALSE)))*$T86)+($U86*Utslippsfaktorer!I$141) -> 0 | BM86: 0 | BN86: 0 | BO86: 0 | BP86: 0 | BQ86: 0
B87: 23.213 | D87: Bolter, full innstøpt, lengde 3 m, diameter 20 mm | F87: stk | P87: Stål, bolter av kamstål | Q87: =IF(P87="","",VLOOKUP(P87,Utslippsfaktorer!$C$9:$D$392,2,FALSE)) -> kg | R87: =E87*3*Beregningsfaktorer!$C$50 -> 0 | S87: =IF((OR(F87=Nedtrekksmenyer!$F$4,P87="")),0,VLOOKUP(P87,Beregningsfaktorer!$L$70:$Q$328,Beregningsfaktorer!$Q$70,FALSE))*R87 -> 0 | U87: =IF((OR(F87=Nedtrekksmenyer!$F$4,P87="")),0,VLOOKUP(P87,Beregningsfaktorer!$L$70:$Q$328,Beregningsfaktorer!$Q$70,FALSE))*T87 -> 0 | V87: =IF(P87="","",VLOOKUP(P87,Utslippsfaktorer!$C$9:$AL$391,Utslippsfaktorer!$AL$5,FALSE)) -> Stål, armering og bolter kamstål | X87: =$I87*Utslippsfaktorer!E$131 -> 0 | Y87: =$I87*Utslippsfaktorer!F$131 -> 0 | Z87: =$I87*Utslippsfaktorer!G$131 -> 0 | AA87: =$I87*Utslippsfaktorer!H$131 -> 0 | AB87: =$I87*Utslippsfaktorer!I$131 -> 0 | AC87: =$L87*Utslippsfaktorer!E$142*Utslippsfaktorer!$AO$142 -> 0 | AD87: =$L87*Utslippsfaktorer!F$142*Utslippsfaktorer!$AO$142 -> 0 | AE87: =$L87*Utslippsfaktorer!G$142*Utslippsfaktorer!$AO$142 -> 0 | AF87: =$L87*Utslippsfaktorer!H$142*Utslippsfaktorer!$AO$142 -> 0 | AG87: =$L87*Utslippsfaktorer!I$142*Utslippsfaktorer!$AO$142 -> 0 | AH87: =$N87*Utslippsfaktorer!E$147 -> 0 | AI87: =$N87*Utslippsfaktorer!F$147 -> 0 | AJ87: =$N87*Utslippsfaktorer!G$147 -> 0 | AK87: =$N87*Utslippsfaktorer!H$147 -> 0 | AL87: =$N87*Utslippsfaktorer!I$147 -> 0 | AM87: =((IF($P87="",0,VLOOKUP($P87,Utslippsfaktorer!$C$9:$I$425,Utslippsfaktorer!E$5,FALSE)))*$R87)+($S87*Utslippsfaktorer!E$141) -> 0 | AN87: =((IF($P87="",0,VLOOKUP($P87,Utslippsfaktorer!$C$9:$I$425,Utslippsfaktorer!F$5,FALSE)))*$R87)+($S87*Utslippsfaktorer!F$141) -> 0 | AO87: =((IF($P87="",0,VLOOKUP($P87,Utslippsfaktorer!$C$9:$I$425,Utslippsfaktorer!G$5,FALSE)))*$R87)+($S87*Utslippsfaktorer!G$141) -> 0 | AP87: =((IF($P87="",0,VLOOKUP($P87,Utslippsfaktorer!$C$9:$I$425,Utslippsfaktorer!H$5,FALSE)))*$R87)+($S87*Utslippsfaktorer!H$141) -> 0 | AQ87: =((IF($P87="",0,VLOOKUP($P87,Utslippsfaktorer!$C$9:$I$425,Utslippsfaktorer!I$5,FALSE)))*$R87)+($S87*Utslippsfaktorer!I$141) -> 0 | AR87: 0 | AS87: 0 | AT87: 0 | AU87: 0 | AV87: 0 | AX87: =$J87*Utslippsfaktorer!E$131 -> 0 | AY87: =$J87*Utslippsfaktorer!F$131 -> 0 | AZ87: =$J87*Utslippsfaktorer!G$131 -> 0 | BA87: =$J87*Utslippsfaktorer!H$131 -> 0 | BB87: =$J87*Utslippsfaktorer!I$131 -> 0 | BC87: =$O87*Utslippsfaktorer!E$148 -> 0 | BD87: =$O87*Utslippsfaktorer!F$148 -> 0 | BE87: =$O87*Utslippsfaktorer!G$148 -> 0 | BF87: =$O87*Utslippsfaktorer!H$148 -> 0 | BG87: =$O87*Utslippsfaktorer!I$148 -> 0 | BH87: =((IF($P87="",0,VLOOKUP($P87,Utslippsfaktorer!$C$9:$I$425,Utslippsfaktorer!E$5,FALSE)))*$T87)+($U87*Utslippsfaktorer!E$141) -> 0 | BI87: =((IF($P87="",0,VLOOKUP($P87,Utslippsfaktorer!$C$9:$I$425,Utslippsfaktorer!F$5,FALSE)))*$T87)+($U87*Utslippsfaktorer!F$141) -> 0 | BJ87: =((IF($P87="",0,VLOOKUP($P87,Utslippsfaktorer!$C$9:$I$425,Utslippsfaktorer!G$5,FALSE)))*$T87)+($U87*Utslippsfaktorer!G$141) -> 0 | BK87: =((IF($P87="",0,VLOOKUP($P87,Utslippsfaktorer!$C$9:$I$425,Utslippsfaktorer!H$5,FALSE)))*$T87)+($U87*Utslippsfaktorer!H$141) -> 0 | BL87: =((IF($P87="",0,VLOOKUP($P87,Utslippsfaktorer!$C$9:$I$425,Utslippsfaktorer!I$5,FALSE)))*$T87)+($U87*Utslippsfaktorer!I$141) -> 0 | BM87: 0 | BN87: 0 | BO87: 0 | BP87: 0 | BQ87: 0
B88: 23.214 | D88: Bolter, full innstøpt, lengde 4 m, diameter 20 mm | F88: stk | P88: Stål, bolter av kamstål | Q88: =IF(P88="","",VLOOKUP(P88,Utslippsfaktorer!$C$9:$D$392,2,FALSE)) -> kg | R88: =E88*4*Beregningsfaktorer!$C$50 -> 0 | S88: =IF((OR(F88=Nedtrekksmenyer!$F$4,P88="")),0,VLOOKUP(P88,Beregningsfaktorer!$L$70:$Q$328,Beregningsfaktorer!$Q$70,FALSE))*R88 -> 0 | U88: =IF((OR(F88=Nedtrekksmenyer!$F$4,P88="")),0,VLOOKUP(P88,Beregningsfaktorer!$L$70:$Q$328,Beregningsfaktorer!$Q$70,FALSE))*T88 -> 0 | V88: =IF(P88="","",VLOOKUP(P88,Utslippsfaktorer!$C$9:$AL$391,Utslippsfaktorer!$AL$5,FALSE)) -> Stål, armering og bolter kamstål | X88: =$I88*Utslippsfaktorer!E$131 -> 0 | Y88: =$I88*Utslippsfaktorer!F$131 -> 0 | Z88: =$I88*Utslippsfaktorer!G$131 -> 0 | AA88: =$I88*Utslippsfaktorer!H$131 -> 0 | AB88: =$I88*Utslippsfaktorer!I$131 -> 0 | AC88: =$L88*Utslippsfaktorer!E$142*Utslippsfaktorer!$AO$142 -> 0 | AD88: =$L88*Utslippsfaktorer!F$142*Utslippsfaktorer!$AO$142 -> 0 | AE88: =$L88*Utslippsfaktorer!G$142*Utslippsfaktorer!$AO$142 -> 0 | AF88: =$L88*Utslippsfaktorer!H$142*Utslippsfaktorer!$AO$142 -> 0 | AG88: =$L88*Utslippsfaktorer!I$142*Utslippsfaktorer!$AO$142 -> 0 | AH88: =$N88*Utslippsfaktorer!E$147 -> 0 | AI88: =$N88*Utslippsfaktorer!F$147 -> 0 | AJ88: =$N88*Utslippsfaktorer!G$147 -> 0 | AK88: =$N88*Utslippsfaktorer!H$147 -> 0 | AL88: =$N88*Utslippsfaktorer!I$147 -> 0 | AM88: =((IF($P88="",0,VLOOKUP($P88,Utslippsfaktorer!$C$9:$I$425,Utslippsfaktorer!E$5,FALSE)))*$R88)+($S88*Utslippsfaktorer!E$141) -> 0 | AN88: =((IF($P88="",0,VLOOKUP($P88,Utslippsfaktorer!$C$9:$I$425,Utslippsfaktorer!F$5,FALSE)))*$R88)+($S88*Utslippsfaktorer!F$141) -> 0 | AO88: =((IF($P88="",0,VLOOKUP($P88,Utslippsfaktorer!$C$9:$I$425,Utslippsfaktorer!G$5,FALSE)))*$R88)+($S88*Utslippsfaktorer!G$141) -> 0 | AP88: =((IF($P88="",0,VLOOKUP($P88,Utslippsfaktorer!$C$9:$I$425,Utslippsfaktorer!H$5,FALSE)))*$R88)+($S88*Utslippsfaktorer!H$141) -> 0 | AQ88: =((IF($P88="",0,VLOOKUP($P88,Utslippsfaktorer!$C$9:$I$425,Utslippsfaktorer!I$5,FALSE)))*$R88)+($S88*Utslippsfaktorer!I$141) -> 0 | AR88: 0 | AS88: 0 | AT88: 0 | AU88: 0 | AV88: 0 | AX88: =$J88*Utslippsfaktorer!E$131 -> 0 | AY88: =$J88*Utslippsfaktorer!F$131 -> 0 | AZ88: =$J88*Utslippsfaktorer!G$131 -> 0 | BA88: =$J88*Utslippsfaktorer!H$131 -> 0 | BB88: =$J88*Utslippsfaktorer!I$131 -> 0 | BC88: =$O88*Utslippsfaktorer!E$148 -> 0 | BD88: =$O88*Utslippsfaktorer!F$148 -> 0 | BE88: =$O88*Utslippsfaktorer!G$148 -> 0 | BF88: =$O88*Utslippsfaktorer!H$148 -> 0 | BG88: =$O88*Utslippsfaktorer!I$148 -> 0 | BH88: =((IF($P88="",0,VLOOKUP($P88,Utslippsfaktorer!$C$9:$I$425,Utslippsfaktorer!E$5,FALSE)))*$T88)+($U88*Utslippsfaktorer!E$141) -> 0 | BI88: =((IF($P88="",0,VLOOKUP($P88,Utslippsfaktorer!$C$9:$I$425,Utslippsfaktorer!F$5,FALSE)))*$T88)+($U88*Utslippsfaktorer!F$141) -> 0 | BJ88: =((IF($P88="",0,VLOOKUP($P88,Utslippsfaktorer!$C$9:$I$425,Utslippsfaktorer!G$5,FALSE)))*$T88)+($U88*Utslippsfaktorer!G$141) -> 0 | BK88: =((IF($P88="",0,VLOOKUP($P88,Utslippsfaktorer!$C$9:$I$425,Utslippsfaktorer!H$5,FALSE)))*$T88)+($U88*Utslippsfaktorer!H$141) -> 0 | BL88: =((IF($P88="",0,VLOOKUP($P88,Utslippsfaktorer!$C$9:$I$425,Utslippsfaktorer!I$5,FALSE)))*$T88)+($U88*Utslippsfaktorer!I$141) -> 0 | BM88: 0 | BN88: 0 | BO88: 0 | BP88: 0 | BQ88: 0
B89: 23.215 | D89: Bolter, full innstøpt, lengde 5 m, diameter 20 mm | F89: stk | P89: Stål, bolter av kamstål | Q89: =IF(P89="","",VLOOKUP(P89,Utslippsfaktorer!$C$9:$D$392,2,FALSE)) -> kg | R89: =E89*5*Beregningsfaktorer!$C$50 -> 0 | S89: =IF((OR(F89=Nedtrekksmenyer!$F$4,P89="")),0,VLOOKUP(P89,Beregningsfaktorer!$L$70:$Q$328,Beregningsfaktorer!$Q$70,FALSE))*R89 -> 0 | U89: =IF((OR(F89=Nedtrekksmenyer!$F$4,P89="")),0,VLOOKUP(P89,Beregningsfaktorer!$L$70:$Q$328,Beregningsfaktorer!$Q$70,FALSE))*T89 -> 0 | V89: =IF(P89="","",VLOOKUP(P89,Utslippsfaktorer!$C$9:$AL$391,Utslippsfaktorer!$AL$5,FALSE)) -> Stål, armering og bolter kamstål | X89: =$I89*Utslippsfaktorer!E$131 -> 0 | Y89: =$I89*Utslippsfaktorer!F$131 -> 0 | Z89: =$I89*Utslippsfaktorer!G$131 -> 0 | AA89: =$I89*Utslippsfaktorer!H$131 -> 0 | AB89: =$I89*Utslippsfaktorer!I$131 -> 0 | AC89: =$L89*Utslippsfaktorer!E$142*Utslippsfaktorer!$AO$142 -> 0 | AD89: =$L89*Utslippsfaktorer!F$142*Utslippsfaktorer!$AO$142 -> 0 | AE89: =$L89*Utslippsfaktorer!G$142*Utslippsfaktorer!$AO$142 -> 0 | AF89: =$L89*Utslippsfaktorer!H$142*Utslippsfaktorer!$AO$142 -> 0 | AG89: =$L89*Utslippsfaktorer!I$142*Utslippsfaktorer!$AO$142 -> 0 | AH89: =$N89*Utslippsfaktorer!E$147 -> 0 | AI89: =$N89*Utslippsfaktorer!F$147 -> 0 | AJ89: =$N89*Utslippsfaktorer!G$147 -> 0 | AK89: =$N89*Utslippsfaktorer!H$147 -> 0 | AL89: =$N89*Utslippsfaktorer!I$147 -> 0 | AM89: =((IF($P89="",0,VLOOKUP($P89,Utslippsfaktorer!$C$9:$I$425,Utslippsfaktorer!E$5,FALSE)))*$R89)+($S89*Utslippsfaktorer!E$141) -> 0 | AN89: =((IF($P89="",0,VLOOKUP($P89,Utslippsfaktorer!$C$9:$I$425,Utslippsfaktorer!F$5,FALSE)))*$R89)+($S89*Utslippsfaktorer!F$141) -> 0 | AO89: =((IF($P89="",0,VLOOKUP($P89,Utslippsfaktorer!$C$9:$I$425,Utslippsfaktorer!G$5,FALSE)))*$R89)+($S89*Utslippsfaktorer!G$141) -> 0 | AP89: =((IF($P89="",0,VLOOKUP($P89,Utslippsfaktorer!$C$9:$I$425,Utslippsfaktorer!H$5,FALSE)))*$R89)+($S89*Utslippsfaktorer!H$141) -> 0 | AQ89: =((IF($P89="",0,VLOOKUP($P89,Utslippsfaktorer!$C$9:$I$425,Utslippsfaktorer!I$5,FALSE)))*$R89)+($S89*Utslippsfaktorer!I$141) -> 0 | AR89: 0 | AS89: 0 | AT89: 0 | AU89: 0 | AV89: 0 | AX89: =$J89*Utslippsfaktorer!E$131 -> 0 | AY89: =$J89*Utslippsfaktorer!F$131 -> 0 | AZ89: =$J89*Utslippsfaktorer!G$131 -> 0 | BA89: =$J89*Utslippsfaktorer!H$131 -> 0 | BB89: =$J89*Utslippsfaktorer!I$131 -> 0 | BC89: =$O89*Utslippsfaktorer!E$148 -> 0 | BD89: =$O89*Utslippsfaktorer!F$148 -> 0 | BE89: =$O89*Utslippsfaktorer!G$148 -> 0 | BF89: =$O89*Utslippsfaktorer!H$148 -> 0 | BG89: =$O89*Utslippsfaktorer!I$148 -> 0 | BH89: =((IF($P89="",0,VLOOKUP($P89,Utslippsfaktorer!$C$9:$I$425,Utslippsfaktorer!E$5,FALSE)))*$T89)+($U89*Utslippsfaktorer!E$141) -> 0 | BI89: =((IF($P89="",0,VLOOKUP($P89,Utslippsfaktorer!$C$9:$I$425,Utslippsfaktorer!F$5,FALSE)))*$T89)+($U89*Utslippsfaktorer!F$141) -> 0 | BJ89: =((IF($P89="",0,VLOOKUP($P89,Utslippsfaktorer!$C$9:$I$425,Utslippsfaktorer!G$5,FALSE)))*$T89)+($U89*Utslippsfaktorer!G$141) -> 0 | BK89: =((IF($P89="",0,VLOOKUP($P89,Utslippsfaktorer!$C$9:$I$425,Utslippsfaktorer!H$5,FALSE)))*$T89)+($U89*Utslippsfaktorer!H$141) -> 0 | BL89: =((IF($P89="",0,VLOOKUP($P89,Utslippsfaktorer!$C$9:$I$425,Utslippsfaktorer!I$5,FALSE)))*$T89)+($U89*Utslippsfaktorer!I$141) -> 0 | BM89: 0 | BN89: 0 | BO89: 0 | BP89: 0 | BQ89: 0
B90: 23.216 | D90: Bolter, full innstøpt, lengde 6 m, diameter 20 mm | F90: stk | P90: Stål, bolter av kamstål | Q90: =IF(P90="","",VLOOKUP(P90,Utslippsfaktorer!$C$9:$D$392,2,FALSE)) -> kg | R90: =E90*6*Beregningsfaktorer!$C$50 -> 0 | S90: =IF((OR(F90=Nedtrekksmenyer!$F$4,P90="")),0,VLOOKUP(P90,Beregningsfaktorer!$L$70:$Q$328,Beregningsfaktorer!$Q$70,FALSE))*R90 -> 0 | U90: =IF((OR(F90=Nedtrekksmenyer!$F$4,P90="")),0,VLOOKUP(P90,Beregningsfaktorer!$L$70:$Q$328,Beregningsfaktorer!$Q$70,FALSE))*T90 -> 0 | V90: =IF(P90="","",VLOOKUP(P90,Utslippsfaktorer!$C$9:$AL$391,Utslippsfaktorer!$AL$5,FALSE)) -> Stål, armering og bolter kamstål | X90: =$I90*Utslippsfaktorer!E$131 -> 0 | Y90: =$I90*Utslippsfaktorer!F$131 -> 0 | Z90: =$I90*Utslippsfaktorer!G$131 -> 0 | AA90: =$I90*Utslippsfaktorer!H$131 -> 0 | AB90: =$I90*Utslippsfaktorer!I$131 -> 0 | AC90: =$L90*Utslippsfaktorer!E$142*Utslippsfaktorer!$AO$142 -> 0 | AD90: =$L90*Utslippsfaktorer!F$142*Utslippsfaktorer!$AO$142 -> 0 | AE90: =$L90*Utslippsfaktorer!G$142*Utslippsfaktorer!$AO$142 -> 0 | AF90: =$L90*Utslippsfaktorer!H$142*Utslippsfaktorer!$AO$142 -> 0 | AG90: =$L90*Utslippsfaktorer!I$142*Utslippsfaktorer!$AO$142 -> 0 | AH90: =$N90*Utslippsfaktorer!E$147 -> 0 | AI90: =$N90*Utslippsfaktorer!F$147 -> 0 | AJ90: =$N90*Utslippsfaktorer!G$147 -> 0 | AK90: =$N90*Utslippsfaktorer!H$147 -> 0 | AL90: =$N90*Utslippsfaktorer!I$147 -> 0 | AM90: =((IF($P90="",0,VLOOKUP($P90,Utslippsfaktorer!$C$9:$I$425,Utslippsfaktorer!E$5,FALSE)))*$R90)+($S90*Utslippsfaktorer!E$141) -> 0 | AN90: =((IF($P90="",0,VLOOKUP($P90,Utslippsfaktorer!$C$9:$I$425,Utslippsfaktorer!F$5,FALSE)))*$R90)+($S90*Utslippsfaktorer!F$141) -> 0 | AO90: =((IF($P90="",0,VLOOKUP($P90,Utslippsfaktorer!$C$9:$I$425,Utslippsfaktorer!G$5,FALSE)))*$R90)+($S90*Utslippsfaktorer!G$141) -> 0 | AP90: =((IF($P90="",0,VLOOKUP($P90,Utslippsfaktorer!$C$9:$I$425,Utslippsfaktorer!H$5,FALSE)))*$R90)+($S90*Utslippsfaktorer!H$141) -> 0 | AQ90: =((IF($P90="",0,VLOOKUP($P90,Utslippsfaktorer!$C$9:$I$425,Utslippsfaktorer!I$5,FALSE)))*$R90)+($S90*Utslippsfaktorer!I$141) -> 0 | AR90: 0 | AS90: 0 | AT90: 0 | AU90: 0 | AV90: 0 | AX90: =$J90*Utslippsfaktorer!E$131 -> 0 | AY90: =$J90*Utslippsfaktorer!F$131 -> 0 | AZ90: =$J90*Utslippsfaktorer!G$131 -> 0 | BA90: =$J90*Utslippsfaktorer!H$131 -> 0 | BB90: =$J90*Utslippsfaktorer!I$131 -> 0 | BC90: =$O90*Utslippsfaktorer!E$148 -> 0 | BD90: =$O90*Utslippsfaktorer!F$148 -> 0 | BE90: =$O90*Utslippsfaktorer!G$148 -> 0 | BF90: =$O90*Utslippsfaktorer!H$148 -> 0 | BG90: =$O90*Utslippsfaktorer!I$148 -> 0 | BH90: =((IF($P90="",0,VLOOKUP($P90,Utslippsfaktorer!$C$9:$I$425,Utslippsfaktorer!E$5,FALSE)))*$T90)+($U90*Utslippsfaktorer!E$141) -> 0 | BI90: =((IF($P90="",0,VLOOKUP($P90,Utslippsfaktorer!$C$9:$I$425,Utslippsfaktorer!F$5,FALSE)))*$T90)+($U90*Utslippsfaktorer!F$141) -> 0 | BJ90: =((IF($P90="",0,VLOOKUP($P90,Utslippsfaktorer!$C$9:$I$425,Utslippsfaktorer!G$5,FALSE)))*$T90)+($U90*Utslippsfaktorer!G$141) -> 0 | BK90: =((IF($P90="",0,VLOOKUP($P90,Utslippsfaktorer!$C$9:$I$425,Utslippsfaktorer!H$5,FALSE)))*$T90)+($U90*Utslippsfaktorer!H$141) -> 0 | BL90: =((IF($P90="",0,VLOOKUP($P90,Utslippsfaktorer!$C$9:$I$425,Utslippsfaktorer!I$5,FALSE)))*$T90)+($U90*Utslippsfaktorer!I$141) -> 0 | BM90: 0 | BN90: 0 | BO90: 0 | BP90: 0 | BQ90: 0
B91: 23.22 | D91: Kombinasjonsbolter (lengde 2,4 m, diameter 20 mm) | F91: stk | P91: Stål, bolter av kamstål | Q91: =IF(P91="","",VLOOKUP(P91,Utslippsfaktorer!$C$9:$D$392,2,FALSE)) -> kg | R91: =E91*2.4*Beregningsfaktorer!$C$50 -> 0 | S91: =IF((OR(F91=Nedtrekksmenyer!$F$4,P91="")),0,VLOOKUP(P91,Beregningsfaktorer!$L$70:$Q$328,Beregningsfaktorer!$Q$70,FALSE))*R91 -> 0 | U91: =IF((OR(F91=Nedtrekksmenyer!$F$4,P91="")),0,VLOOKUP(P91,Beregningsfaktorer!$L$70:$Q$328,Beregningsfaktorer!$Q$70,FALSE))*T91 -> 0 | V91: =IF(P91="","",VLOOKUP(P91,Utslippsfaktorer!$C$9:$AL$391,Utslippsfaktorer!$AL$5,FALSE)) -> Stål, armering og bolter kamstål | X91: =$I91*Utslippsfaktorer!E$131 -> 0 | Y91: =$I91*Utslippsfaktorer!F$131 -> 0 | Z91: =$I91*Utslippsfaktorer!G$131 -> 0 | AA91: =$I91*Utslippsfaktorer!H$131 -> 0 | AB91: =$I91*Utslippsfaktorer!I$131 -> 0 | AC91: =$L91*Utslippsfaktorer!E$142*Utslippsfaktorer!$AO$142 -> 0 | AD91: =$L91*Utslippsfaktorer!F$142*Utslippsfaktorer!$AO$142 -> 0 | AE91: =$L91*Utslippsfaktorer!G$142*Utslippsfaktorer!$AO$142 -> 0 | AF91: =$L91*Utslippsfaktorer!H$142*Utslippsfaktorer!$AO$142 -> 0 | AG91: =$L91*Utslippsfaktorer!I$142*Utslippsfaktorer!$AO$142 -> 0 | AH91: =$N91*Utslippsfaktorer!E$147 -> 0 | AI91: =$N91*Utslippsfaktorer!F$147 -> 0 | AJ91: =$N91*Utslippsfaktorer!G$147 -> 0 | AK91: =$N91*Utslippsfaktorer!H$147 -> 0 | AL91: =$N91*Utslippsfaktorer!I$147 -> 0 | AM91: =((IF($P91="",0,VLOOKUP($P91,Utslippsfaktorer!$C$9:$I$425,Utslippsfaktorer!E$5,FALSE)))*$R91)+($S91*Utslippsfaktorer!E$141) -> 0 | AN91: =((IF($P91="",0,VLOOKUP($P91,Utslippsfaktorer!$C$9:$I$425,Utslippsfaktorer!F$5,FALSE)))*$R91)+($S91*Utslippsfaktorer!F$141) -> 0 | AO91: =((IF($P91="",0,VLOOKUP($P91,Utslippsfaktorer!$C$9:$I$425,Utslippsfaktorer!G$5,FALSE)))*$R91)+($S91*Utslippsfaktorer!G$141) -> 0 | AP91: =((IF($P91="",0,VLOOKUP($P91,Utslippsfaktorer!$C$9:$I$425,Utslippsfaktorer!H$5,FALSE)))*$R91)+($S91*Utslippsfaktorer!H$141) -> 0 | AQ91: =((IF($P91="",0,VLOOKUP($P91,Utslippsfaktorer!$C$9:$I$425,Utslippsfaktorer!I$5,FALSE)))*$R91)+($S91*Utslippsfaktorer!I$141) -> 0 | AR91: 0 | AS91: 0 | AT91: 0 | AU91: 0 | AV91: 0 | AX91: =$J91*Utslippsfaktorer!E$131 -> 0 | AY91: =$J91*Utslippsfaktorer!F$131 -> 0 | AZ91: =$J91*Utslippsfaktorer!G$131 -> 0 | BA91: =$J91*Utslippsfaktorer!H$131 -> 0 | BB91: =$J91*Utslippsfaktorer!I$131 -> 0 | BC91: =$O91*Utslippsfaktorer!E$148 -> 0 | BD91: =$O91*Utslippsfaktorer!F$148 -> 0 | BE91: =$O91*Utslippsfaktorer!G$148 -> 0 | BF91: =$O91*Utslippsfaktorer!H$148 -> 0 | BG91: =$O91*Utslippsfaktorer!I$148 -> 0 | BH91: =((IF($P91="",0,VLOOKUP($P91,Utslippsfaktorer!$C$9:$I$425,Utslippsfaktorer!E$5,FALSE)))*$T91)+($U91*Utslippsfaktorer!E$141) -> 0 | BI91: =((IF($P91="",0,VLOOKUP($P91,Utslippsfaktorer!$C$9:$I$425,Utslippsfaktorer!F$5,FALSE)))*$T91)+($U91*Utslippsfaktorer!F$141) -> 0 | BJ91: =((IF($P91="",0,VLOOKUP($P91,Utslippsfaktorer!$C$9:$I$425,Utslippsfaktorer!G$5,FALSE)))*$T91)+($U91*Utslippsfaktorer!G$141) -> 0 | BK91: =((IF($P91="",0,VLOOKUP($P91,Utslippsfaktorer!$C$9:$I$425,Utslippsfaktorer!H$5,FALSE)))*$T91)+($U91*Utslippsfaktorer!H$141) -> 0 | BL91: =((IF($P91="",0,VLOOKUP($P91,Utslippsfaktorer!$C$9:$I$425,Utslippsfaktorer!I$5,FALSE)))*$T91)+($U91*Utslippsfaktorer!I$141) -> 0 | BM91: 0 | BN91: 0 | BO91: 0 | BP91: 0 | BQ91: 0
B92: 23.221 | D92: Kombinasjonsbolter, lengde 1,5 m, diameter 20 mm | F92: stk | P92: Stål, bolter av kamstål | Q92: =IF(P92="","",VLOOKUP(P92,Utslippsfaktorer!$C$9:$D$392,2,FALSE)) -> kg | R92: =E92*1.5*Beregningsfaktorer!$C$50 -> 0 | S92: =IF((OR(F92=Nedtrekksmenyer!$F$4,P92="")),0,VLOOKUP(P92,Beregningsfaktorer!$L$70:$Q$328,Beregningsfaktorer!$Q$70,FALSE))*R92 -> 0 | U92: =IF((OR(F92=Nedtrekksmenyer!$F$4,P92="")),0,VLOOKUP(P92,Beregningsfaktorer!$L$70:$Q$328,Beregningsfaktorer!$Q$70,FALSE))*T92 -> 0 | V92: =IF(P92="","",VLOOKUP(P92,Utslippsfaktorer!$C$9:$AL$391,Utslippsfaktorer!$AL$5,FALSE)) -> Stål, armering og bolter kamstål | X92: =$I92*Utslippsfaktorer!E$131 -> 0 | Y92: =$I92*Utslippsfaktorer!F$131 -> 0 | Z92: =$I92*Utslippsfaktorer!G$131 -> 0 | AA92: =$I92*Utslippsfaktorer!H$131 -> 0 | AB92: =$I92*Utslippsfaktorer!I$131 -> 0 | AC92: =$L92*Utslippsfaktorer!E$142*Utslippsfaktorer!$AO$142 -> 0 | AD92: =$L92*Utslippsfaktorer!F$142*Utslippsfaktorer!$AO$142 -> 0 | AE92: =$L92*Utslippsfaktorer!G$142*Utslippsfaktorer!$AO$142 -> 0 | AF92: =$L92*Utslippsfaktorer!H$142*Utslippsfaktorer!$AO$142 -> 0 | AG92: =$L92*Utslippsfaktorer!I$142*Utslippsfaktorer!$AO$142 -> 0 | AH92: =$N92*Utslippsfaktorer!E$147 -> 0 | AI92: =$N92*Utslippsfaktorer!F$147 -> 0 | AJ92: =$N92*Utslippsfaktorer!G$147 -> 0 | AK92: =$N92*Utslippsfaktorer!H$147 -> 0 | AL92: =$N92*Utslippsfaktorer!I$147 -> 0 | AM92: =((IF($P92="",0,VLOOKUP($P92,Utslippsfaktorer!$C$9:$I$425,Utslippsfaktorer!E$5,FALSE)))*$R92)+($S92*Utslippsfaktorer!E$141) -> 0 | AN92: =((IF($P92="",0,VLOOKUP($P92,Utslippsfaktorer!$C$9:$I$425,Utslippsfaktorer!F$5,FALSE)))*$R92)+($S92*Utslippsfaktorer!F$141) -> 0 | AO92: =((IF($P92="",0,VLOOKUP($P92,Utslippsfaktorer!$C$9:$I$425,Utslippsfaktorer!G$5,FALSE)))*$R92)+($S92*Utslippsfaktorer!G$141) -> 0 | AP92: =((IF($P92="",0,VLOOKUP($P92,Utslippsfaktorer!$C$9:$I$425,Utslippsfaktorer!H$5,FALSE)))*$R92)+($S92*Utslippsfaktorer!H$141) -> 0 | AQ92: =((IF($P92="",0,VLOOKUP($P92,Utslippsfaktorer!$C$9:$I$425,Utslippsfaktorer!I$5,FALSE)))*$R92)+($S92*Utslippsfaktorer!I$141) -> 0 | AR92: 0 | AS92: 0 | AT92: 0 | AU92: 0 | AV92: 0 | AX92: =$J92*Utslippsfaktorer!E$131 -> 0 | AY92: =$J92*Utslippsfaktorer!F$131 -> 0 | AZ92: =$J92*Utslippsfaktorer!G$131 -> 0 | BA92: =$J92*Utslippsfaktorer!H$131 -> 0 | BB92: =$J92*Utslippsfaktorer!I$131 -> 0 | BC92: =$O92*Utslippsfaktorer!E$148 -> 0 | BD92: =$O92*Utslippsfaktorer!F$148 -> 0 | BE92: =$O92*Utslippsfaktorer!G$148 -> 0 | BF92: =$O92*Utslippsfaktorer!H$148 -> 0 | BG92: =$O92*Utslippsfaktorer!I$148 -> 0 | BH92: =((IF($P92="",0,VLOOKUP($P92,Utslippsfaktorer!$C$9:$I$425,Utslippsfaktorer!E$5,FALSE)))*$T92)+($U92*Utslippsfaktorer!E$141) -> 0 | BI92: =((IF($P92="",0,VLOOKUP($P92,Utslippsfaktorer!$C$9:$I$425,Utslippsfaktorer!F$5,FALSE)))*$T92)+($U92*Utslippsfaktorer!F$141) -> 0 | BJ92: =((IF($P92="",0,VLOOKUP($P92,Utslippsfaktorer!$C$9:$I$425,Utslippsfaktorer!G$5,FALSE)))*$T92)+($U92*Utslippsfaktorer!G$141) -> 0 | BK92: =((IF($P92="",0,VLOOKUP($P92,Utslippsfaktorer!$C$9:$I$425,Utslippsfaktorer!H$5,FALSE)))*$T92)+($U92*Utslippsfaktorer!H$141) -> 0 | BL92: =((IF($P92="",0,VLOOKUP($P92,Utslippsfaktorer!$C$9:$I$425,Utslippsfaktorer!I$5,FALSE)))*$T92)+($U92*Utslippsfaktorer!I$141) -> 0 | BM92: 0 | BN92: 0 | BO92: 0 | BP92: 0 | BQ92: 0
B93: 23.222 | D93: Kombinasjonsbolter, lengde 2,4 m, diameter 20 mm | F93: stk | P93: Stål, bolter av kamstål | Q93: =IF(P93="","",VLOOKUP(P93,Utslippsfaktorer!$C$9:$D$392,2,FALSE)) -> kg | R93: =E93*2.4*Beregningsfaktorer!$C$50 -> 0 | S93: =IF((OR(F93=Nedtrekksmenyer!$F$4,P93="")),0,VLOOKUP(P93,Beregningsfaktorer!$L$70:$Q$328,Beregningsfaktorer!$Q$70,FALSE))*R93 -> 0 | U93: =IF((OR(F93=Nedtrekksmenyer!$F$4,P93="")),0,VLOOKUP(P93,Beregningsfaktorer!$L$70:$Q$328,Beregningsfaktorer!$Q$70,FALSE))*T93 -> 0 | V93: =IF(P93="","",VLOOKUP(P93,Utslippsfaktorer!$C$9:$AL$391,Utslippsfaktorer!$AL$5,FALSE)) -> Stål, armering og bolter kamstål | X93: =$I93*Utslippsfaktorer!E$131 -> 0 | Y93: =$I93*Utslippsfaktorer!F$131 -> 0 | Z93: =$I93*Utslippsfaktorer!G$131 -> 0 | AA93: =$I93*Utslippsfaktorer!H$131 -> 0 | AB93: =$I93*Utslippsfaktorer!I$131 -> 0 | AC93: =$L93*Utslippsfaktorer!E$142*Utslippsfaktorer!$AO$142 -> 0 | AD93: =$L93*Utslippsfaktorer!F$142*Utslippsfaktorer!$AO$142 -> 0 | AE93: =$L93*Utslippsfaktorer!G$142*Utslippsfaktorer!$AO$142 -> 0 | AF93: =$L93*Utslippsfaktorer!H$142*Utslippsfaktorer!$AO$142 -> 0 | AG93: =$L93*Utslippsfaktorer!I$142*Utslippsfaktorer!$AO$142 -> 0 | AH93: =$N93*Utslippsfaktorer!E$147 -> 0 | AI93: =$N93*Utslippsfaktorer!F$147 -> 0 | AJ93: =$N93*Utslippsfaktorer!G$147 -> 0 | AK93: =$N93*Utslippsfaktorer!H$147 -> 0 | AL93: =$N93*Utslippsfaktorer!I$147 -> 0 | AM93: =((IF($P93="",0,VLOOKUP($P93,Utslippsfaktorer!$C$9:$I$425,Utslippsfaktorer!E$5,FALSE)))*$R93)+($S93*Utslippsfaktorer!E$141) -> 0 | AN93: =((IF($P93="",0,VLOOKUP($P93,Utslippsfaktorer!$C$9:$I$425,Utslippsfaktorer!F$5,FALSE)))*$R93)+($S93*Utslippsfaktorer!F$141) -> 0 | AO93: =((IF($P93="",0,VLOOKUP($P93,Utslippsfaktorer!$C$9:$I$425,Utslippsfaktorer!G$5,FALSE)))*$R93)+($S93*Utslippsfaktorer!G$141) -> 0 | AP93: =((IF($P93="",0,VLOOKUP($P93,Utslippsfaktorer!$C$9:$I$425,Utslippsfaktorer!H$5,FALSE)))*$R93)+($S93*Utslippsfaktorer!H$141) -> 0 | AQ93: =((IF($P93="",0,VLOOKUP($P93,Utslippsfaktorer!$C$9:$I$425,Utslippsfaktorer!I$5,FALSE)))*$R93)+($S93*Utslippsfaktorer!I$141) -> 0 | AR93: 0 | AS93: 0 | AT93: 0 | AU93: 0 | AV93: 0 | AX93: =$J93*Utslippsfaktorer!E$131 -> 0 | AY93: =$J93*Utslippsfaktorer!F$131 -> 0 | AZ93: =$J93*Utslippsfaktorer!G$131 -> 0 | BA93: =$J93*Utslippsfaktorer!H$131 -> 0 | BB93: =$J93*Utslippsfaktorer!I$131 -> 0 | BC93: =$O93*Utslippsfaktorer!E$148 -> 0 | BD93: =$O93*Utslippsfaktorer!F$148 -> 0 | BE93: =$O93*Utslippsfaktorer!G$148 -> 0 | BF93: =$O93*Utslippsfaktorer!H$148 -> 0 | BG93: =$O93*Utslippsfaktorer!I$148 -> 0 | BH93: =((IF($P93="",0,VLOOKUP($P93,Utslippsfaktorer!$C$9:$I$425,Utslippsfaktorer!E$5,FALSE)))*$T93)+($U93*Utslippsfaktorer!E$141) -> 0 | BI93: =((IF($P93="",0,VLOOKUP($P93,Utslippsfaktorer!$C$9:$I$425,Utslippsfaktorer!F$5,FALSE)))*$T93)+($U93*Utslippsfaktorer!F$141) -> 0 | BJ93: =((IF($P93="",0,VLOOKUP($P93,Utslippsfaktorer!$C$9:$I$425,Utslippsfaktorer!G$5,FALSE)))*$T93)+($U93*Utslippsfaktorer!G$141) -> 0 | BK93: =((IF($P93="",0,VLOOKUP($P93,Utslippsfaktorer!$C$9:$I$425,Utslippsfaktorer!H$5,FALSE)))*$T93)+($U93*Utslippsfaktorer!H$141) -> 0 | BL93: =((IF($P93="",0,VLOOKUP($P93,Utslippsfaktorer!$C$9:$I$425,Utslippsfaktorer!I$5,FALSE)))*$T93)+($U93*Utslippsfaktorer!I$141) -> 0 | BM93: 0 | BN93: 0 | BO93: 0 | BP93: 0 | BQ93: 0
B94: 23.223 | D94: Kombinasjonsbolter, lengde 3 m, diameter 20 mm | F94: stk | P94: Stål, bolter av kamstål | Q94: =IF(P94="","",VLOOKUP(P94,Utslippsfaktorer!$C$9:$D$392,2,FALSE)) -> kg | R94: =E94*3*Beregningsfaktorer!$C$50 -> 0 | S94: =IF((OR(F94=Nedtrekksmenyer!$F$4,P94="")),0,VLOOKUP(P94,Beregningsfaktorer!$L$70:$Q$328,Beregningsfaktorer!$Q$70,FALSE))*R94 -> 0 | U94: =IF((OR(F94=Nedtrekksmenyer!$F$4,P94="")),0,VLOOKUP(P94,Beregningsfaktorer!$L$70:$Q$328,Beregningsfaktorer!$Q$70,FALSE))*T94 -> 0 | V94: =IF(P94="","",VLOOKUP(P94,Utslippsfaktorer!$C$9:$AL$391,Utslippsfaktorer!$AL$5,FALSE)) -> Stål, armering og bolter kamstål | X94: =$I94*Utslippsfaktorer!E$131 -> 0 | Y94: =$I94*Utslippsfaktorer!F$131 -> 0 | Z94: =$I94*Utslippsfaktorer!G$131 -> 0 | AA94: =$I94*Utslippsfaktorer!H$131 -> 0 | AB94: =$I94*Utslippsfaktorer!I$131 -> 0 | AC94: =$L94*Utslippsfaktorer!E$142*Utslippsfaktorer!$AO$142 -> 0 | AD94: =$L94*Utslippsfaktorer!F$142*Utslippsfaktorer!$AO$142 -> 0 | AE94: =$L94*Utslippsfaktorer!G$142*Utslippsfaktorer!$AO$142 -> 0 | AF94: =$L94*Utslippsfaktorer!H$142*Utslippsfaktorer!$AO$142 -> 0 | AG94: =$L94*Utslippsfaktorer!I$142*Utslippsfaktorer!$AO$142 -> 0 | AH94: =$N94*Utslippsfaktorer!E$147 -> 0 | AI94: =$N94*Utslippsfaktorer!F$147 -> 0 | AJ94: =$N94*Utslippsfaktorer!G$147 -> 0 | AK94: =$N94*Utslippsfaktorer!H$147 -> 0 | AL94: =$N94*Utslippsfaktorer!I$147 -> 0 | AM94: =((IF($P94="",0,VLOOKUP($P94,Utslippsfaktorer!$C$9:$I$425,Utslippsfaktorer!E$5,FALSE)))*$R94)+($S94*Utslippsfaktorer!E$141) -> 0 | AN94: =((IF($P94="",0,VLOOKUP($P94,Utslippsfaktorer!$C$9:$I$425,Utslippsfaktorer!F$5,FALSE)))*$R94)+($S94*Utslippsfaktorer!F$141) -> 0 | AO94: =((IF($P94="",0,VLOOKUP($P94,Utslippsfaktorer!$C$9:$I$425,Utslippsfaktorer!G$5,FALSE)))*$R94)+($S94*Utslippsfaktorer!G$141) -> 0 | AP94: =((IF($P94="",0,VLOOKUP($P94,Utslippsfaktorer!$C$9:$I$425,Utslippsfaktorer!H$5,FALSE)))*$R94)+($S94*Utslippsfaktorer!H$141) -> 0 | AQ94: =((IF($P94="",0,VLOOKUP($P94,Utslippsfaktorer!$C$9:$I$425,Utslippsfaktorer!I$5,FALSE)))*$R94)+($S94*Utslippsfaktorer!I$141) -> 0 | AR94: 0 | AS94: 0 | AT94: 0 | AU94: 0 | AV94: 0 | AX94: =$J94*Utslippsfaktorer!E$131 -> 0 | AY94: =$J94*Utslippsfaktorer!F$131 -> 0 | AZ94: =$J94*Utslippsfaktorer!G$131 -> 0 | BA94: =$J94*Utslippsfaktorer!H$131 -> 0 | BB94: =$J94*Utslippsfaktorer!I$131 -> 0 | BC94: =$O94*Utslippsfaktorer!E$148 -> 0 | BD94: =$O94*Utslippsfaktorer!F$148 -> 0 | BE94: =$O94*Utslippsfaktorer!G$148 -> 0 | BF94: =$O94*Utslippsfaktorer!H$148 -> 0 | BG94: =$O94*Utslippsfaktorer!I$148 -> 0 | BH94: =((IF($P94="",0,VLOOKUP($P94,Utslippsfaktorer!$C$9:$I$425,Utslippsfaktorer!E$5,FALSE)))*$T94)+($U94*Utslippsfaktorer!E$141) -> 0 | BI94: =((IF($P94="",0,VLOOKUP($P94,Utslippsfaktorer!$C$9:$I$425,Utslippsfaktorer!F$5,FALSE)))*$T94)+($U94*Utslippsfaktorer!F$141) -> 0 | BJ94: =((IF($P94="",0,VLOOKUP($P94,Utslippsfaktorer!$C$9:$I$425,Utslippsfaktorer!G$5,FALSE)))*$T94)+($U94*Utslippsfaktorer!G$141) -> 0 | BK94: =((IF($P94="",0,VLOOKUP($P94,Utslippsfaktorer!$C$9:$I$425,Utslippsfaktorer!H$5,FALSE)))*$T94)+($U94*Utslippsfaktorer!H$141) -> 0 | BL94: =((IF($P94="",0,VLOOKUP($P94,Utslippsfaktorer!$C$9:$I$425,Utslippsfaktorer!I$5,FALSE)))*$T94)+($U94*Utslippsfaktorer!I$141) -> 0 | BM94: 0 | BN94: 0 | BO94: 0 | BP94: 0 | BQ94: 0
B95: 23.224 | D95: Kombinasjonsbolter, lengde 4 m, diameter 20 mm | F95: stk | P95: Stål, bolter av kamstål | Q95: =IF(P95="","",VLOOKUP(P95,Utslippsfaktorer!$C$9:$D$392,2,FALSE)) -> kg | R95: =E95*4*Beregningsfaktorer!$C$50 -> 0 | S95: =IF((OR(F95=Nedtrekksmenyer!$F$4,P95="")),0,VLOOKUP(P95,Beregningsfaktorer!$L$70:$Q$328,Beregningsfaktorer!$Q$70,FALSE))*R95 -> 0 | U95: =IF((OR(F95=Nedtrekksmenyer!$F$4,P95="")),0,VLOOKUP(P95,Beregningsfaktorer!$L$70:$Q$328,Beregningsfaktorer!$Q$70,FALSE))*T95 -> 0 | V95: =IF(P95="","",VLOOKUP(P95,Utslippsfaktorer!$C$9:$AL$391,Utslippsfaktorer!$AL$5,FALSE)) -> Stål, armering og bolter kamstål | X95: =$I95*Utslippsfaktorer!E$131 -> 0 | Y95: =$I95*Utslippsfaktorer!F$131 -> 0 | Z95: =$I95*Utslippsfaktorer!G$131 -> 0 | AA95: =$I95*Utslippsfaktorer!H$131 -> 0 | AB95: =$I95*Utslippsfaktorer!I$131 -> 0 | AC95: =$L95*Utslippsfaktorer!E$142*Utslippsfaktorer!$AO$142 -> 0 | AD95: =$L95*Utslippsfaktorer!F$142*Utslippsfaktorer!$AO$142 -> 0 | AE95: =$L95*Utslippsfaktorer!G$142*Utslippsfaktorer!$AO$142 -> 0 | AF95: =$L95*Utslippsfaktorer!H$142*Utslippsfaktorer!$AO$142 -> 0 | AG95: =$L95*Utslippsfaktorer!I$142*Utslippsfaktorer!$AO$142 -> 0 | AH95: =$N95*Utslippsfaktorer!E$147 -> 0 | AI95: =$N95*Utslippsfaktorer!F$147 -> 0 | AJ95: =$N95*Utslippsfaktorer!G$147 -> 0 | AK95: =$N95*Utslippsfaktorer!H$147 -> 0 | AL95: =$N95*Utslippsfaktorer!I$147 -> 0 | AM95: =((IF($P95="",0,VLOOKUP($P95,Utslippsfaktorer!$C$9:$I$425,Utslippsfaktorer!E$5,FALSE)))*$R95)+($S95*Utslippsfaktorer!E$141) -> 0 | AN95: =((IF($P95="",0,VLOOKUP($P95,Utslippsfaktorer!$C$9:$I$425,Utslippsfaktorer!F$5,FALSE)))*$R95)+($S95*Utslippsfaktorer!F$141) -> 0 | AO95: =((IF($P95="",0,VLOOKUP($P95,Utslippsfaktorer!$C$9:$I$425,Utslippsfaktorer!G$5,FALSE)))*$R95)+($S95*Utslippsfaktorer!G$141) -> 0 | AP95: =((IF($P95="",0,VLOOKUP($P95,Utslippsfaktorer!$C$9:$I$425,Utslippsfaktorer!H$5,FALSE)))*$R95)+($S95*Utslippsfaktorer!H$141) -> 0 | AQ95: =((IF($P95="",0,VLOOKUP($P95,Utslippsfaktorer!$C$9:$I$425,Utslippsfaktorer!I$5,FALSE)))*$R95)+($S95*Utslippsfaktorer!I$141) -> 0 | AR95: 0 | AS95: 0 | AT95: 0 | AU95: 0 | AV95: 0 | AX95: =$J95*Utslippsfaktorer!E$131 -> 0 | AY95: =$J95*Utslippsfaktorer!F$131 -> 0 | AZ95: =$J95*Utslippsfaktorer!G$131 -> 0 | BA95: =$J95*Utslippsfaktorer!H$131 -> 0 | BB95: =$J95*Utslippsfaktorer!I$131 -> 0 | BC95: =$O95*Utslippsfaktorer!E$148 -> 0 | BD95: =$O95*Utslippsfaktorer!F$148 -> 0 | BE95: =$O95*Utslippsfaktorer!G$148 -> 0 | BF95: =$O95*Utslippsfaktorer!H$148 -> 0 | BG95: =$O95*Utslippsfaktorer!I$148 -> 0 | BH95: =((IF($P95="",0,VLOOKUP($P95,Utslippsfaktorer!$C$9:$I$425,Utslippsfaktorer!E$5,FALSE)))*$T95)+($U95*Utslippsfaktorer!E$141) -> 0 | BI95: =((IF($P95="",0,VLOOKUP($P95,Utslippsfaktorer!$C$9:$I$425,Utslippsfaktorer!F$5,FALSE)))*$T95)+($U95*Utslippsfaktorer!F$141) -> 0 | BJ95: =((IF($P95="",0,VLOOKUP($P95,Utslippsfaktorer!$C$9:$I$425,Utslippsfaktorer!G$5,FALSE)))*$T95)+($U95*Utslippsfaktorer!G$141) -> 0 | BK95: =((IF($P95="",0,VLOOKUP($P95,Utslippsfaktorer!$C$9:$I$425,Utslippsfaktorer!H$5,FALSE)))*$T95)+($U95*Utslippsfaktorer!H$141) -> 0 | BL95: =((IF($P95="",0,VLOOKUP($P95,Utslippsfaktorer!$C$9:$I$425,Utslippsfaktorer!I$5,FALSE)))*$T95)+($U95*Utslippsfaktorer!I$141) -> 0 | BM95: 0 | BN95: 0 | BO95: 0 | BP95: 0 | BQ95: 0
B96: 23.225 | D96: Kombinasjonsbolter, lengde 5 m, diameter 20 mm | F96: stk | P96: Stål, bolter av kamstål | Q96: =IF(P96="","",VLOOKUP(P96,Utslippsfaktorer!$C$9:$D$392,2,FALSE)) -> kg | R96: =E96*5*Beregningsfaktorer!$C$50 -> 0 | S96: =IF((OR(F96=Nedtrekksmenyer!$F$4,P96="")),0,VLOOKUP(P96,Beregningsfaktorer!$L$70:$Q$328,Beregningsfaktorer!$Q$70,FALSE))*R96 -> 0 | U96: =IF((OR(F96=Nedtrekksmenyer!$F$4,P96="")),0,VLOOKUP(P96,Beregningsfaktorer!$L$70:$Q$328,Beregningsfaktorer!$Q$70,FALSE))*T96 -> 0 | V96: =IF(P96="","",VLOOKUP(P96,Utslippsfaktorer!$C$9:$AL$391,Utslippsfaktorer!$AL$5,FALSE)) -> Stål, armering og bolter kamstål | X96: =$I96*Utslippsfaktorer!E$131 -> 0 | Y96: =$I96*Utslippsfaktorer!F$131 -> 0 | Z96: =$I96*Utslippsfaktorer!G$131 -> 0 | AA96: =$I96*Utslippsfaktorer!H$131 -> 0 | AB96: =$I96*Utslippsfaktorer!I$131 -> 0 | AC96: =$L96*Utslippsfaktorer!E$142*Utslippsfaktorer!$AO$142 -> 0 | AD96: =$L96*Utslippsfaktorer!F$142*Utslippsfaktorer!$AO$142 -> 0 | AE96: =$L96*Utslippsfaktorer!G$142*Utslippsfaktorer!$AO$142 -> 0 | AF96: =$L96*Utslippsfaktorer!H$142*Utslippsfaktorer!$AO$142 -> 0 | AG96: =$L96*Utslippsfaktorer!I$142*Utslippsfaktorer!$AO$142 -> 0 | AH96: =$N96*Utslippsfaktorer!E$147 -> 0 | AI96: =$N96*Utslippsfaktorer!F$147 -> 0 | AJ96: =$N96*Utslippsfaktorer!G$147 -> 0 | AK96: =$N96*Utslippsfaktorer!H$147 -> 0 | AL96: =$N96*Utslippsfaktorer!I$147 -> 0 | AM96: =((IF($P96="",0,VLOOKUP($P96,Utslippsfaktorer!$C$9:$I$425,Utslippsfaktorer!E$5,FALSE)))*$R96)+($S96*Utslippsfaktorer!E$141) -> 0 | AN96: =((IF($P96="",0,VLOOKUP($P96,Utslippsfaktorer!$C$9:$I$425,Utslippsfaktorer!F$5,FALSE)))*$R96)+($S96*Utslippsfaktorer!F$141) -> 0 | AO96: =((IF($P96="",0,VLOOKUP($P96,Utslippsfaktorer!$C$9:$I$425,Utslippsfaktorer!G$5,FALSE)))*$R96)+($S96*Utslippsfaktorer!G$141) -> 0 | AP96: =((IF($P96="",0,VLOOKUP($P96,Utslippsfaktorer!$C$9:$I$425,Utslippsfaktorer!H$5,FALSE)))*$R96)+($S96*Utslippsfaktorer!H$141) -> 0 | AQ96: =((IF($P96="",0,VLOOKUP($P96,Utslippsfaktorer!$C$9:$I$425,Utslippsfaktorer!I$5,FALSE)))*$R96)+($S96*Utslippsfaktorer!I$141) -> 0 | AR96: 0 | AS96: 0 | AT96: 0 | AU96: 0 | AV96: 0 | AX96: =$J96*Utslippsfaktorer!E$131 -> 0 | AY96: =$J96*Utslippsfaktorer!F$131 -> 0 | AZ96: =$J96*Utslippsfaktorer!G$131 -> 0 | BA96: =$J96*Utslippsfaktorer!H$131 -> 0 | BB96: =$J96*Utslippsfaktorer!I$131 -> 0 | BC96: =$O96*Utslippsfaktorer!E$148 -> 0 | BD96: =$O96*Utslippsfaktorer!F$148 -> 0 | BE96: =$O96*Utslippsfaktorer!G$148 -> 0 | BF96: =$O96*Utslippsfaktorer!H$148 -> 0 | BG96: =$O96*Utslippsfaktorer!I$148 -> 0 | BH96: =((IF($P96="",0,VLOOKUP($P96,Utslippsfaktorer!$C$9:$I$425,Utslippsfaktorer!E$5,FALSE)))*$T96)+($U96*Utslippsfaktorer!E$141) -> 0 | BI96: =((IF($P96="",0,VLOOKUP($P96,Utslippsfaktorer!$C$9:$I$425,Utslippsfaktorer!F$5,FALSE)))*$T96)+($U96*Utslippsfaktorer!F$141) -> 0 | BJ96: =((IF($P96="",0,VLOOKUP($P96,Utslippsfaktorer!$C$9:$I$425,Utslippsfaktorer!G$5,FALSE)))*$T96)+($U96*Utslippsfaktorer!G$141) -> 0 | BK96: =((IF($P96="",0,VLOOKUP($P96,Utslippsfaktorer!$C$9:$I$425,Utslippsfaktorer!H$5,FALSE)))*$T96)+($U96*Utslippsfaktorer!H$141) -> 0 | BL96: =((IF($P96="",0,VLOOKUP($P96,Utslippsfaktorer!$C$9:$I$425,Utslippsfaktorer!I$5,FALSE)))*$T96)+($U96*Utslippsfaktorer!I$141) -> 0 | BM96: 0 | BN96: 0 | BO96: 0 | BP96: 0 | BQ96: 0
B97: 23.23 | D97: Endeforankrede bolter (lengde 2,4 m, diameter 20 mm) | F97: stk | P97: Stål, bolter av kamstål | Q97: =IF(P97="","",VLOOKUP(P97,Utslippsfaktorer!$C$9:$D$392,2,FALSE)) -> kg | R97: =E97*2.4*Beregningsfaktorer!$C$50 -> 0 | S97: =IF((OR(F97=Nedtrekksmenyer!$F$4,P97="")),0,VLOOKUP(P97,Beregningsfaktorer!$L$70:$Q$328,Beregningsfaktorer!$Q$70,FALSE))*R97 -> 0 | U97: =IF((OR(F97=Nedtrekksmenyer!$F$4,P97="")),0,VLOOKUP(P97,Beregningsfaktorer!$L$70:$Q$328,Beregningsfaktorer!$Q$70,FALSE))*T97 -> 0 | V97: =IF(P97="","",VLOOKUP(P97,Utslippsfaktorer!$C$9:$AL$391,Utslippsfaktorer!$AL$5,FALSE)) -> Stål, armering og bolter kamstål | X97: =$I97*Utslippsfaktorer!E$131 -> 0 | Y97: =$I97*Utslippsfaktorer!F$131 -> 0 | Z97: =$I97*Utslippsfaktorer!G$131 -> 0 | AA97: =$I97*Utslippsfaktorer!H$131 -> 0 | AB97: =$I97*Utslippsfaktorer!I$131 -> 0 | AC97: =$L97*Utslippsfaktorer!E$142*Utslippsfaktorer!$AO$142 -> 0 | AD97: =$L97*Utslippsfaktorer!F$142*Utslippsfaktorer!$AO$142 -> 0 | AE97: =$L97*Utslippsfaktorer!G$142*Utslippsfaktorer!$AO$142 -> 0 | AF97: =$L97*Utslippsfaktorer!H$142*Utslippsfaktorer!$AO$142 -> 0 | AG97: =$L97*Utslippsfaktorer!I$142*Utslippsfaktorer!$AO$142 -> 0 | AH97: =$N97*Utslippsfaktorer!E$147 -> 0 | AI97: =$N97*Utslippsfaktorer!F$147 -> 0 | AJ97: =$N97*Utslippsfaktorer!G$147 -> 0 | AK97: =$N97*Utslippsfaktorer!H$147 -> 0 | AL97: =$N97*Utslippsfaktorer!I$147 -> 0 | AM97: =((IF($P97="",0,VLOOKUP($P97,Utslippsfaktorer!$C$9:$I$425,Utslippsfaktorer!E$5,FALSE)))*$R97)+($S97*Utslippsfaktorer!E$141) -> 0 | AN97: =((IF($P97="",0,VLOOKUP($P97,Utslippsfaktorer!$C$9:$I$425,Utslippsfaktorer!F$5,FALSE)))*$R97)+($S97*Utslippsfaktorer!F$141) -> 0 | AO97: =((IF($P97="",0,VLOOKUP($P97,Utslippsfaktorer!$C$9:$I$425,Utslippsfaktorer!G$5,FALSE)))*$R97)+($S97*Utslippsfaktorer!G$141) -> 0 | AP97: =((IF($P97="",0,VLOOKUP($P97,Utslippsfaktorer!$C$9:$I$425,Utslippsfaktorer!H$5,FALSE)))*$R97)+($S97*Utslippsfaktorer!H$141) -> 0 | AQ97: =((IF($P97="",0,VLOOKUP($P97,Utslippsfaktorer!$C$9:$I$425,Utslippsfaktorer!I$5,FALSE)))*$R97)+($S97*Utslippsfaktorer!I$141) -> 0 | AR97: 0 | AS97: 0 | AT97: 0 | AU97: 0 | AV97: 0 | AX97: =$J97*Utslippsfaktorer!E$131 -> 0 | AY97: =$J97*Utslippsfaktorer!F$131 -> 0 | AZ97: =$J97*Utslippsfaktorer!G$131 -> 0 | BA97: =$J97*Utslippsfaktorer!H$131 -> 0 | BB97: =$J97*Utslippsfaktorer!I$131 -> 0 | BC97: =$O97*Utslippsfaktorer!E$148 -> 0 | BD97: =$O97*Utslippsfaktorer!F$148 -> 0 | BE97: =$O97*Utslippsfaktorer!G$148 -> 0 | BF97: =$O97*Utslippsfaktorer!H$148 -> 0 | BG97: =$O97*Utslippsfaktorer!I$148 -> 0 | BH97: =((IF($P97="",0,VLOOKUP($P97,Utslippsfaktorer!$C$9:$I$425,Utslippsfaktorer!E$5,FALSE)))*$T97)+($U97*Utslippsfaktorer!E$141) -> 0 | BI97: =((IF($P97="",0,VLOOKUP($P97,Utslippsfaktorer!$C$9:$I$425,Utslippsfaktorer!F$5,FALSE)))*$T97)+($U97*Utslippsfaktorer!F$141) -> 0 | BJ97: =((IF($P97="",0,VLOOKUP($P97,Utslippsfaktorer!$C$9:$I$425,Utslippsfaktorer!G$5,FALSE)))*$T97)+($U97*Utslippsfaktorer!G$141) -> 0 | BK97: =((IF($P97="",0,VLOOKUP($P97,Utslippsfaktorer!$C$9:$I$425,Utslippsfaktorer!H$5,FALSE)))*$T97)+($U97*Utslippsfaktorer!H$141) -> 0 | BL97: =((IF($P97="",0,VLOOKUP($P97,Utslippsfaktorer!$C$9:$I$425,Utslippsfaktorer!I$5,FALSE)))*$T97)+($U97*Utslippsfaktorer!I$141) -> 0 | BM97: 0 | BN97: 0 | BO97: 0 | BP97: 0 | BQ97: 0
B98: 23.231 | D98: Bolter, endeforankrede, lengde 1,5 m, diameter 20 mm | F98: stk | P98: Stål, bolter av kamstål | Q98: =IF(P98="","",VLOOKUP(P98,Utslippsfaktorer!$C$9:$D$392,2,FALSE)) -> kg | R98: =E98*1.5*Beregningsfaktorer!$C$50 -> 0 | S98: =IF((OR(F98=Nedtrekksmenyer!$F$4,P98="")),0,VLOOKUP(P98,Beregningsfaktorer!$L$70:$Q$328,Beregningsfaktorer!$Q$70,FALSE))*R98 -> 0 | U98: =IF((OR(F98=Nedtrekksmenyer!$F$4,P98="")),0,VLOOKUP(P98,Beregningsfaktorer!$L$70:$Q$328,Beregningsfaktorer!$Q$70,FALSE))*T98 -> 0 | V98: =IF(P98="","",VLOOKUP(P98,Utslippsfaktorer!$C$9:$AL$391,Utslippsfaktorer!$AL$5,FALSE)) -> Stål, armering og bolter kamstål | X98: =$I98*Utslippsfaktorer!E$131 -> 0 | Y98: =$I98*Utslippsfaktorer!F$131 -> 0 | Z98: =$I98*Utslippsfaktorer!G$131 -> 0 | AA98: =$I98*Utslippsfaktorer!H$131 -> 0 | AB98: =$I98*Utslippsfaktorer!I$131 -> 0 | AC98: =$L98*Utslippsfaktorer!E$142*Utslippsfaktorer!$AO$142 -> 0 | AD98: =$L98*Utslippsfaktorer!F$142*Utslippsfaktorer!$AO$142 -> 0 | AE98: =$L98*Utslippsfaktorer!G$142*Utslippsfaktorer!$AO$142 -> 0 | AF98: =$L98*Utslippsfaktorer!H$142*Utslippsfaktorer!$AO$142 -> 0 | AG98: =$L98*Utslippsfaktorer!I$142*Utslippsfaktorer!$AO$142 -> 0 | AH98: =$N98*Utslippsfaktorer!E$147 -> 0 | AI98: =$N98*Utslippsfaktorer!F$147 -> 0 | AJ98: =$N98*Utslippsfaktorer!G$147 -> 0 | AK98: =$N98*Utslippsfaktorer!H$147 -> 0 | AL98: =$N98*Utslippsfaktorer!I$147 -> 0 | AM98: =((IF($P98="",0,VLOOKUP($P98,Utslippsfaktorer!$C$9:$I$425,Utslippsfaktorer!E$5,FALSE)))*$R98)+($S98*Utslippsfaktorer!E$141) -> 0 | AN98: =((IF($P98="",0,VLOOKUP($P98,Utslippsfaktorer!$C$9:$I$425,Utslippsfaktorer!F$5,FALSE)))*$R98)+($S98*Utslippsfaktorer!F$141) -> 0 | AO98: =((IF($P98="",0,VLOOKUP($P98,Utslippsfaktorer!$C$9:$I$425,Utslippsfaktorer!G$5,FALSE)))*$R98)+($S98*Utslippsfaktorer!G$141) -> 0 | AP98: =((IF($P98="",0,VLOOKUP($P98,Utslippsfaktorer!$C$9:$I$425,Utslippsfaktorer!H$5,FALSE)))*$R98)+($S98*Utslippsfaktorer!H$141) -> 0 | AQ98: =((IF($P98="",0,VLOOKUP($P98,Utslippsfaktorer!$C$9:$I$425,Utslippsfaktorer!I$5,FALSE)))*$R98)+($S98*Utslippsfaktorer!I$141) -> 0 | AR98: 0 | AS98: 0 | AT98: 0 | AU98: 0 | AV98: 0 | AX98: =$J98*Utslippsfaktorer!E$131 -> 0 | AY98: =$J98*Utslippsfaktorer!F$131 -> 0 | AZ98: =$J98*Utslippsfaktorer!G$131 -> 0 | BA98: =$J98*Utslippsfaktorer!H$131 -> 0 | BB98: =$J98*Utslippsfaktorer!I$131 -> 0 | BC98: =$O98*Utslippsfaktorer!E$148 -> 0 | BD98: =$O98*Utslippsfaktorer!F$148 -> 0 | BE98: =$O98*Utslippsfaktorer!G$148 -> 0 | BF98: =$O98*Utslippsfaktorer!H$148 -> 0 | BG98: =$O98*Utslippsfaktorer!I$148 -> 0 | BH98: =((IF($P98="",0,VLOOKUP($P98,Utslippsfaktorer!$C$9:$I$425,Utslippsfaktorer!E$5,FALSE)))*$T98)+($U98*Utslippsfaktorer!E$141) -> 0 | BI98: =((IF($P98="",0,VLOOKUP($P98,Utslippsfaktorer!$C$9:$I$425,Utslippsfaktorer!F$5,FALSE)))*$T98)+($U98*Utslippsfaktorer!F$141) -> 0 | BJ98: =((IF($P98="",0,VLOOKUP($P98,Utslippsfaktorer!$C$9:$I$425,Utslippsfaktorer!G$5,FALSE)))*$T98)+($U98*Utslippsfaktorer!G$141) -> 0 | BK98: =((IF($P98="",0,VLOOKUP($P98,Utslippsfaktorer!$C$9:$I$425,Utslippsfaktorer!H$5,FALSE)))*$T98)+($U98*Utslippsfaktorer!H$141) -> 0 | BL98: =((IF($P98="",0,VLOOKUP($P98,Utslippsfaktorer!$C$9:$I$425,Utslippsfaktorer!I$5,FALSE)))*$T98)+($U98*Utslippsfaktorer!I$141) -> 0 | BM98: 0 | BN98: 0 | BO98: 0 | BP98: 0 | BQ98: 0
B99: 23.232 | D99: Bolter, endeforankrede, lengde 2,4 m, diameter 20 mm | F99: stk | P99: Stål, bolter av kamstål | Q99: =IF(P99="","",VLOOKUP(P99,Utslippsfaktorer!$C$9:$D$392,2,FALSE)) -> kg | R99: =E99*2.4*Beregningsfaktorer!$C$50 -> 0 | S99: =IF((OR(F99=Nedtrekksmenyer!$F$4,P99="")),0,VLOOKUP(P99,Beregningsfaktorer!$L$70:$Q$328,Beregningsfaktorer!$Q$70,FALSE))*R99 -> 0 | U99: =IF((OR(F99=Nedtrekksmenyer!$F$4,P99="")),0,VLOOKUP(P99,Beregningsfaktorer!$L$70:$Q$328,Beregningsfaktorer!$Q$70,FALSE))*T99 -> 0 | V99: =IF(P99="","",VLOOKUP(P99,Utslippsfaktorer!$C$9:$AL$391,Utslippsfaktorer!$AL$5,FALSE)) -> Stål, armering og bolter kamstål | X99: =$I99*Utslippsfaktorer!E$131 -> 0 | Y99: =$I99*Utslippsfaktorer!F$131 -> 0 | Z99: =$I99*Utslippsfaktorer!G$131 -> 0 | AA99: =$I99*Utslippsfaktorer!H$131 -> 0 | AB99: =$I99*Utslippsfaktorer!I$131 -> 0 | AC99: =$L99*Utslippsfaktorer!E$142*Utslippsfaktorer!$AO$142 -> 0 | AD99: =$L99*Utslippsfaktorer!F$142*Utslippsfaktorer!$AO$142 -> 0 | AE99: =$L99*Utslippsfaktorer!G$142*Utslippsfaktorer!$AO$142 -> 0 | AF99: =$L99*Utslippsfaktorer!H$142*Utslippsfaktorer!$AO$142 -> 0 | AG99: =$L99*Utslippsfaktorer!I$142*Utslippsfaktorer!$AO$142 -> 0 | AH99: =$N99*Utslippsfaktorer!E$147 -> 0 | AI99: =$N99*Utslippsfaktorer!F$147 -> 0 | AJ99: =$N99*Utslippsfaktorer!G$147 -> 0 | AK99: =$N99*Utslippsfaktorer!H$147 -> 0 | AL99: =$N99*Utslippsfaktorer!I$147 -> 0 | AM99: =((IF($P99="",0,VLOOKUP($P99,Utslippsfaktorer!$C$9:$I$425,Utslippsfaktorer!E$5,FALSE)))*$R99)+($S99*Utslippsfaktorer!E$141) -> 0 | AN99: =((IF($P99="",0,VLOOKUP($P99,Utslippsfaktorer!$C$9:$I$425,Utslippsfaktorer!F$5,FALSE)))*$R99)+($S99*Utslippsfaktorer!F$141) -> 0 | AO99: =((IF($P99="",0,VLOOKUP($P99,Utslippsfaktorer!$C$9:$I$425,Utslippsfaktorer!G$5,FALSE)))*$R99)+($S99*Utslippsfaktorer!G$141) -> 0 | AP99: =((IF($P99="",0,VLOOKUP($P99,Utslippsfaktorer!$C$9:$I$425,Utslippsfaktorer!H$5,FALSE)))*$R99)+($S99*Utslippsfaktorer!H$141) -> 0 | AQ99: =((IF($P99="",0,VLOOKUP($P99,Utslippsfaktorer!$C$9:$I$425,Utslippsfaktorer!I$5,FALSE)))*$R99)+($S99*Utslippsfaktorer!I$141) -> 0 | AR99: 0 | AS99: 0 | AT99: 0 | AU99: 0 | AV99: 0 | AX99: =$J99*Utslippsfaktorer!E$131 -> 0 | AY99: =$J99*Utslippsfaktorer!F$131 -> 0 | AZ99: =$J99*Utslippsfaktorer!G$131 -> 0 | BA99: =$J99*Utslippsfaktorer!H$131 -> 0 | BB99: =$J99*Utslippsfaktorer!I$131 -> 0 | BC99: =$O99*Utslippsfaktorer!E$148 -> 0 | BD99: =$O99*Utslippsfaktorer!F$148 -> 0 | BE99: =$O99*Utslippsfaktorer!G$148 -> 0 | BF99: =$O99*Utslippsfaktorer!H$148 -> 0 | BG99: =$O99*Utslippsfaktorer!I$148 -> 0 | BH99: =((IF($P99="",0,VLOOKUP($P99,Utslippsfaktorer!$C$9:$I$425,Utslippsfaktorer!E$5,FALSE)))*$T99)+($U99*Utslippsfaktorer!E$141) -> 0 | BI99: =((IF($P99="",0,VLOOKUP($P99,Utslippsfaktorer!$C$9:$I$425,Utslippsfaktorer!F$5,FALSE)))*$T99)+($U99*Utslippsfaktorer!F$141) -> 0 | BJ99: =((IF($P99="",0,VLOOKUP($P99,Utslippsfaktorer!$C$9:$I$425,Utslippsfaktorer!G$5,FALSE)))*$T99)+($U99*Utslippsfaktorer!G$141) -> 0 | BK99: =((IF($P99="",0,VLOOKUP($P99,Utslippsfaktorer!$C$9:$I$425,Utslippsfaktorer!H$5,FALSE)))*$T99)+($U99*Utslippsfaktorer!H$141) -> 0 | BL99: =((IF($P99="",0,VLOOKUP($P99,Utslippsfaktorer!$C$9:$I$425,Utslippsfaktorer!I$5,FALSE)))*$T99)+($U99*Utslippsfaktorer!I$141) -> 0 | BM99: 0 | BN99: 0 | BO99: 0 | BP99: 0 | BQ99: 0
B100: 23.233 | D100: Bolter, endeforankrede, lengde 3 m, diameter 20 mm | F100: stk | P100: Stål, bolter av kamstål | Q100: =IF(P100="","",VLOOKUP(P100,Utslippsfaktorer!$C$9:$D$392,2,FALSE)) -> kg | R100: =E100*3*Beregningsfaktorer!$C$50 -> 0 | S100: =IF((OR(F100=Nedtrekksmenyer!$F$4,P100="")),0,VLOOKUP(P100,Beregningsfaktorer!$L$70:$Q$328,Beregningsfaktorer!$Q$70,FALSE))*R100 -> 0 | U100: =IF((OR(F100=Nedtrekksmenyer!$F$4,P100="")),0,VLOOKUP(P100,Beregningsfaktorer!$L$70:$Q$328,Beregningsfaktorer!$Q$70,FALSE))*T100 -> 0 | V100: =IF(P100="","",VLOOKUP(P100,Utslippsfaktorer!$C$9:$AL$391,Utslippsfaktorer!$AL$5,FALSE)) -> Stål, armering og bolter kamstål | X100: =$I100*Utslippsfaktorer!E$131 -> 0 | Y100: =$I100*Utslippsfaktorer!F$131 -> 0 | Z100: =$I100*Utslippsfaktorer!G$131 -> 0 | AA100: =$I100*Utslippsfaktorer!H$131 -> 0 | AB100: =$I100*Utslippsfaktorer!I$131 -> 0 | AC100: =$L100*Utslippsfaktorer!E$142*Utslippsfaktorer!$AO$142 -> 0 | AD100: =$L100*Utslippsfaktorer!F$142*Utslippsfaktorer!$AO$142 -> 0 | AE100: =$L100*Utslippsfaktorer!G$142*Utslippsfaktorer!$AO$142 -> 0 | AF100: =$L100*Utslippsfaktorer!H$142*Utslippsfaktorer!$AO$142 -> 0 | AG100: =$L100*Utslippsfaktorer!I$142*Utslippsfaktorer!$AO$142 -> 0 | AH100: =$N100*Utslippsfaktorer!E$147 -> 0 | AI100: =$N100*Utslippsfaktorer!F$147 -> 0 | AJ100: =$N100*Utslippsfaktorer!G$147 -> 0 | AK100: =$N100*Utslippsfaktorer!H$147 -> 0 | AL100: =$N100*Utslippsfaktorer!I$147 -> 0 | AM100: =((IF($P100="",0,VLOOKUP($P100,Utslippsfaktorer!$C$9:$I$425,Utslippsfaktorer!E$5,FALSE)))*$R100)+($S100*Utslippsfaktorer!E$141) -> 0 | AN100: =((IF($P100="",0,VLOOKUP($P100,Utslippsfaktorer!$C$9:$I$425,Utslippsfaktorer!F$5,FALSE)))*$R100)+($S100*Utslippsfaktorer!F$141) -> 0 | AO100: =((IF($P100="",0,VLOOKUP($P100,Utslippsfaktorer!$C$9:$I$425,Utslippsfaktorer!G$5,FALSE)))*$R100)+($S100*Utslippsfaktorer!G$141) -> 0 | AP100: =((IF($P100="",0,VLOOKUP($P100,Utslippsfaktorer!$C$9:$I$425,Utslippsfaktorer!H$5,FALSE)))*$R100)+($S100*Utslippsfaktorer!H$141) -> 0 | AQ100: =((IF($P100="",0,VLOOKUP($P100,Utslippsfaktorer!$C$9:$I$425,Utslippsfaktorer!I$5,FALSE)))*$R100)+($S100*Utslippsfaktorer!I$141) -> 0 | AR100: 0 | AS100: 0 | AT100: 0 | AU100: 0 | AV100: 0 | AX100: =$J100*Utslippsfaktorer!E$131 -> 0 | AY100: =$J100*Utslippsfaktorer!F$131 -> 0 | AZ100: =$J100*Utslippsfaktorer!G$131 -> 0 | BA100: =$J100*Utslippsfaktorer!H$131 -> 0 | BB100: =$J100*Utslippsfaktorer!I$131 -> 0 | BC100: =$O100*Utslippsfaktorer!E$148 -> 0 | BD100: =$O100*Utslippsfaktorer!F$148 -> 0 | BE100: =$O100*Utslippsfaktorer!G$148 -> 0 | BF100: =$O100*Utslippsfaktorer!H$148 -> 0 | BG100: =$O100*Utslippsfaktorer!I$148 -> 0 | BH100: =((IF($P100="",0,VLOOKUP($P100,Utslippsfaktorer!$C$9:$I$425,Utslippsfaktorer!E$5,FALSE)))*$T100)+($U100*Utslippsfaktorer!E$141) -> 0 | BI100: =((IF($P100="",0,VLOOKUP($P100,Utslippsfaktorer!$C$9:$I$425,Utslippsfaktorer!F$5,FALSE)))*$T100)+($U100*Utslippsfaktorer!F$141) -> 0 | BJ100: =((IF($P100="",0,VLOOKUP($P100,Utslippsfaktorer!$C$9:$I$425,Utslippsfaktorer!G$5,FALSE)))*$T100)+($U100*Utslippsfaktorer!G$141) -> 0 | BK100: =((IF($P100="",0,VLOOKUP($P100,Utslippsfaktorer!$C$9:$I$425,Utslippsfaktorer!H$5,FALSE)))*$T100)+($U100*Utslippsfaktorer!H$141) -> 0 | BL100: =((IF($P100="",0,VLOOKUP($P100,Utslippsfaktorer!$C$9:$I$425,Utslippsfaktorer!I$5,FALSE)))*$T100)+($U100*Utslippsfaktorer!I$141) -> 0 | BM100: 0 | BN100: 0 | BO100: 0 | BP100: 0 | BQ100: 0
B101: 23.234 | D101: Bolter, endeforankrede, lengde 4 m, diameter 20 mm | F101: stk | P101: Stål, bolter av kamstål | Q101: =IF(P101="","",VLOOKUP(P101,Utslippsfaktorer!$C$9:$D$392,2,FALSE)) -> kg | R101: =E101*4*Beregningsfaktorer!$C$50 -> 0 | S101: =IF((OR(F101=Nedtrekksmenyer!$F$4,P101="")),0,VLOOKUP(P101,Beregningsfaktorer!$L$70:$Q$328,Beregningsfaktorer!$Q$70,FALSE))*R101 -> 0 | U101: =IF((OR(F101=Nedtrekksmenyer!$F$4,P101="")),0,VLOOKUP(P101,Beregningsfaktorer!$L$70:$Q$328,Beregningsfaktorer!$Q$70,FALSE))*T101 -> 0 | V101: =IF(P101="","",VLOOKUP(P101,Utslippsfaktorer!$C$9:$AL$391,Utslippsfaktorer!$AL$5,FALSE)) -> Stål, armering og bolter kamstål | X101: =$I101*Utslippsfaktorer!E$131 -> 0 | Y101: =$I101*Utslippsfaktorer!F$131 -> 0 | Z101: =$I101*Utslippsfaktorer!G$131 -> 0 | AA101: =$I101*Utslippsfaktorer!H$131 -> 0 | AB101: =$I101*Utslippsfaktorer!I$131 -> 0 | AC101: =$L101*Utslippsfaktorer!E$142*Utslippsfaktorer!$AO$142 -> 0 | AD101: =$L101*Utslippsfaktorer!F$142*Utslippsfaktorer!$AO$142 -> 0 | AE101: =$L101*Utslippsfaktorer!G$142*Utslippsfaktorer!$AO$142 -> 0 | AF101: =$L101*Utslippsfaktorer!H$142*Utslippsfaktorer!$AO$142 -> 0 | AG101: =$L101*Utslippsfaktorer!I$142*Utslippsfaktorer!$AO$142 -> 0 | AH101: =$N101*Utslippsfaktorer!E$147 -> 0 | AI101: =$N101*Utslippsfaktorer!F$147 -> 0 | AJ101: =$N101*Utslippsfaktorer!G$147 -> 0 | AK101: =$N101*Utslippsfaktorer!H$147 -> 0 | AL101: =$N101*Utslippsfaktorer!I$147 -> 0 | AM101: =((IF($P101="",0,VLOOKUP($P101,Utslippsfaktorer!$C$9:$I$425,Utslippsfaktorer!E$5,FALSE)))*$R101)+($S101*Utslippsfaktorer!E$141) -> 0 | AN101: =((IF($P101="",0,VLOOKUP($P101,Utslippsfaktorer!$C$9:$I$425,Utslippsfaktorer!F$5,FALSE)))*$R101)+($S101*Utslippsfaktorer!F$141) -> 0 | AO101: =((IF($P101="",0,VLOOKUP($P101,Utslippsfaktorer!$C$9:$I$425,Utslippsfaktorer!G$5,FALSE)))*$R101)+($S101*Utslippsfaktorer!G$141) -> 0 | AP101: =((IF($P101="",0,VLOOKUP($P101,Utslippsfaktorer!$C$9:$I$425,Utslippsfaktorer!H$5,FALSE)))*$R101)+($S101*Utslippsfaktorer!H$141) -> 0 | AQ101: =((IF($P101="",0,VLOOKUP($P101,Utslippsfaktorer!$C$9:$I$425,Utslippsfaktorer!I$5,FALSE)))*$R101)+($S101*Utslippsfaktorer!I$141) -> 0 | AR101: 0 | AS101: 0 | AT101: 0 | AU101: 0 | AV101: 0 | AX101: =$J101*Utslippsfaktorer!E$131 -> 0 | AY101: =$J101*Utslippsfaktorer!F$131 -> 0 | AZ101: =$J101*Utslippsfaktorer!G$131 -> 0 | BA101: =$J101*Utslippsfaktorer!H$131 -> 0 | BB101: =$J101*Utslippsfaktorer!I$131 -> 0 | BC101: =$O101*Utslippsfaktorer!E$148 -> 0 | BD101: =$O101*Utslippsfaktorer!F$148 -> 0 | BE101: =$O101*Utslippsfaktorer!G$148 -> 0 | BF101: =$O101*Utslippsfaktorer!H$148 -> 0 | BG101: =$O101*Utslippsfaktorer!I$148 -> 0 | BH101: =((IF($P101="",0,VLOOKUP($P101,Utslippsfaktorer!$C$9:$I$425,Utslippsfaktorer!E$5,FALSE)))*$T101)+($U101*Utslippsfaktorer!E$141) -> 0 | BI101: =((IF($P101="",0,VLOOKUP($P101,Utslippsfaktorer!$C$9:$I$425,Utslippsfaktorer!F$5,FALSE)))*$T101)+($U101*Utslippsfaktorer!F$141) -> 0 | BJ101: =((IF($P101="",0,VLOOKUP($P101,Utslippsfaktorer!$C$9:$I$425,Utslippsfaktorer!G$5,FALSE)))*$T101)+($U101*Utslippsfaktorer!G$141) -> 0 | BK101: =((IF($P101="",0,VLOOKUP($P101,Utslippsfaktorer!$C$9:$I$425,Utslippsfaktorer!H$5,FALSE)))*$T101)+($U101*Utslippsfaktorer!H$141) -> 0 | BL101: =((IF($P101="",0,VLOOKUP($P101,Utslippsfaktorer!$C$9:$I$425,Utslippsfaktorer!I$5,FALSE)))*$T101)+($U101*Utslippsfaktorer!I$141) -> 0 | BM101: 0 | BN101: 0 | BO101: 0 | BP101: 0 | BQ101: 0
B102: 23.235 | D102: Bolter, endeforankrede, lengde 5 m, diameter 20 mm | F102: stk | P102: Stål, bolter av kamstål | Q102: =IF(P102="","",VLOOKUP(P102,Utslippsfaktorer!$C$9:$D$392,2,FALSE)) -> kg | R102: =E102*5*Beregningsfaktorer!$C$50 -> 0 | S102: =IF((OR(F102=Nedtrekksmenyer!$F$4,P102="")),0,VLOOKUP(P102,Beregningsfaktorer!$L$70:$Q$328,Beregningsfaktorer!$Q$70,FALSE))*R102 -> 0 | U102: =IF((OR(F102=Nedtrekksmenyer!$F$4,P102="")),0,VLOOKUP(P102,Beregningsfaktorer!$L$70:$Q$328,Beregningsfaktorer!$Q$70,FALSE))*T102 -> 0 | V102: =IF(P102="","",VLOOKUP(P102,Utslippsfaktorer!$C$9:$AL$391,Utslippsfaktorer!$AL$5,FALSE)) -> Stål, armering og bolter kamstål | X102: =$I102*Utslippsfaktorer!E$131 -> 0 | Y102: =$I102*Utslippsfaktorer!F$131 -> 0 | Z102: =$I102*Utslippsfaktorer!G$131 -> 0 | AA102: =$I102*Utslippsfaktorer!H$131 -> 0 | AB102: =$I102*Utslippsfaktorer!I$131 -> 0 | AC102: =$L102*Utslippsfaktorer!E$142*Utslippsfaktorer!$AO$142 -> 0 | AD102: =$L102*Utslippsfaktorer!F$142*Utslippsfaktorer!$AO$142 -> 0 | AE102: =$L102*Utslippsfaktorer!G$142*Utslippsfaktorer!$AO$142 -> 0 | AF102: =$L102*Utslippsfaktorer!H$142*Utslippsfaktorer!$AO$142 -> 0 | AG102: =$L102*Utslippsfaktorer!I$142*Utslippsfaktorer!$AO$142 -> 0 | AH102: =$N102*Utslippsfaktorer!E$147 -> 0 | AI102: =$N102*Utslippsfaktorer!F$147 -> 0 | AJ102: =$N102*Utslippsfaktorer!G$147 -> 0 | AK102: =$N102*Utslippsfaktorer!H$147 -> 0 | AL102: =$N102*Utslippsfaktorer!I$147 -> 0 | AM102: =((IF($P102="",0,VLOOKUP($P102,Utslippsfaktorer!$C$9:$I$425,Utslippsfaktorer!E$5,FALSE)))*$R102)+($S102*Utslippsfaktorer!E$141) -> 0 | AN102: =((IF($P102="",0,VLOOKUP($P102,Utslippsfaktorer!$C$9:$I$425,Utslippsfaktorer!F$5,FALSE)))*$R102)+($S102*Utslippsfaktorer!F$141) -> 0 | AO102: =((IF($P102="",0,VLOOKUP($P102,Utslippsfaktorer!$C$9:$I$425,Utslippsfaktorer!G$5,FALSE)))*$R102)+($S102*Utslippsfaktorer!G$141) -> 0 | AP102: =((IF($P102="",0,VLOOKUP($P102,Utslippsfaktorer!$C$9:$I$425,Utslippsfaktorer!H$5,FALSE)))*$R102)+($S102*Utslippsfaktorer!H$141) -> 0 | AQ102: =((IF($P102="",0,VLOOKUP($P102,Utslippsfaktorer!$C$9:$I$425,Utslippsfaktorer!I$5,FALSE)))*$R102)+($S102*Utslippsfaktorer!I$141) -> 0 | AR102: 0 | AS102: 0 | AT102: 0 | AU102: 0 | AV102: 0 | AX102: =$J102*Utslippsfaktorer!E$131 -> 0 | AY102: =$J102*Utslippsfaktorer!F$131 -> 0 | AZ102: =$J102*Utslippsfaktorer!G$131 -> 0 | BA102: =$J102*Utslippsfaktorer!H$131 -> 0 | BB102: =$J102*Utslippsfaktorer!I$131 -> 0 | BC102: =$O102*Utslippsfaktorer!E$148 -> 0 | BD102: =$O102*Utslippsfaktorer!F$148 -> 0 | BE102: =$O102*Utslippsfaktorer!G$148 -> 0 | BF102: =$O102*Utslippsfaktorer!H$148 -> 0 | BG102: =$O102*Utslippsfaktorer!I$148 -> 0 | BH102: =((IF($P102="",0,VLOOKUP($P102,Utslippsfaktorer!$C$9:$I$425,Utslippsfaktorer!E$5,FALSE)))*$T102)+($U102*Utslippsfaktorer!E$141) -> 0 | BI102: =((IF($P102="",0,VLOOKUP($P102,Utslippsfaktorer!$C$9:$I$425,Utslippsfaktorer!F$5,FALSE)))*$T102)+($U102*Utslippsfaktorer!F$141) -> 0 | BJ102: =((IF($P102="",0,VLOOKUP($P102,Utslippsfaktorer!$C$9:$I$425,Utslippsfaktorer!G$5,FALSE)))*$T102)+($U102*Utslippsfaktorer!G$141) -> 0 | BK102: =((IF($P102="",0,VLOOKUP($P102,Utslippsfaktorer!$C$9:$I$425,Utslippsfaktorer!H$5,FALSE)))*$T102)+($U102*Utslippsfaktorer!H$141) -> 0 | BL102: =((IF($P102="",0,VLOOKUP($P102,Utslippsfaktorer!$C$9:$I$425,Utslippsfaktorer!I$5,FALSE)))*$T102)+($U102*Utslippsfaktorer!I$141) -> 0 | BM102: 0 | BN102: 0 | BO102: 0 | BP102: 0 | BQ102: 0
B103: 23.24 | D103: Forbolter til topp skjæring (lengde 5 m, diameter 32 mm) | F103: stk | P103: Stål, bolter av kamstål | Q103: =IF(P103="","",VLOOKUP(P103,Utslippsfaktorer!$C$9:$D$392,2,FALSE)) -> kg | R103: =E103*5*Beregningsfaktorer!$C$52 -> 0 | S103: =IF((OR(F103=Nedtrekksmenyer!$F$4,P103="")),0,VLOOKUP(P103,Beregningsfaktorer!$L$70:$Q$328,Beregningsfaktorer!$Q$70,FALSE))*R103 -> 0 | U103: =IF((OR(F103=Nedtrekksmenyer!$F$4,P103="")),0,VLOOKUP(P103,Beregningsfaktorer!$L$70:$Q$328,Beregningsfaktorer!$Q$70,FALSE))*T103 -> 0 | V103: =IF(P103="","",VLOOKUP(P103,Utslippsfaktorer!$C$9:$AL$391,Utslippsfaktorer!$AL$5,FALSE)) -> Stål, armering og bolter kamstål | X103: =$I103*Utslippsfaktorer!E$131 -> 0 | Y103: =$I103*Utslippsfaktorer!F$131 -> 0 | Z103: =$I103*Utslippsfaktorer!G$131 -> 0 | AA103: =$I103*Utslippsfaktorer!H$131 -> 0 | AB103: =$I103*Utslippsfaktorer!I$131 -> 0 | AC103: =$L103*Utslippsfaktorer!E$142*Utslippsfaktorer!$AO$142 -> 0 | AD103: =$L103*Utslippsfaktorer!F$142*Utslippsfaktorer!$AO$142 -> 0 | AE103: =$L103*Utslippsfaktorer!G$142*Utslippsfaktorer!$AO$142 -> 0 | AF103: =$L103*Utslippsfaktorer!H$142*Utslippsfaktorer!$AO$142 -> 0 | AG103: =$L103*Utslippsfaktorer!I$142*Utslippsfaktorer!$AO$142 -> 0 | AH103: =$N103*Utslippsfaktorer!E$147 -> 0 | AI103: =$N103*Utslippsfaktorer!F$147 -> 0 | AJ103: =$N103*Utslippsfaktorer!G$147 -> 0 | AK103: =$N103*Utslippsfaktorer!H$147 -> 0 | AL103: =$N103*Utslippsfaktorer!I$147 -> 0 | AM103: =((IF($P103="",0,VLOOKUP($P103,Utslippsfaktorer!$C$9:$I$425,Utslippsfaktorer!E$5,FALSE)))*$R103)+($S103*Utslippsfaktorer!E$141) -> 0 | AN103: =((IF($P103="",0,VLOOKUP($P103,Utslippsfaktorer!$C$9:$I$425,Utslippsfaktorer!F$5,FALSE)))*$R103)+($S103*Utslippsfaktorer!F$141) -> 0 | AO103: =((IF($P103="",0,VLOOKUP($P103,Utslippsfaktorer!$C$9:$I$425,Utslippsfaktorer!G$5,FALSE)))*$R103)+($S103*Utslippsfaktorer!G$141) -> 0 | AP103: =((IF($P103="",0,VLOOKUP($P103,Utslippsfaktorer!$C$9:$I$425,Utslippsfaktorer!H$5,FALSE)))*$R103)+($S103*Utslippsfaktorer!H$141) -> 0 | AQ103: =((IF($P103="",0,VLOOKUP($P103,Utslippsfaktorer!$C$9:$I$425,Utslippsfaktorer!I$5,FALSE)))*$R103)+($S103*Utslippsfaktorer!I$141) -> 0 | AR103: 0 | AS103: 0 | AT103: 0 | AU103: 0 | AV103: 0 | AX103: =$J103*Utslippsfaktorer!E$131 -> 0 | AY103: =$J103*Utslippsfaktorer!F$131 -> 0 | AZ103: =$J103*Utslippsfaktorer!G$131 -> 0 | BA103: =$J103*Utslippsfaktorer!H$131 -> 0 | BB103: =$J103*Utslippsfaktorer!I$131 -> 0 | BC103: =$O103*Utslippsfaktorer!E$148 -> 0 | BD103: =$O103*Utslippsfaktorer!F$148 -> 0 | BE103: =$O103*Utslippsfaktorer!G$148 -> 0 | BF103: =$O103*Utslippsfaktorer!H$148 -> 0 | BG103: =$O103*Utslippsfaktorer!I$148 -> 0 | BH103: =((IF($P103="",0,VLOOKUP($P103,Utslippsfaktorer!$C$9:$I$425,Utslippsfaktorer!E$5,FALSE)))*$T103)+($U103*Utslippsfaktorer!E$141) -> 0 | BI103: =((IF($P103="",0,VLOOKUP($P103,Utslippsfaktorer!$C$9:$I$425,Utslippsfaktorer!F$5,FALSE)))*$T103)+($U103*Utslippsfaktorer!F$141) -> 0 | BJ103: =((IF($P103="",0,VLOOKUP($P103,Utslippsfaktorer!$C$9:$I$425,Utslippsfaktorer!G$5,FALSE)))*$T103)+($U103*Utslippsfaktorer!G$141) -> 0 | BK103: =((IF($P103="",0,VLOOKUP($P103,Utslippsfaktorer!$C$9:$I$425,Utslippsfaktorer!H$5,FALSE)))*$T103)+($U103*Utslippsfaktorer!H$141) -> 0 | BL103: =((IF($P103="",0,VLOOKUP($P103,Utslippsfaktorer!$C$9:$I$425,Utslippsfaktorer!I$5,FALSE)))*$T103)+($U103*Utslippsfaktorer!I$141) -> 0 | BM103: 0 | BN103: 0 | BO103: 0 | BP103: 0 | BQ103: 0
B104: 23.241 | D104: Forbolter, lengde 3,0 m, diameter 25 mm | F104: stk | P104: Stål, bolter av kamstål | Q104: =IF(P104="","",VLOOKUP(P104,Utslippsfaktorer!$C$9:$D$392,2,FALSE)) -> kg | R104: =E104*3*Beregningsfaktorer!$C$51 -> 0 | S104: =IF((OR(F104=Nedtrekksmenyer!$F$4,P104="")),0,VLOOKUP(P104,Beregningsfaktorer!$L$70:$Q$328,Beregningsfaktorer!$Q$70,FALSE))*R104 -> 0 | U104: =IF((OR(F104=Nedtrekksmenyer!$F$4,P104="")),0,VLOOKUP(P104,Beregningsfaktorer!$L$70:$Q$328,Beregningsfaktorer!$Q$70,FALSE))*T104 -> 0 | V104: =IF(P104="","",VLOOKUP(P104,Utslippsfaktorer!$C$9:$AL$391,Utslippsfaktorer!$AL$5,FALSE)) -> Stål, armering og bolter kamstål | X104: =$I104*Utslippsfaktorer!E$131 -> 0 | Y104: =$I104*Utslippsfaktorer!F$131 -> 0 | Z104: =$I104*Utslippsfaktorer!G$131 -> 0 | AA104: =$I104*Utslippsfaktorer!H$131 -> 0 | AB104: =$I104*Utslippsfaktorer!I$131 -> 0 | AC104: =$L104*Utslippsfaktorer!E$142*Utslippsfaktorer!$AO$142 -> 0 | AD104: =$L104*Utslippsfaktorer!F$142*Utslippsfaktorer!$AO$142 -> 0 | AE104: =$L104*Utslippsfaktorer!G$142*Utslippsfaktorer!$AO$142 -> 0 | AF104: =$L104*Utslippsfaktorer!H$142*Utslippsfaktorer!$AO$142 -> 0 | AG104: =$L104*Utslippsfaktorer!I$142*Utslippsfaktorer!$AO$142 -> 0 | AH104: =$N104*Utslippsfaktorer!E$147 -> 0 | AI104: =$N104*Utslippsfaktorer!F$147 -> 0 | AJ104: =$N104*Utslippsfaktorer!G$147 -> 0 | AK104: =$N104*Utslippsfaktorer!H$147 -> 0 | AL104: =$N104*Utslippsfaktorer!I$147 -> 0 | AM104: =((IF($P104="",0,VLOOKUP($P104,Utslippsfaktorer!$C$9:$I$425,Utslippsfaktorer!E$5,FALSE)))*$R104)+($S104*Utslippsfaktorer!E$141) -> 0 | AN104: =((IF($P104="",0,VLOOKUP($P104,Utslippsfaktorer!$C$9:$I$425,Utslippsfaktorer!F$5,FALSE)))*$R104)+($S104*Utslippsfaktorer!F$141) -> 0 | AO104: =((IF($P104="",0,VLOOKUP($P104,Utslippsfaktorer!$C$9:$I$425,Utslippsfaktorer!G$5,FALSE)))*$R104)+($S104*Utslippsfaktorer!G$141) -> 0 | AP104: =((IF($P104="",0,VLOOKUP($P104,Utslippsfaktorer!$C$9:$I$425,Utslippsfaktorer!H$5,FALSE)))*$R104)+($S104*Utslippsfaktorer!H$141) -> 0 | AQ104: =((IF($P104="",0,VLOOKUP($P104,Utslippsfaktorer!$C$9:$I$425,Utslippsfaktorer!I$5,FALSE)))*$R104)+($S104*Utslippsfaktorer!I$141) -> 0 | AR104: 0 | AS104: 0 | AT104: 0 | AU104: 0 | AV104: 0 | AX104: =$J104*Utslippsfaktorer!E$131 -> 0 | AY104: =$J104*Utslippsfaktorer!F$131 -> 0 | AZ104: =$J104*Utslippsfaktorer!G$131 -> 0 | BA104: =$J104*Utslippsfaktorer!H$131 -> 0 | BB104: =$J104*Utslippsfaktorer!I$131 -> 0 | BC104: =$O104*Utslippsfaktorer!E$148 -> 0 | BD104: =$O104*Utslippsfaktorer!F$148 -> 0 | BE104: =$O104*Utslippsfaktorer!G$148 -> 0 | BF104: =$O104*Utslippsfaktorer!H$148 -> 0 | BG104: =$O104*Utslippsfaktorer!I$148 -> 0 | BH104: =((IF($P104="",0,VLOOKUP($P104,Utslippsfaktorer!$C$9:$I$425,Utslippsfaktorer!E$5,FALSE)))*$T104)+($U104*Utslippsfaktorer!E$141) -> 0 | BI104: =((IF($P104="",0,VLOOKUP($P104,Utslippsfaktorer!$C$9:$I$425,Utslippsfaktorer!F$5,FALSE)))*$T104)+($U104*Utslippsfaktorer!F$141) -> 0 | BJ104: =((IF($P104="",0,VLOOKUP($P104,Utslippsfaktorer!$C$9:$I$425,Utslippsfaktorer!G$5,FALSE)))*$T104)+($U104*Utslippsfaktorer!G$141) -> 0 | BK104: =((IF($P104="",0,VLOOKUP($P104,Utslippsfaktorer!$C$9:$I$425,Utslippsfaktorer!H$5,FALSE)))*$T104)+($U104*Utslippsfaktorer!H$141) -> 0 | BL104: =((IF($P104="",0,VLOOKUP($P104,Utslippsfaktorer!$C$9:$I$425,Utslippsfaktorer!I$5,FALSE)))*$T104)+($U104*Utslippsfaktorer!I$141) -> 0 | BM104: 0 | BN104: 0 | BO104: 0 | BP104: 0 | BQ104: 0
B105: 23.242 | D105: Forbolter, lengde 4,0 m, diameter 25 mm | F105: stk | P105: Stål, bolter av kamstål | Q105: =IF(P105="","",VLOOKUP(P105,Utslippsfaktorer!$C$9:$D$392,2,FALSE)) -> kg | R105: =E105*4*Beregningsfaktorer!$C$51 -> 0 | S105: =IF((OR(F105=Nedtrekksmenyer!$F$4,P105="")),0,VLOOKUP(P105,Beregningsfaktorer!$L$70:$Q$328,Beregningsfaktorer!$Q$70,FALSE))*R105 -> 0 | U105: =IF((OR(F105=Nedtrekksmenyer!$F$4,P105="")),0,VLOOKUP(P105,Beregningsfaktorer!$L$70:$Q$328,Beregningsfaktorer!$Q$70,FALSE))*T105 -> 0 | V105: =IF(P105="","",VLOOKUP(P105,Utslippsfaktorer!$C$9:$AL$391,Utslippsfaktorer!$AL$5,FALSE)) -> Stål, armering og bolter kamstål | X105: =$I105*Utslippsfaktorer!E$131 -> 0 | Y105: =$I105*Utslippsfaktorer!F$131 -> 0 | Z105: =$I105*Utslippsfaktorer!G$131 -> 0 | AA105: =$I105*Utslippsfaktorer!H$131 -> 0 | AB105: =$I105*Utslippsfaktorer!I$131 -> 0 | AC105: =$L105*Utslippsfaktorer!E$142*Utslippsfaktorer!$AO$142 -> 0 | AD105: =$L105*Utslippsfaktorer!F$142*Utslippsfaktorer!$AO$142 -> 0 | AE105: =$L105*Utslippsfaktorer!G$142*Utslippsfaktorer!$AO$142 -> 0 | AF105: =$L105*Utslippsfaktorer!H$142*Utslippsfaktorer!$AO$142 -> 0 | AG105: =$L105*Utslippsfaktorer!I$142*Utslippsfaktorer!$AO$142 -> 0 | AH105: =$N105*Utslippsfaktorer!E$147 -> 0 | AI105: =$N105*Utslippsfaktorer!F$147 -> 0 | AJ105: =$N105*Utslippsfaktorer!G$147 -> 0 | AK105: =$N105*Utslippsfaktorer!H$147 -> 0 | AL105: =$N105*Utslippsfaktorer!I$147 -> 0 | AM105: =((IF($P105="",0,VLOOKUP($P105,Utslippsfaktorer!$C$9:$I$425,Utslippsfaktorer!E$5,FALSE)))*$R105)+($S105*Utslippsfaktorer!E$141) -> 0 | AN105: =((IF($P105="",0,VLOOKUP($P105,Utslippsfaktorer!$C$9:$I$425,Utslippsfaktorer!F$5,FALSE)))*$R105)+($S105*Utslippsfaktorer!F$141) -> 0 | AO105: =((IF($P105="",0,VLOOKUP($P105,Utslippsfaktorer!$C$9:$I$425,Utslippsfaktorer!G$5,FALSE)))*$R105)+($S105*Utslippsfaktorer!G$141) -> 0 | AP105: =((IF($P105="",0,VLOOKUP($P105,Utslippsfaktorer!$C$9:$I$425,Utslippsfaktorer!H$5,FALSE)))*$R105)+($S105*Utslippsfaktorer!H$141) -> 0 | AQ105: =((IF($P105="",0,VLOOKUP($P105,Utslippsfaktorer!$C$9:$I$425,Utslippsfaktorer!I$5,FALSE)))*$R105)+($S105*Utslippsfaktorer!I$141) -> 0 | AR105: 0 | AS105: 0 | AT105: 0 | AU105: 0 | AV105: 0 | AX105: =$J105*Utslippsfaktorer!E$131 -> 0 | AY105: =$J105*Utslippsfaktorer!F$131 -> 0 | AZ105: =$J105*Utslippsfaktorer!G$131 -> 0 | BA105: =$J105*Utslippsfaktorer!H$131 -> 0 | BB105: =$J105*Utslippsfaktorer!I$131 -> 0 | BC105: =$O105*Utslippsfaktorer!E$148 -> 0 | BD105: =$O105*Utslippsfaktorer!F$148 -> 0 | BE105: =$O105*Utslippsfaktorer!G$148 -> 0 | BF105: =$O105*Utslippsfaktorer!H$148 -> 0 | BG105: =$O105*Utslippsfaktorer!I$148 -> 0 | BH105: =((IF($P105="",0,VLOOKUP($P105,Utslippsfaktorer!$C$9:$I$425,Utslippsfaktorer!E$5,FALSE)))*$T105)+($U105*Utslippsfaktorer!E$141) -> 0 | BI105: =((IF($P105="",0,VLOOKUP($P105,Utslippsfaktorer!$C$9:$I$425,Utslippsfaktorer!F$5,FALSE)))*$T105)+($U105*Utslippsfaktorer!F$141) -> 0 | BJ105: =((IF($P105="",0,VLOOKUP($P105,Utslippsfaktorer!$C$9:$I$425,Utslippsfaktorer!G$5,FALSE)))*$T105)+($U105*Utslippsfaktorer!G$141) -> 0 | BK105: =((IF($P105="",0,VLOOKUP($P105,Utslippsfaktorer!$C$9:$I$425,Utslippsfaktorer!H$5,FALSE)))*$T105)+($U105*Utslippsfaktorer!H$141) -> 0 | BL105: =((IF($P105="",0,VLOOKUP($P105,Utslippsfaktorer!$C$9:$I$425,Utslippsfaktorer!I$5,FALSE)))*$T105)+($U105*Utslippsfaktorer!I$141) -> 0 | BM105: 0 | BN105: 0 | BO105: 0 | BP105: 0 | BQ105: 0
